Workbook

Sheet Info
C2: Description | D2: Comments
A3: Sheet 1 | B3: Hypothesis | C3: Page where we insert the hypothesis for the projections for each country concerning the TFP and its convergence, and the parameters for relative price, the average hours worked per year and per worker, the employment, the labor and products market regulations, and the education. | D3: To differenciate whether we chose a manual entry or a past trend refer to the button that is in bold and orange Input boxes are outlined in black and Ouput boxes are filled-in in grey (Do not write in Output boxes)
A4: Sheet 2 | B4: United States | C4: The TFP growth rate is a past trend to which we can add a productivity wave computed by a standard normal distribution whose parameters are inputed in the Hypothesis sheet The relative price growth rate depends on an ECM model whose parameters are noted in the Hypothesis sheet The GDP function is modeled by a Cobb-Douglas function with constant returns to scale Δln(Y)=[Δln(TFP)/(1-α)]+[αΔln(P)/(1-α)]+Δln(N)+Δln(H) where Δln(Y) is the growth rate of GDP, Δln(TFP) the growth rate of tfp, Δln(P) the growth rate of relative price of investment, Δln(N) the growth rate of employment and Δln(H) the growth rate of avergae hours worked per year per worker | D4: The HP filter is set to 500 Values in red are historic values
A5: Sheet 3 | B5: Euro Area | C5: The left -hand side graphs are where the Euro Area is considered a country so we can parameter its variables in the Hypothesis sheet. The right-handed ones are a weighted sum by the ratio of the country's employment to the Euro Area's of the countries composing the Euro Area variables | D5: Same as USA
A6: Sheet 4-15 | B6: AUS, BEL, CAN, DEU, ESP, FIN, FRA, GBR, ITA, JPN, NLD, SWE | C6: The TFP growth rate follows a converging process to the United States's after the inputed start year of convergence (before, the country either follows a past trend or a manual entry inputed in the Hypothesis sheet) OR it follows a modelized trend. We input the converging parameters in the Hypotesis sheet The relative price to investment and the GDP follow the same models as the United States | D6: Same as USA
A7: Sheet 16 | B7: TFP | C7: Total Factor Productivity in $US 2010 ppp based | D7: Growth Rate approximated by the Δlog
A8: Sheet 17 | B8: Prices | C8: GDP, Capital, and Relative price to investment in log $US 2010 ppp based
A9: Sheet 18 | B9: Population | C9: Total employment in number of person, Participation rate among the 15-74 years old, 15-74 years old Population, and Total population | D9: OECD data until 2060, then last decade trend growth rate until 2100
A10: Sheet 19 | B10: Hours | C10: Average Hours Worked per year per worker | D10: Growth Rate approximated by the Δlog
A11: Sheet 20 | B11: Labor Regulations | C11: Rigor of labor protection on individual dismissal indicator (permanent employment contracts)
A12: Sheet 21 | B12: Product Regulations | C12: Regulations in non-manufacturing sectors indicator
A13: Sheet 22 | B13: Labor and Product Regulations | C13: Product of labor and products market regulations
A14: Sheet 23 | B14: Education | C14: Average years of education in population
A15: Sheet 24 | B15: CUR | C15: Capacity Utilization Rate

Sheet Hypothesis
A1: UNITED STATES
A3: Total Factor Productivity ($US 2010 ppp based)
A4: 1 | B4: Yearly Growth Rate | C4: 0.006680333844 | E4: 0.00836098016
B5: Wave Length | C5: 20 | D5: 5
B6: Wave Peak Year | C6: 2025
B7: Wave Peak Height over the Trend | C7: 0.02 | D7: 0.2506628275
A9: Relative Capital Price ($US 2010 ppp based)
A10: 1
A11: 1 | B11: Yearly Growth Rate | C11: Manual Entry | D11: Past Trend | E11: -0.004221130868
A13: Average Hours Worked per Year per Worker
A14: 1 | B14: Yearly Growth Rate | C14: Manual Entry | D14: Past Trend | E14: -0.0011234544 | F14: 1350 | G14: 2500
B15: Catch-up Start Date | C15: 2030
B16: Target number of Hours | C16: 1900 | D16: =Hours!N146 -> 1789
B17: Converging Speed | C17: =((C16/D17)^(1/(2100-C15)))-1 -> 0.001288299243 | D17: 1736.255841
A19: Education (years)
B20: Target year | C20: 2030 | D20: =($C$21/D21)^(1/(Hypothesis!$C$20-Education!$A$142))-1 -> 0.008067810999
B21: Target Education level | C21: 15 | D21: =Education!N142 -> 12.7731
A23: Employment (number of persons)
A24: 1 | B24: Yearly Growth Rate | E24: 0.004933337462
A26: AUSTRALIA
A28: Total Factor Productivity ($US 2010 ppp based)
A29: 1 | B29: Manual Entry | C29: Past Trend
A30: 1 | B30: Yearly Growth Rate | E30: 0.006048097147
B31: Catch-up Start Date | C31: 2020
B32: Converging Speed | C32: 0.05
B33: USA TFP Target | C33: 0.9 | D33: 0.9053847332
A35: Relative Capital Price ($US 2010 ppp based)
A36: 1
A37: 1 | B37: Yearly Growth Rate | C37: Manual Entry | D37: Past Trend | E37: -0.002285621181
A39: Average Hours Worked per Year per Worker
A40: 1 | B40: Yearly Growth Rate | C40: Manual Entry | D40: Past Trend | E40: -0.005762160476 | F40: 1350 | G40: 2500
B41: Catch-up Start Date | C41: 2020
B42: Target number of Hours | C42: 1850 | D42: =Hours!B146 -> 1663.6
B43: Converging Speed | C43: =((C42/D43)^(1/(2100-C41)))-1 -> 0.0007021973806 | D43: 1748.974406
A45: Education (years)
B46: Catch-up Start Date | C46: 2020
B47: Converging Speed | C47: 0.05
B48: USA Education Target | C48: 0.9 | D48: 0.9414572901
A50: Market Regulations | C50: Catch-up Start Year | D50: Catch-up End Year | E50: New Indice | F50: Converging Speed
B51: Labor Market Regulations
B52: Regulations 1 | C52: 2020 | D52: 2030 | E52: 1 | F52: =((E52/'Labor Regulations'!B30)^(1/(Hypothesis!D52-Hypothesis!C52+1)))-1 -> -0.04537693357
B53: Regulations 2 | C53: 2050 | D53: 2070 | E53: 0.5 | F53: =((E53/E52)^(1/(D53-C53+1)))-1 -> -0.03246822148
B54: Products Market Regulations
B55: Regulations 1 | C55: 2030 | D55: 2040 | E55: 1.4 | F55: =((E55/'Products Regulations'!B40)^(1/(Hypothesis!D55-Hypothesis!C55+1)))-1 -> -0.006318387648
B56: Regulations 2 | C56: 2060 | D56: 2080 | E56: 1.35 | F56: =((E56/E55)^(1/(D56-C56+1)))-1 -> -0.001730293892
A58: Employement (number of persons)
A59: 1 | B59: Yearly Growth Rate | C59: Past Trend | D59: Manual Entry | E59: 0.007463097217
A61: BELGIUM
A63: Total Factor Productivity ($US 2010 ppp based)
A64: 0 | B64: Manual Entry | C64: Past Trend
A65: 1 | B65: Yearly Growth Rate | E65: -0.001090770148
B66: Catch-up Start Date | C66: 2020
B67: Converging Speed | C67: 0.05
B68: USA TFP Target | C68: 0.9 | D68: 0.8570316425
A70: Relative Capital Price ($US 2010 ppp based)
A71: 1
B72: Yearly Growth Rate | C72: Manual Entry | D72: Past Trend | E72: 0.005068134504
A74: Average Hours Worked per Year per Worker
A75: 1 | B75: Yearly Growth Rate | C75: Manual Entry | D75: Past Trend | E75: 0.0003755443612 | F75: 1350 | G75: 2500
B76: Catch-up Start Date | C76: 2020
B77: Target number of Hours | C77: 1700 | D77: =Hours!C145 -> 1558
B78: Converging Speed | C78: =((C77/D78)^(1/(2100-C76)))-1 -> 0.0008934280455 | D78: 1582.784942
A80: Education (years)
B81: Catch-up Start Date | C81: 2030
B82: Converging Speed | C82: 0.06
B83: USA Education Target | C83: 0.9 | D83: 0.8420569857
A85: Market Regulations | C85: Catch-up Start Year | D85: Catch-up End Year | E85: New Indice | F85: Converging Speed
B86: Labor Market Regulations
B87: Regulations 1 | C87: 2020 | D87: 2030 | E87: 1.2 | F87: =((E87/'Labor Regulations'!C30)^(1/( D87- C87+1)))-1 -> -0.03665165768
B88: Regulations 2 | C88: 2050 | D88: 2060 | E88: 0.7 | F88: =((E88/E87)^(1/(D88-C88+1)))-1 -> -0.0478185674
B89: Products Market Regulations
B90: Regulations 1 | C90: 2030 | D90: 2040 | E90: 1.5 | F90: =((E90/'Products Regulations'!C40)^(1/(D90- C90+1)))-1 -> -0.01843175013
B91: Regulations 2 | C91: 2042 | D91: 2060 | E91: 1.36 | F91: =((E91/E90)^(1/(D91-C91+1)))-1 -> -0.005143589804
A93: Employment (number of persons)
A94: 1 | B94: Yearly Growth Rate | E94: 0.005650494036
A96: CANADA
A98: Total Factor Productivity ($US 2010 ppp based)
A99: 1 | B99: Manual Entry | C99: Past Trend
A100: 1 | B100: Yearly Growth Rate | C100: 0.003600514171 | D100: 0.02367286359 | E100: 0.0009341824096
B101: Catch-up Start Date | C101: 2020
B102: Converging Speed | C102: 0.05
B103: USA TFP Target | C103: 0.9 | D103: 0.8006351997
A105: Relative Capital Price ($US 2010 ppp based)
A106: 1
A107: 1 | B107: Yearly Growth Rate | C107: Manual Entry | D107: Past Trend | E107: -0.001224152235
A109: Average Hours Worked per Year per Worker
A110: 1 | B110: Yearly Growth Rate | C110: Manual Entry | D110: Past Trend | E110: -0.003680407638 | F110: 1350 | G110: 2500
B111: Catch-up Start Date | C111: 2020
B112: Target number of Hours | C112: 1850 | D112: =Hours!D145 -> 1707
B113: Converging Speed | C113: =((C112/D113)^(1/(2100-C111)))-1 -> 0.001361034392 | D113: 1659.268624
A115: Education (years)
B116: Catch-up Start Date | C116: 2020
B117: Converging Speed | C117: 0.05
B118: USA Education Target | C118: 0.9 | D118: 0.9063308454
A120: Market Regulations | C120: Catch-up Start Year | D120: Catch-up End Year | E120: New Indice | F120: Converging Speed
B121: Labor Market Regulations
B122: Regulations 1 | C122: 2020 | D122: 2030 | E122: 0.5 | F122: =((E122/'Labor Regulations'!D30)^(1/( D122- C122+1)))-1 -> -0.05398414431
B123: Regulations 2 | C123: 2050 | D123: 2070 | E123: 0.3 | F123: =((E123/E122)^(1/(D123-C123+1)))-1 -> -0.02403156053
B124: Products Market Regulations
B125: Regulations 1 | C125: 2030 | D125: 2040 | E125: 1.5 | F125: =((E125/'Products Regulations'!D40)^(1/(D125- C125+1)))-1 -> -0.01254096412
B126: Regulations 2 | C126: 2060 | D126: 2080 | E126: 1.35 | F126: =((E126/E125)^(1/(D126-C126+1)))-1 -> -0.00500460245
A128: Employment (number of persons)
A129: 1 | B129: Yearly Growth Rate | E129: 0.004357890478
A131: GERMANY
A133: Total Factor Productivity ($US 2010 ppp based)
A134: 1 | B134: Manual Entry | C134: Past Trend
A135: 1 | B135: Yearly Growth Rate | E135: 0.0053735028
B136: Catch-up Start Date | C136: 2020
B137: Converging Speed | C137: 0.0005
B138: USA TFP Target | C138: 0.9 | D138: 0.8333148118
A140: Relative Capital Price ($US 2010 ppp based)
A141: 1
A142: 1 | B142: Yearly Growth Rate | C142: Manual Entry | D142: Past Trend | E142: -0.002990450502
A144: Average Hours Worked per Year per Worker
A145: 1 | B145: Yearly Growth Rate | C145: Manual Entry | D145: Past Trend | E145: -0.003667914051 | F145: 1350 | G145: 2500
B146: Catch-up Start Date | C146: 2030
B147: Target number of Hours | C147: 1500 | D147: =Hours!E145 -> 1361.7
B148: Converging Speed | C148: =((C147/D148)^(1/(2100-C146)))-1 -> 0.001485036987 | D148: 1352.006289
A150: Education (years)
B151: Catch-up Start Date | C151: 2020
B152: Converging Speed | C152: 0.05
B153: USA Education Target | C153: 0.9 | D153: 0.8979918554
A155: Market Regulations | C155: Catch-up Start Year | D155: Catch-up End Year | E155: New Indice | F155: Converging Speed
B156: Labor Market Regulations
B157: Regulations 1 | C157: 2020 | D157: 2030 | E157: 1.5 | F157: =((E157/'Labor Regulations'!E30)^(1/( D157- C157+1)))-1 -> -0.05725167878
B158: Regulations 2 | C158: 2050 | D158: 2070 | E158: 0.75 | F158: =((E158/E157)^(1/(D158-C158+1)))-1 -> -0.03246822148
B159: Products Market Regulations
B160: Regulations 1 | C160: 2030 | D160: 2040 | E160: 1.27 | F160: =((E160/'Products Regulations'!E40)^(1/(D160- C160+1)))-1 -> -7.240255113e-05
B161: Regulations 2 | C161: 2060 | D161: 2080 | E161: 1.265 | F161: =((E161/E160)^(1/(D161-C161+1)))-1 -> -0.0001878289432
A163: Employment (number of persons)
A164: 1 | B164: Yearly Growth Rate | E164: -0.004223249389
A166: SPAIN
A168: Total Factor Productivity ($US 2010 ppp based)
A169: 1 | B169: Manual Entry | C169: Past Trend
A170: 1 | B170: Yearly Growth Rate | E170: 0.001097804779
B171: Catch-up Start Date | C171: 2030
B172: Converging Speed | C172: 0.05
B173: USA TFP Target | C173: 0.9 | D173: 0.3923061492
A175: Relative Capital Price ($US 2010 ppp based)
A176: 1
A177: 1 | B177: Yearly Growth Rate | C177: Manual Entry | D177: Past Trend | E177: 0.00021658562
A179: Average Hours Worked per Year per Worker
A180: 1 | B180: Yearly Growth Rate | C180: 20.3 | D180: Past Trend | E180: -0.003073598786 | F180: 1350 | G180: 2500
B181: Catch-up Start Date | C181: 2020
B182: Target number of Hours | C182: 1900 | D182: =Hours!F145 -> 1695.6
B183: Converging Speed | C183: =((C182/D183)^(1/(2100-C181)))-1 -> 0.001645869521 | D183: 1665.778466
A185: Education (years)
B186: Catch-up Start Date | C186: 2020
B187: Converging Speed | C187: 0.05
B188: USA Education Target | C188: 0.9 | D188: 0.8049475652
A190: Market Regulations | C190: Catch-up Start Year | D190: Catch-up End Year | E190: New Indice | F190: Converging Speed
B191: Labor Market Regulations
B192: Regulations 1 | C192: 2025 | D192: 2035 | E192: 1.6 | F192: =((E192/'Labor Regulations'!F30)^(1/( D192- C192+1)))-1 -> -0.02217534208
B193: Regulations 2 | C193: 2042 | D193: 2070 | E193: 1.2 | F193: =((E193/E192)^(1/(D193-C193+1)))-1 -> -0.009871029854
B194: Products Market Regulations
B195: Regulations 1 | C195: 2030 | D195: 2040 | E195: 1.6 | F195: =((E195/'Products Regulations'!F40)^(1/(D195- C195+1)))-1 -> 0.0003446645933
B196: Regulations 2 | C196: 2040 | D196: 2075 | E196: 1.4 | F196: =((E196/E195)^(1/(D195-C195+1)))-1 -> -0.01206583445
A198: Employment (number of persons)
A199: 1 | B199: Yearly Growth Rate | E199: 0.00345495619
A201: FINLAND
A203: Total Factor Productivity ($US 2010 ppp based)
A204: 1 | B204: Manual Entry | C204: Past Trend
A205: 1 | B205: Yearly Growth Rate | C205: 0.003600514171 | D205: 0.02367286359 | E205: 0.002406448277
B206: Catch-up Start Date | C206: 2030
B207: Converging Speed | C207: 0.05
B208: USA TFP Target | C208: 0.9 | D208: 0.6457871304
A210: Relative Capital Price ($US 2010 ppp based)
A211: 1
A212: 1 | B212: Yearly Growth Rate | C212: Manual Entry | D212: Past Trend | E212: -0.0008185828264
A214: Average Hours Worked per Year per Worker
A215: 1 | B215: Yearly Growth Rate | C215: Manual Entry | D215: Past Trend | E215: -0.003736087904 | F215: 1350 | G215: 2500
B216: Catch-up Start Date | C216: 2020
B217: Target number of Hours | C217: 1900 | D217: =Hours!G145 -> 1640
B218: Converging Speed | C218: =((C217/D218)^(1/(2100-C216)))-1 -> 0.002013938771 | D218: 1617.530826
A220: Education (years)
B221: Catch-up Start Date | C221: 2020
B222: Converging Speed | C222: 0.05
B223: USA Education Target | C223: 0.9 | D223: 0.8830513943
A225: Market Regulations | C225: Catch-up Start Year | D225: Catch-up End Year | E225: New Indice | F225: Converging Speed
B226: Labor Market Regulations
B227: Regulations 1 | C227: 2015 | D227: 2020 | E227: 1 | F227: =((E227/'Labor Regulations'!G30)^(1/( D227- C227+1)))-1 -> -0.1209073711
B228: Regulations 2 | C228: 2021 | D228: 2030 | E228: 0.5 | F228: =((E228/E227)^(1/(D228-C228+1)))-1 -> -0.06696700846
B229: Products Market Regulations
B230: Regulations 1 | C230: 2015 | D230: 2020 | E230: 2 | F230: =((E230/'Products Regulations'!G40)^(1/(D230- C230+1)))-1 -> -0.03448547033
B231: Regulations 2 | C231: 2021 | D231: 2080 | E231: 1.5 | F231: =((E231/E230)^(1/(D231-C231+1)))-1 -> -0.004783224977
A233: Employment (number of persons)
A234: 1 | B234: Yearly Growth Rate | E234: 0.001419881059
A236: FRANCE
A238: Total Factor Productivity ($US 2010 ppp based)
A239: 1 | B239: Manual Entry | C239: Past Trend
A240: 1 | B240: Yearly Growth Rate | E240: 0.002127490554
B241: Catch-up Start Date | C241: 2020
B242: Converging Speed | C242: 0.05
B243: USA TFP Target | C243: 0.9 | D243: 0.8441032197
A245: Relative Capital Price ($US 2010 ppp based)
A246: 1
A247: 1 | B247: Yearly Growth Rate | C247: Manual Entry | D247: Past Trend | E247: -0.001679796828
A249: Average Hours Worked per Year per Worker
A250: 1 | B250: Yearly Growth Rate | C250: Manual Entry | D250: Past Trend | E250: -0.00166408213 | F250: 1350 | G250: 2500
B251: Catch-up Start Date | C251: 2030
... 199 more rows

Sheet United States
R1: GDP | S1: growth rate | T1: level in $US 2010 ppp | U1: HP growth rate | V1: GDP per capita | X1: TFP | Y1: normal distribution | Z1: growth rate | AA1: level in $US 2010 ppp | AB1: HP growth rate | AC1: level with respect to US | AE1: Capital | AF1: level in $US 2010 ppp | AG1: growth rate | AH1: HP growth rate | AJ1: Relative Price | AK1: growth rate | AL1: level in log | AM1: HP growth rate
R3: =R4-1 -> 1990 | T3: 9064414000000 | V3: =T3/Employment!DH3 -> 36312.41512 | X3: =X4-1 -> 1990 | AA3: 9.473070072 | AE3: =AE4-1 -> 1990 | AF3: 2.925383317e+13 | AJ3: =AJ4-1 -> 1990 | AK3: 0.03645796762 | AL3: 0.2021944458
R4: 1991 | S4: =LN(T4/T3) -> -0.0007411939963 | T4: 9057698000000 | U4: =IF(Hypothesis!A$500=0,0,hp(S4:S113,500)) -> 0 | V4: =T4/Employment!DH4 -> 35803.86669 | X4: 1991 | Z4: =LN(AA4/AA3) -> 0.003111203262 | AA4: 9.502588613 | AB4: =IF(Hypothesis!A$500=0,0,hp('United States'!Z4:Z113,500)) -> 0 | AE4: 1991 | AF4: 2.987003304e+13 | AG4: =LN(AF4/AF3) -> 0.02084512478 | AH4: =IF(Hypothesis!A$500=0,0,hp('United States'!AG4:AG113,500)) -> 0 | AJ4: 1991 | AK4: 0.03261558582 | AL4: 0.186315238 | AM4: =IF(Hypothesis!A$500=0,0,hp(AK4:AK113,500)) -> 0
R5: 1992 | S5: =LN(T5/T4) -> 0.03493650714 | T5: 9379735000000 | U5: 0 | V5: =T5/Employment!DH5 -> 36566.17183 | X5: 1992 | Z5: =LN(AA5/AA4) -> 0.0243950384 | AA5: 9.737255342 | AB5: 0 | AE5: 1992 | AF5: 3.051584627e+13 | AG5: =LN(AF5/AF4) -> 0.02139036001 | AH5: 0 | AJ5: 1992 | AK5: 0.02255104907 | AL5: 0.1634081226 | AM5: 0
R6: 1993 | S6: 0.02708843775 | T6: 9637290000000 | U6: 0 | V6: =T6/Employment!DH6 -> 37078.05124 | X6: 1993 | Z6: 0.008132229791 | AA6: 9.816763792 | AB6: 0 | AC6: =AA6/AA6 -> 1 | AE6: 1993 | AF6: 3.120043119e+13 | AG6: 0.02218581637 | AH6: 0 | AJ6: 1993 | AK6: 0.02354827693 | AL6: 0.1516407018 | AM6: 0
R7: 1994 | S7: 0.03958256318 | T7: 10026409000000 | U7: 0 | V7: =T7/Employment!DH7 -> 38104.97252 | X7: 1994 | Z7: 0.01496322309 | AA7: 9.964758698 | AB7: 0 | AC7: 1 | AE7: 1994 | AF7: 3.194621252e+13 | AG7: 0.02362171501 | AH7: 0 | AJ7: 1994 | AK7: 0.02101797332 | AL7: 0.1452250457 | AM7: 0
R8: 1995 | S8: 0.02682671862 | T8: 10299025000000 | U8: 0 | V8: =T8/Employment!DH8 -> 38677.71652 | X8: 1995 | Z8: 0.007477174198 | AA8: 10.03954619 | AB8: 0 | AC8: 1 | AE8: 1995 | AF8: 3.27322302e+13 | AG8: 0.02430659561 | AH8: 0 | AJ8: 1995 | AK8: 0.02066488266 | AL8: 0.1402836642 | AM8: 0
R9: 1996 | S9: 0.03725603329 | T9: 10689963000000 | U9: 0 | V9: =T9/Employment!DH9 -> 39681.51852 | X9: 1996 | Z9: 0.02405899829 | AA9: 10.28401668 | AB9: 0 | AC9: 1 | AE9: 1996 | AF9: 3.362296647e+13 | AG9: 0.02684913371 | AH9: 0 | AJ9: 1996 | AK9: 0.0180604278 | AL9: 0.1214812 | AM9: 0
R10: 1997 | S10: 0.0438927766 | T10: 11169625000000 | U10: 0 | V10: =T10/Employment!DH10 -> 40965.8472 | X10: 1997 | Z10: 0.01674696356 | AA10: 10.45769294 | AB10: 0 | AC10: 1 | AE10: 1997 | AF10: 3.461256492e+13 | AG10: 0.02900740499 | AH10: 0 | AJ10: 1997 | AK10: 0.01706153556 | AL10: 0.1050321785 | AM10: 0
R11: 1998 | S11: 0.04353741809 | T11: 11666663000000 | U11: 0 | V11: =T11/Employment!DH11 -> 42292.89044 | X11: 1998 | Z11: 0.02508263122 | AA11: 10.72331675 | AB11: 0 | AC11: 1 | AE11: 1998 | AF11: 3.572974723e+13 | AG11: 0.03176683339 | AH11: 0 | AJ11: 1998 | AK11: 0.01078833311 | AL11: 0.08699927817 | AM11: 0
R12: 1999 | S12: 0.045787607 | T12: 12213270000000 | U12: 0 | V12: =T12/Employment!DH12 -> 43768.88618 | X12: 1999 | Z12: 0.02552229024 | AA12: 11.00052277 | AB12: 0 | AC12: 1 | AE12: 1999 | AF12: 3.696551297e+13 | AG12: 0.03400179844 | AH12: 0 | AJ12: 1999 | AK12: 0.01421407579 | AL12: 0.07432596169 | AM12: 0
R13: 2000 | S13: 0.04010658868 | T13: 12713058000000 | U13: 0 | V13: =T13/Employment!DH13 -> 45055.81716 | X13: 2000 | Z13: 0.01679493641 | AA13: 11.18683603 | AB13: 0 | AC13: 1 | AE13: 2000 | AF13: 3.828702228e+13 | AG13: 0.03512559892 | AH13: 0 | AJ13: 2000 | AK13: 0.02253807851 | AL13: 0.06573579958 | AM13: 0
R14: 2001 | S14: 0.009712566206 | T14: 12837136000000 | U14: 0 | V14: =T14/Employment!DH14 -> 45047.48947 | X14: 2001 | Z14: 0.007376991761 | AA14: 11.26966637 | AB14: 0 | AC14: 1 | AE14: 2001 | AF14: 3.952376171e+13 | AG14: 0.03179105842 | AH14: 0 | AJ14: 2001 | AK14: 0.02251898713 | AL14: 0.05264377156 | AM14: 0
R15: 2002 | S15: 0.01770358957 | T15: 13066423000000 | U15: 0 | V15: =T15/Employment!DH15 -> 45428.64574 | X15: 2002 | Z15: 0.01180123816 | AA15: 11.40345024 | AB15: 0 | AC15: 1 | AE15: 2002 | AF15: 4.063068692e+13 | AG15: 0.02762156326 | AH15: 0 | AJ15: 2002 | AK15: 0.01522586362 | AL15: 0.0414244022 | AM15: 0
R16: =R17-1 -> 2003 | S16: 0.02768113696 | T16: 13433169000000 | U16: 0 | V16: =T16/Employment!DH16 -> 46304.03885 | X16: =X17-1 -> 2003 | Z16: 0.01686235973 | AA16: 11.59736969 | AB16: 0 | AC16: 1 | AE16: =AE17-1 -> 2003 | AF16: 4.177607712e+13 | AG16: 0.02780024135 | AH16: 0 | AJ16: =AJ17-1 -> 2003 | AK16: 0.01973575918 | AL16: 0.0338062551 | AM16: 0
R17: 2004 | S17: 0.03715840634 | T17: 13941714000000 | U17: 0 | V17: =T17/Employment!DH17 -> 47614.2819 | X17: 2004 | Z17: 0.0206594963 | AA17: 11.83945761 | AB17: 0 | AC17: =AA17/AA17 -> 1 | AE17: 2004 | AF17: 4.301199781e+13 | AG17: 0.02915523763 | AH17: 0 | AJ17: 2004 | AK17: 0.02710384106 | AL17: 0.03813586248 | AM17: 0
R18: 2005 | S18: 0.03290477871 | T18: 14408094000000 | U18: 0 | V18: =T18/Employment!DH18 -> 48755.6166 | X18: 2005 | Z18: 0.01350353116 | AA18: 12.0004164 | AB18: 0 | AC18: =AA18/AA18 -> 1 | AE18: 2005 | AF18: 4.433732959e+13 | AG18: 0.030347881 | AH18: 0 | AJ18: 2005 | AK18: 0.031664186 | AL18: 0.04857520061 | AM18: 0
R19: 2006 | S19: 0.02631691352 | T19: 14792304000000 | U19: 0 | V19: =T19/Employment!DH19 -> 49575.40171 | X19: 2006 | Z19: 0.003827837401 | AA19: 12.04644007 | AB19: 0 | AC19: 1 | AE19: 2006 | AF19: 4.566070885e+13 | AG19: 0.02941118886 | AH19: 0 | AJ19: 2006 | AK19: 0.03027046325 | AL19: 0.05604193138 | AM19: 0
R20: 2007 | S20: 0.01762941962 | T20: 15055396000000 | U20: 0 | V20: =T20/Employment!DH20 -> 49979.53615 | X20: 2007 | Z20: 0.001909595554 | AA20: 12.06946588 | AB20: 0 | AC20: 1 | AE20: 2007 | AF20: 4.687779842e+13 | AG20: 0.0263060166 | AH20: 0 | AJ20: 2007 | AK20: 0.02631402088 | AL20: 0.04810556782 | AM20: 0
R21: 2008 | S21: -0.002920557267 | T21: 15011490000000 | U21: 0 | V21: =T21/Employment!DH21 -> 49364.64277 | X21: 2008 | Z21: -0.005388092362 | AA21: 12.00460937 | AB21: 0 | AC21: 1 | AE21: 2008 | AF21: 4.787077199e+13 | AG21: 0.02096094808 | AH21: 0 | AJ21: 2008 | AK21: 0.01910944504 | AL21: 0.03921364298 | AM21: 0
R22: 2009 | S22: -0.02814766073 | T22: 14594843000000 | U22: 0 | V22: =T22/Employment!DH22 -> 47575.61123 | X22: 2009 | Z22: 0.001776005844 | AA22: 12.02594857 | AB22: 0 | AC22: 1 | AE22: 2009 | AF22: 4.840163693e+13 | AG22: 0.01102850389 | AH22: 0 | AJ22: 2009 | AK22: 0.007850736545 | AL22: 0.02113538628 | AM22: 0
R23: 2010 | S23: 0.0250039287 | T23: 14964372000000 | U23: 0 | V23: =T23/Employment!DH23 -> 48374.08679 | X23: 2010 | Z23: 0.02128607205 | AA23: 12.28467767 | AB23: 0 | AC23: 1 | AE23: 2010 | AF23: 48927554873290 | AG23: 0.01080709805 | AH23: 0 | AJ23: 2010 | AK23: 0.01218545486 | AL23: 0 | AM23: 0
R24: 2011 | S24: 0.01588769073 | T24: 15204020000000 | U24: 0 | V24: =T24/Employment!DH24 -> 48774.78426 | X24: 2011 | Z24: 0.005568164418 | AA24: 12.35327157 | AB24: 0 | AC24: 1 | AE24: 2011 | AF24: 4.95125733e+13 | AG24: 0.01188591124 | AH24: 0 | AJ24: 2011 | AK24: 0.02042693286 | AL24: -0.006957231012 | AM24: 0
R25: 2012 | S25: 0.02199652919 | T25: 15542161000000 | U25: 0 | V25: =T25/Employment!DH25 -> 49481.15635 | X25: 2012 | Z25: 0.004730721057 | AA25: 12.4118499 | AB25: 0 | AC25: 1 | AE25: 2012 | AF25: 5.022570485e+13 | AG25: 0.01430030104 | AH25: 0 | AJ25: 2012 | AK25: 0.01783354775 | AL25: -0.01122508165 | AM25: 0
R26: 2013 | S26: 0.01663422415 | T26: 15802855000000 | U26: 0 | V26: =T26/Employment!DH26 -> 49941.48816 | X26: 2013 | Z26: 0.006221753191 | AA26: 12.4893141 | AB26: 0 | AC26: 1 | AE26: 2013 | AF26: 5.095561002e+13 | AG26: 0.01442791747 | AH26: 0 | AJ26: 2013 | AK26: 0.01477048083 | AL26: -0.008405053579 | AM26: 0
R27: =R26+1 -> 2014 | S27: 0.02342798639 | T27: 16177455000000 | U27: 0 | V27: =T27/Employment!DH27 -> 50727.75028 | X27: =X26+1 -> 2014 | Z27: 0.007256925769 | AA27: 12.58027778 | AB27: 0 | AC27: 1 | AE27: =AE26+1 -> 2014 | AF27: 5.175448413e+13 | AG27: =S28-AK28 -> 0.02110276472 | AH27: 0 | AJ27: =AJ26+1 -> 2014 | AK27: =IF(Hypothesis!$A$10=1,Hypothesis!$C$486+Hypothesis!$C$487*'United States'!AK26+Hypothesis!$C$488*'United States'!Z27+Hypothesis!$C$489*'United States'!Z26+Hypothesis!$C$490*('United States'!AL26+Hypothesis!$C$491*LN('United States'!AA26)),Hypothesis!$E$11) -> 0.009501407045 | AL27: -0.004021468098 | AM27: 0
R28: 2015 | S28: 0.0256302218 | T28: 16597446000000 | U28: 0 | V28: =T28/Employment!DH28 -> 51638.06525 | X28: 2015 | Z28: 0.008947047945 | AA28: 12.69333916 | AB28: 0 | AC28: =AA28/AA28 -> 1 | AE28: 2015 | AF28: =AF27*EXP(AG28) -> 5.285825215e+13 | AG28: =S28-AK28 -> 0.02110276472 | AH28: 0 | AJ28: 2015 | AK28: =IF(Hypothesis!$A$10=1,Hypothesis!$C$486+Hypothesis!$C$487*'United States'!AK27+Hypothesis!$C$488*'United States'!Z28+Hypothesis!$C$489*'United States'!Z27+Hypothesis!$C$490*('United States'!AL27+Hypothesis!$C$491*LN('United States'!AA27)),Hypothesis!$E$11) -> 0.004527457075 | AL28: =AL27+AK28 -> 0.0005059889774 | AM28: 0
R29: 2016 | S29: =(1/(1-Hypothesis!$C$483))*'United States'!Z29-(Hypothesis!$C$483/(1-Hypothesis!$C$483))*'United States'!AK28+Employment!N342+Hours!N382 -> 0.005190397416 | T29: =T28*EXP(S29) -> 1.66838173e+13 | U29: 0 | V29: =T29/Employment!DH29 -> 51508.34164 | X29: =X28+1 -> 2016 | Y29: =IF(X29<Hypothesis!$C$6-3*Hypothesis!$D$5,0,IF(X29>Hypothesis!$C$6+3*Hypothesis!$D$5,0,_xlfn.NORM.DIST(X29,Hypothesis!$C$6,Hypothesis!$D$5,FALSE))) -> 0.01579003166 | Z29: =Hypothesis!$E$4+Y29*Hypothesis!$D$7 -> 0.01231895414 | AA29: =EXP(Z29)*AA28 -> 12.85067494 | AB29: 0 | AC29: 1 | AE29: 2016 | AF29: 5.317082227e+13 | AG29: 0.005895949441 | AH29: 0 | AJ29: 2016 | AK29: =IF(Hypothesis!$A$10=1,Hypothesis!$C$486+Hypothesis!$C$487*'United States'!AK28+Hypothesis!$C$488*'United States'!Z29+Hypothesis!$C$489*'United States'!Z28+Hypothesis!$C$490*('United States'!AL28+Hypothesis!$C$491*LN('United States'!AA28)),Hypothesis!$E$11) -> -0.0007055520247 | AL29: =AL28+AK29 -> -0.0001995630473 | AM29: 0
R30: 2017 | S30: =(1/(1-Hypothesis!$C$483))*'United States'!Z30-(Hypothesis!$C$483/(1-Hypothesis!$C$483))*'United States'!AK29+Employment!N343+Hours!N383 -> 0.02254540119 | T30: =T29*EXP(S30) -> 1.706423285e+13 | U30: 0 | V30: =T30/Employment!DH30 -> 52279.37412 | X30: 2017 | Y30: =IF(X30<Hypothesis!$C$6-3*Hypothesis!$D$5,0,IF(X30>Hypothesis!$C$6+3*Hypothesis!$D$5,0,_xlfn.NORM.DIST(X30,Hypothesis!$C$6,Hypothesis!$D$5,FALSE))) -> 0.02218416694 | Z30: =Hypothesis!$E$4+Y30*Hypothesis!$D$7 -> 0.01392172617 | AA30: 13.03082964 | AB30: 0 | AC30: 1 | AE30: 2017 | AF30: 5.465519939e+13 | AG30: 0.02753455748 | AH30: 0 | AJ30: 2017 | AK30: =IF(Hypothesis!$A$10=1,Hypothesis!$C$486+Hypothesis!$C$487*'United States'!AK29+Hypothesis!$C$488*'United States'!Z30+Hypothesis!$C$489*'United States'!Z29+Hypothesis!$C$490*('United States'!AL29+Hypothesis!$C$491*LN('United States'!AA29)),Hypothesis!$E$11) -> -0.004989156293 | AL30: -0.00518871934 | AM30: 0
R31: 2018 | S31: =(1/(1-Hypothesis!$C$483))*'United States'!Z31-(Hypothesis!$C$483/(1-Hypothesis!$C$483))*'United States'!AK30+Employment!N344+Hours!N384 -> 0.02754255222 | T31: 1.75407576e+13 | U31: 0 | V31: =T31/Employment!DH31 -> 53329.19506 | X31: 2018 | Y31: =IF(X31<Hypothesis!$C$6-3*Hypothesis!$D$5,0,IF(X31>Hypothesis!$C$6+3*Hypothesis!$D$5,0,_xlfn.NORM.DIST(X31,Hypothesis!$C$6,Hypothesis!$D$5,FALSE))) -> 0.02994549313 | Z31: =Hypothesis!$E$4+Y31*Hypothesis!$D$7 -> 0.01586720214 | AA31: 13.23924153 | AB31: 0 | AC31: 1 | AE31: 2018 | AF31: 5.667401124e+13 | AG31: 0.03627140031 | AH31: 0 | AJ31: 2018 | AK31: =IF(Hypothesis!$A$10=1,Hypothesis!$C$486+Hypothesis!$C$487*'United States'!AK30+Hypothesis!$C$488*'United States'!Z31+Hypothesis!$C$489*'United States'!Z30+Hypothesis!$C$490*('United States'!AL30+Hypothesis!$C$491*LN('United States'!AA30)),Hypothesis!$E$11) -> -0.008728848085 | AL31: -0.01391756743 | AM31: 0
R32: 2019 | S32: =(1/(1-Hypothesis!$C$483))*'United States'!Z32-(Hypothesis!$C$483/(1-Hypothesis!$C$483))*'United States'!AK31+Employment!N345+Hours!N385 -> 0.0324723503 | T32: 1.811969611e+13 | U32: 0 | V32: =T32/Employment!DH32 -> 54670.87106 | X32: 2019 | Y32: =IF(X32<Hypothesis!$C$6-3*Hypothesis!$D$5,0,IF(X32>Hypothesis!$C$6+3*Hypothesis!$D$5,0,_xlfn.NORM.DIST(X32,Hypothesis!$C$6,Hypothesis!$D$5,FALSE))) -> 0.038837211 | Z32: =Hypothesis!$E$4+Y32*Hypothesis!$D$7 -> 0.01809602528 | AA32: 13.48100002 | AB32: 0 | AC32: 1 | AE32: 2019 | AF32: 5.924172558e+13 | AG32: 0.04431036749 | AH32: 0 | AJ32: 2019 | AK32: =IF(Hypothesis!$A$10=1,Hypothesis!$C$486+Hypothesis!$C$487*'United States'!AK31+Hypothesis!$C$488*'United States'!Z32+Hypothesis!$C$489*'United States'!Z31+Hypothesis!$C$490*('United States'!AL31+Hypothesis!$C$491*LN('United States'!AA31)),Hypothesis!$E$11) -> -0.01183801719 | AL32: -0.02575558462 | AM32: 0
R33: 2020 | S33: =(1/(1-Hypothesis!$C$483))*'United States'!Z33-(Hypothesis!$C$483/(1-Hypothesis!$C$483))*'United States'!AK32+Employment!N346+Hours!N386 -> 0.03722463875 | T33: 1.880690647e+13 | U33: 0 | V33: =T33/Employment!DH33 -> 56315.89222 | X33: 2020 | Y33: =IF(X33<Hypothesis!$C$6-3*Hypothesis!$D$5,0,IF(X33>Hypothesis!$C$6+3*Hypothesis!$D$5,0,_xlfn.NORM.DIST(X33,Hypothesis!$C$6,Hypothesis!$D$5,FALSE))) -> 0.0483941449 | Z33: =Hypothesis!$E$4+Y33*Hypothesis!$D$7 -> 0.02049159335 | AA33: 13.76009699 | AB33: 0 | AC33: 1 | AE33: 2020 | AF33: 6.237599082e+13 | AG33: 0.05155432112 | AH33: 0 | AJ33: 2020 | AK33: =IF(Hypothesis!$A$10=1,Hypothesis!$C$486+Hypothesis!$C$487*'United States'!AK32+Hypothesis!$C$488*'United States'!Z33+Hypothesis!$C$489*'United States'!Z32+Hypothesis!$C$490*('United States'!AL32+Hypothesis!$C$491*LN('United States'!AA32)),Hypothesis!$E$11) -> -0.01432968237 | AL33: -0.04008526699 | AM33: 0
R34: 2021 | S34: =(1/(1-Hypothesis!$C$483))*'United States'!Z34-(Hypothesis!$C$483/(1-Hypothesis!$C$483))*'United States'!AK33+Employment!N347+Hours!N387 -> 0.04100118408 | T34: 1.959403831e+13 | U34: 0 | V34: =T34/Employment!DH34 -> 58233.39723 | X34: 2021 | Y34: =IF(X34<Hypothesis!$C$6-3*Hypothesis!$D$5,0,IF(X34>Hypothesis!$C$6+3*Hypothesis!$D$5,0,_xlfn.NORM.DIST(X34,Hypothesis!$C$6,Hypothesis!$D$5,FALSE))) -> 0.05793831055 | Z34: =Hypothesis!$E$4+Y34*Hypothesis!$D$7 -> 0.0228839609 | AA34: 14.07861307 | AB34: 0 | AC34: 1 | AE34: 2021 | AF34: 6.605282547e+13 | AG34: 0.05727436898 | AH34: 0 | AJ34: 2021 | AK34: =IF(Hypothesis!$A$10=1,Hypothesis!$C$486+Hypothesis!$C$487*'United States'!AK33+Hypothesis!$C$488*'United States'!Z34+Hypothesis!$C$489*'United States'!Z33+Hypothesis!$C$490*('United States'!AL33+Hypothesis!$C$491*LN('United States'!AA33)),Hypothesis!$E$11) -> -0.0162731849 | AL34: -0.05635845188 | AM34: 0
R35: 2022 | S35: =(1/(1-Hypothesis!$C$483))*'United States'!Z35-(Hypothesis!$C$483/(1-Hypothesis!$C$483))*'United States'!AK34+Employment!N348+Hours!N388 -> 0.04498665053 | T35: 2.049563635e+13 | U35: 0 | V35: =T35/Employment!DH35 -> 60460.98011 | X35: 2022 | Y35: =IF(X35<Hypothesis!$C$6-3*Hypothesis!$D$5,0,IF(X35>Hypothesis!$C$6+3*Hypothesis!$D$5,0,_xlfn.NORM.DIST(X35,Hypothesis!$C$6,Hypothesis!$D$5,FALSE))) -> 0.06664492058 | Z35: =Hypothesis!$E$4+Y35*Hypothesis!$D$7 -> 0.02506638439 | AA35: 14.43597315 | AB35: 0 | AC35: 1 | AE35: 2022 | AF35: 7.033000977e+13 | AG35: 0.0627437815 | AH35: 0 | AJ35: 2022 | AK35: =IF(Hypothesis!$A$10=1,Hypothesis!$C$486+Hypothesis!$C$487*'United States'!AK34+Hypothesis!$C$488*'United States'!Z35+Hypothesis!$C$489*'United States'!Z34+Hypothesis!$C$490*('United States'!AL34+Hypothesis!$C$491*LN('United States'!AA34)),Hypothesis!$E$11) -> -0.01775713097 | AL35: -0.07411558286 | AM35: 0
R36: 2023 | S36: =(1/(1-Hypothesis!$C$483))*'United States'!Z36-(Hypothesis!$C$483/(1-Hypothesis!$C$483))*'United States'!AK35+Employment!N349+Hours!N389 -> 0.04826741163 | T36: 2.150917126e+13 | U36: 0 | V36: =T36/Employment!DH36 -> 62985.20405 | X36: 2023 | Y36: =IF(X36<Hypothesis!$C$6-3*Hypothesis!$D$5,0,IF(X36>Hypothesis!$C$6+3*Hypothesis!$D$5,0,_xlfn.NORM.DIST(X36,Hypothesis!$C$6,Hypothesis!$D$5,FALSE))) -> 0.07365402806 | Z36: =Hypothesis!$E$4+Y36*Hypothesis!$D$7 -> 0.02682330709 | AA36: 14.8284337 | AB36: 0 | AC36: 1 | AE36: 2023 | AF36: 7.521333344e+13 | AG36: 0.06712993232 | AH36: 0 | AJ36: 2023 | AK36: =IF(Hypothesis!$A$10=1,Hypothesis!$C$486+Hypothesis!$C$487*'United States'!AK35+Hypothesis!$C$488*'United States'!Z36+Hypothesis!$C$489*'United States'!Z35+Hypothesis!$C$490*('United States'!AL35+Hypothesis!$C$491*LN('United States'!AA35)),Hypothesis!$E$11) -> -0.01886252069 | AL36: -0.09297810355 | AM36: 0
R37: 2024 | S37: =(1/(1-Hypothesis!$C$483))*'United States'!Z37-(Hypothesis!$C$483/(1-Hypothesis!$C$483))*'United States'!AK36+Employment!N350+Hours!N390 -> 0.05065993291 | T37: 2.262689736e+13 | U37: 0 | V37: =T37/Employment!DH37 -> 65777.88099 | X37: 2024 | Y37: =IF(X37<Hypothesis!$C$6-3*Hypothesis!$D$5,0,IF(X37>Hypothesis!$C$6+3*Hypothesis!$D$5,0,_xlfn.NORM.DIST(X37,Hypothesis!$C$6,Hypothesis!$D$5,FALSE))) -> 0.0782085388 | Z37: =Hypothesis!$E$4+Y37*Hypothesis!$D$7 -> 0.02796495363 | AA37: 15.2489628 | AB37: 0 | AC37: 1 | AE37: 2024 | AF37: 8.069172407e+13 | AG37: 0.07030749664 | AH37: 0 | AJ37: 2024 | AK37: =IF(Hypothesis!$A$10=1,Hypothesis!$C$486+Hypothesis!$C$487*'United States'!AK36+Hypothesis!$C$488*'United States'!Z37+Hypothesis!$C$489*'United States'!Z36+Hypothesis!$C$490*('United States'!AL36+Hypothesis!$C$491*LN('United States'!AA36)),Hypothesis!$E$11) -> -0.01964756374 | AL37: -0.1126256673 | AM37: 0
R38: 2025 | S38: =(1/(1-Hypothesis!$C$483))*'United States'!Z38-(Hypothesis!$C$483/(1-Hypothesis!$C$483))*'United States'!AK37+Employment!N351+Hours!N391 -> 0.0519032519 | T38: 2.383231896e+13 | U38: 0 | V38: =T38/Employment!DH38 -> 68786.57612 | X38: 2025 | Y38: =IF(X38<Hypothesis!$C$6-3*Hypothesis!$D$5,0,IF(X38>Hypothesis!$C$6+3*Hypothesis!$D$5,0,_xlfn.NORM.DIST(X38,Hypothesis!$C$6,Hypothesis!$D$5,FALSE))) -> 0.07978845608 | Z38: =Hypothesis!$E$4+Y38*Hypothesis!$D$7 -> 0.02836098016 | AA38: 15.68762943 | AB38: 0 | AC38: 1 | AE38: 2025 | AF38: 8.671984307e+13 | AG38: 0.0720467099 | AH38: 0 | AJ38: 2025 | AK38: =IF(Hypothesis!$A$10=1,Hypothesis!$C$486+Hypothesis!$C$487*'United States'!AK37+Hypothesis!$C$488*'United States'!Z38+Hypothesis!$C$489*'United States'!Z37+Hypothesis!$C$490*('United States'!AL37+Hypothesis!$C$491*LN('United States'!AA37)),Hypothesis!$E$11) -> -0.020143458 | AL38: -0.1327691253 | AM38: 0
R39: 2026 | S39: =(1/(1-Hypothesis!$C$483))*'United States'!Z39-(Hypothesis!$C$483/(1-Hypothesis!$C$483))*'United States'!AK38+Employment!N352+Hours!N392 -> 0.0512603274 | T39: 2.508582452e+13 | U39: 0 | V39: =T39/Employment!DH39 -> 71894.1266 | X39: 2026 | Y39: =IF(X39<Hypothesis!$C$6-3*Hypothesis!$D$5,0,IF(X39>Hypothesis!$C$6+3*Hypothesis!$D$5,0,_xlfn.NORM.DIST(X39,Hypothesis!$C$6,Hypothesis!$D$5,FALSE))) -> 0.0782085388 | Z39: =Hypothesis!$E$4+Y39*Hypothesis!$D$7 -> 0.02796495363 | AA39: 16.13252501 | AB39: 0 | AC39: 1 | AE39: 2026 | AF39: 9.315844699e+13 | AG39: 0.07161904644 | AH39: 0 | AJ39: 2026 | AK39: =IF(Hypothesis!$A$10=1,Hypothesis!$C$486+Hypothesis!$C$487*'United States'!AK38+Hypothesis!$C$488*'United States'!Z39+Hypothesis!$C$489*'United States'!Z38+Hypothesis!$C$490*('United States'!AL38+Hypothesis!$C$491*LN('United States'!AA38)),Hypothesis!$E$11) -> -0.02035871904 | AL39: -0.1531278443 | AM39: 0
R40: 2027 | S40: =(1/(1-Hypothesis!$C$483))*'United States'!Z40-(Hypothesis!$C$483/(1-Hypothesis!$C$483))*'United States'!AK39+Employment!N353+Hours!N393 -> 0.05014194026 | T40: 2.637574576e+13 | U40: 0 | V40: =T40/Employment!DH40 -> 75066.39896 | X40: 2027 | Y40: =IF(X40<Hypothesis!$C$6-3*Hypothesis!$D$5,0,IF(X40>Hypothesis!$C$6+3*Hypothesis!$D$5,0,_xlfn.NORM.DIST(X40,Hypothesis!$C$6,Hypothesis!$D$5,FALSE))) -> 0.07365402806 | Z40: =Hypothesis!$E$4+Y40*Hypothesis!$D$7 -> 0.02682330709 | AA40: 16.57110852 | AB40: 0 | AC40: 1 | AE40: 2027 | AF40: 9.995623434e+13 | AG40: 0.07043065903 | AH40: 0 | AJ40: 2027 | AK40: =IF(Hypothesis!$A$10=1,Hypothesis!$C$486+Hypothesis!$C$487*'United States'!AK39+Hypothesis!$C$488*'United States'!Z40+Hypothesis!$C$489*'United States'!Z39+Hypothesis!$C$490*('United States'!AL39+Hypothesis!$C$491*LN('United States'!AA39)),Hypothesis!$E$11) -> -0.02028871877 | AL40: -0.1734165631 | AM40: 0
R41: 2028 | S41: =(1/(1-Hypothesis!$C$483))*'United States'!Z41-(Hypothesis!$C$483/(1-Hypothesis!$C$483))*'United States'!AK40+Employment!N354+Hours!N394 -> 0.04793770773 | T41: 2.767093473e+13 | U41: 0 | V41: =T41/Employment!DH41 -> 78215.18777 | X41: 2028 | Y41: =IF(X41<Hypothesis!$C$6-3*Hypothesis!$D$5,0,IF(X41>Hypothesis!$C$6+3*Hypothesis!$D$5,0,_xlfn.NORM.DIST(X41,Hypothesis!$C$6,Hypothesis!$D$5,FALSE))) -> 0.06664492058 | Z41: =Hypothesis!$E$4+Y41*Hypothesis!$D$7 -> 0.02506638439 | AA41: 16.99173607 | AB41: 0 | AC41: 1 | AE41: 2028 | AF41: 1.069752087e+14 | AG41: 0.06786467935 | AH41: 0 | AJ41: 2028 | AK41: =IF(Hypothesis!$A$10=1,Hypothesis!$C$486+Hypothesis!$C$487*'United States'!AK40+Hypothesis!$C$488*'United States'!Z41+Hypothesis!$C$489*'United States'!Z40+Hypothesis!$C$490*('United States'!AL40+Hypothesis!$C$491*LN('United States'!AA40)),Hypothesis!$E$11) -> -0.01992697162 | AL41: -0.1933435347 | AM41: 0
B42: period | E42: 2000-2010 | F42: 2010-2020 | G42: 2020-2030 | H42: 2030-2040 | I42: 2040-2050 | J42: 2050-2060 | K42: 2060-2070 | L42: 2070-2080 | M42: 2080-2090 | N42: 2090-2100 | R42: 2029 | S42: =(1/(1-Hypothesis!$C$483))*'United States'!Z42-(Hypothesis!$C$483/(1-Hypothesis!$C$483))*'United States'!AK41+Employment!N355+Hours!N395 -> 0.0448687346 | T42: 2.894076946e+13 | U42: 0 | V42: =T42/Employment!DH42 -> 81255.77357 | X42: 2029 | Y42: =IF(X42<Hypothesis!$C$6-3*Hypothesis!$D$5,0,IF(X42>Hypothesis!$C$6+3*Hypothesis!$D$5,0,_xlfn.NORM.DIST(X42,Hypothesis!$C$6,Hypothesis!$D$5,FALSE))) -> 0.05793831055 | Z42: =Hypothesis!$E$4+Y42*Hypothesis!$D$7 -> 0.0228839609 | AA42: 17.38505751 | AB42: 0 | AC42: 1 | AE42: 2029 | AF42: 114061880146360 | AG42: 0.06414399647 | AH42: 0 | AJ42: 2029 | AK42: =IF(Hypothesis!$A$10=1,Hypothesis!$C$486+Hypothesis!$C$487*'United States'!AK41+Hypothesis!$C$488*'United States'!Z42+Hypothesis!$C$489*'United States'!Z41+Hypothesis!$C$490*('United States'!AL41+Hypothesis!$C$491*LN('United States'!AA41)),Hypothesis!$E$11) -> -0.01927526188 | AL42: -0.2126187966 | AM42: 0
B43: average GDP potential growth rate | E43: =AVERAGE($S14:$S23) -> 0.01630425216 | F43: =AVERAGE($S24:$S33) -> 0.02285519921 | G43: =AVERAGE($S34:$S43) -> 0.04747332936 | H43: =AVERAGE($S44:$S53) -> 0.02877922818 | I43: =AVERAGE($S54:$S63) -> 0.0217736901 | J43: =AVERAGE($S64:$S73) -> 0.02080463818 | K43: =AVERAGE($S74:$S83) -> 0.02077322059 | L43: =AVERAGE($S84:$S93) -> 0.02077848532 | M43: =AVERAGE($S94:$S103) -> 0.02077760382 | N43: =AVERAGE($S104:$S113) -> 0.02077775129 | R43: 2030 | S43: =(1/(1-Hypothesis!$C$483))*'United States'!Z43-(Hypothesis!$C$483/(1-Hypothesis!$C$483))*'United States'!AK42+Employment!N356+Hours!N396 -> 0.04370615255 | T43: 3.023370802e+13 | U43: 0 | V43: =T43/Employment!DH43 -> 84325.98936 | X43: 2030 | Y43: =IF(X43<Hypothesis!$C$6-3*Hypothesis!$D$5,0,IF(X43>Hypothesis!$C$6+3*Hypothesis!$D$5,0,_xlfn.NORM.DIST(X43,Hypothesis!$C$6,Hypothesis!$D$5,FALSE))) -> 0.0483941449 | Z43: =Hypothesis!$E$4+Y43*Hypothesis!$D$7 -> 0.02049159335 | AA43: 17.74498014 | AB43: 0 | AC43: 1 | AE43: 2030 | AF43: 1.213644414e+14 | AG43: 0.06205682183 | AH43: 0 | AJ43: 2030 | AK43: =IF(Hypothesis!$A$10=1,Hypothesis!$C$486+Hypothesis!$C$487*'United States'!AK42+Hypothesis!$C$488*'United States'!Z43+Hypothesis!$C$489*'United States'!Z42+Hypothesis!$C$490*('United States'!AL42+Hypothesis!$C$491*LN('United States'!AA42)),Hypothesis!$E$11) -> -0.01835066928 | AL43: -0.2309694659 | AM43: 0
B44: average TFP potential growth rate contribution | E44: =AVERAGE($Z14:$Z23) -> 0.009361503558 | F44: =AVERAGE($Z24:$Z33) -> 0.01134201135 | G44: =AVERAGE($Z34:$Z43) -> 0.02543297855 | H44: =AVERAGE($Z44:$Z53) -> 0.01172775729 | I44: =AVERAGE($Z54:$Z63) -> 0.00836098016 | J44: =AVERAGE($Z64:$Z73) -> 0.00836098016 | K44: =AVERAGE($Z74:$Z83) -> 0.00836098016 | L44: =AVERAGE($Z84:$Z93) -> 0.00836098016 | M44: =AVERAGE($Z94:$Z103) -> 0.00836098016 | N44: =AVERAGE($Z104:$Z113) -> 0.00836098016 | R44: 2031 | S44: =(1/(1-Hypothesis!$C$483))*'United States'!Z44-(Hypothesis!$C$483/(1-Hypothesis!$C$483))*'United States'!AK43+Employment!N357+Hours!N397 -> 0.0396363365 | T44: 3.145612753e+13 | U44: 0 | V44: =T44/Employment!DH44 -> 87171.12643 | X44: 2031 | Y44: =IF(X44<Hypothesis!$C$6-3*Hypothesis!$D$5,0,IF(X44>Hypothesis!$C$6+3*Hypothesis!$D$5,0,_xlfn.NORM.DIST(X44,Hypothesis!$C$6,Hypothesis!$D$5,FALSE))) -> 0.038837211 | Z44: =Hypothesis!$E$4+Y44*Hypothesis!$D$7 -> 0.01809602528 | AA44: 18.06901679 | AB44: 0 | AC44: 1 | AE44: 2031 | AF44: 1.284606828e+14 | AG44: 0.0568249556 | AH44: 0 | AJ44: 2031 | AK44: =IF(Hypothesis!$A$10=1,Hypothesis!$C$486+Hypothesis!$C$487*'United States'!AK43+Hypothesis!$C$488*'United States'!Z44+Hypothesis!$C$489*'United States'!Z43+Hypothesis!$C$490*('United States'!AL43+Hypothesis!$C$491*LN('United States'!AA43)),Hypothesis!$E$11) -> -0.0171886191 | AL44: -0.248158085 | AM44: 0
B45: average Capital potential growth rate contribution | E45: =0.3*AVERAGE($AG13:$AG22) -> 0.00808644714 | F45: =0.3*AVERAGE($AG23:$AG32) -> 0.006229170959 | G45: =0.3*AVERAGE($AG33:$AG42) -> 0.01965344975 | H45: =0.3*AVERAGE($AG43:$AG52) -> 0.01296602977 | I45: =0.3*AVERAGE($AG53:$AG62) -> 0.008283385046 | J45: =0.3*AVERAGE($AG63:$AG72) -> 0.008121737445 | K45: =0.3*AVERAGE($AG73:$AG82) -> 0.008047858839 | L45: =0.3*AVERAGE($AG83:$AG92) -> 0.008062323928 | M45: =0.3*AVERAGE($AG93:$AG102) -> 0.008061483408 | N45: =0.3*AVERAGE($AG103:$AG112) -> 0.008061624609 | R45: 2032 | S45: =(1/(1-Hypothesis!$C$483))*'United States'!Z45-(Hypothesis!$C$483/(1-Hypothesis!$C$483))*'United States'!AK44+Employment!N358+Hours!N398 -> 0.03618261005 | T45: 3.261513382e+13 | U45: 0 | V45: =T45/Employment!DH45 -> 89815.84915 | X45: 2032 | Y45: =IF(X45<Hypothesis!$C$6-3*Hypothesis!$D$5,0,IF(X45>Hypothesis!$C$6+3*Hypothesis!$D$5,0,_xlfn.NORM.DIST(X45,Hypothesis!$C$6,Hypothesis!$D$5,FALSE))) -> 0.02994549313 | Z45: =Hypothesis!$E$4+Y45*Hypothesis!$D$7 -> 0.01586720214 | AA45: 18.35800821 | AB45: 0 | AC45: 1 | AE45: 2032 | AF45: 1.353206991e+14 | AG45: 0.05202462352 | AH45: 0 | AJ45: 2032 | AK45: =IF(Hypothesis!$A$10=1,Hypothesis!$C$486+Hypothesis!$C$487*'United States'!AK44+Hypothesis!$C$488*'United States'!Z45+Hypothesis!$C$489*'United States'!Z44+Hypothesis!$C$490*('United States'!AL44+Hypothesis!$C$491*LN('United States'!AA44)),Hypothesis!$E$11) -> -0.01584201347 | AL45: -0.2640000985 | AM45: 0
B46: average Employment potential growth rate contribution | E46: =0.7*AVERAGE(Employment!$N327:$N336) -> 0.001103312321 | F46: =0.7*AVERAGE(Employment!$N337:$N346) -> 0.005024936098 | G46: =0.7*AVERAGE(Employment!$N347:$N356) -> 0.002810050964 | H46: =0.7*AVERAGE(Employment!$N357:$N366) -> 0.003814235654 | I46: =0.7*AVERAGE(Employment!$N367:$N376) -> 0.00426080568 | J46: =0.7*AVERAGE(Employment!$N377:$N386) -> 0.003453336223 | K46: =0.7*AVERAGE(Employment!$N387:$N396) -> 0.003453336223 | L46: =0.7*AVERAGE(Employment!$N397:$N406) -> 0.003453336223 | M46: =0.7*AVERAGE(Employment!$N407:$N416) -> 0.003453336223 | N46: =0.7*AVERAGE(Employment!$N417:$N426) -> 0.003453336223 | R46: 2033 | S46: =(1/(1-Hypothesis!$C$483))*'United States'!Z46-(Hypothesis!$C$483/(1-Hypothesis!$C$483))*'United States'!AK45+Employment!N359+Hours!N399 -> 0.03305670892 | T46: 33711300819575 | U46: 0 | V46: =T46/Employment!DH46 -> 92266.12737 | X46: 2033 | Y46: =IF(X46<Hypothesis!$C$6-3*Hypothesis!$D$5,0,IF(X46>Hypothesis!$C$6+3*Hypothesis!$D$5,0,_xlfn.NORM.DIST(X46,Hypothesis!$C$6,Hypothesis!$D$5,FALSE))) -> 0.02218416694 | Z46: =Hypothesis!$E$4+Y46*Hypothesis!$D$7 -> 0.01392172617 | AA46: 18.61537069 | AB46: 0 | AC46: 1 | AE46: 2033 | AF46: 1.418941534e+14 | AG46: 0.04743387049 | AH46: 0 | AJ46: 2033 | AK46: =IF(Hypothesis!$A$10=1,Hypothesis!$C$486+Hypothesis!$C$487*'United States'!AK45+Hypothesis!$C$488*'United States'!Z46+Hypothesis!$C$489*'United States'!Z45+Hypothesis!$C$490*('United States'!AL45+Hypothesis!$C$491*LN('United States'!AA45)),Hypothesis!$E$11) -> -0.01437716157 | AL46: -0.27837726 | AM46: 0
B47: average Hours potential growth rate contribution | E47: =0.7*AVERAGE(Hours!$N367:$N376) -> -0.002247010857 | F47: =0.7*AVERAGE(Hours!$N377:$N386) -> 7.764475335e-05 | G47: =0.7*AVERAGE(Hours!$N387:$N396) -> -0.0006175953248 | H47: =0.7*AVERAGE(Hours!$N397:$N406) -> 0.0009018094701 | I47: =0.7*AVERAGE(Hours!$N407:$N416) -> 0.0009018094701 | J47: =0.7*AVERAGE(Hours!$N417:$N426) -> 0.0009018094701 | K47: =0.7*AVERAGE(Hours!$N427:$N436) -> 0.0009018094701 | L47: =0.7*AVERAGE(Hours!$N437:$N446) -> 0.0009018094701 | M47: =0.7*AVERAGE(Hours!$N447:$N456) -> 0.0009018094701 | N47: =0.7*AVERAGE(Hours!$N457:$N466) -> 0.0009018094701 | R47: 2034 | S47: =(1/(1-Hypothesis!$C$483))*'United States'!Z47-(Hypothesis!$C$483/(1-Hypothesis!$C$483))*'United States'!AK46+Employment!N360+Hours!N400 -> 0.03037369937 | T47: 3.475094676e+13 | U47: 0 | V47: =T47/Employment!DH47 -> 94543.04375 | X47: 2034 | Y47: =IF(X47<Hypothesis!$C$6-3*Hypothesis!$D$5,0,IF(X47>Hypothesis!$C$6+3*Hypothesis!$D$5,0,_xlfn.NORM.DIST(X47,Hypothesis!$C$6,Hypothesis!$D$5,FALSE))) -> 0.01579003166 | Z47: =Hypothesis!$E$4+Y47*Hypothesis!$D$7 -> 0.01231895414 | AA47: 18.84611091 | AB47: 0 | AC47: 1 | AE47: 2034 | AF47: 1.481644304e+14 | AG47: 0.04324129263 | AH47: 0 | AJ47: 2034 | AK47: =IF(Hypothesis!$A$10=1,Hypothesis!$C$486+Hypothesis!$C$487*'United States'!AK46+Hypothesis!$C$488*'United States'!Z47+Hypothesis!$C$489*'United States'!Z46+Hypothesis!$C$490*('United States'!AL46+Hypothesis!$C$491*LN('United States'!AA46)),Hypothesis!$E$11) -> -0.01286759326 | AL47: -0.2912448533 | AM47: 0
B48: average Relative Price potential growth rate | E48: =AVERAGE($AK13:$AK23) -> 0.02131971237 | F48: =AVERAGE(AK23:AK33) -> 0.003514002225 | G48: =AVERAGE(AK33:AK43) -> -0.01865580739 | H48: =AVERAGE(AK43:AK53) -> -0.011786041 | I48: =AVERAGE(AK53:AK63) -> -0.005759072805 | J48: =AVERAGE(AK63:AK73) -> -0.006151444274 | K48: =AVERAGE(AK73:AK83) -> -0.006084717748 | L48: =AVERAGE(AK83:AK93) -> -0.00609588404 | M48: =AVERAGE(AK93:AK103) -> -0.006094016869 | N48: =AVERAGE(AK103:AK113) -> -0.006094328855 | R48: 2035 | S48: =(1/(1-Hypothesis!$C$483))*'United States'!Z48-(Hypothesis!$C$483/(1-Hypothesis!$C$483))*'United States'!AK47+Employment!N361+Hours!N401 -> 0.02814642634 | T48: 3.5742957e+13 | U48: 0 | V48: =T48/Employment!DH48 -> 96674.06271 | X48: 2035 | Y48: =IF(X48<Hypothesis!$C$6-3*Hypothesis!$D$5,0,IF(X48>Hypothesis!$C$6+3*Hypothesis!$D$5,0,_xlfn.NORM.DIST(X48,Hypothesis!$C$6,Hypothesis!$D$5,FALSE))) -> 0.0107981933 | Z48: =Hypothesis!$E$4+Y48*Hypothesis!$D$7 -> 0.01106768582 | AA48: 19.05585227 | AB48: 0 | AC48: 1 | AE48: 2035 | AF48: 1.541391954e+14 | AG48: 0.03953338659 | AH48: 0 | AJ48: 2035 | AK48: =IF(Hypothesis!$A$10=1,Hypothesis!$C$486+Hypothesis!$C$487*'United States'!AK47+Hypothesis!$C$488*'United States'!Z48+Hypothesis!$C$489*'United States'!Z47+Hypothesis!$C$490*('United States'!AL47+Hypothesis!$C$491*LN('United States'!AA47)),Hypothesis!$E$11) -> -0.01138696025 | AL48: -0.3026318135 | AM48: 0
R49: 2036 | S49: =(1/(1-Hypothesis!$C$483))*'United States'!Z49-(Hypothesis!$C$483/(1-Hypothesis!$C$483))*'United States'!AK48+Employment!N362+Hours!N402 -> 0.02614408964 | T49: 3.668974662e+13 | U49: 0 | V49: =T49/Employment!DH49 -> 98667.47064 | X49: 2036 | Y49: =IF(X49<Hypothesis!$C$6-3*Hypothesis!$D$5,0,IF(X49>Hypothesis!$C$6+3*Hypothesis!$D$5,0,_xlfn.NORM.DIST(X49,Hypothesis!$C$6,Hypothesis!$D$5,FALSE))) -> 0.007094918569 | Z49: =Hypothesis!$E$4+Y49*Hypothesis!$D$7 -> 0.01013941251 | AA49: 19.25005028 | AB49: 0 | AC49: 1 | AE49: 2036 | AF49: 1.598126696e+14 | AG49: 0.0361462543 | AH49: 0 | AJ49: 2036 | AK49: =IF(Hypothesis!$A$10=1,Hypothesis!$C$486+Hypothesis!$C$487*'United States'!AK48+Hypothesis!$C$488*'United States'!Z49+Hypothesis!$C$489*'United States'!Z48+Hypothesis!$C$490*('United States'!AL48+Hypothesis!$C$491*LN('United States'!AA48)),Hypothesis!$E$11) -> -0.01000216466 | AL49: -0.3126339782 | AM49: 0
R50: 2037 | S50: =(1/(1-Hypothesis!$C$483))*'United States'!Z50-(Hypothesis!$C$483/(1-Hypothesis!$C$483))*'United States'!AK49+Employment!N363+Hours!N403 -> 0.02476335535 | T50: 3.76096508e+13 | U50: 0 | V50: =T50/Employment!DH50 -> 100574.5539 | X50: 2037 | Y50: =IF(X50<Hypothesis!$C$6-3*Hypothesis!$D$5,0,IF(X50>Hypothesis!$C$6+3*Hypothesis!$D$5,0,_xlfn.NORM.DIST(X50,Hypothesis!$C$6,Hypothesis!$D$5,FALSE))) -> 0.004478906059 | Z50: =Hypothesis!$E$4+Y50*Hypothesis!$D$7 -> 0.009483675417 | AA50: 19.43347993 | AB50: 0 | AC50: 1 | AE50: 2037 | AF50: 1.652622046e+14 | AG50: 0.03353101697 | AH50: 0 | AJ50: 2037 | AK50: =IF(Hypothesis!$A$10=1,Hypothesis!$C$486+Hypothesis!$C$487*'United States'!AK49+Hypothesis!$C$488*'United States'!Z50+Hypothesis!$C$489*'United States'!Z49+Hypothesis!$C$490*('United States'!AL49+Hypothesis!$C$491*LN('United States'!AA49)),Hypothesis!$E$11) -> -0.00876766162 | AL50: -0.3214016398 | AM50: 0
R51: 2038 | S51: =(1/(1-Hypothesis!$C$483))*'United States'!Z51-(Hypothesis!$C$483/(1-Hypothesis!$C$483))*'United States'!AK50+Employment!N364+Hours!N404 -> 0.02373382032 | T51: 3.851294845e+13 | U51: 0 | V51: =T51/Employment!DH51 -> 102423.7679 | X51: 2038 | Y51: =IF(X51<Hypothesis!$C$6-3*Hypothesis!$D$5,0,IF(X51>Hypothesis!$C$6+3*Hypothesis!$D$5,0,_xlfn.NORM.DIST(X51,Hypothesis!$C$6,Hypothesis!$D$5,FALSE))) -> 0.002716593847 | Z51: =Hypothesis!$E$4+Y51*Hypothesis!$D$7 -> 0.009041929255 | AA51: 19.60999289 | AB51: 0 | AC51: 1 | AE51: 2038 | AF51: 1.705432196e+14 | AG51: 0.03145542084 | AH51: 0 | AJ51: 2038 | AK51: =IF(Hypothesis!$A$10=1,Hypothesis!$C$486+Hypothesis!$C$487*'United States'!AK50+Hypothesis!$C$488*'United States'!Z51+Hypothesis!$C$489*'United States'!Z50+Hypothesis!$C$490*('United States'!AL50+Hypothesis!$C$491*LN('United States'!AA50)),Hypothesis!$E$11) -> -0.007721600516 | AL51: -0.3291232403 | AM51: 0
R52: 2039 | S52: =(1/(1-Hypothesis!$C$483))*'United States'!Z52-(Hypothesis!$C$483/(1-Hypothesis!$C$483))*'United States'!AK51+Employment!N365+Hours!N405 -> 0.02306921629 | T52: 3.941173933e+13 | U52: 0 | V52: =T52/Employment!DH52 -> 104247.5087 | X52: 2039 | Y52: =IF(X52<Hypothesis!$C$6-3*Hypothesis!$D$5,0,IF(X52>Hypothesis!$C$6+3*Hypothesis!$D$5,0,_xlfn.NORM.DIST(X52,Hypothesis!$C$6,Hypothesis!$D$5,FALSE))) -> 0.001583090317 | Z52: =Hypothesis!$E$4+Y52*Hypothesis!$D$7 -> 0.008757802055 | AA52: 19.78248756 | AB52: 0 | AC52: 1 | AE52: 2039 | AF52: 1.757288359e+14 | AG52: 0.0299533497 | AH52: 0 | AJ52: 2039 | AK52: =IF(Hypothesis!$A$10=1,Hypothesis!$C$486+Hypothesis!$C$487*'United States'!AK51+Hypothesis!$C$488*'United States'!Z52+Hypothesis!$C$489*'United States'!Z51+Hypothesis!$C$490*('United States'!AL51+Hypothesis!$C$491*LN('United States'!AA51)),Hypothesis!$E$11) -> -0.006884133409 | AL52: -0.3360073737 | AM52: 0
R53: 2040 | S53: =(1/(1-Hypothesis!$C$483))*'United States'!Z53-(Hypothesis!$C$483/(1-Hypothesis!$C$483))*'United States'!AK52+Employment!N366+Hours!N406 -> 0.02268601902 | T53: 4.031605366e+13 | U53: 0 | V53: =T53/Employment!DH53 -> 106072.0043 | X53: 2040 | Y53: =IF(X53<Hypothesis!$C$6-3*Hypothesis!$D$5,0,IF(X53>Hypothesis!$C$6+3*Hypothesis!$D$5,0,_xlfn.NORM.DIST(X53,Hypothesis!$C$6,Hypothesis!$D$5,FALSE))) -> 0.0008863696824 | Z53: =Hypothesis!$E$4+Y53*Hypothesis!$D$7 -> 0.008583160091 | AA53: 19.9530146 | AB53: 0 | AC53: 1 | AE53: 2040 | AF53: 1.808894362e+14 | AG53: 0.0289438929 | AH53: 0 | AJ53: 2040 | AK53: =IF(Hypothesis!$A$10=1,Hypothesis!$C$486+Hypothesis!$C$487*'United States'!AK52+Hypothesis!$C$488*'United States'!Z53+Hypothesis!$C$489*'United States'!Z52+Hypothesis!$C$490*('United States'!AL52+Hypothesis!$C$491*LN('United States'!AA52)),Hypothesis!$E$11) -> -0.006257873878 | AL53: -0.3422652476 | AM53: 0
R54: 2041 | S54: =(1/(1-Hypothesis!$C$483))*'United States'!Z54-(Hypothesis!$C$483/(1-Hypothesis!$C$483))*'United States'!AK53+Employment!N367+Hours!N407 -> 0.02201386232 | T54: 4.121340657e+13 | U54: 0 | V54: =T54/Employment!DH54 -> 107863.85 | X54: 2041 | Y54: =IF(X54<Hypothesis!$C$6-3*Hypothesis!$D$5,0,IF(X54>Hypothesis!$C$6+3*Hypothesis!$D$5,0,_xlfn.NORM.DIST(X54,Hypothesis!$C$6,Hypothesis!$D$5,FALSE))) -> 0 | Z54: =Hypothesis!$E$4+Y54*Hypothesis!$D$7 -> 0.00836098016 | AA54: 20.12054073 | AB54: 0 | AC54: 1 | AE54: 2041 | AF54: 1.859909592e+14 | AG54: 0.02781207117 | AH54: 0 | AJ54: 2041 | AK54: =IF(Hypothesis!$A$10=1,Hypothesis!$C$486+Hypothesis!$C$487*'United States'!AK53+Hypothesis!$C$488*'United States'!Z54+Hypothesis!$C$489*'United States'!Z53+Hypothesis!$C$490*('United States'!AL53+Hypothesis!$C$491*LN('United States'!AA53)),Hypothesis!$E$11) -> -0.005798208846 | AL54: -0.3480634565 | AM54: 0
R55: 2042 | S55: =(1/(1-Hypothesis!$C$483))*'United States'!Z55-(Hypothesis!$C$483/(1-Hypothesis!$C$483))*'United States'!AK54+Employment!N368+Hours!N408 -> 0.02196990938 | T55: 4.2128881e+13 | U55: 0 | V55: =T55/Employment!DH55 -> 109688.1927 | X55: 2042 | Y55: =IF(X55<Hypothesis!$C$6-3*Hypothesis!$D$5,0,IF(X55>Hypothesis!$C$6+3*Hypothesis!$D$5,0,_xlfn.NORM.DIST(X55,Hypothesis!$C$6,Hypothesis!$D$5,FALSE))) -> 0 | Z55: =Hypothesis!$E$4+Y55*Hypothesis!$D$7 -> 0.00836098016 | AA55: 20.2894734 | AB55: 0 | AC55: 1 | AE55: 2042 | AF55: 1.911817956e+14 | AG55: 0.02752671889 | AH55: 0 | AJ55: 2042 | AK55: =IF(Hypothesis!$A$10=1,Hypothesis!$C$486+Hypothesis!$C$487*'United States'!AK54+Hypothesis!$C$488*'United States'!Z55+Hypothesis!$C$489*'United States'!Z54+Hypothesis!$C$490*('United States'!AL54+Hypothesis!$C$491*LN('United States'!AA54)),Hypothesis!$E$11) -> -0.005556809511 | AL55: -0.353620266 | AM55: 0
R56: 2043 | S56: =(1/(1-Hypothesis!$C$483))*'United States'!Z56-(Hypothesis!$C$483/(1-Hypothesis!$C$483))*'United States'!AK55+Employment!N369+Hours!N409 -> 0.02195573187 | T56: 4.306408034e+13 | U56: 0 | V56: =T56/Employment!DH56 -> 111547.9578 | X56: 2043 | Y56: =IF(X56<Hypothesis!$C$6-3*Hypothesis!$D$5,0,IF(X56>Hypothesis!$C$6+3*Hypothesis!$D$5,0,_xlfn.NORM.DIST(X56,Hypothesis!$C$6,Hypothesis!$D$5,FALSE))) -> 0 | Z56: =Hypothesis!$E$4+Y56*Hypothesis!$D$7 -> 0.00836098016 | AA56: 20.45982445 | AB56: 0 | AC56: 1 | AE56: 2043 | AF56: 1.964932875e+14 | AG56: 0.02740348535 | AH56: 0 | AJ56: 2043 | AK56: =IF(Hypothesis!$A$10=1,Hypothesis!$C$486+Hypothesis!$C$487*'United States'!AK55+Hypothesis!$C$488*'United States'!Z56+Hypothesis!$C$489*'United States'!Z55+Hypothesis!$C$490*('United States'!AL55+Hypothesis!$C$491*LN('United States'!AA55)),Hypothesis!$E$11) -> -0.005447753475 | AL56: -0.3590680195 | AM56: 0
R57: 2044 | S57: =(1/(1-Hypothesis!$C$483))*'United States'!Z57-(Hypothesis!$C$483/(1-Hypothesis!$C$483))*'United States'!AK56+Employment!N370+Hours!N410 -> 0.02193331964 | T57: 4.401905316e+13 | U57: 0 | V57: =T57/Employment!DH57 -> 113441.6569 | X57: 2044 | Y57: =IF(X57<Hypothesis!$C$6-3*Hypothesis!$D$5,0,IF(X57>Hypothesis!$C$6+3*Hypothesis!$D$5,0,_xlfn.NORM.DIST(X57,Hypothesis!$C$6,Hypothesis!$D$5,FALSE))) -> 0 | Z57: =Hypothesis!$E$4+Y57*Hypothesis!$D$7 -> 0.00836098016 | AA57: 20.63160576 | AB57: 0 | AC57: 1 | AE57: 2044 | AF57: 2.019468492e+14 | AG57: 0.02737626974 | AH57: 0 | AJ57: 2044 | AK57: =IF(Hypothesis!$A$10=1,Hypothesis!$C$486+Hypothesis!$C$487*'United States'!AK56+Hypothesis!$C$488*'United States'!Z57+Hypothesis!$C$489*'United States'!Z56+Hypothesis!$C$490*('United States'!AL56+Hypothesis!$C$491*LN('United States'!AA56)),Hypothesis!$E$11) -> -0.005442950094 | AL57: -0.3645109695 | AM57: 0
R58: 2045 | S58: =(1/(1-Hypothesis!$C$483))*'United States'!Z58-(Hypothesis!$C$483/(1-Hypothesis!$C$483))*'United States'!AK57+Employment!N371+Hours!N411 -> 0.0218956713 | T58: 4.499350913e+13 | U58: 0 | V58: =T58/Employment!DH58 -> 115367.3292 | X58: 2045 | Y58: =IF(X58<Hypothesis!$C$6-3*Hypothesis!$D$5,0,IF(X58>Hypothesis!$C$6+3*Hypothesis!$D$5,0,_xlfn.NORM.DIST(X58,Hypothesis!$C$6,Hypothesis!$D$5,FALSE))) -> 0 | Z58: =Hypothesis!$E$4+Y58*Hypothesis!$D$7 -> 0.00836098016 | AA58: 20.80482936 | AB58: 0 | AC58: 1 | AE58: 2045 | AF58: 2.075581517e+14 | AG58: 0.02740700975 | AH58: 0 | AJ58: 2045 | AK58: =IF(Hypothesis!$A$10=1,Hypothesis!$C$486+Hypothesis!$C$487*'United States'!AK57+Hypothesis!$C$488*'United States'!Z58+Hypothesis!$C$489*'United States'!Z57+Hypothesis!$C$490*('United States'!AL57+Hypothesis!$C$491*LN('United States'!AA57)),Hypothesis!$E$11) -> -0.005511338448 | AL58: -0.370022308 | AM58: 0
R59: 2046 | S59: =(1/(1-Hypothesis!$C$483))*'United States'!Z59-(Hypothesis!$C$483/(1-Hypothesis!$C$483))*'United States'!AK58+Employment!N372+Hours!N412 -> 0.02157931263 | T59: 4.597498989e+13 | U59: 0 | V59: =T59/Employment!DH59 -> 117291.9594 | X59: 2046 | Y59: =IF(X59<Hypothesis!$C$6-3*Hypothesis!$D$5,0,IF(X59>Hypothesis!$C$6+3*Hypothesis!$D$5,0,_xlfn.NORM.DIST(X59,Hypothesis!$C$6,Hypothesis!$D$5,FALSE))) -> 0 | Z59: =Hypothesis!$E$4+Y59*Hypothesis!$D$7 -> 0.00836098016 | AA59: 20.97950735 | AB59: 0 | AC59: 1 | AE59: 2046 | AF59: 2.132817519e+14 | AG59: 0.02720252098 | AH59: 0 | AJ59: 2046 | AK59: =IF(Hypothesis!$A$10=1,Hypothesis!$C$486+Hypothesis!$C$487*'United States'!AK58+Hypothesis!$C$488*'United States'!Z59+Hypothesis!$C$489*'United States'!Z58+Hypothesis!$C$490*('United States'!AL58+Hypothesis!$C$491*LN('United States'!AA58)),Hypothesis!$E$11) -> -0.005623208345 | AL59: -0.3756455163 | AM59: 0
R60: 2047 | S60: =(1/(1-Hypothesis!$C$483))*'United States'!Z60-(Hypothesis!$C$483/(1-Hypothesis!$C$483))*'United States'!AK59+Employment!N373+Hours!N413 -> 0.0216190411 | T60: 4.697974689e+13 | U60: 0 | V60: =T60/Employment!DH60 -> 119256.6543 | X60: 2047 | Y60: =IF(X60<Hypothesis!$C$6-3*Hypothesis!$D$5,0,IF(X60>Hypothesis!$C$6+3*Hypothesis!$D$5,0,_xlfn.NORM.DIST(X60,Hypothesis!$C$6,Hypothesis!$D$5,FALSE))) -> 0 | Z60: =Hypothesis!$E$4+Y60*Hypothesis!$D$7 -> 0.00836098016 | AA60: 21.15565194 | AB60: 0 | AC60: =AA60/AA60 -> 1 | AE60: 2047 | AF60: 2.192003551e+14 | AG60: =S60-AK60 -> 0.02737210434 | AH60: 0 | AJ60: 2047 | AK60: =IF(Hypothesis!$A$10=1,Hypothesis!$C$486+Hypothesis!$C$487*'United States'!AK59+Hypothesis!$C$488*'United States'!Z60+Hypothesis!$C$489*'United States'!Z59+Hypothesis!$C$490*('United States'!AL59+Hypothesis!$C$491*LN('United States'!AA59)),Hypothesis!$E$11) -> -0.005753063236 | AL60: -0.3813985796 | AM60: 0
R61: 2048 | S61: =(1/(1-Hypothesis!$C$483))*'United States'!Z61-(Hypothesis!$C$483/(1-Hypothesis!$C$483))*'United States'!AK60+Employment!N374+Hours!N414 -> 0.02160768178 | T61: 4.800591696e+13 | U61: 0 | V61: =T61/Employment!DH61 -> 121254.7425 | X61: =X60+1 -> 2048 | Y61: =IF(X61<Hypothesis!$C$6-3*Hypothesis!$D$5,0,IF(X61>Hypothesis!$C$6+3*Hypothesis!$D$5,0,_xlfn.NORM.DIST(X61,Hypothesis!$C$6,Hypothesis!$D$5,FALSE))) -> 0 | Z61: =Hypothesis!$E$4+Y61*Hypothesis!$D$7 -> 0.00836098016 | AA61: 21.33327544 | AB61: 0 | AC61: 1 | AE61: 2048 | AF61: 2.253094991e+14 | AG61: 0.02748883332 | AH61: 0 | AJ61: 2048 | AK61: =IF(Hypothesis!$A$10=1,Hypothesis!$C$486+Hypothesis!$C$487*'United States'!AK60+Hypothesis!$C$488*'United States'!Z61+Hypothesis!$C$489*'United States'!Z60+Hypothesis!$C$490*('United States'!AL60+Hypothesis!$C$491*LN('United States'!AA60)),Hypothesis!$E$11) -> -0.005881151545 | AL61: -0.3872797311 | AM61: 0
R62: 2049 | S62: =(1/(1-Hypothesis!$C$483))*'United States'!Z62-(Hypothesis!$C$483/(1-Hypothesis!$C$483))*'United States'!AK61+Employment!N375+Hours!N415 -> 0.02158602717 | T62: 4.905343924e+13 | U62: 0 | V62: =T62/Employment!DH62 -> 123284.7426 | X62: 2049 | Y62: =IF(X62<Hypothesis!$C$6-3*Hypothesis!$D$5,0,IF(X62>Hypothesis!$C$6+3*Hypothesis!$D$5,0,_xlfn.NORM.DIST(X62,Hypothesis!$C$6,Hypothesis!$D$5,FALSE))) -> 0 | Z62: =Hypothesis!$E$4+Y62*Hypothesis!$D$7 -> 0.00836098016 | AA62: 21.51239028 | AB62: 0 | AC62: 1 | AE62: 2049 | AF62: 2.316100033e+14 | AG62: 0.02757992843 | AH62: 0 | AJ62: 2049 | AK62: =IF(Hypothesis!$A$10=1,Hypothesis!$C$486+Hypothesis!$C$487*'United States'!AK61+Hypothesis!$C$488*'United States'!Z62+Hypothesis!$C$489*'United States'!Z61+Hypothesis!$C$490*('United States'!AL61+Hypothesis!$C$491*LN('United States'!AA61)),Hypothesis!$E$11) -> -0.005993901259 | AL62: -0.3932736324 | AM62: 0
R63: 2050 | S63: =(1/(1-Hypothesis!$C$483))*'United States'!Z63-(Hypothesis!$C$483/(1-Hypothesis!$C$483))*'United States'!AK62+Employment!N376+Hours!N416 -> 0.02157634378 | T63: 5.012333381e+13 | U63: 0 | V63: =T63/Employment!DH63 -> 125010.7754 | X63: 2050 | Y63: =IF(X63<Hypothesis!$C$6-3*Hypothesis!$D$5,0,IF(X63>Hypothesis!$C$6+3*Hypothesis!$D$5,0,_xlfn.NORM.DIST(X63,Hypothesis!$C$6,Hypothesis!$D$5,FALSE))) -> 0 | Z63: =Hypothesis!$E$4+Y63*Hypothesis!$D$7 -> 0.00836098016 | AA63: 21.69300897 | AB63: 0 | AC63: 1 | AE63: 2050 | AF63: 2.38105731e+14 | AG63: 0.02765988599 | AH63: 0 | AJ63: 2050 | AK63: =IF(Hypothesis!$A$10=1,Hypothesis!$C$486+Hypothesis!$C$487*'United States'!AK62+Hypothesis!$C$488*'United States'!Z63+Hypothesis!$C$489*'United States'!Z62+Hypothesis!$C$490*('United States'!AL62+Hypothesis!$C$491*LN('United States'!AA62)),Hypothesis!$E$11) -> -0.006083542216 | AL63: -0.3993571746 | AM63: 0
R64: 2051 | S64: =(1/(1-Hypothesis!$C$483))*'United States'!Z64-(Hypothesis!$C$483/(1-Hypothesis!$C$483))*'United States'!AK63+Employment!N377+Hours!N417 -> 0.02124837265 | T64: 5.119976883e+13 | U64: 0 | V64: =T64/Employment!DH64 -> 126841.8096 | X64: 2051 | Y64: =IF(X64<Hypothesis!$C$6-3*Hypothesis!$D$5,0,IF(X64>Hypothesis!$C$6+3*Hypothesis!$D$5,0,_xlfn.NORM.DIST(X64,Hypothesis!$C$6,Hypothesis!$D$5,FALSE))) -> 0 | Z64: =Hypothesis!$E$4+Y64*Hypothesis!$D$7 -> 0.00836098016 | AA64: 21.87514414 | AB64: 0 | AC64: 1 | AE64: 2051 | AF64: 2.447189476e+14 | AG64: 0.02739557651 | AH64: 0 | AJ64: 2051 | AK64: =IF(Hypothesis!$A$10=1,Hypothesis!$C$486+Hypothesis!$C$487*'United States'!AK63+Hypothesis!$C$488*'United States'!Z64+Hypothesis!$C$489*'United States'!Z63+Hypothesis!$C$490*('United States'!AL63+Hypothesis!$C$491*LN('United States'!AA63)),Hypothesis!$E$11) -> -0.006147203857 | AL64: -0.4055043785 | AM64: 0
R65: 2052 | S65: =(1/(1-Hypothesis!$C$483))*'United States'!Z65-(Hypothesis!$C$483/(1-Hypothesis!$C$483))*'United States'!AK64+Employment!N378+Hours!N418 -> 0.02119647551 | T65: 5.229660696e+13 | U65: 0 | V65: =T65/Employment!DH65 -> 129215.677 | X65: 2052 | Y65: =IF(X65<Hypothesis!$C$6-3*Hypothesis!$D$5,0,IF(X65>Hypothesis!$C$6+3*Hypothesis!$D$5,0,_xlfn.NORM.DIST(X65,Hypothesis!$C$6,Hypothesis!$D$5,FALSE))) -> 0 | Z65: =Hypothesis!$E$4+Y65*Hypothesis!$D$7 -> 0.00836098016 | AA65: 22.05880852 | AB65: 0 | AC65: 1 | AE65: 2052 | AF65: 2.515124828e+14 | AG65: 0.02738222225 | AH65: 0 | AJ65: 2052 | AK65: =IF(Hypothesis!$A$10=1,Hypothesis!$C$486+Hypothesis!$C$487*'United States'!AK64+Hypothesis!$C$488*'United States'!Z65+Hypothesis!$C$489*'United States'!Z64+Hypothesis!$C$490*('United States'!AL64+Hypothesis!$C$491*LN('United States'!AA64)),Hypothesis!$E$11) -> -0.006185746736 | AL65: -0.4116901252 | AM65: 0
R66: 2053 | S66: =(1/(1-Hypothesis!$C$483))*'United States'!Z66-(Hypothesis!$C$483/(1-Hypothesis!$C$483))*'United States'!AK65+Employment!N379+Hours!N419 -> 0.02112822747 | T66: 5.341329687e+13 | U66: 0 | V66: =T66/Employment!DH66 -> 131660.5414 | X66: 2053 | Y66: =IF(X66<Hypothesis!$C$6-3*Hypothesis!$D$5,0,IF(X66>Hypothesis!$C$6+3*Hypothesis!$D$5,0,_xlfn.NORM.DIST(X66,Hypothesis!$C$6,Hypothesis!$D$5,FALSE))) -> 0 | Z66: =Hypothesis!$E$4+Y66*Hypothesis!$D$7 -> 0.00836098016 | AA66: 22.24401496 | AB66: 0 | AC66: 1 | AE66: 2053 | AF66: 2.584813091e+14 | AG66: 0.02733076463 | AH66: 0 | AJ66: 2053 | AK66: =IF(Hypothesis!$A$10=1,Hypothesis!$C$486+Hypothesis!$C$487*'United States'!AK65+Hypothesis!$C$488*'United States'!Z66+Hypothesis!$C$489*'United States'!Z65+Hypothesis!$C$490*('United States'!AL65+Hypothesis!$C$491*LN('United States'!AA65)),Hypothesis!$E$11) -> -0.006202537161 | AL66: -0.4178926623 | AM66: 0
R67: 2054 | S67: =(1/(1-Hypothesis!$C$483))*'United States'!Z67-(Hypothesis!$C$483/(1-Hypothesis!$C$483))*'United States'!AK66+Employment!N380+Hours!N420 -> 0.02105844183 | T67: 5.455002452e+13 | U67: 0 | V67: =T67/Employment!DH67 -> 131722.8905 | X67: 2054 | Y67: =IF(X67<Hypothesis!$C$6-3*Hypothesis!$D$5,0,IF(X67>Hypothesis!$C$6+3*Hypothesis!$D$5,0,_xlfn.NORM.DIST(X67,Hypothesis!$C$6,Hypothesis!$D$5,FALSE))) -> 0 | Z67: =Hypothesis!$E$4+Y67*Hypothesis!$D$7 -> 0.00836098016 | AA67: 22.43077639 | AB67: 0 | AC67: 1 | AE67: 2054 | AF67: 2.656246296e+14 | AG67: 0.02726075899 | AH67: 0 | AJ67: 2054 | AK67: =IF(Hypothesis!$A$10=1,Hypothesis!$C$486+Hypothesis!$C$487*'United States'!AK66+Hypothesis!$C$488*'United States'!Z67+Hypothesis!$C$489*'United States'!Z66+Hypothesis!$C$490*('United States'!AL66+Hypothesis!$C$491*LN('United States'!AA66)),Hypothesis!$E$11) -> -0.006202317164 | AL67: -0.4240949795 | AM67: 0
R68: 2055 | S68: =(1/(1-Hypothesis!$C$483))*'United States'!Z68-(Hypothesis!$C$483/(1-Hypothesis!$C$483))*'United States'!AK67+Employment!N381+Hours!N421 -> 0.02098233156 | T68: 5.57067037e+13 | U68: 0 | V68: =T68/Employment!DH68 -> 131693.0279 | X68: 2055 | Y68: =IF(X68<Hypothesis!$C$6-3*Hypothesis!$D$5,0,IF(X68>Hypothesis!$C$6+3*Hypothesis!$D$5,0,_xlfn.NORM.DIST(X68,Hypothesis!$C$6,Hypothesis!$D$5,FALSE))) -> 0 | Z68: =Hypothesis!$E$4+Y68*Hypothesis!$D$7 -> 0.00836098016 | AA68: 22.61910588 | AB68: 0 | AC68: 1 | AE68: 2055 | AF68: 2.729412968e+14 | AG68: 0.02717259692 | AH68: 0 | AJ68: 2055 | AK68: =IF(Hypothesis!$A$10=1,Hypothesis!$C$486+Hypothesis!$C$487*'United States'!AK67+Hypothesis!$C$488*'United States'!Z68+Hypothesis!$C$489*'United States'!Z67+Hypothesis!$C$490*('United States'!AL67+Hypothesis!$C$491*LN('United States'!AA67)),Hypothesis!$E$11) -> -0.006190265361 | AL68: -0.4302852449 | AM68: 0
R69: 2056 | S69: =(1/(1-Hypothesis!$C$483))*'United States'!Z69-(Hypothesis!$C$483/(1-Hypothesis!$C$483))*'United States'!AK68+Employment!N382+Hours!N422 -> 0.02060354885 | T69: 5.686636504e+13 | U69: 0 | V69: =T69/Employment!DH69 -> 135123.872 | X69: 2056 | Y69: =IF(X69<Hypothesis!$C$6-3*Hypothesis!$D$5,0,IF(X69>Hypothesis!$C$6+3*Hypothesis!$D$5,0,_xlfn.NORM.DIST(X69,Hypothesis!$C$6,Hypothesis!$D$5,FALSE))) -> 0 | Z69: =Hypothesis!$E$4+Y69*Hypothesis!$D$7 -> 0.00836098016 | AA69: 22.80901659 | AB69: 0 | AC69: 1 | AE69: 2056 | AF69: 2.80347971e+14 | AG69: 0.02677484316 | AH69: 0 | AJ69: 2056 | AK69: =IF(Hypothesis!$A$10=1,Hypothesis!$C$486+Hypothesis!$C$487*'United States'!AK68+Hypothesis!$C$488*'United States'!Z69+Hypothesis!$C$489*'United States'!Z68+Hypothesis!$C$490*('United States'!AL68+Hypothesis!$C$491*LN('United States'!AA68)),Hypothesis!$E$11) -> -0.006171294302 | AL69: -0.4364565392 | AM69: 0
R70: 2057 | S70: =(1/(1-Hypothesis!$C$483))*'United States'!Z70-(Hypothesis!$C$483/(1-Hypothesis!$C$483))*'United States'!AK69+Employment!N383+Hours!N423 -> 0.02048850298 | T70: 5.804348931e+13 | U70: 0 | V70: =T70/Employment!DH70 -> 136929.6025 | X70: 2057 | Y70: =IF(X70<Hypothesis!$C$6-3*Hypothesis!$D$5,0,IF(X70>Hypothesis!$C$6+3*Hypothesis!$D$5,0,_xlfn.NORM.DIST(X70,Hypothesis!$C$6,Hypothesis!$D$5,FALSE))) -> 0 | Z70: =Hypothesis!$E$4+Y70*Hypothesis!$D$7 -> 0.00836098016 | AA70: 23.0005218 | AB70: 0 | AC70: 1 | AE70: 2057 | AF70: 2.879162612e+14 | AG70: 0.02663809302 | AH70: 0 | AJ70: 2057 | AK70: =IF(Hypothesis!$A$10=1,Hypothesis!$C$486+Hypothesis!$C$487*'United States'!AK69+Hypothesis!$C$488*'United States'!Z70+Hypothesis!$C$489*'United States'!Z69+Hypothesis!$C$490*('United States'!AL69+Hypothesis!$C$491*LN('United States'!AA69)),Hypothesis!$E$11) -> -0.006149590036 | AL70: -0.4426061292 | AM70: 0
R71: 2058 | S71: =(1/(1-Hypothesis!$C$483))*'United States'!Z71-(Hypothesis!$C$483/(1-Hypothesis!$C$483))*'United States'!AK70+Employment!N384+Hours!N424 -> 0.02043065029 | T71: 5.924155247e+13 | U71: 0 | V71: =T71/Employment!DH71 -> 138774.2071 | X71: 2058 | Y71: =IF(X71<Hypothesis!$C$6-3*Hypothesis!$D$5,0,IF(X71>Hypothesis!$C$6+3*Hypothesis!$D$5,0,_xlfn.NORM.DIST(X71,Hypothesis!$C$6,Hypothesis!$D$5,FALSE))) -> 0 | Z71: =Hypothesis!$E$4+Y71*Hypothesis!$D$7 -> 0.00836098016 | AA71: 23.19363489 | AB71: 0 | AC71: 1 | AE71: 2058 | AF71: 2.956654858e+14 | AG71: 0.02655902151 | AH71: 0 | AJ71: 2058 | AK71: =IF(Hypothesis!$A$10=1,Hypothesis!$C$486+Hypothesis!$C$487*'United States'!AK70+Hypothesis!$C$488*'United States'!Z71+Hypothesis!$C$489*'United States'!Z70+Hypothesis!$C$490*('United States'!AL70+Hypothesis!$C$491*LN('United States'!AA70)),Hypothesis!$E$11) -> -0.006128371215 | AL71: -0.4487345004 | AM71: 0
R72: 2059 | S72: =(1/(1-Hypothesis!$C$483))*'United States'!Z72-(Hypothesis!$C$483/(1-Hypothesis!$C$483))*'United States'!AK71+Employment!N385+Hours!N425 -> 0.02044099079 | T72: 6.046496983e+13 | U72: 0 | V72: =T72/Employment!DH72 -> 140701.8139 | X72: 2059 | Y72: =IF(X72<Hypothesis!$C$6-3*Hypothesis!$D$5,0,IF(X72>Hypothesis!$C$6+3*Hypothesis!$D$5,0,_xlfn.NORM.DIST(X72,Hypothesis!$C$6,Hypothesis!$D$5,FALSE))) -> 0 | Z72: =Hypothesis!$E$4+Y72*Hypothesis!$D$7 -> 0.00836098016 | AA72: 23.38836936 | AB72: 0 | AC72: 1 | AE72: 2059 | AF72: 3.03620789e+14 | AG72: 0.02655081852 | AH72: 0 | AJ72: 2059 | AK72: =IF(Hypothesis!$A$10=1,Hypothesis!$C$486+Hypothesis!$C$487*'United States'!AK71+Hypothesis!$C$488*'United States'!Z72+Hypothesis!$C$489*'United States'!Z71+Hypothesis!$C$490*('United States'!AL71+Hypothesis!$C$491*LN('United States'!AA71)),Hypothesis!$E$11) -> -0.006109827726 | AL72: -0.4548443282 | AM72: 0
R73: 2060 | S73: =(1/(1-Hypothesis!$C$483))*'United States'!Z73-(Hypothesis!$C$483/(1-Hypothesis!$C$483))*'United States'!AK72+Employment!N386+Hours!N426 -> 0.02046883988 | T73: 6.171537109e+13 | U73: 0 | V73: =T73/Employment!DH73 -> 142734.4836 | X73: 2060 | Y73: =IF(X73<Hypothesis!$C$6-3*Hypothesis!$D$5,0,IF(X73>Hypothesis!$C$6+3*Hypothesis!$D$5,0,_xlfn.NORM.DIST(X73,Hypothesis!$C$6,Hypothesis!$D$5,FALSE))) -> 0 | Z73: =Hypothesis!$E$4+Y73*Hypothesis!$D$7 -> 0.00836098016 | AA73: 23.58473883 | AB73: 0 | AC73: 1 | AE73: 2060 | AF73: 3.117942607e+14 | AG73: 0.02656403112 | AH73: 0 | AJ73: 2060 | AK73: =IF(Hypothesis!$A$10=1,Hypothesis!$C$486+Hypothesis!$C$487*'United States'!AK72+Hypothesis!$C$488*'United States'!Z73+Hypothesis!$C$489*'United States'!Z72+Hypothesis!$C$490*('United States'!AL72+Hypothesis!$C$491*LN('United States'!AA72)),Hypothesis!$E$11) -> -0.006095191241 | AL73: -0.4609395194 | AM73: 0
R74: 2061 | S74: =(1/(1-Hypothesis!$C$483))*'United States'!Z74-(Hypothesis!$C$483/(1-Hypothesis!$C$483))*'United States'!AK73+Employment!N387+Hours!N427 -> 0.02077811889 | T74: 6.301111536e+13 | U74: 0 | V74: =T74/Employment!DH74 -> 144634.0411 | X74: 2061 | Y74: =IF(X74<Hypothesis!$C$6-3*Hypothesis!$D$5,0,IF(X74>Hypothesis!$C$6+3*Hypothesis!$D$5,0,_xlfn.NORM.DIST(X74,Hypothesis!$C$6,Hypothesis!$D$5,FALSE))) -> 0 | Z74: =Hypothesis!$E$4+Y74*Hypothesis!$D$7 -> 0.00836098016 | AA74: 23.78275702 | AB74: 0 | AC74: 1 | AE74: 2061 | AF74: 3.202835055e+14 | AG74: 0.0268630088 | AH74: 0 | AJ74: 2061 | AK74: =IF(Hypothesis!$A$10=1,Hypothesis!$C$486+Hypothesis!$C$487*'United States'!AK73+Hypothesis!$C$488*'United States'!Z74+Hypothesis!$C$489*'United States'!Z73+Hypothesis!$C$490*('United States'!AL73+Hypothesis!$C$491*LN('United States'!AA73)),Hypothesis!$E$11) -> -0.006084889909 | AL74: -0.4670244093 | AM74: 0
R75: 2062 | S75: =(1/(1-Hypothesis!$C$483))*'United States'!Z75-(Hypothesis!$C$483/(1-Hypothesis!$C$483))*'United States'!AK74+Employment!N388+Hours!N428 -> 0.02077370404 | T75: 6.433378038e+13 | U75: 0 | V75: =T75/Employment!DH75 -> 146558.2316 | X75: 2062 | Y75: =IF(X75<Hypothesis!$C$6-3*Hypothesis!$D$5,0,IF(X75>Hypothesis!$C$6+3*Hypothesis!$D$5,0,_xlfn.NORM.DIST(X75,Hypothesis!$C$6,Hypothesis!$D$5,FALSE))) -> 0 | Z75: =Hypothesis!$E$4+Y75*Hypothesis!$D$7 -> 0.00836098016 | AA75: 23.98243778 | AB75: 0 | AC75: 1 | AE75: 2062 | AF75: 3.290004133e+14 | AG75: 0.02685244872 | AH75: 0 | AJ75: 2062 | AK75: =IF(Hypothesis!$A$10=1,Hypothesis!$C$486+Hypothesis!$C$487*'United States'!AK74+Hypothesis!$C$488*'United States'!Z75+Hypothesis!$C$489*'United States'!Z74+Hypothesis!$C$490*('United States'!AL74+Hypothesis!$C$491*LN('United States'!AA74)),Hypothesis!$E$11) -> -0.006078744683 | AL75: -0.473103154 | AM75: 0
R76: 2063 | S76: =(1/(1-Hypothesis!$C$483))*'United States'!Z76-(Hypothesis!$C$483/(1-Hypothesis!$C$483))*'United States'!AK75+Employment!N389+Hours!N429 -> 0.02077107037 | T76: 6.568403644e+13 | U76: 0 | V76: =T76/Employment!DH76 -> 148507.6301 | X76: 2063 | Y76: =IF(X76<Hypothesis!$C$6-3*Hypothesis!$D$5,0,IF(X76>Hypothesis!$C$6+3*Hypothesis!$D$5,0,_xlfn.NORM.DIST(X76,Hypothesis!$C$6,Hypothesis!$D$5,FALSE))) -> 0 | Z76: =Hypothesis!$E$4+Y76*Hypothesis!$D$7 -> 0.00836098016 | AA76: 24.18379506 | AB76: 0 | AC76: 1 | AE76: 2063 | AF76: 3.379528032e+14 | AG76: 0.0268472434 | AH76: 0 | AJ76: 2063 | AK76: =IF(Hypothesis!$A$10=1,Hypothesis!$C$486+Hypothesis!$C$487*'United States'!AK75+Hypothesis!$C$488*'United States'!Z76+Hypothesis!$C$489*'United States'!Z75+Hypothesis!$C$490*('United States'!AL75+Hypothesis!$C$491*LN('United States'!AA75)),Hypothesis!$E$11) -> -0.006076173026 | AL76: -0.479179327 | AM76: 0
R77: 2064 | S77: =(1/(1-Hypothesis!$C$483))*'United States'!Z77-(Hypothesis!$C$483/(1-Hypothesis!$C$483))*'United States'!AK76+Employment!N390+Hours!N430 -> 0.02076996823 | T77: 6.706255816e+13 | U77: 0 | V77: =T77/Employment!DH77 -> 150482.792 | X77: 2064 | Y77: =IF(X77<Hypothesis!$C$6-3*Hypothesis!$D$5,0,IF(X77>Hypothesis!$C$6+3*Hypothesis!$D$5,0,_xlfn.NORM.DIST(X77,Hypothesis!$C$6,Hypothesis!$D$5,FALSE))) -> 0 | Z77: =Hypothesis!$E$4+Y77*Hypothesis!$D$7 -> 0.00836098016 | AA77: 24.38684295 | AB77: 0 | AC77: 1 | AE77: 2064 | AF77: 3.471484832e+14 | AG77: 0.02684634357 | AH77: 0 | AJ77: 2064 | AK77: =IF(Hypothesis!$A$10=1,Hypothesis!$C$486+Hypothesis!$C$487*'United States'!AK76+Hypothesis!$C$488*'United States'!Z77+Hypothesis!$C$489*'United States'!Z76+Hypothesis!$C$490*('United States'!AL76+Hypothesis!$C$491*LN('United States'!AA76)),Hypothesis!$E$11) -> -0.006076375335 | AL77: -0.4852557023 | AM77: 0
R78: 2065 | S78: =(1/(1-Hypothesis!$C$483))*'United States'!Z78-(Hypothesis!$C$483/(1-Hypothesis!$C$483))*'United States'!AK77+Employment!N391+Hours!N431 -> 0.02077005493 | T78: 6.847001708e+13 | U78: 0 | V78: =T78/Employment!DH78 -> 152484.237 | X78: 2065 | Y78: =IF(X78<Hypothesis!$C$6-3*Hypothesis!$D$5,0,IF(X78>Hypothesis!$C$6+3*Hypothesis!$D$5,0,_xlfn.NORM.DIST(X78,Hypothesis!$C$6,Hypothesis!$D$5,FALSE))) -> 0 | Z78: =Hypothesis!$E$4+Y78*Hypothesis!$D$7 -> 0.00836098016 | AA78: 24.59159564 | AB78: 0 | AC78: 1 | AE78: 2065 | AF78: 3.565951617e+14 | AG78: 0.02684854371 | AH78: 0 | AJ78: 2065 | AK78: =IF(Hypothesis!$A$10=1,Hypothesis!$C$486+Hypothesis!$C$487*'United States'!AK77+Hypothesis!$C$488*'United States'!Z78+Hypothesis!$C$489*'United States'!Z77+Hypothesis!$C$490*('United States'!AL77+Hypothesis!$C$491*LN('United States'!AA77)),Hypothesis!$E$11) -> -0.006078488778 | AL78: -0.4913341911 | AM78: 0
R79: 2066 | S79: =(1/(1-Hypothesis!$C$483))*'United States'!Z79-(Hypothesis!$C$483/(1-Hypothesis!$C$483))*'United States'!AK78+Employment!N392+Hours!N432 -> 0.0207709607 | T79: 6.990707802e+13 | U79: 0 | V79: =T79/Employment!DH79 -> 154512.4414 | X79: 2066 | Y79: =IF(X79<Hypothesis!$C$6-3*Hypothesis!$D$5,0,IF(X79>Hypothesis!$C$6+3*Hypothesis!$D$5,0,_xlfn.NORM.DIST(X79,Hypothesis!$C$6,Hypothesis!$D$5,FALSE))) -> 0 | Z79: =Hypothesis!$E$4+Y79*Hypothesis!$D$7 -> 0.00836098016 | AA79: 24.79806743 | AB79: 0 | AC79: 1 | AE79: 2066 | AF79: 3.663004139e+14 | AG79: 0.02685266218 | AH79: 0 | AJ79: 2066 | AK79: =IF(Hypothesis!$A$10=1,Hypothesis!$C$486+Hypothesis!$C$487*'United States'!AK78+Hypothesis!$C$488*'United States'!Z79+Hypothesis!$C$489*'United States'!Z78+Hypothesis!$C$490*('United States'!AL78+Hypothesis!$C$491*LN('United States'!AA78)),Hypothesis!$E$11) -> -0.006081701488 | AL79: -0.4974158926 | AM79: 0
R80: 2067 | S80: =(1/(1-Hypothesis!$C$483))*'United States'!Z80-(Hypothesis!$C$483/(1-Hypothesis!$C$483))*'United States'!AK79+Employment!N393+Hours!N433 -> 0.02077233757 | T80: 71374398520226 | U80: 0 | V80: =T80/Employment!DH80 -> 156567.8387 | X80: 2067 | Y80: =IF(X80<Hypothesis!$C$6-3*Hypothesis!$D$5,0,IF(X80>Hypothesis!$C$6+3*Hypothesis!$D$5,0,_xlfn.NORM.DIST(X80,Hypothesis!$C$6,Hypothesis!$D$5,FALSE))) -> 0 | Z80: =Hypothesis!$E$4+Y80*Hypothesis!$D$7 -> 0.00836098016 | AA80: 25.00627277 | AB80: 0 | AC80: 1 | AE80: 2067 | AF80: 3.762716906e+14 | AG80: 0.0268576641 | AH80: 0 | AJ80: 2067 | AK80: =IF(Hypothesis!$A$10=1,Hypothesis!$C$486+Hypothesis!$C$487*'United States'!AK79+Hypothesis!$C$488*'United States'!Z80+Hypothesis!$C$489*'United States'!Z79+Hypothesis!$C$490*('United States'!AL79+Hypothesis!$C$491*LN('United States'!AA79)),Hypothesis!$E$11) -> -0.006085326532 | AL80: -0.5035012191 | AM80: 0
R81: 2068 | S81: =(1/(1-Hypothesis!$C$483))*'United States'!Z81-(Hypothesis!$C$483/(1-Hypothesis!$C$483))*'United States'!AK80+Employment!N394+Hours!N434 -> 0.02077389116 | T81: 7.287263068e+13 | U81: 0 | V81: =T81/Employment!DH81 -> 158650.8244 | X81: 2068 | Y81: =IF(X81<Hypothesis!$C$6-3*Hypothesis!$D$5,0,IF(X81>Hypothesis!$C$6+3*Hypothesis!$D$5,0,_xlfn.NORM.DIST(X81,Hypothesis!$C$6,Hypothesis!$D$5,FALSE))) -> 0 | Z81: =Hypothesis!$E$4+Y81*Hypothesis!$D$7 -> 0.00836098016 | AA81: 25.2162262 | AB81: 0 | AC81: 1 | AE81: 2068 | AF81: 3.865163596e+14 | AG81: 0.02686273088 | AH81: 0 | AJ81: 2068 | AK81: =IF(Hypothesis!$A$10=1,Hypothesis!$C$486+Hypothesis!$C$487*'United States'!AK80+Hypothesis!$C$488*'United States'!Z81+Hypothesis!$C$489*'United States'!Z80+Hypothesis!$C$490*('United States'!AL80+Hypothesis!$C$491*LN('United States'!AA80)),Hypothesis!$E$11) -> -0.006088839715 | AL81: -0.5095900589 | AM81: 0
R82: 2069 | S82: =(1/(1-Hypothesis!$C$483))*'United States'!Z82-(Hypothesis!$C$483/(1-Hypothesis!$C$483))*'United States'!AK81+Employment!N395+Hours!N435 -> 0.02077539681 | T82: 7.440242452e+13 | U82: 0 | V82: =T82/Employment!DH82 -> 160761.7642 | X82: 2069 | Y82: =IF(X82<Hypothesis!$C$6-3*Hypothesis!$D$5,0,IF(X82>Hypothesis!$C$6+3*Hypothesis!$D$5,0,_xlfn.NORM.DIST(X82,Hypothesis!$C$6,Hypothesis!$D$5,FALSE))) -> 0 | Z82: =Hypothesis!$E$4+Y82*Hypothesis!$D$7 -> 0.00836098016 | AA82: 25.42794241 | AB82: 0 | AC82: 1 | AE82: 2069 | AF82: 3.970417661e+14 | AG82: 0.02686728481 | AH82: 0 | AJ82: 2069 | AK82: =IF(Hypothesis!$A$10=1,Hypothesis!$C$486+Hypothesis!$C$487*'United States'!AK81+Hypothesis!$C$488*'United States'!Z82+Hypothesis!$C$489*'United States'!Z81+Hypothesis!$C$490*('United States'!AL81+Hypothesis!$C$491*LN('United States'!AA81)),Hypothesis!$E$11) -> -0.006091887999 | AL82: -0.5156819469 | AM82: 0
R83: 2070 | S83: =(1/(1-Hypothesis!$C$483))*'United States'!Z83-(Hypothesis!$C$483/(1-Hypothesis!$C$483))*'United States'!AK82+Employment!N396+Hours!N436 -> 0.02077670322 | T83: 7.59644321e+13 | U83: 0 | V83: =T83/Employment!DH83 -> 162901.0042 | X83: 2070 | Y83: =IF(X83<Hypothesis!$C$6-3*Hypothesis!$D$5,0,IF(X83>Hypothesis!$C$6+3*Hypothesis!$D$5,0,_xlfn.NORM.DIST(X83,Hypothesis!$C$6,Hypothesis!$D$5,FALSE))) -> 0 | Z83: =Hypothesis!$E$4+Y83*Hypothesis!$D$7 -> 0.00836098016 | AA83: 25.6414362 | AB83: 0 | AC83: 1 | AE83: 2070 | AF83: 4.078553019e+14 | AG83: 0.02687097974 | AH83: 0 | AJ83: 2070 | AK83: =IF(Hypothesis!$A$10=1,Hypothesis!$C$486+Hypothesis!$C$487*'United States'!AK82+Hypothesis!$C$488*'United States'!Z83+Hypothesis!$C$489*'United States'!Z82+Hypothesis!$C$490*('United States'!AL82+Hypothesis!$C$491*LN('United States'!AA82)),Hypothesis!$E$11) -> -0.006094276525 | AL83: -0.5217762234 | AM83: 0
R84: 2071 | S84: =(1/(1-Hypothesis!$C$483))*'United States'!Z84-(Hypothesis!$C$483/(1-Hypothesis!$C$483))*'United States'!AK83+Employment!N397+Hours!N437 -> 0.02077772687 | T84: 7.755931194e+13 | U84: 0 | V84: =T84/Employment!DH84 -> 165068.8797 | X84: 2071 | Y84: =IF(X84<Hypothesis!$C$6-3*Hypothesis!$D$5,0,IF(X84>Hypothesis!$C$6+3*Hypothesis!$D$5,0,_xlfn.NORM.DIST(X84,Hypothesis!$C$6,Hypothesis!$D$5,FALSE))) -> 0 | Z84: =Hypothesis!$E$4+Y84*Hypothesis!$D$7 -> 0.00836098016 | AA84: 25.85672249 | AB84: 0 | AC84: 1 | AE84: 2071 | AF84: 4.189644738e+14 | AG84: 0.02687366902 | AH84: 0 | AJ84: 2071 | AK84: =IF(Hypothesis!$A$10=1,Hypothesis!$C$486+Hypothesis!$C$487*'United States'!AK83+Hypothesis!$C$488*'United States'!Z84+Hypothesis!$C$489*'United States'!Z83+Hypothesis!$C$490*('United States'!AL83+Hypothesis!$C$491*LN('United States'!AA83)),Hypothesis!$E$11) -> -0.006095942142 | AL84: -0.5278721655 | AM84: 0
R85: 2072 | S85: =(1/(1-Hypothesis!$C$483))*'United States'!Z85-(Hypothesis!$C$483/(1-Hypothesis!$C$483))*'United States'!AK84+Employment!N398+Hours!N438 -> 0.02077844071 | T85: 7.918773294e+13 | U85: 0 | V85: =T85/Employment!DH85 -> 167265.7246 | X85: 2072 | Y85: =IF(X85<Hypothesis!$C$6-3*Hypothesis!$D$5,0,IF(X85>Hypothesis!$C$6+3*Hypothesis!$D$5,0,_xlfn.NORM.DIST(X85,Hypothesis!$C$6,Hypothesis!$D$5,FALSE))) -> 0 | Z85: =Hypothesis!$E$4+Y85*Hypothesis!$D$7 -> 0.00836098016 | AA85: 26.07381633 | AB85: 0 | AC85: 1 | AE85: 2072 | AF85: 4.303769659e+14 | AG85: 0.02687536116 | AH85: 0 | AJ85: 2072 | AK85: =IF(Hypothesis!$A$10=1,Hypothesis!$C$486+Hypothesis!$C$487*'United States'!AK84+Hypothesis!$C$488*'United States'!Z85+Hypothesis!$C$489*'United States'!Z84+Hypothesis!$C$490*('United States'!AL84+Hypothesis!$C$491*LN('United States'!AA84)),Hypothesis!$E$11) -> -0.006096920455 | AL85: -0.533969086 | AM85: 0
R86: 2073 | S86: =(1/(1-Hypothesis!$C$483))*'United States'!Z86-(Hypothesis!$C$483/(1-Hypothesis!$C$483))*'United States'!AK85+Employment!N399+Hours!N439 -> 0.02077885999 | T86: 8.085037786e+13 | U86: 0 | V86: =T86/Employment!DH86 -> 169491.8776 | X86: 2073 | Y86: =IF(X86<Hypothesis!$C$6-3*Hypothesis!$D$5,0,IF(X86>Hypothesis!$C$6+3*Hypothesis!$D$5,0,_xlfn.NORM.DIST(X86,Hypothesis!$C$6,Hypothesis!$D$5,FALSE))) -> 0 | Z86: =Hypothesis!$E$4+Y86*Hypothesis!$D$7 -> 0.00836098016 | AA86: 26.29273289 | AB86: 0 | AC86: 1 | AE86: 2073 | AF86: 442100689942915 | AG86: 0.02687617196 | AH86: 0 | AJ86: 2073 | AK86: =IF(Hypothesis!$A$10=1,Hypothesis!$C$486+Hypothesis!$C$487*'United States'!AK85+Hypothesis!$C$488*'United States'!Z86+Hypothesis!$C$489*'United States'!Z85+Hypothesis!$C$490*('United States'!AL85+Hypothesis!$C$491*LN('United States'!AA85)),Hypothesis!$E$11) -> -0.006097311977 | AL86: -0.540066398 | AM86: 0
R87: 2074 | S87: =(1/(1-Hypothesis!$C$483))*'United States'!Z87-(Hypothesis!$C$483/(1-Hypothesis!$C$483))*'United States'!AK86+Employment!N400+Hours!N440 -> 0.02077902778 | T87: 8.254794594e+13 | U87: 0 | V87: =T87/Employment!DH87 -> 171747.6874 | X87: 2074 | Y87: =IF(X87<Hypothesis!$C$6-3*Hypothesis!$D$5,0,IF(X87>Hypothesis!$C$6+3*Hypothesis!$D$5,0,_xlfn.NORM.DIST(X87,Hypothesis!$C$6,Hypothesis!$D$5,FALSE))) -> 0 | Z87: =Hypothesis!$E$4+Y87*Hypothesis!$D$7 -> 0.00836098016 | AA87: 26.51348748 | AB87: 0 | AC87: 1 | AE87: 2074 | AF87: 4.541438239e+14 | AG87: 0.02687627917 | AH87: 0 | AJ87: 2074 | AK87: =IF(Hypothesis!$A$10=1,Hypothesis!$C$486+Hypothesis!$C$487*'United States'!AK86+Hypothesis!$C$488*'United States'!Z87+Hypothesis!$C$489*'United States'!Z86+Hypothesis!$C$490*('United States'!AL86+Hypothesis!$C$491*LN('United States'!AA86)),Hypothesis!$E$11) -> -0.006097251392 | AL87: -0.5461636494 | AM87: 0
R88: 2075 | S88: =(1/(1-Hypothesis!$C$483))*'United States'!Z88-(Hypothesis!$C$483/(1-Hypothesis!$C$483))*'United States'!AK87+Employment!N401+Hours!N441 -> 0.02077900182 | T88: 8.428115467e+13 | U88: 0 | V88: =T88/Employment!DH88 -> 174033.5159 | X88: 2075 | Y88: =IF(X88<Hypothesis!$C$6-3*Hypothesis!$D$5,0,IF(X88>Hypothesis!$C$6+3*Hypothesis!$D$5,0,_xlfn.NORM.DIST(X88,Hypothesis!$C$6,Hypothesis!$D$5,FALSE))) -> 0 | Z88: =Hypothesis!$E$4+Y88*Hypothesis!$D$7 -> 0.00836098016 | AA88: 26.73609554 | AB88: 0 | AC88: 1 | AE88: 2075 | AF88: 4.66514837e+14 | AG88: 0.02687588418 | AH88: 0 | AJ88: 2075 | AK88: =IF(Hypothesis!$A$10=1,Hypothesis!$C$486+Hypothesis!$C$487*'United States'!AK87+Hypothesis!$C$488*'United States'!Z88+Hypothesis!$C$489*'United States'!Z87+Hypothesis!$C$490*('United States'!AL87+Hypothesis!$C$491*LN('United States'!AA87)),Hypothesis!$E$11) -> -0.006096882368 | AL88: -0.5522605317 | AM88: 0
R89: 2076 | S89: =(1/(1-Hypothesis!$C$483))*'United States'!Z89-(Hypothesis!$C$483/(1-Hypothesis!$C$483))*'United States'!AK88+Employment!N402+Hours!N442 -> 0.02077884366 | T89: 8.605074092e+13 | U89: 0 | V89: =T89/Employment!DH89 -> 176349.7391 | X89: 2076 | Y89: =IF(X89<Hypothesis!$C$6-3*Hypothesis!$D$5,0,IF(X89>Hypothesis!$C$6+3*Hypothesis!$D$5,0,_xlfn.NORM.DIST(X89,Hypothesis!$C$6,Hypothesis!$D$5,FALSE))) -> 0 | Z89: =Hypothesis!$E$4+Y89*Hypothesis!$D$7 -> 0.00836098016 | AA89: 26.96057262 | AB89: 0 | AC89: 1 | AE89: 2076 | AF89: 4.792225041e+14 | AG89: 0.02687518267 | AH89: 0 | AJ89: 2076 | AK89: =IF(Hypothesis!$A$10=1,Hypothesis!$C$486+Hypothesis!$C$487*'United States'!AK88+Hypothesis!$C$488*'United States'!Z89+Hypothesis!$C$489*'United States'!Z88+Hypothesis!$C$490*('United States'!AL88+Hypothesis!$C$491*LN('United States'!AA88)),Hypothesis!$E$11) -> -0.006096339009 | AL89: -0.5583568707 | AM89: 0
R90: 2077 | S90: =(1/(1-Hypothesis!$C$483))*'United States'!Z90-(Hypothesis!$C$483/(1-Hypothesis!$C$483))*'United States'!AK89+Employment!N403+Hours!N443 -> 0.02077861079 | T90: 8.785746134e+13 | U90: 0 | V90: =T90/Employment!DH90 -> 178696.7474 | X90: 2077 | Y90: =IF(X90<Hypothesis!$C$6-3*Hypothesis!$D$5,0,IF(X90>Hypothesis!$C$6+3*Hypothesis!$D$5,0,_xlfn.NORM.DIST(X90,Hypothesis!$C$6,Hypothesis!$D$5,FALSE))) -> 0 | Z90: =Hypothesis!$E$4+Y90*Hypothesis!$D$7 -> 0.00836098016 | AA90: 27.18693442 | AB90: 0 | AC90: 1 | AE90: 2077 | AF90: 4.922759101e+14 | AG90: 0.02687434478 | AH90: 0 | AJ90: 2077 | AK90: =IF(Hypothesis!$A$10=1,Hypothesis!$C$486+Hypothesis!$C$487*'United States'!AK89+Hypothesis!$C$488*'United States'!Z90+Hypothesis!$C$489*'United States'!Z89+Hypothesis!$C$490*('United States'!AL89+Hypothesis!$C$491*LN('United States'!AA89)),Hypothesis!$E$11) -> -0.006095733985 | AL90: -0.5644526047 | AM90: 0
R91: =R90+1 -> 2078 | S91: =(1/(1-Hypothesis!$C$483))*'United States'!Z91-(Hypothesis!$C$483/(1-Hypothesis!$C$483))*'United States'!AK90+Employment!N404+Hours!N444 -> 0.0207783515 | T91: 8.970209238e+13 | U91: 0 | V91: =T91/Employment!DH91 -> 181074.9448 | X91: 2078 | Y91: =IF(X91<Hypothesis!$C$6-3*Hypothesis!$D$5,0,IF(X91>Hypothesis!$C$6+3*Hypothesis!$D$5,0,_xlfn.NORM.DIST(X91,Hypothesis!$C$6,Hypothesis!$D$5,FALSE))) -> 0 | Z91: =Hypothesis!$E$4+Y91*Hypothesis!$D$7 -> 0.00836098016 | AA91: 27.41519676 | AB91: 0 | AC91: 1 | AE91: =AE90+1 -> 2078 | AF91: 5.056844491e+14 | AG91: 0.02687350412 | AH91: 0 | AJ91: =AJ90+1 -> 2078 | AK91: =IF(Hypothesis!$A$10=1,Hypothesis!$C$486+Hypothesis!$C$487*'United States'!AK90+Hypothesis!$C$488*'United States'!Z91+Hypothesis!$C$489*'United States'!Z90+Hypothesis!$C$490*('United States'!AL90+Hypothesis!$C$491*LN('United States'!AA90)),Hypothesis!$E$11) -> -0.006095152617 | AL91: -0.5705477573 | AM91: 0
R92: 2079 | S92: =(1/(1-Hypothesis!$C$483))*'United States'!Z92-(Hypothesis!$C$483/(1-Hypothesis!$C$483))*'United States'!AK91+Employment!N405+Hours!N445 -> 0.02077810234 | T92: 9.158542997e+13 | U92: 0 | V92: =T92/Employment!DH92 -> 183484.7468 | X92: 2079 | Y92: =IF(X92<Hypothesis!$C$6-3*Hypothesis!$D$5,0,IF(X92>Hypothesis!$C$6+3*Hypothesis!$D$5,0,_xlfn.NORM.DIST(X92,Hypothesis!$C$6,Hypothesis!$D$5,FALSE))) -> 0 | Z92: =Hypothesis!$E$4+Y92*Hypothesis!$D$7 -> 0.00836098016 | AA92: 27.64537559 | AB92: 0 | AC92: =AA92/AA92 -> 1 | AE92: 2079 | AF92: =AF91*EXP(AG92) -> 5.194578183e+14 | AG92: =S92-AK92 -> 0.02687275411 | AH92: 0 | AJ92: 2079 | AK92: =IF(Hypothesis!$A$10=1,Hypothesis!$C$486+Hypothesis!$C$487*'United States'!AK91+Hypothesis!$C$488*'United States'!Z92+Hypothesis!$C$489*'United States'!Z91+Hypothesis!$C$490*('United States'!AL91+Hypothesis!$C$491*LN('United States'!AA91)),Hypothesis!$E$11) -> -0.006094651768 | AL92: -0.5766424091 | AM92: 0
R93: 2080 | S93: =(1/(1-Hypothesis!$C$483))*'United States'!Z93-(Hypothesis!$C$483/(1-Hypothesis!$C$483))*'United States'!AK92+Employment!N406+Hours!N446 -> 0.02077788769 | T93: =T92*EXP(S93) -> 9.350828904e+13 | U93: 0 | V93: =T93/Employment!DH93 -> 185926.5793 | X93: =X92+1 -> 2080 | Y93: =IF(X93<Hypothesis!$C$6-3*Hypothesis!$D$5,0,IF(X93>Hypothesis!$C$6+3*Hypothesis!$D$5,0,_xlfn.NORM.DIST(X93,Hypothesis!$C$6,Hypothesis!$D$5,FALSE))) -> 0 | Z93: =Hypothesis!$E$4+Y93*Hypothesis!$D$7 -> 0.00836098016 | AA93: =EXP(Z93)*AA92 -> 27.87748702 | AB93: 0 | AC93: 1 | AE93: 2080 | AF93: 5.336060114e+14 | AG93: 0.02687214989 | AH93: 0 | AJ93: 2080 | AK93: =IF(Hypothesis!$A$10=1,Hypothesis!$C$486+Hypothesis!$C$487*'United States'!AK92+Hypothesis!$C$488*'United States'!Z93+Hypothesis!$C$489*'United States'!Z92+Hypothesis!$C$490*('United States'!AL92+Hypothesis!$C$491*LN('United States'!AA92)),Hypothesis!$E$11) -> -0.006094262201 | AL93: =AL92+AK93 -> -0.5827366713 | AM93: 0
R94: 2081 | S94: =(1/(1-Hypothesis!$C$483))*'United States'!Z94-(Hypothesis!$C$483/(1-Hypothesis!$C$483))*'United States'!AK93+Employment!N407+Hours!N447 -> 0.02077772073 | T94: 9.547150309e+13 | U94: 0 | V94: =T94/Employment!DH94 -> 188400.8764 | X94: 2081 | Y94: =IF(X94<Hypothesis!$C$6-3*Hypothesis!$D$5,0,IF(X94>Hypothesis!$C$6+3*Hypothesis!$D$5,0,_xlfn.NORM.DIST(X94,Hypothesis!$C$6,Hypothesis!$D$5,FALSE))) -> 0 | Z94: =Hypothesis!$E$4+Y94*Hypothesis!$D$7 -> 0.00836098016 | AA94: 28.11154726 | AB94: 0 | AC94: 1 | AE94: 2081 | AF94: 5.481393123e+14 | AG94: 0.02687171384 | AH94: 0 | AJ94: 2081 | AK94: =IF(Hypothesis!$A$10=1,Hypothesis!$C$486+Hypothesis!$C$487*'United States'!AK93+Hypothesis!$C$488*'United States'!Z94+Hypothesis!$C$489*'United States'!Z93+Hypothesis!$C$490*('United States'!AL93+Hypothesis!$C$491*LN('United States'!AA93)),Hypothesis!$E$11) -> -0.006093993102 | AL94: -0.5888306644 | AM94: 0
R95: 2082 | S95: =(1/(1-Hypothesis!$C$483))*'United States'!Z95-(Hypothesis!$C$483/(1-Hypothesis!$C$483))*'United States'!AK94+Employment!N408+Hours!N448 -> 0.02077760541 | T95: 9.747592373e+13 | U95: 0 | V95: =T95/Employment!DH95 -> 190908.0794 | X95: 2082 | Y95: =IF(X95<Hypothesis!$C$6-3*Hypothesis!$D$5,0,IF(X95>Hypothesis!$C$6+3*Hypothesis!$D$5,0,_xlfn.NORM.DIST(X95,Hypothesis!$C$6,Hypothesis!$D$5,FALSE))) -> 0 | Z95: =Hypothesis!$E$4+Y95*Hypothesis!$D$7 -> 0.00836098016 | AA95: 28.34757267 | AB95: 0 | AC95: 1 | AE95: 2082 | AF95: 5.630682899e+14 | AG95: 0.02687144301 | AH95: 0 | AJ95: 2082 | AK95: =IF(Hypothesis!$A$10=1,Hypothesis!$C$486+Hypothesis!$C$487*'United States'!AK94+Hypothesis!$C$488*'United States'!Z95+Hypothesis!$C$489*'United States'!Z94+Hypothesis!$C$490*('United States'!AL94+Hypothesis!$C$491*LN('United States'!AA94)),Hypothesis!$E$11) -> -0.006093837606 | AL95: -0.594924502 | AM95: 0
R96: 2083 | S96: =(1/(1-Hypothesis!$C$483))*'United States'!Z96-(Hypothesis!$C$483/(1-Hypothesis!$C$483))*'United States'!AK95+Employment!N409+Hours!N449 -> 0.02077753876 | T96: 9.952242047e+13 | U96: 0 | V96: =T96/Employment!DH96 -> 193448.6348 | X96: 2083 | Y96: =IF(X96<Hypothesis!$C$6-3*Hypothesis!$D$5,0,IF(X96>Hypothesis!$C$6+3*Hypothesis!$D$5,0,_xlfn.NORM.DIST(X96,Hypothesis!$C$6,Hypothesis!$D$5,FALSE))) -> 0 | Z96: =Hypothesis!$E$4+Y96*Hypothesis!$D$7 -> 0.00836098016 | AA96: 28.58557976 | AB96: 0 | AC96: 1 | AE96: 2083 | AF96: 5.784037964e+14 | AG96: 0.02687131718 | AH96: 0 | AJ96: 2083 | AK96: =IF(Hypothesis!$A$10=1,Hypothesis!$C$486+Hypothesis!$C$487*'United States'!AK95+Hypothesis!$C$488*'United States'!Z96+Hypothesis!$C$489*'United States'!Z95+Hypothesis!$C$490*('United States'!AL95+Hypothesis!$C$491*LN('United States'!AA95)),Hypothesis!$E$11) -> -0.006093778415 | AL96: -0.6010182804 | AM96: 0
R97: 2084 | S97: =(1/(1-Hypothesis!$C$483))*'United States'!Z97-(Hypothesis!$C$483/(1-Hypothesis!$C$483))*'United States'!AK96+Employment!N410+Hours!N450 -> 0.0207775134 | T97: 1.016118806e+14 | U97: 0 | V97: =T97/Employment!DH97 -> 196022.9943 | X97: 2084 | Y97: =IF(X97<Hypothesis!$C$6-3*Hypothesis!$D$5,0,IF(X97>Hypothesis!$C$6+3*Hypothesis!$D$5,0,_xlfn.NORM.DIST(X97,Hypothesis!$C$6,Hypothesis!$D$5,FALSE))) -> 0 | Z97: =Hypothesis!$E$4+Y97*Hypothesis!$D$7 -> 0.00836098016 | AA97: 28.82558517 | AB97: 0 | AC97: 1 | AE97: 2084 | AF97: 5.941569682e+14 | AG97: 0.02687130626 | AH97: 0 | AJ97: 2084 | AK97: =IF(Hypothesis!$A$10=1,Hypothesis!$C$486+Hypothesis!$C$487*'United States'!AK96+Hypothesis!$C$488*'United States'!Z97+Hypothesis!$C$489*'United States'!Z96+Hypothesis!$C$490*('United States'!AL96+Hypothesis!$C$491*LN('United States'!AA96)),Hypothesis!$E$11) -> -0.006093792867 | AL97: -0.6071120733 | AM97: 0
R98: 2085 | S98: =(1/(1-Hypothesis!$C$483))*'United States'!Z98-(Hypothesis!$C$483/(1-Hypothesis!$C$483))*'United States'!AK97+Employment!N411+Hours!N451 -> 0.02077751959 | T98: 1.037452094e+14 | U98: 0 | V98: =T98/Employment!DH98 -> 198631.6138 | X98: 2085 | Y98: =IF(X98<Hypothesis!$C$6-3*Hypothesis!$D$5,0,IF(X98>Hypothesis!$C$6+3*Hypothesis!$D$5,0,_xlfn.NORM.DIST(X98,Hypothesis!$C$6,Hypothesis!$D$5,FALSE))) -> 0 | Z98: =Hypothesis!$E$4+Y98*Hypothesis!$D$7 -> 0.00836098016 | AA98: 29.06760567 | AB98: 0 | AC98: 1 | AE98: 2085 | AF98: 6.1033923e+14 | AG98: 0.02687137665 | AH98: 0 | AJ98: 2085 | AK98: =IF(Hypothesis!$A$10=1,Hypothesis!$C$486+Hypothesis!$C$487*'United States'!AK97+Hypothesis!$C$488*'United States'!Z98+Hypothesis!$C$489*'United States'!Z97+Hypothesis!$C$490*('United States'!AL97+Hypothesis!$C$491*LN('United States'!AA97)),Hypothesis!$E$11) -> -0.006093857056 | AL98: -0.6132059303 | AM98: 0
R99: 2086 | S99: =(1/(1-Hypothesis!$C$483))*'United States'!Z99-(Hypothesis!$C$483/(1-Hypothesis!$C$483))*'United States'!AK98+Employment!N412+Hours!N452 -> 0.0207775471 | T99: 1.0592333e+14 | U99: 0 | V99: =T99/Employment!DH99 -> 201274.9537 | X99: 2086 | Y99: =IF(X99<Hypothesis!$C$6-3*Hypothesis!$D$5,0,IF(X99>Hypothesis!$C$6+3*Hypothesis!$D$5,0,_xlfn.NORM.DIST(X99,Hypothesis!$C$6,Hypothesis!$D$5,FALSE))) -> 0 | Z99: =Hypothesis!$E$4+Y99*Hypothesis!$D$7 -> 0.00836098016 | AA99: 29.31165818 | AB99: 0 | AC99: 1 | AE99: 2086 | AF99: 6.269623013e+14 | AG99: 0.02687149594 | AH99: 0 | AJ99: 2086 | AK99: =IF(Hypothesis!$A$10=1,Hypothesis!$C$486+Hypothesis!$C$487*'United States'!AK98+Hypothesis!$C$488*'United States'!Z99+Hypothesis!$C$489*'United States'!Z98+Hypothesis!$C$490*('United States'!AL98+Hypothesis!$C$491*LN('United States'!AA98)),Hypothesis!$E$11) -> -0.00609394884 | AL99: -0.6192998792 | AM99: 0
R100: 2087 | S100: =(1/(1-Hypothesis!$C$483))*'United States'!Z100-(Hypothesis!$C$483/(1-Hypothesis!$C$483))*'United States'!AK99+Employment!N413+Hours!N453 -> 0.02077758644 | T100: 1.081471843e+14 | U100: 0 | V100: =T100/Employment!DH100 -> 203953.4785 | X100: 2087 | Y100: =IF(X100<Hypothesis!$C$6-3*Hypothesis!$D$5,0,IF(X100>Hypothesis!$C$6+3*Hypothesis!$D$5,0,_xlfn.NORM.DIST(X100,Hypothesis!$C$6,Hypothesis!$D$5,FALSE))) -> 0 | Z100: =Hypothesis!$E$4+Y100*Hypothesis!$D$7 -> 0.00836098016 | AA100: 29.55775977 | AB100: 0 | AC100: 1 | AE100: 2087 | AF100: 6.440382054e+14 | AG100: 0.02687163619 | AH100: 0 | AJ100: 2087 | AK100: =IF(Hypothesis!$A$10=1,Hypothesis!$C$486+Hypothesis!$C$487*'United States'!AK99+Hypothesis!$C$488*'United States'!Z100+Hypothesis!$C$489*'United States'!Z99+Hypothesis!$C$490*('United States'!AL99+Hypothesis!$C$491*LN('United States'!AA99)),Hypothesis!$E$11) -> -0.006094049749 | AL100: -0.6253939289 | AM100: 0
R101: 2088 | S101: =(1/(1-Hypothesis!$C$483))*'United States'!Z101-(Hypothesis!$C$483/(1-Hypothesis!$C$483))*'United States'!AK100+Employment!N414+Hours!N454 -> 0.02077762968 | T101: 1.10417733e+14 | U101: 0 | V101: =T101/Employment!DH101 -> 206667.6575 | X101: 2088 | Y101: =IF(X101<Hypothesis!$C$6-3*Hypothesis!$D$5,0,IF(X101>Hypothesis!$C$6+3*Hypothesis!$D$5,0,_xlfn.NORM.DIST(X101,Hypothesis!$C$6,Hypothesis!$D$5,FALSE))) -> 0 | Z101: =Hypothesis!$E$4+Y101*Hypothesis!$D$7 -> 0.00836098016 | AA101: 29.80592763 | AB101: 0 | AC101: 1 | AE101: 2088 | AF101: 6.615792799e+14 | AG101: 0.02687177559 | AH101: 0 | AJ101: 2088 | AK101: =IF(Hypothesis!$A$10=1,Hypothesis!$C$486+Hypothesis!$C$487*'United States'!AK100+Hypothesis!$C$488*'United States'!Z101+Hypothesis!$C$489*'United States'!Z100+Hypothesis!$C$490*('United States'!AL100+Hypothesis!$C$491*LN('United States'!AA100)),Hypothesis!$E$11) -> -0.006094145905 | AL101: -0.6314880748 | AM101: 0
R102: 2089 | S102: =(1/(1-Hypothesis!$C$483))*'United States'!Z102-(Hypothesis!$C$483/(1-Hypothesis!$C$483))*'United States'!AK101+Employment!N415+Hours!N455 -> 0.02077767089 | T102: 1.127359566e+14 | U102: 0 | V102: =T102/Employment!DH102 -> 209417.965 | X102: 2089 | Y102: =IF(X102<Hypothesis!$C$6-3*Hypothesis!$D$5,0,IF(X102>Hypothesis!$C$6+3*Hypothesis!$D$5,0,_xlfn.NORM.DIST(X102,Hypothesis!$C$6,Hypothesis!$D$5,FALSE))) -> 0 | Z102: =Hypothesis!$E$4+Y102*Hypothesis!$D$7 -> 0.00836098016 | AA102: 30.05617911 | AB102: 0 | AC102: 1 | AE102: 2089 | AF102: 6.795981884e+14 | AG102: 0.02687189905 | AH102: 0 | AJ102: 2089 | AK102: =IF(Hypothesis!$A$10=1,Hypothesis!$C$486+Hypothesis!$C$487*'United States'!AK101+Hypothesis!$C$488*'United States'!Z102+Hypothesis!$C$489*'United States'!Z101+Hypothesis!$C$490*('United States'!AL101+Hypothesis!$C$491*LN('United States'!AA101)),Hypothesis!$E$11) -> -0.006094228157 | AL102: -0.637582303 | AM102: 0
R103: 2090 | S103: =(1/(1-Hypothesis!$C$483))*'United States'!Z103-(Hypothesis!$C$483/(1-Hypothesis!$C$483))*'United States'!AK102+Employment!N416+Hours!N456 -> 0.02077770614 | T103: 1.151028554e+14 | U103: 0 | V103: =T103/Employment!DH103 -> 212204.8807 | X103: 2090 | Y103: =IF(X103<Hypothesis!$C$6-3*Hypothesis!$D$5,0,IF(X103>Hypothesis!$C$6+3*Hypothesis!$D$5,0,_xlfn.NORM.DIST(X103,Hypothesis!$C$6,Hypothesis!$D$5,FALSE))) -> 0 | Z103: =Hypothesis!$E$4+Y103*Hypothesis!$D$7 -> 0.00836098016 | AA103: 30.30853172 | AB103: 0 | AC103: 1 | AE103: 2090 | AF103: 6.981079325e+14 | AG103: 0.0268719978 | AH103: 0 | AJ103: 2090 | AK103: =IF(Hypothesis!$A$10=1,Hypothesis!$C$486+Hypothesis!$C$487*'United States'!AK102+Hypothesis!$C$488*'United States'!Z103+Hypothesis!$C$489*'United States'!Z102+Hypothesis!$C$490*('United States'!AL102+Hypothesis!$C$491*LN('United States'!AA102)),Hypothesis!$E$11) -> -0.006094291659 | AL103: -0.6436765947 | AM103: 0
R104: 2091 | S104: =(1/(1-Hypothesis!$C$483))*'United States'!Z104-(Hypothesis!$C$483/(1-Hypothesis!$C$483))*'United States'!AK103+Employment!N417+Hours!N457 -> 0.02077773336 | T104: 1.175194506e+14 | U104: 0 | V104: =T104/Employment!DH104 -> 215028.8903 | X104: 2091 | Y104: =IF(X104<Hypothesis!$C$6-3*Hypothesis!$D$5,0,IF(X104>Hypothesis!$C$6+3*Hypothesis!$D$5,0,_xlfn.NORM.DIST(X104,Hypothesis!$C$6,Hypothesis!$D$5,FALSE))) -> 0 | Z104: =Hypothesis!$E$4+Y104*Hypothesis!$D$7 -> 0.00836098016 | AA104: 30.56300308 | AB104: 0 | AC104: 1 | AE104: 2091 | AF104: 7.171218643e+14 | AG104: 0.02687206846 | AH104: 0 | AJ104: 2091 | AK104: =IF(Hypothesis!$A$10=1,Hypothesis!$C$486+Hypothesis!$C$487*'United States'!AK103+Hypothesis!$C$488*'United States'!Z104+Hypothesis!$C$489*'United States'!Z103+Hypothesis!$C$490*('United States'!AL103+Hypothesis!$C$491*LN('United States'!AA103)),Hypothesis!$E$11) -> -0.006094335099 | AL104: -0.6497709298 | AM104: 0
R105: 2092 | S105: =(1/(1-Hypothesis!$C$483))*'United States'!Z105-(Hypothesis!$C$483/(1-Hypothesis!$C$483))*'United States'!AK104+Employment!N418+Hours!N458 -> 0.02077775198 | T105: 1.199867846e+14 | U105: 0 | V105: =T105/Employment!DH105 -> 217890.4857 | X105: 2092 | Y105: =IF(X105<Hypothesis!$C$6-3*Hypothesis!$D$5,0,IF(X105>Hypothesis!$C$6+3*Hypothesis!$D$5,0,_xlfn.NORM.DIST(X105,Hypothesis!$C$6,Hypothesis!$D$5,FALSE))) -> 0 | Z105: =Hypothesis!$E$4+Y105*Hypothesis!$D$7 -> 0.00836098016 | AA105: 30.819611 | AB105: 0 | AC105: 1 | AE105: 2092 | AF105: 7.366536987e+14 | AG105: 0.02687211175 | AH105: 0 | AJ105: 2092 | AK105: =IF(Hypothesis!$A$10=1,Hypothesis!$C$486+Hypothesis!$C$487*'United States'!AK104+Hypothesis!$C$488*'United States'!Z105+Hypothesis!$C$489*'United States'!Z104+Hypothesis!$C$490*('United States'!AL104+Hypothesis!$C$491*LN('United States'!AA104)),Hypothesis!$E$11) -> -0.006094359772 | AL105: -0.6558652895 | AM105: 0
R106: 2093 | S106: =(1/(1-Hypothesis!$C$483))*'United States'!Z106-(Hypothesis!$C$483/(1-Hypothesis!$C$483))*'United States'!AK105+Employment!N419+Hours!N459 -> 0.02077776255 | T106: 1.22505922e+14 | U106: 0 | V106: =T106/Employment!DH106 -> 220790.1654 | X106: 2093 | Y106: =IF(X106<Hypothesis!$C$6-3*Hypothesis!$D$5,0,IF(X106>Hypothesis!$C$6+3*Hypothesis!$D$5,0,_xlfn.NORM.DIST(X106,Hypothesis!$C$6,Hypothesis!$D$5,FALSE))) -> 0 | Z106: =Hypothesis!$E$4+Y106*Hypothesis!$D$7 -> 0.00836098016 | AA106: 31.0783734 | AB106: 0 | AC106: 1 | AE106: 2093 | AF106: 7.567175251e+14 | AG106: 0.0268721312 | AH106: 0 | AJ106: 2093 | AK106: =IF(Hypothesis!$A$10=1,Hypothesis!$C$486+Hypothesis!$C$487*'United States'!AK105+Hypothesis!$C$488*'United States'!Z106+Hypothesis!$C$489*'United States'!Z105+Hypothesis!$C$490*('United States'!AL105+Hypothesis!$C$491*LN('United States'!AA105)),Hypothesis!$E$11) -> -0.006094368646 | AL106: -0.6619596582 | AM106: 0
R107: 2094 | S107: =(1/(1-Hypothesis!$C$483))*'United States'!Z107-(Hypothesis!$C$483/(1-Hypothesis!$C$483))*'United States'!AK106+Employment!N420+Hours!N460 -> 0.02077776635 | T107: 1.250779493e+14 | U107: 0 | V107: =T107/Employment!DH107 -> 223728.4348 | X107: 2094 | Y107: =IF(X107<Hypothesis!$C$6-3*Hypothesis!$D$5,0,IF(X107>Hypothesis!$C$6+3*Hypothesis!$D$5,0,_xlfn.NORM.DIST(X107,Hypothesis!$C$6,Hypothesis!$D$5,FALSE))) -> 0 | Z107: =Hypothesis!$E$4+Y107*Hypothesis!$D$7 -> 0.00836098016 | AA107: 31.33930838 | AB107: 0 | AC107: 1 | AE107: 2094 | AF107: 7.773278192e+14 | AG107: 0.02687213189 | AH107: 0 | AJ107: 2094 | AK107: =IF(Hypothesis!$A$10=1,Hypothesis!$C$486+Hypothesis!$C$487*'United States'!AK106+Hypothesis!$C$488*'United States'!Z107+Hypothesis!$C$489*'United States'!Z106+Hypothesis!$C$490*('United States'!AL106+Hypothesis!$C$491*LN('United States'!AA106)),Hypothesis!$E$11) -> -0.006094365532 | AL107: -0.6680540237 | AM107: 0
R108: 2095 | S108: =(1/(1-Hypothesis!$C$483))*'United States'!Z108-(Hypothesis!$C$483/(1-Hypothesis!$C$483))*'United States'!AK107+Employment!N421+Hours!N461 -> 0.02077776502 | T108: 1.277039766e+14 | U108: 0 | V108: =T108/Employment!DH108 -> 226705.8063 | X108: 2095 | Y108: =IF(X108<Hypothesis!$C$6-3*Hypothesis!$D$5,0,IF(X108>Hypothesis!$C$6+3*Hypothesis!$D$5,0,_xlfn.NORM.DIST(X108,Hypothesis!$C$6,Hypothesis!$D$5,FALSE))) -> 0 | Z108: =Hypothesis!$E$4+Y108*Hypothesis!$D$7 -> 0.00836098016 | AA108: 31.60243418 | AB108: 0 | AC108: 1 | AE108: 2095 | AF108: 7.984994546e+14 | AG108: 0.02687211942 | AH108: 0 | AJ108: 2095 | AK108: =IF(Hypothesis!$A$10=1,Hypothesis!$C$486+Hypothesis!$C$487*'United States'!AK107+Hypothesis!$C$488*'United States'!Z108+Hypothesis!$C$489*'United States'!Z107+Hypothesis!$C$490*('United States'!AL107+Hypothesis!$C$491*LN('United States'!AA107)),Hypothesis!$E$11) -> -0.006094354406 | AL108: -0.6741483781 | AM108: 0
R109: 2096 | S109: =(1/(1-Hypothesis!$C$483))*'United States'!Z109-(Hypothesis!$C$483/(1-Hypothesis!$C$483))*'United States'!AK108+Employment!N422+Hours!N462 -> 0.02077776025 | T109: 1.30385137e+14 | U109: 0 | V109: =T109/Employment!DH109 -> 229722.7995 | X109: 2096 | Y109: =IF(X109<Hypothesis!$C$6-3*Hypothesis!$D$5,0,IF(X109>Hypothesis!$C$6+3*Hypothesis!$D$5,0,_xlfn.NORM.DIST(X109,Hypothesis!$C$6,Hypothesis!$D$5,FALSE))) -> 0 | Z109: =Hypothesis!$E$4+Y109*Hypothesis!$D$7 -> 0.00836098016 | AA109: 31.86776919 | AB109: 0 | AC109: 1 | AE109: 2096 | AF109: 820247713076358 | AG109: 0.02687209917 | AH109: 0 | AJ109: 2096 | AK109: =IF(Hypothesis!$A$10=1,Hypothesis!$C$486+Hypothesis!$C$487*'United States'!AK108+Hypothesis!$C$488*'United States'!Z109+Hypothesis!$C$489*'United States'!Z108+Hypothesis!$C$490*('United States'!AL108+Hypothesis!$C$491*LN('United States'!AA108)),Hypothesis!$E$11) -> -0.006094338919 | AL109: -0.680242717 | AM109: 0
R110: 2097 | S110: =(1/(1-Hypothesis!$C$483))*'United States'!Z110-(Hypothesis!$C$483/(1-Hypothesis!$C$483))*'United States'!AK109+Employment!N423+Hours!N463 -> 0.02077775361 | T110: 1.331225878e+14 | U110: 0 | V110: =T110/Employment!DH110 -> 232779.9412 | X110: 2097 | Y110: =IF(X110<Hypothesis!$C$6-3*Hypothesis!$D$5,0,IF(X110>Hypothesis!$C$6+3*Hypothesis!$D$5,0,_xlfn.NORM.DIST(X110,Hypothesis!$C$6,Hypothesis!$D$5,FALSE))) -> 0 | Z110: =Hypothesis!$E$4+Y110*Hypothesis!$D$7 -> 0.00836098016 | AA110: 32.13533196 | AB110: 0 | AC110: 1 | AE110: 2097 | AF110: 8.425882963e+14 | AG110: 0.02687207571 | AH110: 0 | AJ110: 2097 | AK110: =IF(Hypothesis!$A$10=1,Hypothesis!$C$486+Hypothesis!$C$487*'United States'!AK109+Hypothesis!$C$488*'United States'!Z110+Hypothesis!$C$489*'United States'!Z109+Hypothesis!$C$490*('United States'!AL109+Hypothesis!$C$491*LN('United States'!AA109)),Hypothesis!$E$11) -> -0.0060943221 | AL110: -0.6863370391 | AM110: 0
R111: 2098 | S111: =(1/(1-Hypothesis!$C$483))*'United States'!Z111-(Hypothesis!$C$483/(1-Hypothesis!$C$483))*'United States'!AK110+Employment!N424+Hours!N464 -> 0.02077774641 | T111: 1.359175107e+14 | U111: 0 | V111: =T111/Employment!DH111 -> 235877.7655 | X111: 2098 | Y111: =IF(X111<Hypothesis!$C$6-3*Hypothesis!$D$5,0,IF(X111>Hypothesis!$C$6+3*Hypothesis!$D$5,0,_xlfn.NORM.DIST(X111,Hypothesis!$C$6,Hypothesis!$D$5,FALSE))) -> 0 | Z111: =Hypothesis!$E$4+Y111*Hypothesis!$D$7 -> 0.00836098016 | AA111: 32.40514119 | AB111: 0 | AC111: 1 | AE111: 2098 | AF111: 8.655373363e+14 | AG111: 0.02687205261 | AH111: 0 | AJ111: 2098 | AK111: =IF(Hypothesis!$A$10=1,Hypothesis!$C$486+Hypothesis!$C$487*'United States'!AK110+Hypothesis!$C$488*'United States'!Z111+Hypothesis!$C$489*'United States'!Z110+Hypothesis!$C$490*('United States'!AL110+Hypothesis!$C$491*LN('United States'!AA110)),Hypothesis!$E$11) -> -0.006094306205 | AL111: -0.6924313453 | AM111: 0
R112: 2099 | S112: =(1/(1-Hypothesis!$C$483))*'United States'!Z112-(Hypothesis!$C$483/(1-Hypothesis!$C$483))*'United States'!AK111+Employment!N425+Hours!N465 -> 0.02077773959 | T112: 1.387711124e+14 | U112: 0 | V112: =T112/Employment!DH112 -> 239016.8139 | X112: 2099 | Y112: =IF(X112<Hypothesis!$C$6-3*Hypothesis!$D$5,0,IF(X112>Hypothesis!$C$6+3*Hypothesis!$D$5,0,_xlfn.NORM.DIST(X112,Hypothesis!$C$6,Hypothesis!$D$5,FALSE))) -> 0 | Z112: =Hypothesis!$E$4+Y112*Hypothesis!$D$7 -> 0.00836098016 | AA112: 32.67721576 | AB112: 0 | AC112: 1 | AE112: 2099 | AF112: 8.891114066e+14 | AG112: 0.0268720323 | AH112: 0 | AJ112: 2099 | AK112: =IF(Hypothesis!$A$10=1,Hypothesis!$C$486+Hypothesis!$C$487*'United States'!AK111+Hypothesis!$C$488*'United States'!Z112+Hypothesis!$C$489*'United States'!Z111+Hypothesis!$C$490*('United States'!AL111+Hypothesis!$C$491*LN('United States'!AA111)),Hypothesis!$E$11) -> -0.006094292704 | AL112: -0.698525638 | AM112: 0
R113: 2100 | S113: =(1/(1-Hypothesis!$C$483))*'United States'!Z113-(Hypothesis!$C$483/(1-Hypothesis!$C$483))*'United States'!AK112+Employment!N426+Hours!N466 -> 0.02077773381 | T113: 1.416846249e+14 | U113: 0 | V113: =T113/Employment!DH113 -> 242197.6351 | X113: 2100 | Y113: =IF(X113<Hypothesis!$C$6-3*Hypothesis!$D$5,0,IF(X113>Hypothesis!$C$6+3*Hypothesis!$D$5,0,_xlfn.NORM.DIST(X113,Hypothesis!$C$6,Hypothesis!$D$5,FALSE))) -> 0 | Z113: =Hypothesis!$E$4+Y113*Hypothesis!$D$7 -> 0.00836098016 | AA113: 32.95157467 | AB113: 0 | AC113: 1 | AE113: 2100 | AF113: 9.133275335e+14 | AG113: 0.02687201617 | AH113: 0 | AJ113: 2100 | AK113: =IF(Hypothesis!$A$10=1,Hypothesis!$C$486+Hypothesis!$C$487*'United States'!AK112+Hypothesis!$C$488*'United States'!Z113+Hypothesis!$C$489*'United States'!Z112+Hypothesis!$C$490*('United States'!AL112+Hypothesis!$C$491*LN('United States'!AA112)),Hypothesis!$E$11) -> -0.006094282358 | AL113: -0.7046199204 | AM113: 0

Sheet Euro Area
Q3: GDP | R3: growth rate | S3: level in $US 2010 ppp | T3: HP growth rate | U3: GDP per capita | W3: TFP | X3: growth rate | Y3: level in $US 2010 ppp | Z3: level with respect to US | AA3: HP growth rate | AC3: Capital | AD3: growth rate | AE3: level in $US 2010 ppp | AF3: HP growth rate | AH3: Relative Price | AI3: growth rate | AJ3: level in log | AK3: HP growth rate
Q5: =Q6-1 -> 1990 | S5: 7.584988144e+12 | W5: =W6-1 -> 1990 | Y5: 9.350944403 | Z5: =Y5/'United States'!AA3 -> 0.9871081215 | AC5: =AC6-1 -> 1990 | AE5: 2.48149357e+13 | AH5: =AH6-1 -> 1990 | AJ5: 0.05031019286
Q6: 1991 | R6: =LN(S6/S5) -> 0.02602473486 | S6: 7.784976483e+12 | T6: =IF(Hypothesis!A$500=0,0,hp(R6:R115,500)) -> 0 | U6: =S6/Employment!DI4 -> 29448.52384 | W6: 1991 | X6: =LN(Y6/Y5) -> 0.02311495715 | Y6: 9.569608552 | Z6: =Y6/'United States'!AA4 -> 1.007052809 | AA6: =IF(Hypothesis!A$500=0,0,hp(X6:X115,500)) -> 0 | AC6: 1991 | AD6: =LN(AE6/AE5) -> 0.03106396157 | AE6: 2.559788368e+13 | AF6: =IF(Hypothesis!A$500=0,0,hp(AD6:AD115,500)) -> 0 | AH6: 1991 | AI6: =AJ6-AJ5 -> -0.001979989918 | AJ6: 0.04833020294 | AK6: =IF(Hypothesis!A$500=0,0,hp(AI6:AI115,500)) -> 0
Q7: 1992 | R7: =LN(S7/S6) -> 0.01379570088 | S7: 7.893119933e+12 | T7: 0 | U7: =S7/Employment!DI5 -> 29716.73366 | W7: 1992 | X7: =LN(Y7/Y6) -> 0.009949808884 | Y7: 9.665299593 | Z7: =Y7/'United States'!AA5 -> 0.9926102638 | AA7: 0 | AC7: 1992 | AD7: =LN(AE7/AE6) -> 0.02907040468 | AE7: 2.635294633e+13 | AF7: 0 | AH7: 1992 | AI7: =AJ7-AJ6 -> -0.01182019802 | AJ7: 0.03651000493 | AK7: 0
Q8: 1993 | R8: -0.007240361744 | S8: 7.83617728e+12 | T8: 0 | U8: =S8/Employment!DI6 -> 29379.1676 | W8: 1993 | X8: 0.002414215223 | Y8: 9.688661896 | Z8: =Y8/'United States'!AA6 -> 0.9869507 | AA8: 0 | AC8: 1993 | AD8: 0.02329668402 | AE8: 2.697408979e+13 | AF8: 0 | AH8: 1993 | AI8: -0.01119878832 | AJ8: 0.02531121661 | AK8: 0
Q9: 1994 | R9: 0.02415396245 | S9: 8.027756395e+12 | T9: 0 | U9: =S9/Employment!DI7 -> 30011.34957 | W9: 1994 | X9: 0.02124060825 | Y9: 9.89665611 | Z9: =Y9/'United States'!AA7 -> 0.9931656561 | AA9: 0 | AC9: 1994 | AD9: 0.0231400278 | AE9: 2.760554879e+13 | AF9: 0 | AH9: 1994 | AI9: -0.004646536923 | AJ9: 0.02066467968 | AK9: 0
Q10: 1995 | R10: 0.02303219667 | S10: 8.214798992e+12 | T10: 0 | U10: =S10/Employment!DI8 -> 30634.53126 | W10: 1995 | X10: 0.01284190665 | Y10: 10.0245676 | Z10: =Y10/'United States'!AA8 -> 0.9985080415 | AA10: 0 | AC10: 1995 | AD10: 0.02341405097 | AE10: 2.825953285e+13 | AF10: 0 | AH10: 1995 | AI10: -0.0004072808979 | AJ10: 0.02025739879 | AK10: 0
Q11: 1996 | R11: 0.01506638906 | S11: 8.339503413e+12 | T11: 0 | U11: =S11/Employment!DI9 -> 31022.84887 | W11: 1996 | X11: 0.00553100784 | Y11: 10.08016718 | Z11: =Y11/'United States'!AA9 -> 0.9801780276 | AA11: 0 | AC11: 1996 | AD11: 0.02251974993 | AE11: 2.890315032e+13 | AF11: 0 | AH11: 1996 | AI11: 0.006249438567 | AJ11: 0.02650683735 | AK11: 0
Q12: 1997 | R12: 0.02451058234 | S12: 8.546435147e+12 | T12: 0 | U12: =S12/Employment!DI10 -> 31723.47475 | W12: 1997 | X12: 0.01404141773 | Y12: 10.2227054 | Z12: =Y12/'United States'!AA10 -> 0.9775296952 | AA12: 0 | AC12: 1997 | AD12: 0.02225028875 | AE12: 2.955346174e+13 | AF12: 0 | AH12: 1997 | AI12: 0.002852567524 | AJ12: 0.02935940488 | AK12: 0
Q13: 1998 | R13: 0.02724602958 | S13: 8.782492786e+12 | T13: 0 | U13: =S13/Employment!DI11 -> 32536.78267 | W13: 1998 | X13: 0.008633401866 | Y13: 10.3113442 | Z13: =Y13/'United States'!AA11 -> 0.9615816115 | AA13: 0 | AC13: 1998 | AD13: 0.02377211028 | AE13: 3.026442698e+13 | AF13: 0 | AH13: 1998 | AI13: -0.0002071243757 | AJ13: 0.0291522805 | AK13: 0
Q14: 1999 | R14: 0.02795167565 | S14: 9.031441231e+12 | T14: 0 | U14: =S14/Employment!DI12 -> 33370.24695 | W14: 1999 | X14: 0.009171712586 | Y14: 10.40635191 | Z14: =Y14/'United States'!AA12 -> 0.9459870343 | AA14: 0 | AC14: 1999 | AD14: 0.02572316588 | AE14: 3.105302297e+13 | AF14: 0 | AH14: 1999 | AI14: 0.006897815516 | AJ14: 0.03605009602 | AK14: 0
Q15: 2000 | R15: 0.0370132515 | S15: 9.371987725e+12 | T15: 0 | U15: =S15/Employment!DI13 -> 34496.12896 | W15: 2000 | X15: 0.0205716965 | Y15: 10.62264535 | Z15: =Y15/'United States'!AA13 -> 0.9495665556 | AA15: 0 | AC15: 2000 | AD15: 0.02676950084 | AE15: 3.189552323e+13 | AF15: 0 | AH15: 2000 | AI15: 0.007676811287 | AJ15: 0.0437269073 | AK15: 0
Q16: 2001 | R16: 0.02049036094 | S16: 9.566004081e+12 | T16: 0 | U16: =S16/Employment!DI14 -> 35045.67203 | W16: 2001 | X16: 0.006375442756 | Y16: 10.69058577 | Z16: =Y16/'United States'!AA14 -> 0.9486159943 | AA16: 0 | AC16: 2001 | AD16: 0.02547163147 | AE16: 3.271838963e+13 | AF16: 0 | AH16: 2001 | AI16: -0.004337281006 | AJ16: 0.0393896263 | AK16: 0
Q17: 2002 | R17: 0.007695541039 | S17: 9.639903642e+12 | T17: 0 | U17: =S17/Employment!DI15 -> 35122.3146 | W17: 2002 | X17: 0.001174151514 | Y17: 10.70314551 | Z17: =Y17/'United States'!AA15 -> 0.9385883466 | AA17: 0 | AC17: 2002 | AD17: 0.02304504056 | AE17: 3.348114131e+13 | AF17: 0 | AH17: 2002 | AI17: -0.002726888855 | AJ17: 0.03666273744 | AK17: 0
Q18: =Q19-1 -> 2003 | R18: 0.00490495148 | S18: 9.687303052e+12 | T18: 0 | U18: =S18/Employment!DI16 -> 35086.92882 | W18: =W19-1 -> 2003 | X18: -0.002561846972 | Y18: 10.67576078 | Z18: =Y18/'United States'!AA16 -> 0.9205329363 | AA18: 0 | AC18: =AC19-1 -> 2003 | AD18: 0.02209872875 | AE18: 3.422926785e+13 | AF18: 0 | AH18: =AH19-1 -> 2003 | AI18: -0.003281917674 | AJ18: 0.03338081977 | AK18: 0
Q19: 2004 | R19: 0.02068646397 | S19: 9.889786207e+12 | T19: 0 | U19: =S19/Employment!DI17 -> 35605.57742 | W19: 2004 | X19: 0.006158868921 | Y19: 10.74171428 | Z19: =Y19/'United States'!AA17 -> 0.9072809445 | AA19: 0 | AC19: 2004 | AD19: 0.02207428509 | AE19: 3.499325569e+13 | AF19: 0 | AH19: 2004 | AI19: 0.006535787553 | AJ19: 0.03991660732 | AK19: 0
Q20: 2005 | R20: 0.01551772601 | S20: 1.004445011e+13 | T20: 0 | U20: =S20/Employment!DI18 -> 35960.88367 | W20: 2005 | X20: 0.005266857122 | Y20: 10.7984386 | Z20: =Y20/'United States'!AA18 -> 0.899838659 | AA20: 0 | AC20: 2005 | AD20: 0.0223473082 | AE20: 3.578406407e+13 | AF20: 0 | AH20: 2005 | AI20: 0.01096034435 | AJ20: 0.05087695167 | AK20: 0
Q21: 2006 | R21: 0.03027832429 | S21: 1.035323031e+13 | T21: 0 | U21: =S21/Employment!DI19 -> 36883.68552 | W21: 2006 | X21: 0.01199299377 | Y21: 10.9287239 | Z21: =Y21/'United States'!AA19 -> 0.9072160602 | AA21: 0 | AC21: 2006 | AD21: 0.0240637179 | AE21: 3.66556059e+13 | AF21: 0 | AH21: 2006 | AI21: 0.006983800518 | AJ21: 0.05786075219 | AK21: 0
Q22: 2007 | R22: 0.0281055989 | S22: 1.064834177e+13 | T22: 0 | U22: =S22/Employment!DI20 -> 37727.45632 | W22: 2007 | X22: 0.006497050889 | Y22: 10.99995954 | Z22: =Y22/'United States'!AA20 -> 0.911387434 | AA22: 0 | AC22: 2007 | AD22: 0.02504687546 | AE22: 3.758530877e+13 | AF22: 0 | AH22: 2007 | AI22: -0.01271950697 | AJ22: 0.04514124522 | AK22: 0
Q23: 2008 | R23: 0.004956757404 | S23: 1.070125404e+13 | T23: 0 | U23: =S23/Employment!DI21 -> 37715.67917 | W23: 2008 | X23: -0.007144368998 | Y23: 10.92165183 | Z23: =Y23/'United States'!AA21 -> 0.9097881903 | AA23: 0 | AC23: 2008 | AD23: 0.02303794915 | AE23: 3.846124839e+13 | AF23: 0 | AH23: 2008 | AI23: -0.009628126175 | AJ23: 0.03551311904 | AK23: 0
Q24: 2009 | R24: -0.04597108564 | S24: 1.022044217e+13 | T24: 0 | U24: =S24/Employment!DI22 -> 35894.7762 | W24: 2009 | X24: -0.02891173753 | Y24: 10.61040887 | Z24: =Y24/'United States'!AA22 -> 0.882292886 | AA24: 0 | AC24: 2009 | AD24: 0.01471228363 | AE24: 3.903128417e+13 | AF24: 0 | AH24: 2009 | AI24: -0.01891858909 | AJ24: 0.01659452995 | AK24: 0
Q25: 2010 | R25: 0.02264109177 | S25: 1.045448362e+13 | T25: 0 | U25: =S25/Employment!DI23 -> 36613.91293 | W25: 2010 | X25: 0.0183411515 | Y25: 10.80681161 | Z25: =Y25/'United States'!AA23 -> 0.8796984256 | AA25: 0 | AC25: 2010 | AD25: 0.01421927793 | AE25: 3.959024544e+13 | AF25: 0 | AH25: 2010 | AI25: -0.01659452995 | AJ25: 0 | AK25: 0
Q26: 2011 | R26: 0.01809017427 | S26: 1.064532805e+13 | T26: 0 | U26: =S26/Employment!DI24 -> 37170.52069 | W26: 2011 | X26: 0.01093385852 | Y26: 10.92562009 | Z26: =Y26/'United States'!AA24 -> 0.8844313045 | AA26: 0 | AC26: 2011 | AD26: 0.01435373815 | AE26: 4.016261142e+13 | AF26: 0 | AH26: 2011 | AI26: -0.002362623146 | AJ26: -0.002362623146 | AK26: 0
Q27: 2012 | R27: -0.00787928861 | S27: 1.056178002e+13 | T27: 0 | U27: =S27/Employment!DI25 -> 36968.65248 | W27: 2012 | X27: -0.00195287119 | Y27: 10.90430458 | Z27: =Y27/'United States'!AA25 -> 0.8785398363 | AA27: 0 | AC27: 2012 | AD27: 0.01173513919 | AE27: 4.063670157e+13 | AF27: 0 | AH27: 2012 | AI27: -0.0005975470017 | AJ27: -0.002960170148 | AK27: 0
Q28: 2013 | R28: -0.002796620901 | S28: 1.053228399e+13 | T28: 0 | U28: =S28/Employment!DI26 -> 36521.60013 | W28: 2013 | X28: 0.004013866057 | Y28: 10.94816096 | Z28: =Y28/'United States'!AA26 -> 0.8766022593 | AA28: 0 | AC28: 2013 | AD28: 0.009745928471 | AE28: 4.103468015e+13 | AF28: 0 | AH28: 2013 | AI28: 0.009558692518 | AJ28: 0.006598522371 | AK28: 0
Q29: =Q28+1 -> 2014 | R29: 0.009983839978 | S29: 1.063796329e+13 | T29: 0 | U29: =S29/Employment!DI27 -> 36898.14329 | W29: =W28+1 -> 2014 | X29: 0.002774932603 | Y29: 10.97858356 | Z29: =Y29/'United States'!AA27 -> 0.8726821255 | AA29: 0 | AC29: =AC28+1 -> 2014 | AD29: =R29- AI29 -> -0.00554367335 | AE29: 4.144057495e+13 | AF29: 0 | AH29: =AH28+1 -> 2014 | AI29: =IF(Hypothesis!$A$456=1,Hypothesis!$C$486+Hypothesis!$C$487*'Euro Area'!AI28+Hypothesis!$C$488*'Euro Area'!X29+Hypothesis!$C$489*'Euro Area'!X28+Hypothesis!$C$490*('Euro Area'!AJ28+Hypothesis!$C$491*LN('Euro Area'!Y28)),Hypothesis!$E$457) -> 0.01552751333 | AJ29: =AJ28+AI29 -> 0.0221260357 | AK29: 0
Q30: 2015 | R30: 0.01599937575 | S30: 1.080953291e+13 | T30: 0 | U30: =S30/Employment!DI28 -> 37384.32401 | W30: 2015 | X30: 0.004490605745 | Y30: 11.02799491 | Z30: =Y30/'United States'!AA28 -> 0.8688017209 | AA30: 0 | AC30: 2015 | AD30: -0.001037821497 | AE30: =AE29*EXP(AD30) -> 4.139758934e+13 | AF30: 0 | AH30: 2015 | AI30: =IF(Hypothesis!$A$456=1,Hypothesis!$C$486+Hypothesis!$C$487*'Euro Area'!AI29+Hypothesis!$C$488*'Euro Area'!X30+Hypothesis!$C$489*'Euro Area'!X29+Hypothesis!$C$490*('Euro Area'!AJ29+Hypothesis!$C$491*LN('Euro Area'!Y29)),Hypothesis!$E$457) -> 0.01703719724 | AJ30: =AJ29+AI30 -> 0.03916323294 | AK30: 0
Q31: 2016 | R31: =(1/(1-Hypothesis!$C$483))*X31-(Hypothesis!$C$483/(1-Hypothesis!$C$483))*AI30+Employment!O342+Hours!O382 -> 0.006170153467 | S31: =EXP(R31)*S30 -> 1.087643557e+13 | T31: 0 | U31: =S31/Employment!DI29 -> 37509.84248 | W31: 2016 | X31: =IF(Hypothesis!$A$449=0,IF(W31<Hypothesis!$C$451,Hypothesis!$E$450,Hypothesis!$C$452*((LN(Hypothesis!$C$453*'United States'!AA28))-LN(Y30))),Hypothesis!$C$494*(LN('United States'!AA28)-LN('Euro Area'!Y30)-0.05*(Education!$N147-Education!$O147))+Hypothesis!$C$495*'Labor and Products Regulations'!$O32*(LN('United States'!AA28)-LN('Euro Area'!Y30)-0.05*(Education!$N147-Education!$O147))+Hypothesis!$C$496*(CUR!O43)+Hypothesis!$C$497*(Hours!O382)+Hypothesis!$C$498*(Employment!CC69-Employment!CC68)+0.00875472142857143) -> 0.01616049001 | Y31: =Y30*EXP(X31) -> 11.20766054 | Z31: =Y31/'United States'!AA29 -> 0.8721456727 | AA31: 0 | AC31: 2016 | AD31: -0.006918385005 | AE31: 4.111217333e+13 | AF31: 0 | AH31: 2016 | AI31: =IF(Hypothesis!$A$456=1,Hypothesis!$C$486+Hypothesis!$C$487*'Euro Area'!AI30+Hypothesis!$C$488*'Euro Area'!X31+Hypothesis!$C$489*'Euro Area'!X30+Hypothesis!$C$490*('Euro Area'!AJ30+Hypothesis!$C$491*LN('Euro Area'!Y30)),Hypothesis!$E$457) -> 0.01308853847 | AJ31: 0.05225177141 | AK31: 0
Q32: 2017 | R32: =(1/(1-Hypothesis!$C$483))*X32-(Hypothesis!$C$483/(1-Hypothesis!$C$483))*AI31+Employment!O343+Hours!O383 -> 0.01536324727 | S32: 1.104482312e+13 | T32: 0 | U32: =S32/Employment!DI30 -> 38000.90658 | W32: 2017 | X32: =IF(Hypothesis!$A$449=0,IF(W32<Hypothesis!$C$451,Hypothesis!$E$450,Hypothesis!$C$452*((LN(Hypothesis!$C$453*'United States'!AA29))-LN(Y31))),Hypothesis!$C$494*(LN('United States'!AA29)-LN('Euro Area'!Y31)-0.05*(Education!$N148-Education!$O148))+Hypothesis!$C$495*'Labor and Products Regulations'!$O33*(LN('United States'!AA29)-LN('Euro Area'!Y31)-0.05*(Education!$N148-Education!$O148))+Hypothesis!$C$496*(CUR!O44)+Hypothesis!$C$497*(Hours!O383)+Hypothesis!$C$498*(Employment!CC70-Employment!CC69)+0.00875472142857143) -> 0.0152626316 | Y32: 11.380031 | Z32: =Y32/'United States'!AA30 -> 0.873315922 | AA32: 0 | AC32: 2017 | AD32: 0.005089879765 | AE32: 4.132196279e+13 | AF32: 0 | AH32: 2017 | AI32: =IF(Hypothesis!$A$456=1,Hypothesis!$C$486+Hypothesis!$C$487*'Euro Area'!AI31+Hypothesis!$C$488*'Euro Area'!X32+Hypothesis!$C$489*'Euro Area'!X31+Hypothesis!$C$490*('Euro Area'!AJ31+Hypothesis!$C$491*LN('Euro Area'!Y31)),Hypothesis!$E$457) -> 0.01027336751 | AJ32: 0.06252513892 | AK32: 0
Q33: 2018 | R33: =(1/(1-Hypothesis!$C$483))*X33-(Hypothesis!$C$483/(1-Hypothesis!$C$483))*AI32+Employment!O344+Hours!O384 -> 0.01564717943 | S33: 1.12190026e+13 | T33: 0 | U33: =S33/Employment!DI31 -> 38520.857 | W33: 2018 | X33: =IF(Hypothesis!$A$449=0,IF(W33<Hypothesis!$C$451,Hypothesis!$E$450,Hypothesis!$C$452*((LN(Hypothesis!$C$453*'United States'!AA30))-LN(Y32))),Hypothesis!$C$494*(LN('United States'!AA30)-LN('Euro Area'!Y32)-0.05*(Education!$N149-Education!$O149))+Hypothesis!$C$495*'Labor and Products Regulations'!$O34*(LN('United States'!AA30)-LN('Euro Area'!Y32)-0.05*(Education!$N149-Education!$O149))+Hypothesis!$C$496*(CUR!O45)+Hypothesis!$C$497*(Hours!O384)+Hypothesis!$C$498*(Employment!CC71-Employment!CC70)+0.00875472142857143) -> 0.01460826575 | Y33: 11.54749371 | Z33: =Y33/'United States'!AA31 -> 0.8722171646 | AA33: 0 | AC33: 2018 | AD33: 0.009705027885 | AE33: 4.172494591e+13 | AF33: 0 | AH33: 2018 | AI33: =IF(Hypothesis!$A$456=1,Hypothesis!$C$486+Hypothesis!$C$487*'Euro Area'!AI32+Hypothesis!$C$488*'Euro Area'!X33+Hypothesis!$C$489*'Euro Area'!X32+Hypothesis!$C$490*('Euro Area'!AJ32+Hypothesis!$C$491*LN('Euro Area'!Y32)),Hypothesis!$E$457) -> 0.005942151541 | AJ33: 0.06846729046 | AK33: 0
Q34: 2019 | R34: =(1/(1-Hypothesis!$C$483))*X34-(Hypothesis!$C$483/(1-Hypothesis!$C$483))*AI33+Employment!O345+Hours!O385 -> 0.01600824628 | S34: 1.140004438e+13 | T34: 0 | U34: =S34/Employment!DI32 -> 39073.31175 | W34: 2019 | X34: =IF(Hypothesis!$A$449=0,IF(W34<Hypothesis!$C$451,Hypothesis!$E$450,Hypothesis!$C$452*((LN(Hypothesis!$C$453*'United States'!AA31))-LN(Y33))),Hypothesis!$C$494*(LN('United States'!AA31)-LN('Euro Area'!Y33)-0.05*(Education!$N150-Education!$O150))+Hypothesis!$C$495*'Labor and Products Regulations'!$O35*(LN('United States'!AA31)-LN('Euro Area'!Y33)-0.05*(Education!$N150-Education!$O150))+Hypothesis!$C$496*(CUR!O46)+Hypothesis!$C$497*(Hours!O385)+Hypothesis!$C$498*(Employment!CC72-Employment!CC71)+0.00875472142857143) -> 0.0142475927 | Y34: 11.71319532 | Z34: =Y34/'United States'!AA32 -> 0.8688669463 | AA34: 0 | AC34: 2019 | AD34: 0.01495216449 | AE34: 4.235351167e+13 | AF34: 0 | AH34: 2019 | AI34: =IF(Hypothesis!$A$456=1,Hypothesis!$C$486+Hypothesis!$C$487*'Euro Area'!AI33+Hypothesis!$C$488*'Euro Area'!X34+Hypothesis!$C$489*'Euro Area'!X33+Hypothesis!$C$490*('Euro Area'!AJ33+Hypothesis!$C$491*LN('Euro Area'!Y33)),Hypothesis!$E$457) -> 0.001056081783 | AJ34: 0.06952337224 | AK34: 0
Q35: 2020 | R35: =(1/(1-Hypothesis!$C$483))*X35-(Hypothesis!$C$483/(1-Hypothesis!$C$483))*AI34+Employment!O346+Hours!O386 -> 0.01770859349 | S35: 1.160372122e+13 | T35: 0 | U35: =S35/Employment!DI33 -> 39712.42271 | W35: 2020 | X35: =IF(Hypothesis!$A$449=0,IF(W35<Hypothesis!$C$451,Hypothesis!$E$450,Hypothesis!$C$452*((LN(Hypothesis!$C$453*'United States'!AA32))-LN(Y34))),Hypothesis!$C$494*(LN('United States'!AA32)-LN('Euro Area'!Y34)-0.05*(Education!$N151-Education!$O151))+Hypothesis!$C$495*'Labor and Products Regulations'!$O36*(LN('United States'!AA32)-LN('Euro Area'!Y34)-0.05*(Education!$N151-Education!$O151))+Hypothesis!$C$496*(CUR!O47)+Hypothesis!$C$497*(Hours!O386)+Hypothesis!$C$498*(Employment!CC73-Employment!CC72)+0.00875472142857143) -> 0.0141741328 | Y35: 11.88040191 | Z35: =Y35/'United States'!AA33 -> 0.8633952156 | AA35: 0 | AC35: 2020 | AD35: 0.02137375399 | AE35: 4.326850883e+13 | AF35: 0 | AH35: 2020 | AI35: =IF(Hypothesis!$A$456=1,Hypothesis!$C$486+Hypothesis!$C$487*'Euro Area'!AI34+Hypothesis!$C$488*'Euro Area'!X35+Hypothesis!$C$489*'Euro Area'!X34+Hypothesis!$C$490*('Euro Area'!AJ34+Hypothesis!$C$491*LN('Euro Area'!Y34)),Hypothesis!$E$457) -> -0.003665160497 | AJ35: 0.06585821175 | AK35: 0
Q36: 2021 | R36: =(1/(1-Hypothesis!$C$483))*X36-(Hypothesis!$C$483/(1-Hypothesis!$C$483))*AI35+Employment!O347+Hours!O387 -> 0.02413200639 | S36: 1.188714837e+13 | T36: 0 | U36: =S36/Employment!DI34 -> 40633.38319 | W36: 2021 | X36: =IF(Hypothesis!$A$449=0,IF(W36<Hypothesis!$C$451,Hypothesis!$E$450,Hypothesis!$C$452*((LN(Hypothesis!$C$453*'United States'!AA33))-LN(Y35))),Hypothesis!$C$494*(LN('United States'!AA33)-LN('Euro Area'!Y35)-0.05*(Education!$N152-Education!$O152))+Hypothesis!$C$495*'Labor and Products Regulations'!$O37*(LN('United States'!AA33)-LN('Euro Area'!Y35)-0.05*(Education!$N152-Education!$O152))+Hypothesis!$C$496*(CUR!O48)+Hypothesis!$C$497*(Hours!O387)+Hypothesis!$C$498*(Employment!CC74-Employment!CC73)+0.00875472142857143) -> 0.01687740894 | Y36: 12.08261392 | Z36: =Y36/'United States'!AA34 -> 0.8582247313 | AA36: 0 | AC36: 2021 | AD36: 0.03256055796 | AE36: 4.470054302e+13 | AF36: 0 | AH36: 2021 | AI36: =IF(Hypothesis!$A$456=1,Hypothesis!$C$486+Hypothesis!$C$487*'Euro Area'!AI35+Hypothesis!$C$488*'Euro Area'!X36+Hypothesis!$C$489*'Euro Area'!X35+Hypothesis!$C$490*('Euro Area'!AJ35+Hypothesis!$C$491*LN('Euro Area'!Y35)),Hypothesis!$E$457) -> -0.008428551572 | AJ36: 0.05742966018 | AK36: 0
Q37: 2022 | R37: =(1/(1-Hypothesis!$C$483))*X37-(Hypothesis!$C$483/(1-Hypothesis!$C$483))*AI36+Employment!O348+Hours!O388 -> 0.02643902872 | S37: 1.220562458e+13 | T37: 0 | U37: =S37/Employment!DI35 -> 41679.831 | W37: 2022 | X37: =IF(Hypothesis!$A$449=0,IF(W37<Hypothesis!$C$451,Hypothesis!$E$450,Hypothesis!$C$452*((LN(Hypothesis!$C$453*'United States'!AA34))-LN(Y36))),Hypothesis!$C$494*(LN('United States'!AA34)-LN('Euro Area'!Y36)-0.05*(Education!$N153-Education!$O153))+Hypothesis!$C$495*'Labor and Products Regulations'!$O38*(LN('United States'!AA34)-LN('Euro Area'!Y36)-0.05*(Education!$N153-Education!$O153))+Hypothesis!$C$496*(CUR!O49)+Hypothesis!$C$497*(Hours!O388)+Hypothesis!$C$498*(Employment!CC75-Employment!CC74)+0.00875472142857143) -> 0.01848324154 | Y37: 12.30801646 | Z37: =Y37/'United States'!AA35 -> 0.8525934713 | AA37: 0 | AC37: 2022 | AD37: 0.03847959408 | AE37: 4.645412395e+13 | AF37: 0 | AH37: 2022 | AI37: =IF(Hypothesis!$A$456=1,Hypothesis!$C$486+Hypothesis!$C$487*'Euro Area'!AI36+Hypothesis!$C$488*'Euro Area'!X37+Hypothesis!$C$489*'Euro Area'!X36+Hypothesis!$C$490*('Euro Area'!AJ36+Hypothesis!$C$491*LN('Euro Area'!Y36)),Hypothesis!$E$457) -> -0.01204056535 | AJ37: 0.04538909482 | AK37: 0
Q38: 2023 | R38: =(1/(1-Hypothesis!$C$483))*X38-(Hypothesis!$C$483/(1-Hypothesis!$C$483))*AI37+Employment!O349+Hours!O389 -> 0.02903692875 | S38: 1.256523414e+13 | T38: 0 | U38: =S38/Employment!DI36 -> 42868.84337 | W38: 2023 | X38: =IF(Hypothesis!$A$449=0,IF(W38<Hypothesis!$C$451,Hypothesis!$E$450,Hypothesis!$C$452*((LN(Hypothesis!$C$453*'United States'!AA35))-LN(Y37))),Hypothesis!$C$494*(LN('United States'!AA35)-LN('Euro Area'!Y37)-0.05*(Education!$N154-Education!$O154))+Hypothesis!$C$495*'Labor and Products Regulations'!$O39*(LN('United States'!AA35)-LN('Euro Area'!Y37)-0.05*(Education!$N154-Education!$O154))+Hypothesis!$C$496*(CUR!O50)+Hypothesis!$C$497*(Hours!O389)+Hypothesis!$C$498*(Employment!CC76-Employment!CC75)+0.00875472142857143) -> 0.01968933926 | Y38: 12.55275463 | Z38: =Y38/'United States'!AA36 -> 0.8465327412 | AA38: 0 | AC38: 2023 | AD38: 0.04374022057 | AE38: 4.853113081e+13 | AF38: 0 | AH38: 2023 | AI38: =IF(Hypothesis!$A$456=1,Hypothesis!$C$486+Hypothesis!$C$487*'Euro Area'!AI37+Hypothesis!$C$488*'Euro Area'!X38+Hypothesis!$C$489*'Euro Area'!X37+Hypothesis!$C$490*('Euro Area'!AJ37+Hypothesis!$C$491*LN('Euro Area'!Y37)),Hypothesis!$E$457) -> -0.01470329181 | AJ38: 0.03068580301 | AK38: 0
Q39: 2024 | R39: =(1/(1-Hypothesis!$C$483))*X39-(Hypothesis!$C$483/(1-Hypothesis!$C$483))*AI38+Employment!O350+Hours!O390 -> 0.03139643921 | S39: 1.296599608e+13 | T39: 0 | U39: =S39/Employment!DI37 -> 44200.7191 | W39: 2024 | X39: =IF(Hypothesis!$A$449=0,IF(W39<Hypothesis!$C$451,Hypothesis!$E$450,Hypothesis!$C$452*((LN(Hypothesis!$C$453*'United States'!AA36))-LN(Y38))),Hypothesis!$C$494*(LN('United States'!AA36)-LN('Euro Area'!Y38)-0.05*(Education!$N155-Education!$O155))+Hypothesis!$C$495*'Labor and Products Regulations'!$O40*(LN('United States'!AA36)-LN('Euro Area'!Y38)-0.05*(Education!$N155-Education!$O155))+Hypothesis!$C$496*(CUR!O51)+Hypothesis!$C$497*(Hours!O390)+Hypothesis!$C$498*(Employment!CC77-Employment!CC76)+0.00875472142857143) -> 0.02075077816 | Y39: 12.81595542 | Z39: =Y39/'United States'!AA37 -> 0.8404476812 | AA39: 0 | AC39: 2024 | AD39: 0.04794910486 | AE39: 5.091484693e+13 | AF39: 0 | AH39: 2024 | AI39: =IF(Hypothesis!$A$456=1,Hypothesis!$C$486+Hypothesis!$C$487*'Euro Area'!AI38+Hypothesis!$C$488*'Euro Area'!X39+Hypothesis!$C$489*'Euro Area'!X38+Hypothesis!$C$490*('Euro Area'!AJ38+Hypothesis!$C$491*LN('Euro Area'!Y38)),Hypothesis!$E$457) -> -0.01655266565 | AJ39: 0.01413313736 | AK39: 0
Q40: 2025 | R40: =(1/(1-Hypothesis!$C$483))*X40-(Hypothesis!$C$483/(1-Hypothesis!$C$483))*AI39+Employment!O351+Hours!O391 -> 0.0334193644 | S40: 1.340663333e+13 | T40: 0 | U40: =S40/Employment!DI38 -> 45671.15286 | W40: 2025 | X40: =IF(Hypothesis!$A$449=0,IF(W40<Hypothesis!$C$451,Hypothesis!$E$450,Hypothesis!$C$452*((LN(Hypothesis!$C$453*'United States'!AA37))-LN(Y39))),Hypothesis!$C$494*(LN('United States'!AA37)-LN('Euro Area'!Y39)-0.05*(Education!$N156-Education!$O156))+Hypothesis!$C$495*'Labor and Products Regulations'!$O41*(LN('United States'!AA37)-LN('Euro Area'!Y39)-0.05*(Education!$N156-Education!$O156))+Hypothesis!$C$496*(CUR!O52)+Hypothesis!$C$497*(Hours!O391)+Hypothesis!$C$498*(Employment!CC78-Employment!CC77)+0.00875472142857143) -> 0.02173620536 | Y40: 13.09757525 | Z40: =Y40/'United States'!AA38 -> 0.8348983065 | AA40: 0 | AC40: 2025 | AD40: 0.05114589066 | AE40: 5.358667626e+13 | AF40: 0 | AH40: 2025 | AI40: =IF(Hypothesis!$A$456=1,Hypothesis!$C$486+Hypothesis!$C$487*'Euro Area'!AI39+Hypothesis!$C$488*'Euro Area'!X40+Hypothesis!$C$489*'Euro Area'!X39+Hypothesis!$C$490*('Euro Area'!AJ39+Hypothesis!$C$491*LN('Euro Area'!Y39)),Hypothesis!$E$457) -> -0.01772652626 | AJ40: -0.003593388906 | AK40: 0
Q41: 2026 | R41: =(1/(1-Hypothesis!$C$483))*X41-(Hypothesis!$C$483/(1-Hypothesis!$C$483))*AI40+Employment!O352+Hours!O392 -> 0.03525937106 | S41: 1.388777532e+13 | T41: 0 | U41: =S41/Employment!DI39 -> 47282.08586 | W41: 2026 | X41: =IF(Hypothesis!$A$449=0,IF(W41<Hypothesis!$C$451,Hypothesis!$E$450,Hypothesis!$C$452*((LN(Hypothesis!$C$453*'United States'!AA38))-LN(Y40))),Hypothesis!$C$494*(LN('United States'!AA38)-LN('Euro Area'!Y40)-0.05*(Education!$N157-Education!$O157))+Hypothesis!$C$495*'Labor and Products Regulations'!$O42*(LN('United States'!AA38)-LN('Euro Area'!Y40)-0.05*(Education!$N157-Education!$O157))+Hypothesis!$C$496*(CUR!O53)+Hypothesis!$C$497*(Hours!O392)+Hypothesis!$C$498*(Employment!CC79-Employment!CC78)+0.00875472142857143) -> 0.02259693811 | Y41: 13.39690963 | Z41: =Y41/'United States'!AA39 -> 0.830428567 | AA41: 0 | AC41: 2026 | AD41: 0.05362126235 | AE41: 5.653849436e+13 | AF41: 0 | AH41: 2026 | AI41: =IF(Hypothesis!$A$456=1,Hypothesis!$C$486+Hypothesis!$C$487*'Euro Area'!AI40+Hypothesis!$C$488*'Euro Area'!X41+Hypothesis!$C$489*'Euro Area'!X40+Hypothesis!$C$490*('Euro Area'!AJ40+Hypothesis!$C$491*LN('Euro Area'!Y40)),Hypothesis!$E$457) -> -0.01836189129 | AJ41: -0.0219552802 | AK41: 0
B42: period | E42: 2000-2010 | F42: 2010-2020 | G42: 2020-2030 | H42: 2030-2040 | I42: 2040-2050 | J42: 2050-2060 | K42: 2060-2070 | L42: 2070-2080 | M42: 2080-2090 | N42: 2090-2100 | Q42: 2027 | R42: =(1/(1-Hypothesis!$C$483))*X42-(Hypothesis!$C$483/(1-Hypothesis!$C$483))*AI41+Employment!O353+Hours!O393 -> 0.03671510478 | S42: 1.440714242e+13 | T42: 0 | U42: =S42/Employment!DI40 -> 49026.5365 | W42: 2027 | X42: =IF(Hypothesis!$A$449=0,IF(W42<Hypothesis!$C$451,Hypothesis!$E$450,Hypothesis!$C$452*((LN(Hypothesis!$C$453*'United States'!AA39))-LN(Y41))),Hypothesis!$C$494*(LN('United States'!AA39)-LN('Euro Area'!Y41)-0.05*(Education!$N158-Education!$O158))+Hypothesis!$C$495*'Labor and Products Regulations'!$O43*(LN('United States'!AA39)-LN('Euro Area'!Y41)-0.05*(Education!$N158-Education!$O158))+Hypothesis!$C$496*(CUR!O54)+Hypothesis!$C$497*(Hours!O393)+Hypothesis!$C$498*(Employment!CC80-Employment!CC79)+0.00875472142857143) -> 0.02327592349 | Y42: 13.7123924 | Z42: =Y42/'United States'!AA40 -> 0.8274879372 | AA42: 0 | AC42: 2027 | AD42: 0.05531356062 | AE42: 5.975394913e+13 | AF42: 0 | AH42: 2027 | AI42: =IF(Hypothesis!$A$456=1,Hypothesis!$C$486+Hypothesis!$C$487*'Euro Area'!AI41+Hypothesis!$C$488*'Euro Area'!X42+Hypothesis!$C$489*'Euro Area'!X41+Hypothesis!$C$490*('Euro Area'!AJ41+Hypothesis!$C$491*LN('Euro Area'!Y41)),Hypothesis!$E$457) -> -0.01859845583 | AJ42: -0.04055373603 | AK42: 0
B43: average GDP potential growth rate | E43: =AVERAGE($R16:$R25) -> 0.01093057302 | F43: =AVERAGE($R26:$R35) -> 0.01042949004 | G43: =AVERAGE($R36:$R45) -> 0.03313415476 | H43: =AVERAGE($R46:$R55) -> 0.0335425348 | I43: =AVERAGE($R56:$R65) -> 0.02104747153 | J43: =AVERAGE($R66:$R75) -> 0.01822118428 | K43: =AVERAGE($R76:$R85) -> 0.01710943725 | L43: =AVERAGE($R86:$R95) -> 0.0168310774 | M43: =AVERAGE($R96:$R105) -> 0.0167631589 | N43: =AVERAGE($R106:$R115) -> 0.01674629682 | Q43: 2028 | R43: =(1/(1-Hypothesis!$C$483))*X43-(Hypothesis!$C$483/(1-Hypothesis!$C$483))*AI42+Employment!O354+Hours!O394 -> 0.0371673001 | S43: 1.495269251e+13 | T43: 0 | U43: =S43/Employment!DI41 -> 50862.12468 | W43: 2028 | X43: =IF(Hypothesis!$A$449=0,IF(W43<Hypothesis!$C$451,Hypothesis!$E$450,Hypothesis!$C$452*((LN(Hypothesis!$C$453*'United States'!AA40))-LN(Y42))),Hypothesis!$C$494*(LN('United States'!AA40)-LN('Euro Area'!Y42)-0.05*(Education!$N159-Education!$O159))+Hypothesis!$C$495*'Labor and Products Regulations'!$O44*(LN('United States'!AA40)-LN('Euro Area'!Y42)-0.05*(Education!$N159-Education!$O159))+Hypothesis!$C$496*(CUR!O55)+Hypothesis!$C$497*(Hours!O394)+Hypothesis!$C$498*(Employment!CC81-Employment!CC80)+0.00875472142857143) -> 0.02370099894 | Y43: 14.04127179 | Z43: =Y43/'United States'!AA41 -> 0.8263588682 | AA43: 0 | AC43: 2028 | AD43: 0.05572282011 | AE43: 6.317812406e+13 | AF43: 0 | AH43: 2028 | AI43: =IF(Hypothesis!$A$456=1,Hypothesis!$C$486+Hypothesis!$C$487*'Euro Area'!AI42+Hypothesis!$C$488*'Euro Area'!X43+Hypothesis!$C$489*'Euro Area'!X42+Hypothesis!$C$490*('Euro Area'!AJ42+Hypothesis!$C$491*LN('Euro Area'!Y42)),Hypothesis!$E$457) -> -0.01855552001 | AJ43: -0.05910925604 | AK43: 0
B44: avergae TFP potential growth rate contribution | E44: =AVERAGE($X16:$X25) -> 0.001718856296 | F44: =AVERAGE($X26:$X35) -> 0.009471350459 | G44: =AVERAGE($X36:$X45) -> 0.02135829662 | H44: =AVERAGE($X46:$X55) -> 0.0187726262 | I44: =AVERAGE($X56:$X65) -> 0.01133731625 | J44: =AVERAGE($X66:$X75) -> 0.009157659419 | K44: =AVERAGE($X76:$X85) -> 0.008549502585 | L44: =AVERAGE($X86:$X95) -> 0.008403600163 | M44: =AVERAGE($X96:$X105) -> 0.00836714381 | N44: =AVERAGE($X106:$X115) -> 0.008358207493 | Q44: 2029 | R44: =(1/(1-Hypothesis!$C$483))*X44-(Hypothesis!$C$483/(1-Hypothesis!$C$483))*AI43+Employment!O355+Hours!O395 -> 0.03762548114 | S44: 1.552601286e+13 | T44: 0 | U44: =S44/Employment!DI42 -> 52795.91311 | W44: 2029 | X44: =IF(Hypothesis!$A$449=0,IF(W44<Hypothesis!$C$451,Hypothesis!$E$450,Hypothesis!$C$452*((LN(Hypothesis!$C$453*'United States'!AA41))-LN(Y43))),Hypothesis!$C$494*(LN('United States'!AA41)-LN('Euro Area'!Y43)-0.05*(Education!$N160-Education!$O160))+Hypothesis!$C$495*'Labor and Products Regulations'!$O45*(LN('United States'!AA41)-LN('Euro Area'!Y43)-0.05*(Education!$N160-Education!$O160))+Hypothesis!$C$496*(CUR!O56)+Hypothesis!$C$497*(Hours!O395)+Hypothesis!$C$498*(Employment!CC82-Employment!CC81)+0.00875472142857143) -> 0.02382338368 | Y44: 14.37979881 | Z44: =Y44/'United States'!AA42 -> 0.8271355333 | AA44: 0 | AC44: 2029 | AD44: 0.05595412647 | AE44: 6.681397261e+13 | AF44: 0 | AH44: 2029 | AI44: =IF(Hypothesis!$A$456=1,Hypothesis!$C$486+Hypothesis!$C$487*'Euro Area'!AI43+Hypothesis!$C$488*'Euro Area'!X44+Hypothesis!$C$489*'Euro Area'!X43+Hypothesis!$C$490*('Euro Area'!AJ43+Hypothesis!$C$491*LN('Euro Area'!Y43)),Hypothesis!$E$457) -> -0.01832864533 | AJ44: -0.07743790137 | AK44: 0
B45: average Capital potential growth rate contribution | E45: =0.3*AVERAGE($AD15:$AD24) -> 0.006860019631 | F45: =0.3*AVERAGE($AD25:$AD34) -> 0.001989038281 | G45: =0.3*AVERAGE($AD35:$AD44) -> 0.01367582675 | H45: =0.3*AVERAGE($AD45:$AD54) -> 0.01515553312 | I45: =0.3*AVERAGE($AD55:$AD64) -> 0.009353079076 | J45: =0.3*AVERAGE($AD65:$AD74) -> 0.007546852456 | K45: =0.3*AVERAGE($AD75:$AD84) -> 0.007063842582 | L45: =0.3*AVERAGE($AD85:$AD94) -> 0.006895238188 | M45: =0.3*AVERAGE($AD95:$AD104) -> 0.006860788214 | N45: =0.3*AVERAGE($AD105:$AD114) -> 0.006852085063 | Q45: 2030 | R45: =(1/(1-Hypothesis!$C$483))*X45-(Hypothesis!$C$483/(1-Hypothesis!$C$483))*AI44+Employment!O356+Hours!O396 -> 0.04015052308 | S45: 1.616207404e+13 | T45: 0 | U45: =S45/Employment!DI43 -> 54947.62392 | W45: 2030 | X45: =IF(Hypothesis!$A$449=0,IF(W45<Hypothesis!$C$451,Hypothesis!$E$450,Hypothesis!$C$452*((LN(Hypothesis!$C$453*'United States'!AA42))-LN(Y44))),Hypothesis!$C$494*(LN('United States'!AA42)-LN('Euro Area'!Y44)-0.05*(Education!$N161-Education!$O161))+Hypothesis!$C$495*'Labor and Products Regulations'!$O46*(LN('United States'!AA42)-LN('Euro Area'!Y44)-0.05*(Education!$N161-Education!$O161))+Hypothesis!$C$496*(CUR!O57)+Hypothesis!$C$497*(Hours!O396)+Hypothesis!$C$498*(Employment!CC83-Employment!CC82)+0.00875472142857143) -> 0.02264874869 | Y45: 14.70919944 | Z45: =Y45/'United States'!AA43 -> 0.828921719 | AA45: 0 | AC45: 2030 | AD45: 0.05787508757 | AE45: 7.079492498e+13 | AF45: 0 | AH45: 2030 | AI45: =IF(Hypothesis!$A$456=1,Hypothesis!$C$486+Hypothesis!$C$487*'Euro Area'!AI44+Hypothesis!$C$488*'Euro Area'!X45+Hypothesis!$C$489*'Euro Area'!X44+Hypothesis!$C$490*('Euro Area'!AJ44+Hypothesis!$C$491*LN('Euro Area'!Y44)),Hypothesis!$E$457) -> -0.01772456449 | AJ45: -0.09516246586 | AK45: 0
B46: average Employment potential growth rate contribution | E46: =0.7*AVERAGE(Employment!$O327:$O336) -> 0.004597002967 | F46: =0.7*AVERAGE(Employment!$O337:$O346) -> 0.0007117974122 | G46: =0.7*AVERAGE(Employment!$O347:$O356) -> -0.0008082349967 | H46: =0.7*AVERAGE(Employment!$O357:$O366) -> -0.0007936896473 | I46: =0.7*AVERAGE(Employment!$O367:$O376) -> -0.0002864465179 | J46: =0.7*AVERAGE(Employment!$O377:$O386) -> 0.0006918571371 | K46: =0.7*AVERAGE(Employment!$O387:$O396) -> 0.0006918571371 | L46: =0.7*AVERAGE(Employment!$O397:$O406) -> 0.0006918571371 | M46: =0.7*AVERAGE(Employment!$O407:$O416) -> 0.0006918571371 | N46: =0.7*AVERAGE(Employment!$O417:$O426) -> 0.0006918571371 | Q46: 2031 | R46: =(1/(1-Hypothesis!$C$483))*X46-(Hypothesis!$C$483/(1-Hypothesis!$C$483))*AI45+Employment!O357+Hours!O397 -> 0.03942548573 | S46: 1.681199929e+13 | T46: 0 | U46: =S46/Employment!DI44 -> 57149.61583 | W46: 2031 | X46: =IF(Hypothesis!$A$449=0,IF(W46<Hypothesis!$C$451,Hypothesis!$E$450,Hypothesis!$C$452*((LN(Hypothesis!$C$453*'United States'!AA43))-LN(Y45))),Hypothesis!$C$494*(LN('United States'!AA43)-LN('Euro Area'!Y45)-0.05*(Education!$N162-Education!$O162))+Hypothesis!$C$495*'Labor and Products Regulations'!$O47*(LN('United States'!AA43)-LN('Euro Area'!Y45)-0.05*(Education!$N162-Education!$O162))+Hypothesis!$C$496*(CUR!O58)+Hypothesis!$C$497*(Hours!O397)+Hypothesis!$C$498*(Employment!CC84-Employment!CC83)+0.00875472142857143) -> 0.0222820362 | Y46: 15.04062911 | Z46: =Y46/'United States'!AA44 -> 0.8323988669 | AA46: 0 | AC46: 2031 | AD46: 0.0567421449 | AE46: 7.492813558e+13 | AF46: 0 | AH46: 2031 | AI46: =IF(Hypothesis!$A$456=1,Hypothesis!$C$486+Hypothesis!$C$487*'Euro Area'!AI45+Hypothesis!$C$488*'Euro Area'!X46+Hypothesis!$C$489*'Euro Area'!X45+Hypothesis!$C$490*('Euro Area'!AJ45+Hypothesis!$C$491*LN('Euro Area'!Y45)),Hypothesis!$E$457) -> -0.01731665918 | AJ46: -0.112479125 | AK46: 0
B47: average Hours potential growth rate contribution | E47: =0.7*AVERAGE(Hours!$O367:$O376) -> -0.002344489974 | F47: =0.7*AVERAGE(Hours!$O377:$O386) -> -0.002291673213 | G47: =0.7*AVERAGE(Hours!$O387:$O396) -> -0.001764991494 | H47: =0.7*AVERAGE(Hours!$O397:$O406) -> 0.0008443924513 | I47: =0.7*AVERAGE(Hours!$O407:$O416) -> 0.0008443924513 | J47: =0.7*AVERAGE(Hours!$O417:$O426) -> 0.0008443924513 | K47: =0.7*AVERAGE(Hours!$O427:$O436) -> 0.0008443924513 | L47: =0.7*AVERAGE(Hours!$O437:$O446) -> 0.0008443924513 | M47: =0.7*AVERAGE(Hours!$O447:$O456) -> 0.0008443924513 | N47: =0.7*AVERAGE(Hours!$O457:$O466) -> 0.0008443924513 | Q47: 2032 | R47: =(1/(1-Hypothesis!$C$483))*X47-(Hypothesis!$C$483/(1-Hypothesis!$C$483))*AI46+Employment!O358+Hours!O398 -> 0.03945293483 | S47: 1.748854001e+13 | T47: 0 | U47: =S47/Employment!DI45 -> 59446.4867 | W47: 2032 | X47: =IF(Hypothesis!$A$449=0,IF(W47<Hypothesis!$C$451,Hypothesis!$E$450,Hypothesis!$C$452*((LN(Hypothesis!$C$453*'United States'!AA44))-LN(Y46))),Hypothesis!$C$494*(LN('United States'!AA44)-LN('Euro Area'!Y46)-0.05*(Education!$N163-Education!$O163))+Hypothesis!$C$495*'Labor and Products Regulations'!$O48*(LN('United States'!AA44)-LN('Euro Area'!Y46)-0.05*(Education!$N163-Education!$O163))+Hypothesis!$C$496*(CUR!O59)+Hypothesis!$C$497*(Hours!O398)+Hypothesis!$C$498*(Employment!CC85-Employment!CC84)+0.00875472142857143) -> 0.02239041365 | Y47: 15.38119347 | Z47: =Y47/'United States'!AA45 -> 0.8378465296 | AA47: 0 | AC47: 2032 | AD47: 0.05647238277 | AE47: 7.92812649e+13 | AF47: 0 | AH47: 2032 | AI47: =IF(Hypothesis!$A$456=1,Hypothesis!$C$486+Hypothesis!$C$487*'Euro Area'!AI46+Hypothesis!$C$488*'Euro Area'!X47+Hypothesis!$C$489*'Euro Area'!X46+Hypothesis!$C$490*('Euro Area'!AJ46+Hypothesis!$C$491*LN('Euro Area'!Y46)),Hypothesis!$E$457) -> -0.01701944794 | AJ47: -0.129498573 | AK47: 0
B48: average Relative Price potential growth rate | E48: =AVERAGE($AI16:$AI25) -> -0.00437269073 | F48: =AVERAGE($AI26:$AI35) -> 0.006585821175 | G48: =AVERAGE($AI36:$AI45) -> -0.01610206776 | H48: =AVERAGE($AI46:$AI55) -> -0.01495704349 | I48: =AVERAGE($AI56:$AI65) -> -0.008986453172 | J48: =AVERAGE($AI66:$AI75) -> -0.006782971741 | K48: =AVERAGE($AI76:$AI85) -> -0.00627224981 | L48: =AVERAGE($AI86:$AI95) -> -0.006133732539 | M48: =AVERAGE($AI96:$AI105) -> -0.0061009852 | N48: =AVERAGE($AI106:$AI115) -> -0.006092787768 | Q48: 2033 | R48: =(1/(1-Hypothesis!$C$483))*X48-(Hypothesis!$C$483/(1-Hypothesis!$C$483))*AI47+Employment!O359+Hours!O399 -> 0.03835506735 | S48: 1.817234398e+13 | T48: 0 | U48: =S48/Employment!DI46 -> 61772.63116 | W48: 2033 | X48: =IF(Hypothesis!$A$449=0,IF(W48<Hypothesis!$C$451,Hypothesis!$E$450,Hypothesis!$C$452*((LN(Hypothesis!$C$453*'United States'!AA45))-LN(Y47))),Hypothesis!$C$494*(LN('United States'!AA45)-LN('Euro Area'!Y47)-0.05*(Education!$N164-Education!$O164))+Hypothesis!$C$495*'Labor and Products Regulations'!$O49*(LN('United States'!AA45)-LN('Euro Area'!Y47)-0.05*(Education!$N164-Education!$O164))+Hypothesis!$C$496*(CUR!O60)+Hypothesis!$C$497*(Hours!O399)+Hypothesis!$C$498*(Employment!CC86-Employment!CC85)+0.00875472142857143) -> 0.0217069863 | Y48: 15.71872295 | Z48: =Y48/'United States'!AA46 -> 0.8443948399 | AA48: 0 | AC48: 2033 | AD48: 0.05488490159 | AE48: 8.375423581e+13 | AF48: 0 | AH48: 2033 | AI48: =IF(Hypothesis!$A$456=1,Hypothesis!$C$486+Hypothesis!$C$487*'Euro Area'!AI47+Hypothesis!$C$488*'Euro Area'!X48+Hypothesis!$C$489*'Euro Area'!X47+Hypothesis!$C$490*('Euro Area'!AJ47+Hypothesis!$C$491*LN('Euro Area'!Y47)),Hypothesis!$E$457) -> -0.01652983424 | AJ48: -0.1460284072 | AK48: 0
Q49: 2034 | R49: =(1/(1-Hypothesis!$C$483))*X49-(Hypothesis!$C$483/(1-Hypothesis!$C$483))*AI48+Employment!O360+Hours!O400 -> 0.03687712928 | S49: 1.885499765e+13 | T49: 0 | U49: =S49/Employment!DI47 -> 64098.73822 | W49: =W48+1 -> 2034 | X49: =IF(Hypothesis!$A$449=0,IF(W49<Hypothesis!$C$451,Hypothesis!$E$450,Hypothesis!$C$452*((LN(Hypothesis!$C$453*'United States'!AA46))-LN(Y48))),Hypothesis!$C$494*(LN('United States'!AA46)-LN('Euro Area'!Y48)-0.05*(Education!$N165-Education!$O165))+Hypothesis!$C$495*'Labor and Products Regulations'!$O50*(LN('United States'!AA46)-LN('Euro Area'!Y48)-0.05*(Education!$N165-Education!$O165))+Hypothesis!$C$496*(CUR!O61)+Hypothesis!$C$497*(Hours!O400)+Hypothesis!$C$498*(Employment!CC87-Employment!CC86)+0.00875472142857143) -> 0.02069132526 | Y49: 16.04735232 | Z49: =Y49/'United States'!AA47 -> 0.8514941042 | AA49: 0 | AC49: 2034 | AD49: 0.05285868636 | AE49: 8.83004702e+13 | AF49: 0 | AH49: 2034 | AI49: =IF(Hypothesis!$A$456=1,Hypothesis!$C$486+Hypothesis!$C$487*'Euro Area'!AI48+Hypothesis!$C$488*'Euro Area'!X49+Hypothesis!$C$489*'Euro Area'!X48+Hypothesis!$C$490*('Euro Area'!AJ48+Hypothesis!$C$491*LN('Euro Area'!Y48)),Hypothesis!$E$457) -> -0.01598155709 | AJ49: -0.1620099643 | AK49: 0
Q50: 2035 | R50: =(1/(1-Hypothesis!$C$483))*X50-(Hypothesis!$C$483/(1-Hypothesis!$C$483))*AI49+Employment!O361+Hours!O401 -> 0.03483456671 | S50: 1.95233771e+13 | T50: 0 | U50: =S50/Employment!DI48 -> 66382.82069 | W50: 2035 | X50: =IF(Hypothesis!$A$449=0,IF(W50<Hypothesis!$C$451,Hypothesis!$E$450,Hypothesis!$C$452*((LN(Hypothesis!$C$453*'United States'!AA47))-LN(Y49))),Hypothesis!$C$494*(LN('United States'!AA47)-LN('Euro Area'!Y49)-0.05*(Education!$N166-Education!$O166))+Hypothesis!$C$495*'Labor and Products Regulations'!$O51*(LN('United States'!AA47)-LN('Euro Area'!Y49)-0.05*(Education!$N166-Education!$O166))+Hypothesis!$C$496*(CUR!O62)+Hypothesis!$C$497*(Hours!O401)+Hypothesis!$C$498*(Employment!CC88-Employment!CC87)+0.00875472142857143) -> 0.01954263816 | Y50: 16.36404434 | Z50: =Y50/'United States'!AA48 -> 0.8587411419 | AA50: 0 | AC50: 2035 | AD50: 0.05023956228 | AE50: 9.284997281e+13 | AF50: 0 | AH50: 2035 | AI50: =IF(Hypothesis!$A$456=1,Hypothesis!$C$486+Hypothesis!$C$487*'Euro Area'!AI49+Hypothesis!$C$488*'Euro Area'!X50+Hypothesis!$C$489*'Euro Area'!X49+Hypothesis!$C$490*('Euro Area'!AJ49+Hypothesis!$C$491*LN('Euro Area'!Y49)),Hypothesis!$E$457) -> -0.01540499557 | AJ50: -0.1774149599 | AK50: 0
Q51: 2036 | R51: =(1/(1-Hypothesis!$C$483))*X51-(Hypothesis!$C$483/(1-Hypothesis!$C$483))*AI50+Employment!O362+Hours!O402 -> 0.03293377375 | S51: 2.017706063e+13 | T51: 0 | U51: =S51/Employment!DI49 -> 68623.65289 | W51: 2036 | X51: =IF(Hypothesis!$A$449=0,IF(W51<Hypothesis!$C$451,Hypothesis!$E$450,Hypothesis!$C$452*((LN(Hypothesis!$C$453*'United States'!AA48))-LN(Y50))),Hypothesis!$C$494*(LN('United States'!AA48)-LN('Euro Area'!Y50)-0.05*(Education!$N167-Education!$O167))+Hypothesis!$C$495*'Labor and Products Regulations'!$O52*(LN('United States'!AA48)-LN('Euro Area'!Y50)-0.05*(Education!$N167-Education!$O167))+Hypothesis!$C$496*(CUR!O63)+Hypothesis!$C$497*(Hours!O402)+Hypothesis!$C$498*(Employment!CC89-Employment!CC88)+0.00875472142857143) -> 0.01836370119 | Y51: 16.66732492 | Z51: =Y51/'United States'!AA49 -> 0.8658327989 | AA51: 0 | AC51: 2036 | AD51: 0.04773345153 | AE51: 9.738950433e+13 | AF51: 0 | AH51: 2036 | AI51: =IF(Hypothesis!$A$456=1,Hypothesis!$C$486+Hypothesis!$C$487*'Euro Area'!AI50+Hypothesis!$C$488*'Euro Area'!X51+Hypothesis!$C$489*'Euro Area'!X50+Hypothesis!$C$490*('Euro Area'!AJ50+Hypothesis!$C$491*LN('Euro Area'!Y50)),Hypothesis!$E$457) -> -0.01479967777 | AJ51: -0.1922146376 | AK51: 0
Q52: 2037 | R52: =(1/(1-Hypothesis!$C$483))*X52-(Hypothesis!$C$483/(1-Hypothesis!$C$483))*AI51+Employment!O363+Hours!O403 -> 0.03112520891 | S52: 2.081495161e+13 | T52: 0 | U52: =S52/Employment!DI50 -> 70818.11223 | W52: 2037 | X52: =IF(Hypothesis!$A$449=0,IF(W52<Hypothesis!$C$451,Hypothesis!$E$450,Hypothesis!$C$452*((LN(Hypothesis!$C$453*'United States'!AA49))-LN(Y51))),Hypothesis!$C$494*(LN('United States'!AA49)-LN('Euro Area'!Y51)-0.05*(Education!$N168-Education!$O168))+Hypothesis!$C$495*'Labor and Products Regulations'!$O53*(LN('United States'!AA49)-LN('Euro Area'!Y51)-0.05*(Education!$N168-Education!$O168))+Hypothesis!$C$496*(CUR!O64)+Hypothesis!$C$497*(Hours!O403)+Hypothesis!$C$498*(Employment!CC90-Employment!CC89)+0.00875472142857143) -> 0.01721319245 | Y52: 16.95670623 | Z52: =Y52/'United States'!AA50 -> 0.8725511998 | AA52: 0 | AC52: 2037 | AD52: 0.04528546971 | AE52: 1.019012204e+14 | AF52: 0 | AH52: 2037 | AI52: =IF(Hypothesis!$A$456=1,Hypothesis!$C$486+Hypothesis!$C$487*'Euro Area'!AI51+Hypothesis!$C$488*'Euro Area'!X52+Hypothesis!$C$489*'Euro Area'!X51+Hypothesis!$C$490*('Euro Area'!AJ51+Hypothesis!$C$491*LN('Euro Area'!Y51)),Hypothesis!$E$457) -> -0.0141602608 | AJ52: -0.2063748984 | AK52: 0
Q53: 2038 | R53: =(1/(1-Hypothesis!$C$483))*X53-(Hypothesis!$C$483/(1-Hypothesis!$C$483))*AI52+Employment!O364+Hours!O404 -> 0.02939758235 | S53: 2.143594398e+13 | T53: 0 | U53: =S53/Employment!DI51 -> 72963.12413 | W53: 2038 | X53: =IF(Hypothesis!$A$449=0,IF(W53<Hypothesis!$C$451,Hypothesis!$E$450,Hypothesis!$C$452*((LN(Hypothesis!$C$453*'United States'!AA50))-LN(Y52))),Hypothesis!$C$494*(LN('United States'!AA50)-LN('Euro Area'!Y52)-0.05*(Education!$N169-Education!$O169))+Hypothesis!$C$495*'Labor and Products Regulations'!$O54*(LN('United States'!AA50)-LN('Euro Area'!Y52)-0.05*(Education!$N169-Education!$O169))+Hypothesis!$C$496*(CUR!O65)+Hypothesis!$C$497*(Hours!O404)+Hypothesis!$C$498*(Employment!CC91-Employment!CC90)+0.00875472142857143) -> 0.01613197207 | Y53: 17.23246967 | Z53: =Y53/'United States'!AA51 -> 0.8787596081 | AA53: 0 | AC53: 2038 | AD53: 0.04288532521 | AE53: 1.063663472e+14 | AF53: 0 | AH53: 2038 | AI53: =IF(Hypothesis!$A$456=1,Hypothesis!$C$486+Hypothesis!$C$487*'Euro Area'!AI52+Hypothesis!$C$488*'Euro Area'!X53+Hypothesis!$C$489*'Euro Area'!X52+Hypothesis!$C$490*('Euro Area'!AJ52+Hypothesis!$C$491*LN('Euro Area'!Y52)),Hypothesis!$E$457) -> -0.01348774286 | AJ53: -0.2198626413 | AK53: 0
Q54: 2039 | R54: =(1/(1-Hypothesis!$C$483))*X54-(Hypothesis!$C$483/(1-Hypothesis!$C$483))*AI53+Employment!O365+Hours!O405 -> 0.02741732014 | S54: 2.203179105e+13 | T54: 0 | U54: =S54/Employment!DI52 -> 75032.00594 | W54: 2039 | X54: =IF(Hypothesis!$A$449=0,IF(W54<Hypothesis!$C$451,Hypothesis!$E$450,Hypothesis!$C$452*((LN(Hypothesis!$C$453*'United States'!AA51))-LN(Y53))),Hypothesis!$C$494*(LN('United States'!AA51)-LN('Euro Area'!Y53)-0.05*(Education!$N170-Education!$O170))+Hypothesis!$C$495*'Labor and Products Regulations'!$O55*(LN('United States'!AA51)-LN('Euro Area'!Y53)-0.05*(Education!$N170-Education!$O170))+Hypothesis!$C$496*(CUR!O66)+Hypothesis!$C$497*(Hours!O405)+Hypothesis!$C$498*(Employment!CC92-Employment!CC91)+0.00875472142857143) -> 0.01514473094 | Y54: 17.49543704 | Z54: =Y54/'United States'!AA52 -> 0.884390145 | AA54: 0 | AC54: 2039 | AD54: 0.04020742533 | AE54: 1.107302061e+14 | AF54: 0 | AH54: 2039 | AI54: =IF(Hypothesis!$A$456=1,Hypothesis!$C$486+Hypothesis!$C$487*'Euro Area'!AI53+Hypothesis!$C$488*'Euro Area'!X54+Hypothesis!$C$489*'Euro Area'!X53+Hypothesis!$C$490*('Euro Area'!AJ53+Hypothesis!$C$491*LN('Euro Area'!Y53)),Hypothesis!$E$457) -> -0.01279010519 | AJ54: -0.2326527465 | AK54: 0
Q55: 2040 | R55: =(1/(1-Hypothesis!$C$483))*X55-(Hypothesis!$C$483/(1-Hypothesis!$C$483))*AI54+Employment!O366+Hours!O406 -> 0.02560627892 | S55: 2.260322821e+13 | T55: 0 | U55: =S55/Employment!DI53 -> 77027.24359 | W55: 2040 | X55: =IF(Hypothesis!$A$449=0,IF(W55<Hypothesis!$C$451,Hypothesis!$E$450,Hypothesis!$C$452*((LN(Hypothesis!$C$453*'United States'!AA52))-LN(Y54))),Hypothesis!$C$494*(LN('United States'!AA52)-LN('Euro Area'!Y54)-0.05*(Education!$N171-Education!$O171))+Hypothesis!$C$495*'Labor and Products Regulations'!$O56*(LN('United States'!AA52)-LN('Euro Area'!Y54)-0.05*(Education!$N171-Education!$O171))+Hypothesis!$C$496*(CUR!O67)+Hypothesis!$C$497*(Hours!O406)+Hypothesis!$C$498*(Employment!CC93-Employment!CC92)+0.00875472142857143) -> 0.01425926578 | Y55: 17.74669626 | Z55: =Y55/'United States'!AA53 -> 0.8894243107 | AA55: 0 | AC55: 2040 | AD55: 0.0376864332 | AE55: 1.14982863e+14 | AF55: 0 | AH55: 2040 | AI55: =IF(Hypothesis!$A$456=1,Hypothesis!$C$486+Hypothesis!$C$487*'Euro Area'!AI54+Hypothesis!$C$488*'Euro Area'!X55+Hypothesis!$C$489*'Euro Area'!X54+Hypothesis!$C$490*('Euro Area'!AJ54+Hypothesis!$C$491*LN('Euro Area'!Y54)),Hypothesis!$E$457) -> -0.01208015428 | AJ55: -0.2447329008 | AK55: 0
Q56: 2041 | R56: =(1/(1-Hypothesis!$C$483))*X56-(Hypothesis!$C$483/(1-Hypothesis!$C$483))*AI55+Employment!O367+Hours!O407 -> 0.02459372177 | S56: 2.316601789e+13 | T56: 0 | U56: =S56/Employment!DI54 -> 79004.57428 | W56: 2041 | X56: =IF(Hypothesis!$A$449=0,IF(W56<Hypothesis!$C$451,Hypothesis!$E$450,Hypothesis!$C$452*((LN(Hypothesis!$C$453*'United States'!AA53))-LN(Y55))),Hypothesis!$C$494*(LN('United States'!AA53)-LN('Euro Area'!Y55)-0.05*(Education!$N172-Education!$O172))+Hypothesis!$C$495*'Labor and Products Regulations'!$O57*(LN('United States'!AA53)-LN('Euro Area'!Y55)-0.05*(Education!$N172-Education!$O172))+Hypothesis!$C$496*(CUR!O68)+Hypothesis!$C$497*(Hours!O407)+Hypothesis!$C$498*(Employment!CC94-Employment!CC93)+0.00875472142857143) -> 0.01348387439 | Y56: 17.98761106 | Z56: =Y56/'United States'!AA54 -> 0.8939924284 | AA56: 0 | AC56: 2041 | AD56: 0.03597065707 | AE56: 1.191941596e+14 | AF56: 0 | AH56: 2041 | AI56: =IF(Hypothesis!$A$456=1,Hypothesis!$C$486+Hypothesis!$C$487*'Euro Area'!AI55+Hypothesis!$C$488*'Euro Area'!X56+Hypothesis!$C$489*'Euro Area'!X55+Hypothesis!$C$490*('Euro Area'!AJ55+Hypothesis!$C$491*LN('Euro Area'!Y55)),Hypothesis!$E$457) -> -0.01137693529 | AJ56: -0.2561098361 | AK56: 0
Q57: 2042 | R57: =(1/(1-Hypothesis!$C$483))*X57-(Hypothesis!$C$483/(1-Hypothesis!$C$483))*AI56+Employment!O368+Hours!O408 -> 0.0234246944 | S57: 2.371508049e+13 | T57: 0 | U57: =S57/Employment!DI55 -> 80946.38918 | W57: 2042 | X57: =IF(Hypothesis!$A$449=0,IF(W57<Hypothesis!$C$451,Hypothesis!$E$450,Hypothesis!$C$452*((LN(Hypothesis!$C$453*'United States'!AA54))-LN(Y56))),Hypothesis!$C$494*(LN('United States'!AA54)-LN('Euro Area'!Y56)-0.05*(Education!$N173-Education!$O173))+Hypothesis!$C$495*'Labor and Products Regulations'!$O58*(LN('United States'!AA54)-LN('Euro Area'!Y56)-0.05*(Education!$N173-Education!$O173))+Hypothesis!$C$496*(CUR!O69)+Hypothesis!$C$497*(Hours!O408)+Hypothesis!$C$498*(Employment!CC95-Employment!CC94)+0.00875472142857143) -> 0.01279497666 | Y57: 18.21924082 | Z57: =Y57/'United States'!AA55 -> 0.8979651887 | AA57: 0 | AC57: 2042 | AD57: 0.03411847175 | AE57: 1.233310531e+14 | AF57: 0 | AH57: 2042 | AI57: =IF(Hypothesis!$A$456=1,Hypothesis!$C$486+Hypothesis!$C$487*'Euro Area'!AI56+Hypothesis!$C$488*'Euro Area'!X57+Hypothesis!$C$489*'Euro Area'!X56+Hypothesis!$C$490*('Euro Area'!AJ56+Hypothesis!$C$491*LN('Euro Area'!Y56)),Hypothesis!$E$457) -> -0.01069377735 | AJ57: -0.2668036134 | AK57: 0
Q58: 2043 | R58: =(1/(1-Hypothesis!$C$483))*X58-(Hypothesis!$C$483/(1-Hypothesis!$C$483))*AI57+Employment!O369+Hours!O409 -> 0.02250798162 | S58: 2.425491155e+13 | T58: 0 | U58: =S58/Employment!DI56 -> 82869.21538 | W58: 2043 | X58: =IF(Hypothesis!$A$449=0,IF(W58<Hypothesis!$C$451,Hypothesis!$E$450,Hypothesis!$C$452*((LN(Hypothesis!$C$453*'United States'!AA55))-LN(Y57))),Hypothesis!$C$494*(LN('United States'!AA55)-LN('Euro Area'!Y57)-0.05*(Education!$N174-Education!$O174))+Hypothesis!$C$495*'Labor and Products Regulations'!$O59*(LN('United States'!AA55)-LN('Euro Area'!Y57)-0.05*(Education!$N174-Education!$O174))+Hypothesis!$C$496*(CUR!O70)+Hypothesis!$C$497*(Hours!O409)+Hypothesis!$C$498*(Employment!CC96-Employment!CC95)+0.00875472142857143) -> 0.01221002592 | Y58: 18.44306187 | Z58: =Y58/'United States'!AA56 -> 0.9014281581 | AA58: 0 | AC58: 2043 | AD58: 0.0325622772 | AE58: 1.274130927e+14 | AF58: 0 | AH58: 2043 | AI58: =IF(Hypothesis!$A$456=1,Hypothesis!$C$486+Hypothesis!$C$487*'Euro Area'!AI57+Hypothesis!$C$488*'Euro Area'!X58+Hypothesis!$C$489*'Euro Area'!X57+Hypothesis!$C$490*('Euro Area'!AJ57+Hypothesis!$C$491*LN('Euro Area'!Y57)),Hypothesis!$E$457) -> -0.01005429558 | AJ58: -0.276857909 | AK58: 0
Q59: 2044 | R59: =(1/(1-Hypothesis!$C$483))*X59-(Hypothesis!$C$483/(1-Hypothesis!$C$483))*AI58+Employment!O370+Hours!O410 -> 0.02160504092 | S59: 2.478464172e+13 | T59: 0 | U59: =S59/Employment!DI57 -> 84770.36905 | W59: 2044 | X59: =IF(Hypothesis!$A$449=0,IF(W59<Hypothesis!$C$451,Hypothesis!$E$450,Hypothesis!$C$452*((LN(Hypothesis!$C$453*'United States'!AA56))-LN(Y58))),Hypothesis!$C$494*(LN('United States'!AA56)-LN('Euro Area'!Y58)-0.05*(Education!$N175-Education!$O175))+Hypothesis!$C$495*'Labor and Products Regulations'!$O60*(LN('United States'!AA56)-LN('Euro Area'!Y58)-0.05*(Education!$N175-Education!$O175))+Hypothesis!$C$496*(CUR!O71)+Hypothesis!$C$497*(Hours!O410)+Hypothesis!$C$498*(Employment!CC97-Employment!CC96)+0.00875472142857143) -> 0.01171166332 | Y59: 18.6603306 | Z59: =Y59/'United States'!AA57 -> 0.9044536241 | AA59: 0 | AC59: 2044 | AD59: 0.03107523792 | AE59: 1.314346466e+14 | AF59: 0 | AH59: 2044 | AI59: =IF(Hypothesis!$A$456=1,Hypothesis!$C$486+Hypothesis!$C$487*'Euro Area'!AI58+Hypothesis!$C$488*'Euro Area'!X59+Hypothesis!$C$489*'Euro Area'!X58+Hypothesis!$C$490*('Euro Area'!AJ58+Hypothesis!$C$491*LN('Euro Area'!Y58)),Hypothesis!$E$457) -> -0.009470197008 | AJ59: -0.286328106 | AK59: 0
Q60: 2045 | R60: =(1/(1-Hypothesis!$C$483))*X60-(Hypothesis!$C$483/(1-Hypothesis!$C$483))*AI59+Employment!O371+Hours!O411 -> 0.02078934232 | S60: 2.530529135e+13 | T60: 0 | U60: =S60/Employment!DI58 -> 86654.09431 | W60: 2045 | X60: =IF(Hypothesis!$A$449=0,IF(W60<Hypothesis!$C$451,Hypothesis!$E$450,Hypothesis!$C$452*((LN(Hypothesis!$C$453*'United States'!AA57))-LN(Y59))),Hypothesis!$C$494*(LN('United States'!AA57)-LN('Euro Area'!Y59)-0.05*(Education!$N176-Education!$O176))+Hypothesis!$C$495*'Labor and Products Regulations'!$O61*(LN('United States'!AA57)-LN('Euro Area'!Y59)-0.05*(Education!$N176-Education!$O176))+Hypothesis!$C$496*(CUR!O72)+Hypothesis!$C$497*(Hours!O411)+Hypothesis!$C$498*(Employment!CC98-Employment!CC97)+0.00875472142857143) -> 0.01128633565 | Y60: 18.87213033 | Z60: =Y60/'United States'!AA58 -> 0.9071033463 | AA60: 0 | AC60: 2045 | AD60: 0.02973983215 | AE60: 1.354021956e+14 | AF60: 0 | AH60: 2045 | AI60: =IF(Hypothesis!$A$456=1,Hypothesis!$C$486+Hypothesis!$C$487*'Euro Area'!AI59+Hypothesis!$C$488*'Euro Area'!X60+Hypothesis!$C$489*'Euro Area'!X59+Hypothesis!$C$490*('Euro Area'!AJ59+Hypothesis!$C$491*LN('Euro Area'!Y59)),Hypothesis!$E$457) -> -0.008950489824 | AJ60: -0.2952785958 | AK60: 0
Q61: 2046 | R61: =(1/(1-Hypothesis!$C$483))*X61-(Hypothesis!$C$483/(1-Hypothesis!$C$483))*AI60+Employment!O372+Hours!O412 -> 0.02031520111 | S61: 2.582463081e+13 | T61: 0 | U61: =S61/Employment!DI59 -> 88546.86609 | W61: 2046 | X61: =IF(Hypothesis!$A$449=0,IF(W61<Hypothesis!$C$451,Hypothesis!$E$450,Hypothesis!$C$452*((LN(Hypothesis!$C$453*'United States'!AA58))-LN(Y60))),Hypothesis!$C$494*(LN('United States'!AA58)-LN('Euro Area'!Y60)-0.05*(Education!$N177-Education!$O177))+Hypothesis!$C$495*'Labor and Products Regulations'!$O62*(LN('United States'!AA58)-LN('Euro Area'!Y60)-0.05*(Education!$N177-Education!$O177))+Hypothesis!$C$496*(CUR!O73)+Hypothesis!$C$497*(Hours!O412)+Hypothesis!$C$498*(Employment!CC99-Employment!CC98)+0.00875472142857143) -> 0.01092315772 | Y61: 19.07940357 | Z61: =Y61/'United States'!AA59 -> 0.9094304862 | AA61: 0 | AC61: 2046 | AD61: =R61- AI61 -> 0.02881534163 | AE61: =AE60*EXP(AD61) -> 1.393606138e+14 | AF61: 0 | AH61: 2046 | AI61: =IF(Hypothesis!$A$456=1,Hypothesis!$C$486+Hypothesis!$C$487*'Euro Area'!AI60+Hypothesis!$C$488*'Euro Area'!X61+Hypothesis!$C$489*'Euro Area'!X60+Hypothesis!$C$490*('Euro Area'!AJ60+Hypothesis!$C$491*LN('Euro Area'!Y60)),Hypothesis!$E$457) -> -0.008500140514 | AJ61: -0.3037787363 | AK61: 0
Q62: 2047 | R62: =(1/(1-Hypothesis!$C$483))*X62-(Hypothesis!$C$483/(1-Hypothesis!$C$483))*AI61+Employment!O373+Hours!O413 -> 0.01962696106 | S62: 2.633649659e+13 | T62: 0 | U62: =S62/Employment!DI60 -> 90429.71415 | W62: 2047 | X62: =IF(Hypothesis!$A$449=0,IF(W62<Hypothesis!$C$451,Hypothesis!$E$450,Hypothesis!$C$452*((LN(Hypothesis!$C$453*'United States'!AA59))-LN(Y61))),Hypothesis!$C$494*(LN('United States'!AA59)-LN('Euro Area'!Y61)-0.05*(Education!$N178-Education!$O178))+Hypothesis!$C$495*'Labor and Products Regulations'!$O63*(LN('United States'!AA59)-LN('Euro Area'!Y61)-0.05*(Education!$N178-Education!$O178))+Hypothesis!$C$496*(CUR!O74)+Hypothesis!$C$497*(Hours!O413)+Hypothesis!$C$498*(Employment!CC100-Employment!CC99)+0.00875472142857143) -> 0.01061162098 | Y62: 19.28294501 | Z62: =Y62/'United States'!AA60 -> 0.9114795926 | AA62: 0 | AC62: 2047 | AD62: 0.02774638265 | AE62: 1.432815105e+14 | AF62: 0 | AH62: 2047 | AI62: =IF(Hypothesis!$A$456=1,Hypothesis!$C$486+Hypothesis!$C$487*'Euro Area'!AI61+Hypothesis!$C$488*'Euro Area'!X62+Hypothesis!$C$489*'Euro Area'!X61+Hypothesis!$C$490*('Euro Area'!AJ61+Hypothesis!$C$491*LN('Euro Area'!Y61)),Hypothesis!$E$457) -> -0.008119421593 | AJ62: -0.3118981579 | AK62: 0
Q63: 2048 | R63: =(1/(1-Hypothesis!$C$483))*X63-(Hypothesis!$C$483/(1-Hypothesis!$C$483))*AI62+Employment!O374+Hours!O414 -> 0.019372091 | S63: 2.685166342e+13 | T63: 0 | U63: =S63/Employment!DI61 -> 92338.78086 | W63: 2048 | X63: =IF(Hypothesis!$A$449=0,IF(W63<Hypothesis!$C$451,Hypothesis!$E$450,Hypothesis!$C$452*((LN(Hypothesis!$C$453*'United States'!AA60))-LN(Y62))),Hypothesis!$C$494*(LN('United States'!AA60)-LN('Euro Area'!Y62)-0.05*(Education!$N179-Education!$O179))+Hypothesis!$C$495*'Labor and Products Regulations'!$O64*(LN('United States'!AA60)-LN('Euro Area'!Y62)-0.05*(Education!$N179-Education!$O179))+Hypothesis!$C$496*(CUR!O75)+Hypothesis!$C$497*(Hours!O414)+Hypothesis!$C$498*(Employment!CC101-Employment!CC100)+0.00875472142857143) -> 0.01034169307 | Y63: 19.48339803 | Z63: =Y63/'United States'!AA61 -> 0.9132867611 | AA63: 0 | AC63: 2048 | AD63: 0.02717660011 | AE63: 1.47228809e+14 | AF63: 0 | AH63: 2048 | AI63: =IF(Hypothesis!$A$456=1,Hypothesis!$C$486+Hypothesis!$C$487*'Euro Area'!AI62+Hypothesis!$C$488*'Euro Area'!X63+Hypothesis!$C$489*'Euro Area'!X62+Hypothesis!$C$490*('Euro Area'!AJ62+Hypothesis!$C$491*LN('Euro Area'!Y62)),Hypothesis!$E$457) -> -0.007804509105 | AJ63: -0.319702667 | AK63: 0
Q64: 2049 | R64: =(1/(1-Hypothesis!$C$483))*X64-(Hypothesis!$C$483/(1-Hypothesis!$C$483))*AI63+Employment!O375+Hours!O415 -> 0.01932905982 | S64: 2.737572936e+13 | T64: 0 | U64: =S64/Employment!DI62 -> 94294.79709 | W64: 2049 | X64: =IF(Hypothesis!$A$449=0,IF(W64<Hypothesis!$C$451,Hypothesis!$E$450,Hypothesis!$C$452*((LN(Hypothesis!$C$453*'United States'!AA61))-LN(Y63))),Hypothesis!$C$494*(LN('United States'!AA61)-LN('Euro Area'!Y63)-0.05*(Education!$N180-Education!$O180))+Hypothesis!$C$495*'Labor and Products Regulations'!$O65*(LN('United States'!AA61)-LN('Euro Area'!Y63)-0.05*(Education!$N180-Education!$O180))+Hypothesis!$C$496*(CUR!O76)+Hypothesis!$C$497*(Hours!O415)+Hypothesis!$C$498*(Employment!CC102-Employment!CC101)+0.00875472142857143) -> 0.01010621508 | Y64: 19.68129978 | Z64: =Y64/'United States'!AA62 -> 0.9148820527 | AA64: 0 | AC64: 2049 | AD64: 0.02687806886 | AE64: 1.51239696e+14 | AF64: 0 | AH64: 2049 | AI64: =IF(Hypothesis!$A$456=1,Hypothesis!$C$486+Hypothesis!$C$487*'Euro Area'!AI63+Hypothesis!$C$488*'Euro Area'!X64+Hypothesis!$C$489*'Euro Area'!X63+Hypothesis!$C$490*('Euro Area'!AJ63+Hypothesis!$C$491*LN('Euro Area'!Y63)),Hypothesis!$E$457) -> -0.007549009035 | AJ64: -0.3272516761 | AK64: 0
Q65: 2050 | R65: =(1/(1-Hypothesis!$C$483))*X65-(Hypothesis!$C$483/(1-Hypothesis!$C$483))*AI64+Employment!O376+Hours!O416 -> 0.01891062126 | S65: 2.789834735e+13 | T65: 0 | U65: =S65/Employment!DI63 -> 95948.74991 | W65: 2050 | X65: =IF(Hypothesis!$A$449=0,IF(W65<Hypothesis!$C$451,Hypothesis!$E$450,Hypothesis!$C$452*((LN(Hypothesis!$C$453*'United States'!AA62))-LN(Y64))),Hypothesis!$C$494*(LN('United States'!AA62)-LN('Euro Area'!Y64)-0.05*(Education!$N181-Education!$O181))+Hypothesis!$C$495*'Labor and Products Regulations'!$O66*(LN('United States'!AA62)-LN('Euro Area'!Y64)-0.05*(Education!$N181-Education!$O181))+Hypothesis!$C$496*(CUR!O77)+Hypothesis!$C$497*(Hours!O416)+Hypothesis!$C$498*(Employment!CC103-Employment!CC102)+0.00875472142857143) -> 0.009903599711 | Y65: 19.87718387 | Z65: =Y65/'United States'!AA63 -> 0.9162944568 | AA65: 0 | AC65: 2050 | AD65: 0.02625637767 | AE65: 1.55263294e+14 | AF65: 0 | AH65: 2050 | AI65: =IF(Hypothesis!$A$456=1,Hypothesis!$C$486+Hypothesis!$C$487*'Euro Area'!AI64+Hypothesis!$C$488*'Euro Area'!X65+Hypothesis!$C$489*'Euro Area'!X64+Hypothesis!$C$490*('Euro Area'!AJ64+Hypothesis!$C$491*LN('Euro Area'!Y64)),Hypothesis!$E$457) -> -0.007345756414 | AJ65: -0.3345974325 | AK65: 0
Q66: 2051 | R66: =(1/(1-Hypothesis!$C$483))*X66-(Hypothesis!$C$483/(1-Hypothesis!$C$483))*AI65+Employment!O377+Hours!O417 -> 0.01884489331 | S66: 2.842907377e+13 | T66: 0 | U66: =S66/Employment!DI64 -> 97677.34134 | W66: 2051 | X66: =IF(Hypothesis!$A$449=0,IF(W66<Hypothesis!$C$451,Hypothesis!$E$450,Hypothesis!$C$452*((LN(Hypothesis!$C$453*'United States'!AA63))-LN(Y65))),Hypothesis!$C$494*(LN('United States'!AA63)-LN('Euro Area'!Y65)-0.05*(Education!$N182-Education!$O182))+Hypothesis!$C$495*'Labor and Products Regulations'!$O67*(LN('United States'!AA63)-LN('Euro Area'!Y65)-0.05*(Education!$N182-Education!$O182))+Hypothesis!$C$496*(CUR!O78)+Hypothesis!$C$497*(Hours!O417)+Hypothesis!$C$498*(Employment!CC104-Employment!CC103)+0.00875472142857143) -> 0.009724776289 | Y66: 20.071428 | Z66: =Y66/'United States'!AA64 -> 0.9175449481 | AA66: 0 | AC66: 2051 | AD66: 0.02602943906 | AE66: 159357767720556 | AF66: 0 | AH66: 2051 | AI66: =IF(Hypothesis!$A$456=1,Hypothesis!$C$486+Hypothesis!$C$487*'Euro Area'!AI65+Hypothesis!$C$488*'Euro Area'!X66+Hypothesis!$C$489*'Euro Area'!X65+Hypothesis!$C$490*('Euro Area'!AJ65+Hypothesis!$C$491*LN('Euro Area'!Y65)),Hypothesis!$E$457) -> -0.007184545746 | AJ66: -0.3417819782 | AK66: 0
Q67: 2052 | R67: =(1/(1-Hypothesis!$C$483))*X67-(Hypothesis!$C$483/(1-Hypothesis!$C$483))*AI66+Employment!O378+Hours!O418 -> 0.01858114767 | S67: 2.896225682e+13 | T67: 0 | U67: =S67/Employment!DI65 -> 99594.29312 | W67: 2052 | X67: =IF(Hypothesis!$A$449=0,IF(W67<Hypothesis!$C$451,Hypothesis!$E$450,Hypothesis!$C$452*((LN(Hypothesis!$C$453*'United States'!AA64))-LN(Y66))),Hypothesis!$C$494*(LN('United States'!AA64)-LN('Euro Area'!Y66)-0.05*(Education!$N183-Education!$O183))+Hypothesis!$C$495*'Labor and Products Regulations'!$O68*(LN('United States'!AA64)-LN('Euro Area'!Y66)-0.05*(Education!$N183-Education!$O183))+Hypothesis!$C$496*(CUR!O79)+Hypothesis!$C$497*(Hours!O418)+Hypothesis!$C$498*(Employment!CC105-Employment!CC104)+0.00875472142857143) -> 0.009566370085 | Y67: 20.26436006 | Z67: =Y67/'United States'!AA65 -> 0.9186516144 | AA67: 0 | AC67: 2052 | AD67: 0.02563768154 | AE67: 1.634961541e+14 | AF67: 0 | AH67: 2052 | AI67: =IF(Hypothesis!$A$456=1,Hypothesis!$C$486+Hypothesis!$C$487*'Euro Area'!AI66+Hypothesis!$C$488*'Euro Area'!X67+Hypothesis!$C$489*'Euro Area'!X66+Hypothesis!$C$490*('Euro Area'!AJ66+Hypothesis!$C$491*LN('Euro Area'!Y66)),Hypothesis!$E$457) -> -0.007056533868 | AJ67: -0.3488385121 | AK67: 0
Q68: 2053 | R68: =(1/(1-Hypothesis!$C$483))*X68-(Hypothesis!$C$483/(1-Hypothesis!$C$483))*AI67+Employment!O379+Hours!O419 -> 0.01834191393 | S68: 2.949838179e+13 | T68: 0 | U68: =S68/Employment!DI66 -> 101843.7189 | W68: 2053 | X68: =IF(Hypothesis!$A$449=0,IF(W68<Hypothesis!$C$451,Hypothesis!$E$450,Hypothesis!$C$452*((LN(Hypothesis!$C$453*'United States'!AA65))-LN(Y67))),Hypothesis!$C$494*(LN('United States'!AA65)-LN('Euro Area'!Y67)-0.05*(Education!$N184-Education!$O184))+Hypothesis!$C$495*'Labor and Products Regulations'!$O69*(LN('United States'!AA65)-LN('Euro Area'!Y67)-0.05*(Education!$N184-Education!$O184))+Hypothesis!$C$496*(CUR!O80)+Hypothesis!$C$497*(Hours!O419)+Hypothesis!$C$498*(Employment!CC106-Employment!CC105)+0.00875472142857143) -> 0.009419904385 | Y68: 20.4561503 | Z68: =Y68/'United States'!AA66 -> 0.9196249121 | AA68: 0 | AC68: 2053 | AD68: 0.02529389036 | AE68: 1.676843525e+14 | AF68: 0 | AH68: 2053 | AI68: =IF(Hypothesis!$A$456=1,Hypothesis!$C$486+Hypothesis!$C$487*'Euro Area'!AI67+Hypothesis!$C$488*'Euro Area'!X68+Hypothesis!$C$489*'Euro Area'!X67+Hypothesis!$C$490*('Euro Area'!AJ67+Hypothesis!$C$491*LN('Euro Area'!Y67)),Hypothesis!$E$457) -> -0.006951976433 | AJ68: -0.3557904885 | AK68: 0
Q69: 2054 | R69: =(1/(1-Hypothesis!$C$483))*X69-(Hypothesis!$C$483/(1-Hypothesis!$C$483))*AI68+Employment!O380+Hours!O420 -> 0.01822546484 | S69: 3.004093261e+13 | T69: 0 | U69: =S69/Employment!DI67 -> 103488.5254 | W69: 2054 | X69: =IF(Hypothesis!$A$449=0,IF(W69<Hypothesis!$C$451,Hypothesis!$E$450,Hypothesis!$C$452*((LN(Hypothesis!$C$453*'United States'!AA66))-LN(Y68))),Hypothesis!$C$494*(LN('United States'!AA66)-LN('Euro Area'!Y68)-0.05*(Education!$N185-Education!$O185))+Hypothesis!$C$495*'Labor and Products Regulations'!$O70*(LN('United States'!AA66)-LN('Euro Area'!Y68)-0.05*(Education!$N185-Education!$O185))+Hypothesis!$C$496*(CUR!O81)+Hypothesis!$C$497*(Hours!O420)+Hypothesis!$C$498*(Employment!CC107-Employment!CC106)+0.00875472142857143) -> 0.009287504433 | Y69: 20.64702188 | Z69: =Y69/'United States'!AA67 -> 0.9204773618 | AA69: 0 | AC69: 2054 | AD69: 0.02509025973 | AE69: 1.719448211e+14 | AF69: 0 | AH69: 2054 | AI69: =IF(Hypothesis!$A$456=1,Hypothesis!$C$486+Hypothesis!$C$487*'Euro Area'!AI68+Hypothesis!$C$488*'Euro Area'!X69+Hypothesis!$C$489*'Euro Area'!X68+Hypothesis!$C$490*('Euro Area'!AJ68+Hypothesis!$C$491*LN('Euro Area'!Y68)),Hypothesis!$E$457) -> -0.006864794893 | AJ69: -0.3626552834 | AK69: 0
Q70: 2055 | R70: =(1/(1-Hypothesis!$C$483))*X70-(Hypothesis!$C$483/(1-Hypothesis!$C$483))*AI69+Employment!O381+Hours!O421 -> 0.0181746002 | S70: 3.059190625e+13 | T70: 0 | U70: =S70/Employment!DI68 -> 104558.3178 | W70: 2055 | X70: =IF(Hypothesis!$A$449=0,IF(W70<Hypothesis!$C$451,Hypothesis!$E$450,Hypothesis!$C$452*((LN(Hypothesis!$C$453*'United States'!AA67))-LN(Y69))),Hypothesis!$C$494*(LN('United States'!AA67)-LN('Euro Area'!Y69)-0.05*(Education!$N186-Education!$O186))+Hypothesis!$C$495*'Labor and Products Regulations'!$O71*(LN('United States'!AA67)-LN('Euro Area'!Y69)-0.05*(Education!$N186-Education!$O186))+Hypothesis!$C$496*(CUR!O82)+Hypothesis!$C$497*(Hours!O421)+Hypothesis!$C$498*(Employment!CC108-Employment!CC107)+0.00875472142857143) -> 0.009166958268 | Y70: 20.83716244 | Z70: =Y70/'United States'!AA68 -> 0.9212195454 | AA70: 0 | AC70: 2055 | AD70: 0.02496353289 | AE70: 1.76291196e+14 | AF70: 0 | AH70: 2055 | AI70: =IF(Hypothesis!$A$456=1,Hypothesis!$C$486+Hypothesis!$C$487*'Euro Area'!AI69+Hypothesis!$C$488*'Euro Area'!X70+Hypothesis!$C$489*'Euro Area'!X69+Hypothesis!$C$490*('Euro Area'!AJ69+Hypothesis!$C$491*LN('Euro Area'!Y69)),Hypothesis!$E$457) -> -0.006788932694 | AJ70: -0.3694442161 | AK70: 0
Q71: 2056 | R71: =(1/(1-Hypothesis!$C$483))*X71-(Hypothesis!$C$483/(1-Hypothesis!$C$483))*AI70+Employment!O382+Hours!O422 -> 0.017735411 | S71: 3.113930611e+13 | T71: 0 | U71: =S71/Employment!DI69 -> 107262.9694 | W71: 2056 | X71: =IF(Hypothesis!$A$449=0,IF(W71<Hypothesis!$C$451,Hypothesis!$E$450,Hypothesis!$C$452*((LN(Hypothesis!$C$453*'United States'!AA68))-LN(Y70))),Hypothesis!$C$494*(LN('United States'!AA68)-LN('Euro Area'!Y70)-0.05*(Education!$N187-Education!$O187))+Hypothesis!$C$495*'Labor and Products Regulations'!$O72*(LN('United States'!AA68)-LN('Euro Area'!Y70)-0.05*(Education!$N187-Education!$O187))+Hypothesis!$C$496*(CUR!O83)+Hypothesis!$C$497*(Hours!O422)+Hypothesis!$C$498*(Employment!CC109-Employment!CC108)+0.00875472142857143) -> 0.009059009387 | Y71: 21.02678408 | Z71: =Y71/'United States'!AA69 -> 0.9218628081 | AA71: 0 | AC71: 2056 | AD71: 0.024455945 | AE71: 1.806557155e+14 | AF71: 0 | AH71: 2056 | AI71: =IF(Hypothesis!$A$456=1,Hypothesis!$C$486+Hypothesis!$C$487*'Euro Area'!AI70+Hypothesis!$C$488*'Euro Area'!X71+Hypothesis!$C$489*'Euro Area'!X70+Hypothesis!$C$490*('Euro Area'!AJ70+Hypothesis!$C$491*LN('Euro Area'!Y70)),Hypothesis!$E$457) -> -0.006720533995 | AJ71: -0.3761647501 | AK71: 0
Q72: 2057 | R72: =(1/(1-Hypothesis!$C$483))*X72-(Hypothesis!$C$483/(1-Hypothesis!$C$483))*AI71+Employment!O383+Hours!O423 -> 0.01785794517 | S72: 3.170038508e+13 | T72: 0 | U72: =S72/Employment!DI70 -> 109049.1577 | W72: 2057 | X72: =IF(Hypothesis!$A$449=0,IF(W72<Hypothesis!$C$451,Hypothesis!$E$450,Hypothesis!$C$452*((LN(Hypothesis!$C$453*'United States'!AA69))-LN(Y71))),Hypothesis!$C$494*(LN('United States'!AA69)-LN('Euro Area'!Y71)-0.05*(Education!$N188-Education!$O188))+Hypothesis!$C$495*'Labor and Products Regulations'!$O73*(LN('United States'!AA69)-LN('Euro Area'!Y71)-0.05*(Education!$N188-Education!$O188))+Hypothesis!$C$496*(CUR!O84)+Hypothesis!$C$497*(Hours!O423)+Hypothesis!$C$498*(Employment!CC110-Employment!CC109)+0.00875472142857143) -> 0.008959059969 | Y72: 21.21601068 | Z72: =Y72/'United States'!AA70 -> 0.9224143205 | AA72: 0 | AC72: 2057 | AD72: 0.02451366055 | AE72: 1.851389744e+14 | AF72: 0 | AH72: 2057 | AI72: =IF(Hypothesis!$A$456=1,Hypothesis!$C$486+Hypothesis!$C$487*'Euro Area'!AI71+Hypothesis!$C$488*'Euro Area'!X72+Hypothesis!$C$489*'Euro Area'!X71+Hypothesis!$C$490*('Euro Area'!AJ71+Hypothesis!$C$491*LN('Euro Area'!Y71)),Hypothesis!$E$457) -> -0.006655715379 | AJ72: -0.3828204655 | AK72: 0
Q73: 2058 | R73: =(1/(1-Hypothesis!$C$483))*X73-(Hypothesis!$C$483/(1-Hypothesis!$C$483))*AI72+Employment!O384+Hours!O424 -> 0.01787976483 | S73: 3.227227793e+13 | T73: 0 | U73: =S73/Employment!DI71 -> 110833.7821 | W73: 2058 | X73: =IF(Hypothesis!$A$449=0,IF(W73<Hypothesis!$C$451,Hypothesis!$E$450,Hypothesis!$C$452*((LN(Hypothesis!$C$453*'United States'!AA70))-LN(Y72))),Hypothesis!$C$494*(LN('United States'!AA70)-LN('Euro Area'!Y72)-0.05*(Education!$N189-Education!$O189))+Hypothesis!$C$495*'Labor and Products Regulations'!$O74*(LN('United States'!AA70)-LN('Euro Area'!Y72)-0.05*(Education!$N189-Education!$O189))+Hypothesis!$C$496*(CUR!O85)+Hypothesis!$C$497*(Hours!O424)+Hypothesis!$C$498*(Employment!CC111-Employment!CC110)+0.00875472142857143) -> 0.008870305034 | Y73: 21.40504031 | Z73: =Y73/'United States'!AA71 -> 0.9228842487 | AA73: 0 | AC73: 2058 | AD73: 0.02447359727 | AE73: 1.897258913e+14 | AF73: 0 | AH73: 2058 | AI73: =IF(Hypothesis!$A$456=1,Hypothesis!$C$486+Hypothesis!$C$487*'Euro Area'!AI72+Hypothesis!$C$488*'Euro Area'!X73+Hypothesis!$C$489*'Euro Area'!X72+Hypothesis!$C$490*('Euro Area'!AJ72+Hypothesis!$C$491*LN('Euro Area'!Y72)),Hypothesis!$E$457) -> -0.006593832435 | AJ73: -0.3894142979 | AK73: 0
Q74: 2059 | R74: =(1/(1-Hypothesis!$C$483))*X74-(Hypothesis!$C$483/(1-Hypothesis!$C$483))*AI73+Employment!O385+Hours!O425 -> 0.01831265341 | S74: 3.286871346e+13 | T74: 0 | U74: =S74/Employment!DI72 -> 112753.7235 | W74: 2059 | X74: =IF(Hypothesis!$A$449=0,IF(W74<Hypothesis!$C$451,Hypothesis!$E$450,Hypothesis!$C$452*((LN(Hypothesis!$C$453*'United States'!AA71))-LN(Y73))),Hypothesis!$C$494*(LN('United States'!AA71)-LN('Euro Area'!Y73)-0.05*(Education!$N190-Education!$O190))+Hypothesis!$C$495*'Labor and Products Regulations'!$O75*(LN('United States'!AA71)-LN('Euro Area'!Y73)-0.05*(Education!$N190-Education!$O190))+Hypothesis!$C$496*(CUR!O86)+Hypothesis!$C$497*(Hours!O425)+Hypothesis!$C$498*(Employment!CC112-Employment!CC111)+0.00875472142857143) -> 0.008794114621 | Y74: 21.59410881 | Z74: =Y74/'United States'!AA72 -> 0.9232840683 | AA74: 0 | AC74: 2059 | AD74: 0.02484736446 | AE74: 1.944991354e+14 | AF74: 0 | AH74: 2059 | AI74: =IF(Hypothesis!$A$456=1,Hypothesis!$C$486+Hypothesis!$C$487*'Euro Area'!AI73+Hypothesis!$C$488*'Euro Area'!X74+Hypothesis!$C$489*'Euro Area'!X73+Hypothesis!$C$490*('Euro Area'!AJ73+Hypothesis!$C$491*LN('Euro Area'!Y73)),Hypothesis!$E$457) -> -0.006534711047 | AJ74: -0.395949009 | AK74: 0
Q75: 2060 | R75: =(1/(1-Hypothesis!$C$483))*X75-(Hypothesis!$C$483/(1-Hypothesis!$C$483))*AI74+Employment!O386+Hours!O426 -> 0.01825804842 | S75: 3.347434402e+13 | T75: 0 | U75: =S75/Employment!DI73 -> 114687.5573 | W75: 2060 | X75: =IF(Hypothesis!$A$449=0,IF(W75<Hypothesis!$C$451,Hypothesis!$E$450,Hypothesis!$C$452*((LN(Hypothesis!$C$453*'United States'!AA72))-LN(Y74))),Hypothesis!$C$494*(LN('United States'!AA72)-LN('Euro Area'!Y74)-0.05*(Education!$N191-Education!$O191))+Hypothesis!$C$495*'Labor and Products Regulations'!$O76*(LN('United States'!AA72)-LN('Euro Area'!Y74)-0.05*(Education!$N191-Education!$O191))+Hypothesis!$C$496*(CUR!O87)+Hypothesis!$C$497*(Hours!O426)+Hypothesis!$C$498*(Employment!CC113-Employment!CC112)+0.00875472142857143) -> 0.008728591714 | Y75: 21.78341998 | Z75: =Y75/'United States'!AA73 -> 0.9236235406 | AA75: 0 | AC75: 2060 | AD75: 0.02473618934 | AE75: 1.993703015e+14 | AF75: 0 | AH75: 2060 | AI75: =IF(Hypothesis!$A$456=1,Hypothesis!$C$486+Hypothesis!$C$487*'Euro Area'!AI74+Hypothesis!$C$488*'Euro Area'!X75+Hypothesis!$C$489*'Euro Area'!X74+Hypothesis!$C$490*('Euro Area'!AJ74+Hypothesis!$C$491*LN('Euro Area'!Y74)),Hypothesis!$E$457) -> -0.00647814092 | AJ75: -0.4024271499 | AK75: 0
Q76: 2061 | R76: =(1/(1-Hypothesis!$C$483))*X76-(Hypothesis!$C$483/(1-Hypothesis!$C$483))*AI75+Employment!O387+Hours!O427 -> 0.01734441521 | S76: 3.40600012e+13 | T76: 0 | U76: =S76/Employment!DI74 -> 116632.5332 | W76: 2061 | X76: =IF(Hypothesis!$A$449=0,IF(W76<Hypothesis!$C$451,Hypothesis!$E$450,Hypothesis!$C$452*((LN(Hypothesis!$C$453*'United States'!AA73))-LN(Y75))),Hypothesis!$C$494*(LN('United States'!AA73)-LN('Euro Area'!Y75)-0.05*(Education!$N192-Education!$O192))+Hypothesis!$C$495*'Labor and Products Regulations'!$O77*(LN('United States'!AA73)-LN('Euro Area'!Y75)-0.05*(Education!$N192-Education!$O192))+Hypothesis!$C$496*(CUR!O88)+Hypothesis!$C$497*(Hours!O427)+Hypothesis!$C$498*(Employment!CC114-Employment!CC113)+0.00875472142857143) -> 0.008661398781 | Y76: 21.97291432 | Z76: =Y76/'United States'!AA74 -> 0.9239010559 | AA76: 0 | AC76: 2061 | AD76: 0.02376606135 | AE76: 2.041653018e+14 | AF76: 0 | AH76: 2061 | AI76: =IF(Hypothesis!$A$456=1,Hypothesis!$C$486+Hypothesis!$C$487*'Euro Area'!AI75+Hypothesis!$C$488*'Euro Area'!X76+Hypothesis!$C$489*'Euro Area'!X75+Hypothesis!$C$490*('Euro Area'!AJ75+Hypothesis!$C$491*LN('Euro Area'!Y75)),Hypothesis!$E$457) -> -0.00642164614 | AJ76: -0.408848796 | AK76: 0
Q77: 2062 | R77: =(1/(1-Hypothesis!$C$483))*X77-(Hypothesis!$C$483/(1-Hypothesis!$C$483))*AI76+Employment!O388+Hours!O428 -> 0.0173108607 | S77: 3.465474202e+13 | T77: 0 | U77: =S77/Employment!DI75 -> 118605.6712 | W77: 2062 | X77: =IF(Hypothesis!$A$449=0,IF(W77<Hypothesis!$C$451,Hypothesis!$E$450,Hypothesis!$C$452*((LN(Hypothesis!$C$453*'United States'!AA74))-LN(Y76))),Hypothesis!$C$494*(LN('United States'!AA74)-LN('Euro Area'!Y76)-0.05*(Education!$N193-Education!$O193))+Hypothesis!$C$495*'Labor and Products Regulations'!$O78*(LN('United States'!AA74)-LN('Euro Area'!Y76)-0.05*(Education!$N193-Education!$O193))+Hypothesis!$C$496*(CUR!O89)+Hypothesis!$C$497*(Hours!O428)+Hypothesis!$C$498*(Employment!CC115-Employment!CC114)+0.00875472142857143) -> 0.008654859059 | Y77: 22.16391214 | Z77: =Y77/'United States'!AA75 -> 0.9241726109 | AA77: 0 | AC77: 2062 | AD77: 0.02369346769 | AE77: 2.090604482e+14 | AF77: 0 | AH77: 2062 | AI77: =IF(Hypothesis!$A$456=1,Hypothesis!$C$486+Hypothesis!$C$487*'Euro Area'!AI76+Hypothesis!$C$488*'Euro Area'!X77+Hypothesis!$C$489*'Euro Area'!X76+Hypothesis!$C$490*('Euro Area'!AJ76+Hypothesis!$C$491*LN('Euro Area'!Y76)),Hypothesis!$E$457) -> -0.006382606995 | AJ77: -0.415231403 | AK77: 0
Q78: 2063 | R78: =(1/(1-Hypothesis!$C$483))*X78-(Hypothesis!$C$483/(1-Hypothesis!$C$483))*AI77+Employment!O389+Hours!O429 -> 0.01723771596 | S78: 3.525728897e+13 | T78: 0 | U78: =S78/Employment!DI76 -> 120602.5106 | W78: 2063 | X78: =IF(Hypothesis!$A$449=0,IF(W78<Hypothesis!$C$451,Hypothesis!$E$450,Hypothesis!$C$452*((LN(Hypothesis!$C$453*'United States'!AA75))-LN(Y77))),Hypothesis!$C$494*(LN('United States'!AA75)-LN('Euro Area'!Y77)-0.05*(Education!$N194-Education!$O194))+Hypothesis!$C$495*'Labor and Products Regulations'!$O79*(LN('United States'!AA75)-LN('Euro Area'!Y77)-0.05*(Education!$N194-Education!$O194))+Hypothesis!$C$496*(CUR!O90)+Hypothesis!$C$497*(Hours!O429)+Hypothesis!$C$498*(Employment!CC116-Employment!CC115)+0.00875472142857143) -> 0.008615369487 | Y78: 22.35568735 | Z78: =Y78/'United States'!AA76 -> 0.9244077404 | AA78: 0 | AC78: 2063 | AD78: 0.02357575059 | AE78: 2.140477641e+14 | AF78: 0 | AH78: 2063 | AI78: =IF(Hypothesis!$A$456=1,Hypothesis!$C$486+Hypothesis!$C$487*'Euro Area'!AI77+Hypothesis!$C$488*'Euro Area'!X78+Hypothesis!$C$489*'Euro Area'!X77+Hypothesis!$C$490*('Euro Area'!AJ77+Hypothesis!$C$491*LN('Euro Area'!Y77)),Hypothesis!$E$457) -> -0.006338034627 | AJ78: -0.4215694377 | AK78: 0
Q79: 2064 | R79: =(1/(1-Hypothesis!$C$483))*X79-(Hypothesis!$C$483/(1-Hypothesis!$C$483))*AI78+Employment!O390+Hours!O430 -> 0.01716964342 | S79: 3.586787078e+13 | T79: 0 | U79: =S79/Employment!DI77 -> 122623.7486 | W79: 2064 | X79: =IF(Hypothesis!$A$449=0,IF(W79<Hypothesis!$C$451,Hypothesis!$E$450,Hypothesis!$C$452*((LN(Hypothesis!$C$453*'United States'!AA76))-LN(Y78))),Hypothesis!$C$494*(LN('United States'!AA76)-LN('Euro Area'!Y78)-0.05*(Education!$N195-Education!$O195))+Hypothesis!$C$495*'Labor and Products Regulations'!$O80*(LN('United States'!AA76)-LN('Euro Area'!Y78)-0.05*(Education!$N195-Education!$O195))+Hypothesis!$C$496*(CUR!O91)+Hypothesis!$C$497*(Hours!O430)+Hypothesis!$C$498*(Employment!CC117-Employment!CC116)+0.00875472142857143) -> 0.008581090418 | Y79: 22.54834897 | Z79: =Y79/'United States'!AA77 -> 0.9246112344 | AA79: 0 | AC79: 2064 | AD79: 0.02346925907 | AE79: 2.191307198e+14 | AF79: 0 | AH79: 2064 | AI79: =IF(Hypothesis!$A$456=1,Hypothesis!$C$486+Hypothesis!$C$487*'Euro Area'!AI78+Hypothesis!$C$488*'Euro Area'!X79+Hypothesis!$C$489*'Euro Area'!X78+Hypothesis!$C$490*('Euro Area'!AJ78+Hypothesis!$C$491*LN('Euro Area'!Y78)),Hypothesis!$E$457) -> -0.006299615649 | AJ79: -0.4278690533 | AK79: 0
Q80: 2065 | R80: =(1/(1-Hypothesis!$C$483))*X80-(Hypothesis!$C$483/(1-Hypothesis!$C$483))*AI79+Employment!O391+Hours!O431 -> 0.01711066924 | S80: 3.648687474e+13 | T80: 0 | U80: =S80/Employment!DI78 -> 124670.6214 | W80: 2065 | X80: =IF(Hypothesis!$A$449=0,IF(W80<Hypothesis!$C$451,Hypothesis!$E$450,Hypothesis!$C$452*((LN(Hypothesis!$C$453*'United States'!AA77))-LN(Y79))),Hypothesis!$C$494*(LN('United States'!AA77)-LN('Euro Area'!Y79)-0.05*(Education!$N196-Education!$O196))+Hypothesis!$C$495*'Labor and Products Regulations'!$O81*(LN('United States'!AA77)-LN('Euro Area'!Y79)-0.05*(Education!$N196-Education!$O196))+Hypothesis!$C$496*(CUR!O92)+Hypothesis!$C$497*(Hours!O431)+Hypothesis!$C$498*(Employment!CC118-Employment!CC117)+0.00875472142857143) -> 0.008551334185 | Y80: 22.74199422 | Z80: =Y80/'United States'!AA78 -> 0.9247872547 | AA80: 0 | AC80: 2065 | AD80: 0.02337775672 | AE80: 2.243138534e+14 | AF80: 0 | AH80: 2065 | AI80: =IF(Hypothesis!$A$456=1,Hypothesis!$C$486+Hypothesis!$C$487*'Euro Area'!AI79+Hypothesis!$C$488*'Euro Area'!X80+Hypothesis!$C$489*'Euro Area'!X79+Hypothesis!$C$490*('Euro Area'!AJ79+Hypothesis!$C$491*LN('Euro Area'!Y79)),Hypothesis!$E$457) -> -0.006267087477 | AJ80: -0.4341361408 | AK80: 0
Q81: 2066 | R81: =(1/(1-Hypothesis!$C$483))*X81-(Hypothesis!$C$483/(1-Hypothesis!$C$483))*AI80+Employment!O392+Hours!O432 -> 0.01705982815 | S81: 3.71146744e+13 | T81: 0 | U81: =S81/Employment!DI79 -> 126744.3146 | W81: 2066 | X81: =IF(Hypothesis!$A$449=0,IF(W81<Hypothesis!$C$451,Hypothesis!$E$450,Hypothesis!$C$452*((LN(Hypothesis!$C$453*'United States'!AA78))-LN(Y80))),Hypothesis!$C$494*(LN('United States'!AA78)-LN('Euro Area'!Y80)-0.05*(Education!$N197-Education!$O197))+Hypothesis!$C$495*'Labor and Products Regulations'!$O82*(LN('United States'!AA78)-LN('Euro Area'!Y80)-0.05*(Education!$N197-Education!$O197))+Hypothesis!$C$496*(CUR!O93)+Hypothesis!$C$497*(Hours!O432)+Hypothesis!$C$498*(Employment!CC119-Employment!CC118)+0.00875472142857143) -> 0.008525503874 | Y81: 22.93671002 | Z81: =Y81/'United States'!AA79 -> 0.9249394166 | AA81: 0 | AC81: 2066 | AD81: 0.02329979337 | AE81: 2.296016833e+14 | AF81: 0 | AH81: 2066 | AI81: =IF(Hypothesis!$A$456=1,Hypothesis!$C$486+Hypothesis!$C$487*'Euro Area'!AI80+Hypothesis!$C$488*'Euro Area'!X81+Hypothesis!$C$489*'Euro Area'!X80+Hypothesis!$C$490*('Euro Area'!AJ80+Hypothesis!$C$491*LN('Euro Area'!Y80)),Hypothesis!$E$457) -> -0.006239965215 | AJ81: -0.440376106 | AK81: 0
Q82: 2067 | R82: =(1/(1-Hypothesis!$C$483))*X82-(Hypothesis!$C$483/(1-Hypothesis!$C$483))*AI81+Employment!O393+Hours!O433 -> 0.01701617215 | S82: 3.775162798e+13 | T82: 0 | U82: =S82/Employment!DI80 -> 128845.957 | W82: 2067 | X82: =IF(Hypothesis!$A$449=0,IF(W82<Hypothesis!$C$451,Hypothesis!$E$450,Hypothesis!$C$452*((LN(Hypothesis!$C$453*'United States'!AA79))-LN(Y81))),Hypothesis!$C$494*(LN('United States'!AA79)-LN('Euro Area'!Y81)-0.05*(Education!$N198-Education!$O198))+Hypothesis!$C$495*'Labor and Products Regulations'!$O83*(LN('United States'!AA79)-LN('Euro Area'!Y81)-0.05*(Education!$N198-Education!$O198))+Hypothesis!$C$496*(CUR!O94)+Hypothesis!$C$497*(Hours!O433)+Hypothesis!$C$498*(Employment!CC120-Employment!CC119)+0.00875472142857143) -> 0.008503081349 | Y82: 23.13257428 | Z82: =Y82/'United States'!AA80 -> 0.9250708609 | AA82: 0 | AC82: 2067 | AD82: 0.02323378879 | AE82: 2.349986536e+14 | AF82: 0 | AH82: 2067 | AI82: =IF(Hypothesis!$A$456=1,Hypothesis!$C$486+Hypothesis!$C$487*'Euro Area'!AI81+Hypothesis!$C$488*'Euro Area'!X82+Hypothesis!$C$489*'Euro Area'!X81+Hypothesis!$C$490*('Euro Area'!AJ81+Hypothesis!$C$491*LN('Euro Area'!Y81)),Hypothesis!$E$457) -> -0.00621761664 | AJ82: -0.4465937226 | AK82: 0
Q83: 2068 | R83: =(1/(1-Hypothesis!$C$483))*X83-(Hypothesis!$C$483/(1-Hypothesis!$C$483))*AI82+Employment!O394+Hours!O434 -> 0.01697878776 | S83: 3.839807729e+13 | T83: 0 | U83: =S83/Employment!DI81 -> 130976.6177 | W83: 2068 | X83: =IF(Hypothesis!$A$449=0,IF(W83<Hypothesis!$C$451,Hypothesis!$E$450,Hypothesis!$C$452*((LN(Hypothesis!$C$453*'United States'!AA80))-LN(Y82))),Hypothesis!$C$494*(LN('United States'!AA80)-LN('Euro Area'!Y82)-0.05*(Education!$N199-Education!$O199))+Hypothesis!$C$495*'Labor and Products Regulations'!$O84*(LN('United States'!AA80)-LN('Euro Area'!Y82)-0.05*(Education!$N199-Education!$O199))+Hypothesis!$C$496*(CUR!O95)+Hypothesis!$C$497*(Hours!O434)+Hypothesis!$C$498*(Employment!CC121-Employment!CC120)+0.00875472142857143) -> 0.008483616852 | Y83: 23.32965698 | Z83: =Y83/'United States'!AA81 -> 0.9251843155 | AA83: 0 | AC83: 2068 | AD83: 0.02317812449 | AE83: 2.405090958e+14 | AF83: 0 | AH83: 2068 | AI83: =IF(Hypothesis!$A$456=1,Hypothesis!$C$486+Hypothesis!$C$487*'Euro Area'!AI82+Hypothesis!$C$488*'Euro Area'!X83+Hypothesis!$C$489*'Euro Area'!X82+Hypothesis!$C$490*('Euro Area'!AJ82+Hypothesis!$C$491*LN('Euro Area'!Y82)),Hypothesis!$E$457) -> -0.006199336733 | AJ83: -0.4527930594 | AK83: 0
Q84: 2069 | R84: =(1/(1-Hypothesis!$C$483))*X84-(Hypothesis!$C$483/(1-Hypothesis!$C$483))*AI83+Employment!O395+Hours!O435 -> 0.01694681513 | S84: 3.905434755e+13 | T84: 0 | U84: =S84/Employment!DI82 -> 133137.3055 | W84: 2069 | X84: =IF(Hypothesis!$A$449=0,IF(W84<Hypothesis!$C$451,Hypothesis!$E$450,Hypothesis!$C$452*((LN(Hypothesis!$C$453*'United States'!AA81))-LN(Y83))),Hypothesis!$C$494*(LN('United States'!AA81)-LN('Euro Area'!Y83)-0.05*(Education!$N200-Education!$O200))+Hypothesis!$C$495*'Labor and Products Regulations'!$O85*(LN('United States'!AA81)-LN('Euro Area'!Y83)-0.05*(Education!$N200-Education!$O200))+Hypothesis!$C$496*(CUR!O96)+Hypothesis!$C$497*(Hours!O435)+Hypothesis!$C$498*(Employment!CC122-Employment!CC121)+0.00875472142857143) -> 0.008466719981 | Y84: 23.52802121 | Z84: =Y84/'United States'!AA82 -> 0.9252821495 | AA84: 0 | AC84: 2069 | AD84: 0.02313122801 | AE84: 2.461372082e+14 | AF84: 0 | AH84: 2069 | AI84: =IF(Hypothesis!$A$456=1,Hypothesis!$C$486+Hypothesis!$C$487*'Euro Area'!AI83+Hypothesis!$C$488*'Euro Area'!X84+Hypothesis!$C$489*'Euro Area'!X83+Hypothesis!$C$490*('Euro Area'!AJ83+Hypothesis!$C$491*LN('Euro Area'!Y83)),Hypothesis!$E$457) -> -0.006184412884 | AJ84: -0.4589774723 | AK84: 0
Q85: 2070 | R85: =(1/(1-Hypothesis!$C$483))*X85-(Hypothesis!$C$483/(1-Hypothesis!$C$483))*AI84+Employment!O396+Hours!O436 -> 0.01691946474 | S85: 3.972074787e+13 | T85: 0 | U85: =S85/Employment!DI83 -> 135328.9702 | W85: 2070 | X85: =IF(Hypothesis!$A$449=0,IF(W85<Hypothesis!$C$451,Hypothesis!$E$450,Hypothesis!$C$452*((LN(Hypothesis!$C$453*'United States'!AA82))-LN(Y84))),Hypothesis!$C$494*(LN('United States'!AA82)-LN('Euro Area'!Y84)-0.05*(Education!$N201-Education!$O201))+Hypothesis!$C$495*'Labor and Products Regulations'!$O86*(LN('United States'!AA82)-LN('Euro Area'!Y84)-0.05*(Education!$N201-Education!$O201))+Hypothesis!$C$496*(CUR!O97)+Hypothesis!$C$497*(Hours!O436)+Hypothesis!$C$498*(Employment!CC123-Employment!CC122)+0.00875472142857143) -> 0.008452051861 | Y85: 23.72772403 | Z85: =Y85/'United States'!AA83 -> 0.9253664204 | AA85: 0 | AC85: 2070 | AD85: 0.02309164047 | AE85: 2.518870512e+14 | AF85: 0 | AH85: 2070 | AI85: =IF(Hypothesis!$A$456=1,Hypothesis!$C$486+Hypothesis!$C$487*'Euro Area'!AI84+Hypothesis!$C$488*'Euro Area'!X85+Hypothesis!$C$489*'Euro Area'!X84+Hypothesis!$C$490*('Euro Area'!AJ84+Hypothesis!$C$491*LN('Euro Area'!Y84)),Hypothesis!$E$457) -> -0.006172175734 | AJ85: -0.465149648 | AK85: 0
Q86: 2071 | R86: =(1/(1-Hypothesis!$C$483))*X86-(Hypothesis!$C$483/(1-Hypothesis!$C$483))*AI85+Employment!O397+Hours!O437 -> 0.01689602949 | S86: 4.039757252e+13 | T86: 0 | U86: =S86/Employment!DI84 -> 137552.5074 | W86: 2071 | X86: =IF(Hypothesis!$A$449=0,IF(W86<Hypothesis!$C$451,Hypothesis!$E$450,Hypothesis!$C$452*((LN(Hypothesis!$C$453*'United States'!AA83))-LN(Y85))),Hypothesis!$C$494*(LN('United States'!AA83)-LN('Euro Area'!Y85)-0.05*(Education!$N202-Education!$O202))+Hypothesis!$C$495*'Labor and Products Regulations'!$O87*(LN('United States'!AA83)-LN('Euro Area'!Y85)-0.05*(Education!$N202-Education!$O202))+Hypothesis!$C$496*(CUR!O98)+Hypothesis!$C$497*(Hours!O437)+Hypothesis!$C$498*(Employment!CC124-Employment!CC123)+0.00875472142857143) -> 0.008439318336 | Y86: 23.9288172 | Z86: =Y86/'United States'!AA84 -> 0.9254389147 | AA86: 0 | AC86: 2071 | AD86: 0.02305806329 | AE86: 2.577625574e+14 | AF86: 0 | AH86: 2071 | AI86: =IF(Hypothesis!$A$456=1,Hypothesis!$C$486+Hypothesis!$C$487*'Euro Area'!AI85+Hypothesis!$C$488*'Euro Area'!X86+Hypothesis!$C$489*'Euro Area'!X85+Hypothesis!$C$490*('Euro Area'!AJ85+Hypothesis!$C$491*LN('Euro Area'!Y85)),Hypothesis!$E$457) -> -0.006162033799 | AJ86: -0.4713116818 | AK86: 0
Q87: 2072 | R87: =(1/(1-Hypothesis!$C$483))*X87-(Hypothesis!$C$483/(1-Hypothesis!$C$483))*AI86+Employment!O398+Hours!O438 -> 0.01687589115 | S87: 4.108510258e+13 | T87: 0 | U87: =S87/Employment!DI85 -> 139808.7641 | W87: 2072 | X87: =IF(Hypothesis!$A$449=0,IF(W87<Hypothesis!$C$451,Hypothesis!$E$450,Hypothesis!$C$452*((LN(Hypothesis!$C$453*'United States'!AA84))-LN(Y86))),Hypothesis!$C$494*(LN('United States'!AA84)-LN('Euro Area'!Y86)-0.05*(Education!$N203-Education!$O203))+Hypothesis!$C$495*'Labor and Products Regulations'!$O88*(LN('United States'!AA84)-LN('Euro Area'!Y86)-0.05*(Education!$N203-Education!$O203))+Hypothesis!$C$496*(CUR!O99)+Hypothesis!$C$497*(Hours!O438)+Hypothesis!$C$498*(Employment!CC125-Employment!CC124)+0.00875472142857143) -> 0.008428264075 | Y87: 24.13134788 | Z87: =Y87/'United States'!AA85 -> 0.925501184 | AA87: 0 | AC87: 2072 | AD87: 0.0230293836 | AE87: 2.637675504e+14 | AF87: 0 | AH87: 2072 | AI87: =IF(Hypothesis!$A$456=1,Hypothesis!$C$486+Hypothesis!$C$487*'Euro Area'!AI86+Hypothesis!$C$488*'Euro Area'!X87+Hypothesis!$C$489*'Euro Area'!X86+Hypothesis!$C$490*('Euro Area'!AJ86+Hypothesis!$C$491*LN('Euro Area'!Y86)),Hypothesis!$E$457) -> -0.006153492451 | AJ87: -0.4774651742 | AK87: 0
Q88: 2073 | R88: =(1/(1-Hypothesis!$C$483))*X88-(Hypothesis!$C$483/(1-Hypothesis!$C$483))*AI87+Employment!O399+Hours!O439 -> 0.01685852109 | S88: 4.178360799e+13 | T88: 0 | U88: =S88/Employment!DI86 -> 142098.5457 | W88: 2073 | X88: =IF(Hypothesis!$A$449=0,IF(W88<Hypothesis!$C$451,Hypothesis!$E$450,Hypothesis!$C$452*((LN(Hypothesis!$C$453*'United States'!AA85))-LN(Y87))),Hypothesis!$C$494*(LN('United States'!AA85)-LN('Euro Area'!Y87)-0.05*(Education!$N204-Education!$O204))+Hypothesis!$C$495*'Labor and Products Regulations'!$O89*(LN('United States'!AA85)-LN('Euro Area'!Y87)-0.05*(Education!$N204-Education!$O204))+Hypothesis!$C$496*(CUR!O100)+Hypothesis!$C$497*(Hours!O439)+Hypothesis!$C$498*(Employment!CC126-Employment!CC125)+0.00875472142857143) -> 0.008418667442 | Y88: 24.33535922 | Z88: =Y88/'United States'!AA86 -> 0.9255545752 | AA88: 0 | AC88: 2073 | AD88: 0.02300468056 | AE88: 2.699057719e+14 | AF88: 0 | AH88: 2073 | AI88: =IF(Hypothesis!$A$456=1,Hypothesis!$C$486+Hypothesis!$C$487*'Euro Area'!AI87+Hypothesis!$C$488*'Euro Area'!X88+Hypothesis!$C$489*'Euro Area'!X87+Hypothesis!$C$490*('Euro Area'!AJ87+Hypothesis!$C$491*LN('Euro Area'!Y87)),Hypothesis!$E$457) -> -0.006146159465 | AJ88: -0.4836113337 | AK88: 0
Q89: 2074 | R89: =(1/(1-Hypothesis!$C$483))*X89-(Hypothesis!$C$483/(1-Hypothesis!$C$483))*AI88+Employment!O400+Hours!O440 -> 0.0168434764 | S89: 4.249334969e+13 | T89: 0 | U89: =S89/Employment!DI87 -> 144422.6233 | W89: 2074 | X89: =IF(Hypothesis!$A$449=0,IF(W89<Hypothesis!$C$451,Hypothesis!$E$450,Hypothesis!$C$452*((LN(Hypothesis!$C$453*'United States'!AA86))-LN(Y88))),Hypothesis!$C$494*(LN('United States'!AA86)-LN('Euro Area'!Y88)-0.05*(Education!$N205-Education!$O205))+Hypothesis!$C$495*'Labor and Products Regulations'!$O90*(LN('United States'!AA86)-LN('Euro Area'!Y88)-0.05*(Education!$N205-Education!$O205))+Hypothesis!$C$496*(CUR!O101)+Hypothesis!$C$497*(Hours!O440)+Hypothesis!$C$498*(Employment!CC127-Employment!CC126)+0.00875472142857143) -> 0.008410336054 | Y89: 24.54089085 | Z89: =Y89/'United States'!AA87 -> 0.9256002579 | AA89: 0 | AC89: 2074 | AD89: 0.02298321659 | AE89: 2.761809099e+14 | AF89: 0 | AH89: 2074 | AI89: =IF(Hypothesis!$A$456=1,Hypothesis!$C$486+Hypothesis!$C$487*'Euro Area'!AI88+Hypothesis!$C$488*'Euro Area'!X89+Hypothesis!$C$489*'Euro Area'!X88+Hypothesis!$C$490*('Euro Area'!AJ88+Hypothesis!$C$491*LN('Euro Area'!Y88)),Hypothesis!$E$457) -> -0.006139740184 | AJ89: -0.4897510739 | AK89: 0
Q90: 2075 | R90: =(1/(1-Hypothesis!$C$483))*X90-(Hypothesis!$C$483/(1-Hypothesis!$C$483))*AI89+Employment!O401+Hours!O441 -> 0.01683039223 | S90: 4.321458171e+13 | T90: 0 | U90: =S90/Employment!DI88 -> 146781.741 | W90: 2075 | X90: =IF(Hypothesis!$A$449=0,IF(W90<Hypothesis!$C$451,Hypothesis!$E$450,Hypothesis!$C$452*((LN(Hypothesis!$C$453*'United States'!AA87))-LN(Y89))),Hypothesis!$C$494*(LN('United States'!AA87)-LN('Euro Area'!Y89)-0.05*(Education!$N206-Education!$O206))+Hypothesis!$C$495*'Labor and Products Regulations'!$O91*(LN('United States'!AA87)-LN('Euro Area'!Y89)-0.05*(Education!$N206-Education!$O206))+Hypothesis!$C$496*(CUR!O102)+Hypothesis!$C$497*(Hours!O441)+Hypothesis!$C$498*(Employment!CC128-Employment!CC127)+0.00875472142857143) -> 0.008403102917 | Y90: 24.74797936 | Z90: =Y90/'United States'!AA88 -> 0.9256392475 | AA90: 0 | AC90: 2075 | AD90: 0.02296441788 | AE90: 2.825966284e+14 | AF90: 0 | AH90: 2075 | AI90: =IF(Hypothesis!$A$456=1,Hypothesis!$C$486+Hypothesis!$C$487*'Euro Area'!AI89+Hypothesis!$C$488*'Euro Area'!X90+Hypothesis!$C$489*'Euro Area'!X89+Hypothesis!$C$490*('Euro Area'!AJ89+Hypothesis!$C$491*LN('Euro Area'!Y89)),Hypothesis!$E$457) -> -0.006134025654 | AJ90: -0.4958850995 | AK90: 0
Q91: 2076 | R91: =(1/(1-Hypothesis!$C$483))*X91-(Hypothesis!$C$483/(1-Hypothesis!$C$483))*AI90+Employment!O402+Hours!O442 -> 0.01681897194 | S91: 4.394755319e+13 | T91: 0 | U91: =S91/Employment!DI89 -> 149176.6227 | W91: 2076 | X91: =IF(Hypothesis!$A$449=0,IF(W91<Hypothesis!$C$451,Hypothesis!$E$450,Hypothesis!$C$452*((LN(Hypothesis!$C$453*'United States'!AA88))-LN(Y90))),Hypothesis!$C$494*(LN('United States'!AA88)-LN('Euro Area'!Y90)-0.05*(Education!$N207-Education!$O207))+Hypothesis!$C$495*'Labor and Products Regulations'!$O92*(LN('United States'!AA88)-LN('Euro Area'!Y90)-0.05*(Education!$N207-Education!$O207))+Hypothesis!$C$496*(CUR!O103)+Hypothesis!$C$497*(Hours!O442)+Hypothesis!$C$498*(Employment!CC129-Employment!CC128)+0.00875472142857143) -> 0.008396823077 | Y91: 24.95665866 | Z91: =Y91/'United States'!AA89 -> 0.9256724257 | AA91: 0 | AC91: 2076 | AD91: 0.0229478488 | AE91: 2.891565938e+14 | AF91: 0 | AH91: 2076 | AI91: =IF(Hypothesis!$A$456=1,Hypothesis!$C$486+Hypothesis!$C$487*'Euro Area'!AI90+Hypothesis!$C$488*'Euro Area'!X91+Hypothesis!$C$489*'Euro Area'!X90+Hypothesis!$C$490*('Euro Area'!AJ90+Hypothesis!$C$491*LN('Euro Area'!Y90)),Hypothesis!$E$457) -> -0.006128876857 | AJ91: -0.5020139764 | AK91: 0
Q92: 2077 | R92: =(1/(1-Hypothesis!$C$483))*X92-(Hypothesis!$C$483/(1-Hypothesis!$C$483))*AI91+Employment!O403+Hours!O443 -> 0.01680897622 | S92: 4.469251e+13 | T92: 0 | U92: =S92/Employment!DI90 -> 151607.9775 | W92: 2077 | X92: =IF(Hypothesis!$A$449=0,IF(W92<Hypothesis!$C$451,Hypothesis!$E$450,Hypothesis!$C$452*((LN(Hypothesis!$C$453*'United States'!AA89))-LN(Y91))),Hypothesis!$C$494*(LN('United States'!AA89)-LN('Euro Area'!Y91)-0.05*(Education!$N208-Education!$O208))+Hypothesis!$C$495*'Labor and Products Regulations'!$O93*(LN('United States'!AA89)-LN('Euro Area'!Y91)-0.05*(Education!$N208-Education!$O208))+Hypothesis!$C$496*(CUR!O104)+Hypothesis!$C$497*(Hours!O443)+Hypothesis!$C$498*(Employment!CC130-Employment!CC129)+0.00875472142857143) -> 0.008391370711 | Y92: 25.16696036 | Z92: =Y92/'United States'!AA90 -> 0.9257005579 | AA92: 0 | AC92: 2077 | AD92: 0.02293318394 | AE92: 2.958644979e+14 | AF92: 0 | AH92: 2077 | AI92: =IF(Hypothesis!$A$456=1,Hypothesis!$C$486+Hypothesis!$C$487*'Euro Area'!AI91+Hypothesis!$C$488*'Euro Area'!X92+Hypothesis!$C$489*'Euro Area'!X91+Hypothesis!$C$490*('Euro Area'!AJ91+Hypothesis!$C$491*LN('Euro Area'!Y91)),Hypothesis!$E$457) -> -0.006124207715 | AJ92: -0.5081381841 | AK92: 0
Q93: =Q92+1 -> 2078 | R93: =(1/(1-Hypothesis!$C$483))*X93-(Hypothesis!$C$483/(1-Hypothesis!$C$483))*AI92+Employment!O404+Hours!O444 -> 0.01680021215 | S93: 4.544969629e+13 | T93: 0 | U93: =S93/Employment!DI91 -> 154076.5051 | W93: =W92+1 -> 2078 | X93: =IF(Hypothesis!$A$449=0,IF(W93<Hypothesis!$C$451,Hypothesis!$E$450,Hypothesis!$C$452*((LN(Hypothesis!$C$453*'United States'!AA90))-LN(Y92))),Hypothesis!$C$494*(LN('United States'!AA90)-LN('Euro Area'!Y92)-0.05*(Education!$N209-Education!$O209))+Hypothesis!$C$495*'Labor and Products Regulations'!$O94*(LN('United States'!AA90)-LN('Euro Area'!Y92)-0.05*(Education!$N209-Education!$O209))+Hypothesis!$C$496*(CUR!O105)+Hypothesis!$C$497*(Hours!O444)+Hypothesis!$C$498*(Employment!CC131-Employment!CC130)+0.00875472142857143) -> 0.008386636604 | Y93: 25.37891406 | Z93: =Y93/'United States'!AA91 -> 0.9257243084 | AA93: 0 | AC93: =AC92+1 -> 2078 | AD93: =R93- AI93 -> 0.02292018102 | AE93: =AE92*EXP(AD93) -> 302724076895228 | AF93: 0 | AH93: =AH92+1 -> 2078 | AI93: =IF(Hypothesis!$A$456=1,Hypothesis!$C$486+Hypothesis!$C$487*'Euro Area'!AI92+Hypothesis!$C$488*'Euro Area'!X93+Hypothesis!$C$489*'Euro Area'!X92+Hypothesis!$C$490*('Euro Area'!AJ92+Hypothesis!$C$491*LN('Euro Area'!Y92)),Hypothesis!$E$457) -> -0.006119968873 | AJ93: -0.514258153 | AK93: 0
Q94: 2079 | R94: =(1/(1-Hypothesis!$C$483))*X94-(Hypothesis!$C$483/(1-Hypothesis!$C$483))*AI93+Employment!O405+Hours!O445 -> 0.01679252314 | S94: =EXP(R94)*S93 -> 4.621935554e+13 | T94: 0 | U94: =S94/Employment!DI92 -> 156582.8991 | W94: 2079 | X94: =IF(Hypothesis!$A$449=0,IF(W94<Hypothesis!$C$451,Hypothesis!$E$450,Hypothesis!$C$452*((LN(Hypothesis!$C$453*'United States'!AA91))-LN(Y93))),Hypothesis!$C$494*(LN('United States'!AA91)-LN('Euro Area'!Y93)-0.05*(Education!$N210-Education!$O210))+Hypothesis!$C$495*'Labor and Products Regulations'!$O95*(LN('United States'!AA91)-LN('Euro Area'!Y93)-0.05*(Education!$N210-Education!$O210))+Hypothesis!$C$496*(CUR!O106)+Hypothesis!$C$497*(Hours!O445)+Hypothesis!$C$498*(Employment!CC132-Employment!CC131)+0.00875472142857143) -> 0.008382525951 | Y94: =Y93*EXP(X94) -> 25.59254761 | Z94: =Y94/'United States'!AA92 -> 0.925744254 | AA94: 0 | AC94: 2079 | AD94: 0.02290865678 | AE94: 3.097391247e+14 | AF94: 0 | AH94: 2079 | AI94: =IF(Hypothesis!$A$456=1,Hypothesis!$C$486+Hypothesis!$C$487*'Euro Area'!AI93+Hypothesis!$C$488*'Euro Area'!X94+Hypothesis!$C$489*'Euro Area'!X93+Hypothesis!$C$490*('Euro Area'!AJ93+Hypothesis!$C$491*LN('Euro Area'!Y93)),Hypothesis!$E$457) -> -0.006116133634 | AJ94: =AJ93+AI94 -> -0.5203742866 | AK94: 0
Q95: 2080 | R95: =(1/(1-Hypothesis!$C$483))*X95-(Hypothesis!$C$483/(1-Hypothesis!$C$483))*AI94+Employment!O406+Hours!O446 -> 0.0167857802 | S95: 4.700173151e+13 | T95: 0 | U95: =S95/Employment!DI93 -> 159127.8505 | W95: 2080 | X95: =IF(Hypothesis!$A$449=0,IF(W95<Hypothesis!$C$451,Hypothesis!$E$450,Hypothesis!$C$452*((LN(Hypothesis!$C$453*'United States'!AA92))-LN(Y94))),Hypothesis!$C$494*(LN('United States'!AA92)-LN('Euro Area'!Y94)-0.05*(Education!$N211-Education!$O211))+Hypothesis!$C$495*'Labor and Products Regulations'!$O96*(LN('United States'!AA92)-LN('Euro Area'!Y94)-0.05*(Education!$N211-Education!$O211))+Hypothesis!$C$496*(CUR!O107)+Hypothesis!$C$497*(Hours!O446)+Hypothesis!$C$498*(Employment!CC133-Employment!CC132)+0.00875472142857143) -> 0.008378956463 | Y95: 25.80788735 | Z95: =Y95/'United States'!AA93 -> 0.9257608956 | AA95: 0 | AC95: 2080 | AD95: 0.02289846696 | AE95: 3.169135035e+14 | AF95: 0 | AH95: 2080 | AI95: =IF(Hypothesis!$A$456=1,Hypothesis!$C$486+Hypothesis!$C$487*'Euro Area'!AI94+Hypothesis!$C$488*'Euro Area'!X95+Hypothesis!$C$489*'Euro Area'!X94+Hypothesis!$C$490*('Euro Area'!AJ94+Hypothesis!$C$491*LN('Euro Area'!Y94)),Hypothesis!$E$457) -> -0.00611268676 | AJ95: -0.5264869734 | AK95: 0
Q96: 2081 | R96: =(1/(1-Hypothesis!$C$483))*X96-(Hypothesis!$C$483/(1-Hypothesis!$C$483))*AI95+Employment!O407+Hours!O447 -> 0.01677987475 | S96: 4.779706885e+13 | T96: 0 | U96: =S96/Employment!DI94 -> 161712.0493 | W96: 2081 | X96: =IF(Hypothesis!$A$449=0,IF(W96<Hypothesis!$C$451,Hypothesis!$E$450,Hypothesis!$C$452*((LN(Hypothesis!$C$453*'United States'!AA93))-LN(Y95))),Hypothesis!$C$494*(LN('United States'!AA93)-LN('Euro Area'!Y95)-0.05*(Education!$N212-Education!$O212))+Hypothesis!$C$495*'Labor and Products Regulations'!$O97*(LN('United States'!AA93)-LN('Euro Area'!Y95)-0.05*(Education!$N212-Education!$O212))+Hypothesis!$C$496*(CUR!O108)+Hypothesis!$C$497*(Hours!O447)+Hypothesis!$C$498*(Employment!CC134-Employment!CC133)+0.00875472142857143) -> 0.008375856711 | Y96: 26.02495832 | Z96: =Y96/'United States'!AA94 -> 0.9257746679 | AA96: 0 | AC96: 2081 | AD96: 0.02288949112 | AE96: 3.242511495e+14 | AF96: 0 | AH96: 2081 | AI96: =IF(Hypothesis!$A$456=1,Hypothesis!$C$486+Hypothesis!$C$487*'Euro Area'!AI95+Hypothesis!$C$488*'Euro Area'!X96+Hypothesis!$C$489*'Euro Area'!X95+Hypothesis!$C$490*('Euro Area'!AJ95+Hypothesis!$C$491*LN('Euro Area'!Y95)),Hypothesis!$E$457) -> -0.006109616367 | AJ96: -0.5325965898 | AK96: 0
Q97: 2082 | R97: =(1/(1-Hypothesis!$C$483))*X97-(Hypothesis!$C$483/(1-Hypothesis!$C$483))*AI96+Employment!O408+Hours!O448 -> 0.0167747112 | S97: 4.860561346e+13 | T97: 0 | U97: =S97/Employment!DI95 -> 164336.1862 | W97: 2082 | X97: =IF(Hypothesis!$A$449=0,IF(W97<Hypothesis!$C$451,Hypothesis!$E$450,Hypothesis!$C$452*((LN(Hypothesis!$C$453*'United States'!AA94))-LN(Y96))),Hypothesis!$C$494*(LN('United States'!AA94)-LN('Euro Area'!Y96)-0.05*(Education!$N213-Education!$O213))+Hypothesis!$C$495*'Labor and Products Regulations'!$O98*(LN('United States'!AA94)-LN('Euro Area'!Y96)-0.05*(Education!$N213-Education!$O213))+Hypothesis!$C$496*(CUR!O109)+Hypothesis!$C$497*(Hours!O448)+Hypothesis!$C$498*(Employment!CC135-Employment!CC134)+0.00875472142857143) -> 0.008373163339 | Y97: 26.24378441 | Z97: =Y97/'United States'!AA95 -> 0.9257859468 | AA97: 0 | AC97: 2082 | AD97: 0.02288161957 | AE97: 3.317560759e+14 | AF97: 0 | AH97: 2082 | AI97: =IF(Hypothesis!$A$456=1,Hypothesis!$C$486+Hypothesis!$C$487*'Euro Area'!AI96+Hypothesis!$C$488*'Euro Area'!X97+Hypothesis!$C$489*'Euro Area'!X96+Hypothesis!$C$490*('Euro Area'!AJ96+Hypothesis!$C$491*LN('Euro Area'!Y96)),Hypothesis!$E$457) -> -0.006106908375 | AJ97: -0.5387034981 | AK97: 0
Q98: 2083 | R98: =(1/(1-Hypothesis!$C$483))*X98-(Hypothesis!$C$483/(1-Hypothesis!$C$483))*AI97+Employment!O409+Hours!O449 -> 0.01677020882 | S98: 4.942761304e+13 | T98: 0 | U98: =S98/Employment!DI96 -> 167000.9537 | W98: 2083 | X98: =IF(Hypothesis!$A$449=0,IF(W98<Hypothesis!$C$451,Hypothesis!$E$450,Hypothesis!$C$452*((LN(Hypothesis!$C$453*'United States'!AA95))-LN(Y97))),Hypothesis!$C$494*(LN('United States'!AA95)-LN('Euro Area'!Y97)-0.05*(Education!$N214-Education!$O214))+Hypothesis!$C$495*'Labor and Products Regulations'!$O99*(LN('United States'!AA95)-LN('Euro Area'!Y97)-0.05*(Education!$N214-Education!$O214))+Hypothesis!$C$496*(CUR!O110)+Hypothesis!$C$497*(Hours!O449)+Hypothesis!$C$498*(Employment!CC136-Employment!CC135)+0.00875472142857143) -> 0.008370824076 | Y98: 26.46438854 | Z98: =Y98/'United States'!AA96 -> 0.9257950602 | AA98: 0 | AC98: 2083 | AD98: 0.02287475375 | AE98: 3.394323765e+14 | AF98: 0 | AH98: 2083 | AI98: =IF(Hypothesis!$A$456=1,Hypothesis!$C$486+Hypothesis!$C$487*'Euro Area'!AI97+Hypothesis!$C$488*'Euro Area'!X98+Hypothesis!$C$489*'Euro Area'!X97+Hypothesis!$C$490*('Euro Area'!AJ97+Hypothesis!$C$491*LN('Euro Area'!Y97)),Hypothesis!$E$457) -> -0.006104544921 | AJ98: -0.544808043 | AK98: 0
Q99: 2084 | R99: =(1/(1-Hypothesis!$C$483))*X99-(Hypothesis!$C$483/(1-Hypothesis!$C$483))*AI98+Employment!O410+Hours!O450 -> 0.0167662932 | S99: 5.026331714e+13 | T99: 0 | U99: =S99/Employment!DI97 -> 169707.0469 | W99: 2084 | X99: =IF(Hypothesis!$A$449=0,IF(W99<Hypothesis!$C$451,Hypothesis!$E$450,Hypothesis!$C$452*((LN(Hypothesis!$C$453*'United States'!AA96))-LN(Y98))),Hypothesis!$C$494*(LN('United States'!AA96)-LN('Euro Area'!Y98)-0.05*(Education!$N215-Education!$O215))+Hypothesis!$C$495*'Labor and Products Regulations'!$O100*(LN('United States'!AA96)-LN('Euro Area'!Y98)-0.05*(Education!$N215-Education!$O215))+Hypothesis!$C$496*(CUR!O111)+Hypothesis!$C$497*(Hours!O450)+Hypothesis!$C$498*(Employment!CC137-Employment!CC136)+0.00875472142857143) -> 0.008368792177 | Y99: 26.68679284 | Z99: =Y99/'United States'!AA97 -> 0.9258022926 | AA99: 0 | AC99: 2084 | AD99: 0.02286879564 | AE99: 3.472842251e+14 | AF99: 0 | AH99: 2084 | AI99: =IF(Hypothesis!$A$456=1,Hypothesis!$C$486+Hypothesis!$C$487*'Euro Area'!AI98+Hypothesis!$C$488*'Euro Area'!X99+Hypothesis!$C$489*'Euro Area'!X98+Hypothesis!$C$490*('Euro Area'!AJ98+Hypothesis!$C$491*LN('Euro Area'!Y98)),Hypothesis!$E$457) -> -0.006102502437 | AJ99: -0.5509105455 | AK99: 0
Q100: 2085 | R100: =(1/(1-Hypothesis!$C$483))*X100-(Hypothesis!$C$483/(1-Hypothesis!$C$483))*AI99+Employment!O411+Hours!O451 -> 0.01676289627 | S100: 5.11129774e+13 | T100: 0 | U100: =S100/Employment!DI98 -> 172455.1637 | W100: 2085 | X100: =IF(Hypothesis!$A$449=0,IF(W100<Hypothesis!$C$451,Hypothesis!$E$450,Hypothesis!$C$452*((LN(Hypothesis!$C$453*'United States'!AA97))-LN(Y99))),Hypothesis!$C$494*(LN('United States'!AA97)-LN('Euro Area'!Y99)-0.05*(Education!$N216-Education!$O216))+Hypothesis!$C$495*'Labor and Products Regulations'!$O101*(LN('United States'!AA97)-LN('Euro Area'!Y99)-0.05*(Education!$N216-Education!$O216))+Hypothesis!$C$496*(CUR!O112)+Hypothesis!$C$497*(Hours!O451)+Hypothesis!$C$498*(Employment!CC138-Employment!CC137)+0.00875472142857143) -> 0.008367027067 | Y100: 26.9110187 | Z100: =Y100/'United States'!AA98 -> 0.9258078908 | AA100: 0 | AC100: 2085 | AD100: 0.02286364899 | AE100: 3.553158763e+14 | AF100: 0 | AH100: 2085 | AI100: =IF(Hypothesis!$A$456=1,Hypothesis!$C$486+Hypothesis!$C$487*'Euro Area'!AI99+Hypothesis!$C$488*'Euro Area'!X100+Hypothesis!$C$489*'Euro Area'!X99+Hypothesis!$C$490*('Euro Area'!AJ99+Hypothesis!$C$491*LN('Euro Area'!Y99)),Hypothesis!$E$457) -> -0.006100752724 | AJ100: -0.5570112982 | AK100: 0
Q101: 2086 | R101: =(1/(1-Hypothesis!$C$483))*X101-(Hypothesis!$C$483/(1-Hypothesis!$C$483))*AI100+Employment!O412+Hours!O452 -> 0.01675995562 | S101: 5.197684763e+13 | T101: 0 | U101: =S101/Employment!DI99 -> 175246.0055 | W101: 2086 | X101: =IF(Hypothesis!$A$449=0,IF(W101<Hypothesis!$C$451,Hypothesis!$E$450,Hypothesis!$C$452*((LN(Hypothesis!$C$453*'United States'!AA98))-LN(Y100))),Hypothesis!$C$494*(LN('United States'!AA98)-LN('Euro Area'!Y100)-0.05*(Education!$N217-Education!$O217))+Hypothesis!$C$495*'Labor and Products Regulations'!$O102*(LN('United States'!AA98)-LN('Euro Area'!Y100)-0.05*(Education!$N217-Education!$O217))+Hypothesis!$C$496*(CUR!O113)+Hypothesis!$C$497*(Hours!O452)+Hypothesis!$C$498*(Employment!CC139-Employment!CC138)+0.00875472142857143) -> 0.008365493526 | Y101: 27.13708692 | Z101: =Y101/'United States'!AA99 -> 0.9258120694 | AA101: 0 | AC101: 2086 | AD101: 0.02285921996 | AE101: 3.635316655e+14 | AF101: 0 | AH101: 2086 | AI101: =IF(Hypothesis!$A$456=1,Hypothesis!$C$486+Hypothesis!$C$487*'Euro Area'!AI100+Hypothesis!$C$488*'Euro Area'!X101+Hypothesis!$C$489*'Euro Area'!X100+Hypothesis!$C$490*('Euro Area'!AJ100+Hypothesis!$C$491*LN('Euro Area'!Y100)),Hypothesis!$E$457) -> -0.006099264346 | AJ101: -0.5631105626 | AK101: 0
Q102: 2087 | R102: =(1/(1-Hypothesis!$C$483))*X102-(Hypothesis!$C$483/(1-Hypothesis!$C$483))*AI101+Employment!O413+Hours!O453 -> 0.01675741411 | S102: 5.285518396e+13 | T102: 0 | U102: =S102/Employment!DI100 -> 178080.277 | W102: 2087 | X102: =IF(Hypothesis!$A$449=0,IF(W102<Hypothesis!$C$451,Hypothesis!$E$450,Hypothesis!$C$452*((LN(Hypothesis!$C$453*'United States'!AA99))-LN(Y101))),Hypothesis!$C$494*(LN('United States'!AA99)-LN('Euro Area'!Y101)-0.05*(Education!$N218-Education!$O218))+Hypothesis!$C$495*'Labor and Products Regulations'!$O103*(LN('United States'!AA99)-LN('Euro Area'!Y101)-0.05*(Education!$N218-Education!$O218))+Hypothesis!$C$496*(CUR!O114)+Hypothesis!$C$497*(Hours!O453)+Hypothesis!$C$498*(Employment!CC140-Employment!CC139)+0.00875472142857143) -> 0.008364160984 | Y102: 27.36501778 | Z102: =Y102/'United States'!AA100 -> 0.9258150142 | AA102: 0 | AC102: 2087 | AD102: 0.02285541848 | AE102: 3.719360105e+14 | AF102: 0 | AH102: 2087 | AI102: =IF(Hypothesis!$A$456=1,Hypothesis!$C$486+Hypothesis!$C$487*'Euro Area'!AI101+Hypothesis!$C$488*'Euro Area'!X102+Hypothesis!$C$489*'Euro Area'!X101+Hypothesis!$C$490*('Euro Area'!AJ101+Hypothesis!$C$491*LN('Euro Area'!Y101)),Hypothesis!$E$457) -> -0.006098004372 | AJ102: -0.5692085669 | AK102: 0
Q103: 2088 | R103: =(1/(1-Hypothesis!$C$483))*X103-(Hypothesis!$C$483/(1-Hypothesis!$C$483))*AI102+Employment!O414+Hours!O454 -> 0.01675521972 | S103: 5.3748245e+13 | T103: 0 | U103: =S103/Employment!DI101 -> 180958.6872 | W103: 2088 | X103: =IF(Hypothesis!$A$449=0,IF(W103<Hypothesis!$C$451,Hypothesis!$E$450,Hypothesis!$C$452*((LN(Hypothesis!$C$453*'United States'!AA100))-LN(Y102))),Hypothesis!$C$494*(LN('United States'!AA100)-LN('Euro Area'!Y102)-0.05*(Education!$N219-Education!$O219))+Hypothesis!$C$495*'Labor and Products Regulations'!$O104*(LN('United States'!AA100)-LN('Euro Area'!Y102)-0.05*(Education!$N219-Education!$O219))+Hypothesis!$C$496*(CUR!O115)+Hypothesis!$C$497*(Hours!O454)+Hypothesis!$C$498*(Employment!CC141-Employment!CC140)+0.00875472142857143) -> 0.008363002906 | Y103: 27.59483113 | Z103: =Y103/'United States'!AA101 -> 0.9258168869 | AA103: 0 | AC103: 2088 | AD103: 0.02285215983 | AE103: 3.805334121e+14 | AF103: 0 | AH103: 2088 | AI103: =IF(Hypothesis!$A$456=1,Hypothesis!$C$486+Hypothesis!$C$487*'Euro Area'!AI102+Hypothesis!$C$488*'Euro Area'!X103+Hypothesis!$C$489*'Euro Area'!X102+Hypothesis!$C$490*('Euro Area'!AJ102+Hypothesis!$C$491*LN('Euro Area'!Y102)),Hypothesis!$E$457) -> -0.00609694011 | AJ103: -0.575305507 | AK103: 0
Q104: 2089 | R104: =(1/(1-Hypothesis!$C$483))*X104-(Hypothesis!$C$483/(1-Hypothesis!$C$483))*AI103+Employment!O415+Hours!O455 -> 0.01675332555 | S104: 5.465629201e+13 | T104: 0 | U104: =S104/Employment!DI102 -> 183881.9497 | W104: 2089 | X104: =IF(Hypothesis!$A$449=0,IF(W104<Hypothesis!$C$451,Hypothesis!$E$450,Hypothesis!$C$452*((LN(Hypothesis!$C$453*'United States'!AA101))-LN(Y103))),Hypothesis!$C$494*(LN('United States'!AA101)-LN('Euro Area'!Y103)-0.05*(Education!$N220-Education!$O220))+Hypothesis!$C$495*'Labor and Products Regulations'!$O105*(LN('United States'!AA101)-LN('Euro Area'!Y103)-0.05*(Education!$N220-Education!$O220))+Hypothesis!$C$496*(CUR!O116)+Hypothesis!$C$497*(Hours!O455)+Hypothesis!$C$498*(Employment!CC142-Employment!CC141)+0.00875472142857143) -> 0.00836199626 | Y104: 27.82654645 | Z104: =Y104/'United States'!AA102 -> 0.9258178276 | AA104: 0 | AC104: 2089 | AD104: 0.02284936615 | AE104: 3.893284573e+14 | AF104: 0 | AH104: 2089 | AI104: =IF(Hypothesis!$A$456=1,Hypothesis!$C$486+Hypothesis!$C$487*'Euro Area'!AI103+Hypothesis!$C$488*'Euro Area'!X104+Hypothesis!$C$489*'Euro Area'!X103+Hypothesis!$C$490*('Euro Area'!AJ103+Hypothesis!$C$491*LN('Euro Area'!Y103)),Hypothesis!$E$457) -> -0.006096040603 | AJ104: -0.5814015476 | AK104: 0
Q105: 2090 | R105: =(1/(1-Hypothesis!$C$483))*X105-(Hypothesis!$C$483/(1-Hypothesis!$C$483))*AI104+Employment!O416+Hours!O456 -> 0.01675168975 | S105: 5.557958906e+13 | T105: 0 | U105: =S105/Employment!DI103 -> 186850.7831 | W105: 2090 | X105: =IF(Hypothesis!$A$449=0,IF(W105<Hypothesis!$C$451,Hypothesis!$E$450,Hypothesis!$C$452*((LN(Hypothesis!$C$453*'United States'!AA102))-LN(Y104))),Hypothesis!$C$494*(LN('United States'!AA102)-LN('Euro Area'!Y104)-0.05*(Education!$N221-Education!$O221))+Hypothesis!$C$495*'Labor and Products Regulations'!$O106*(LN('United States'!AA102)-LN('Euro Area'!Y104)-0.05*(Education!$N221-Education!$O221))+Hypothesis!$C$496*(CUR!O117)+Hypothesis!$C$497*(Hours!O456)+Hypothesis!$C$498*(Employment!CC143-Employment!CC142)+0.00875472142857143) -> 0.008361121054 | Y105: 28.06018295 | Z105: =Y105/'United States'!AA103 -> 0.9258179581 | AA105: 0 | AC105: 2090 | AD105: 0.02284696749 | AE105: 3.983258218e+14 | AF105: 0 | AH105: 2090 | AI105: =IF(Hypothesis!$A$456=1,Hypothesis!$C$486+Hypothesis!$C$487*'Euro Area'!AI104+Hypothesis!$C$488*'Euro Area'!X105+Hypothesis!$C$489*'Euro Area'!X104+Hypothesis!$C$490*('Euro Area'!AJ104+Hypothesis!$C$491*LN('Euro Area'!Y104)),Hypothesis!$E$457) -> -0.006095277743 | AJ105: -0.5874968254 | AK105: 0
Q106: 2091 | R106: =(1/(1-Hypothesis!$C$483))*X106-(Hypothesis!$C$483/(1-Hypothesis!$C$483))*AI105+Employment!O417+Hours!O457 -> 0.0167502755 | S106: 5.651840324e+13 | T106: 0 | U106: =S106/Employment!DI104 -> 189865.9117 | W106: 2091 | X106: =IF(Hypothesis!$A$449=0,IF(W106<Hypothesis!$C$451,Hypothesis!$E$450,Hypothesis!$C$452*((LN(Hypothesis!$C$453*'United States'!AA103))-LN(Y105))),Hypothesis!$C$494*(LN('United States'!AA103)-LN('Euro Area'!Y105)-0.05*(Education!$N222-Education!$O222))+Hypothesis!$C$495*'Labor and Products Regulations'!$O107*(LN('United States'!AA103)-LN('Euro Area'!Y105)-0.05*(Education!$N222-Education!$O222))+Hypothesis!$C$496*(CUR!O118)+Hypothesis!$C$497*(Hours!O457)+Hypothesis!$C$498*(Employment!CC144-Employment!CC143)+0.00875472142857143) -> 0.008360359935 | Y106: 28.29575956 | Z106: =Y106/'United States'!AA104 -> 0.9258173838 | AA106: 0 | AC106: 2091 | AD106: 0.02284490247 | AE106: 4.075302734e+14 | AF106: 0 | AH106: 2091 | AI106: =IF(Hypothesis!$A$456=1,Hypothesis!$C$486+Hypothesis!$C$487*'Euro Area'!AI105+Hypothesis!$C$488*'Euro Area'!X106+Hypothesis!$C$489*'Euro Area'!X105+Hypothesis!$C$490*('Euro Area'!AJ105+Hypothesis!$C$491*LN('Euro Area'!Y105)),Hypothesis!$E$457) -> -0.006094626971 | AJ106: -0.5935914524 | AK106: 0
Q107: 2092 | R107: =(1/(1-Hypothesis!$C$483))*X107-(Hypothesis!$C$483/(1-Hypothesis!$C$483))*AI106+Employment!O418+Hours!O458 -> 0.01674905074 | S107: 5.747300486e+13 | T107: 0 | U107: =S107/Employment!DI105 -> 192928.066 | W107: 2092 | X107: =IF(Hypothesis!$A$449=0,IF(W107<Hypothesis!$C$451,Hypothesis!$E$450,Hypothesis!$C$452*((LN(Hypothesis!$C$453*'United States'!AA104))-LN(Y106))),Hypothesis!$C$494*(LN('United States'!AA104)-LN('Euro Area'!Y106)-0.05*(Education!$N223-Education!$O223))+Hypothesis!$C$495*'Labor and Products Regulations'!$O108*(LN('United States'!AA104)-LN('Euro Area'!Y106)-0.05*(Education!$N223-Education!$O223))+Hypothesis!$C$496*(CUR!O119)+Hypothesis!$C$497*(Hours!O458)+Hypothesis!$C$498*(Employment!CC145-Employment!CC144)+0.00875472142857143) -> 0.008359697841 | Y107: 28.53329504 | Z107: =Y107/'United States'!AA105 -> 0.9258161966 | AA107: 0 | AC107: 2092 | AD107: 0.02284311832 | AE107: 4.169466762e+14 | AF107: 0 | AH107: 2092 | AI107: =IF(Hypothesis!$A$456=1,Hypothesis!$C$486+Hypothesis!$C$487*'Euro Area'!AI106+Hypothesis!$C$488*'Euro Area'!X107+Hypothesis!$C$489*'Euro Area'!X106+Hypothesis!$C$490*('Euro Area'!AJ106+Hypothesis!$C$491*LN('Euro Area'!Y106)),Hypothesis!$E$457) -> -0.006094067577 | AJ107: -0.5996855199 | AK107: 0
Q108: 2093 | R108: =(1/(1-Hypothesis!$C$483))*X108-(Hypothesis!$C$483/(1-Hypothesis!$C$483))*AI107+Employment!O419+Hours!O459 -> 0.01674798794 | S108: 5.844366769e+13 | T108: 0 | U108: =S108/Employment!DI106 -> 196037.9837 | W108: 2093 | X108: =IF(Hypothesis!$A$449=0,IF(W108<Hypothesis!$C$451,Hypothesis!$E$450,Hypothesis!$C$452*((LN(Hypothesis!$C$453*'United States'!AA105))-LN(Y107))),Hypothesis!$C$494*(LN('United States'!AA105)-LN('Euro Area'!Y107)-0.05*(Education!$N224-Education!$O224))+Hypothesis!$C$495*'Labor and Products Regulations'!$O109*(LN('United States'!AA105)-LN('Euro Area'!Y107)-0.05*(Education!$N224-Education!$O224))+Hypothesis!$C$496*(CUR!O120)+Hypothesis!$C$497*(Hours!O459)+Hypothesis!$C$498*(Employment!CC146-Employment!CC145)+0.00875472142857143) -> 0.008359121696 | Y108: 28.77280799 | Z108: =Y108/'United States'!AA106 -> 0.9258144761 | AA108: 0 | AC108: 2093 | AD108: 0.0228415706 | AE108: 4.265799944e+14 | AF108: 0 | AH108: 2093 | AI108: =IF(Hypothesis!$A$456=1,Hypothesis!$C$486+Hypothesis!$C$487*'Euro Area'!AI107+Hypothesis!$C$488*'Euro Area'!X108+Hypothesis!$C$489*'Euro Area'!X107+Hypothesis!$C$490*('Euro Area'!AJ107+Hypothesis!$C$491*LN('Euro Area'!Y107)),Hypothesis!$E$457) -> -0.006093582656 | AJ108: -0.6057791026 | AK108: 0
Q109: 2094 | R109: =(1/(1-Hypothesis!$C$483))*X109-(Hypothesis!$C$483/(1-Hypothesis!$C$483))*AI108+Employment!O420+Hours!O460 -> 0.01674706363 | S109: 5.943066913e+13 | T109: 0 | U109: =S109/Employment!DI107 -> 199196.4096 | W109: 2094 | X109: =IF(Hypothesis!$A$449=0,IF(W109<Hypothesis!$C$451,Hypothesis!$E$450,Hypothesis!$C$452*((LN(Hypothesis!$C$453*'United States'!AA106))-LN(Y108))),Hypothesis!$C$494*(LN('United States'!AA106)-LN('Euro Area'!Y108)-0.05*(Education!$N225-Education!$O225))+Hypothesis!$C$495*'Labor and Products Regulations'!$O110*(LN('United States'!AA106)-LN('Euro Area'!Y108)-0.05*(Education!$N225-Education!$O225))+Hypothesis!$C$496*(CUR!O121)+Hypothesis!$C$497*(Hours!O460)+Hypothesis!$C$498*(Employment!CC147-Employment!CC146)+0.00875472142857143) -> 0.008358620154 | Y109: 29.01431689 | Z109: =Y109/'United States'!AA107 -> 0.9258122911 | AA109: 0 | AC109: 2094 | AD109: 0.02284022245 | AE109: 4.364352965e+14 | AF109: 0 | AH109: 2094 | AI109: =IF(Hypothesis!$A$456=1,Hypothesis!$C$486+Hypothesis!$C$487*'Euro Area'!AI108+Hypothesis!$C$488*'Euro Area'!X109+Hypothesis!$C$489*'Euro Area'!X108+Hypothesis!$C$490*('Euro Area'!AJ108+Hypothesis!$C$491*LN('Euro Area'!Y108)),Hypothesis!$E$457) -> -0.006093158817 | AJ109: -0.6118722614 | AK109: 0
Q110: 2095 | R110: =(1/(1-Hypothesis!$C$483))*X110-(Hypothesis!$C$483/(1-Hypothesis!$C$483))*AI109+Employment!O421+Hours!O461 -> 0.016746258 | S110: 6.043429044e+13 | T110: 0 | U110: =S110/Employment!DI108 -> 202404.0969 | W110: 2095 | X110: =IF(Hypothesis!$A$449=0,IF(W110<Hypothesis!$C$451,Hypothesis!$E$450,Hypothesis!$C$452*((LN(Hypothesis!$C$453*'United States'!AA107))-LN(Y109))),Hypothesis!$C$494*(LN('United States'!AA107)-LN('Euro Area'!Y109)-0.05*(Education!$N226-Education!$O226))+Hypothesis!$C$495*'Labor and Products Regulations'!$O111*(LN('United States'!AA107)-LN('Euro Area'!Y109)-0.05*(Education!$N226-Education!$O226))+Hypothesis!$C$496*(CUR!O122)+Hypothesis!$C$497*(Hours!O461)+Hypothesis!$C$498*(Employment!CC148-Employment!CC147)+0.00875472142857143) -> 0.008358183363 | Y110: 29.25784016 | Z110: =Y110/'United States'!AA108 -> 0.9258097018 | AA110: 0 | AC110: 2095 | AD110: 0.02283904372 | AE110: 4.4651776e+14 | AF110: 0 | AH110: 2095 | AI110: =IF(Hypothesis!$A$456=1,Hypothesis!$C$486+Hypothesis!$C$487*'Euro Area'!AI109+Hypothesis!$C$488*'Euro Area'!X110+Hypothesis!$C$489*'Euro Area'!X109+Hypothesis!$C$490*('Euro Area'!AJ109+Hypothesis!$C$491*LN('Euro Area'!Y109)),Hypothesis!$E$457) -> -0.006092785721 | AJ110: -0.6179650471 | AK110: 0
Q111: 2096 | R111: =(1/(1-Hypothesis!$C$483))*X111-(Hypothesis!$C$483/(1-Hypothesis!$C$483))*AI110+Employment!O422+Hours!O462 -> 0.0167455544 | S111: 6.145481694e+13 | T111: 0 | U111: =S111/Employment!DI109 -> 205661.8073 | W111: 2096 | X111: =IF(Hypothesis!$A$449=0,IF(W111<Hypothesis!$C$451,Hypothesis!$E$450,Hypothesis!$C$452*((LN(Hypothesis!$C$453*'United States'!AA108))-LN(Y110))),Hypothesis!$C$494*(LN('United States'!AA108)-LN('Euro Area'!Y110)-0.05*(Education!$N227-Education!$O227))+Hypothesis!$C$495*'Labor and Products Regulations'!$O112*(LN('United States'!AA108)-LN('Euro Area'!Y110)-0.05*(Education!$N227-Education!$O227))+Hypothesis!$C$496*(CUR!O123)+Hypothesis!$C$497*(Hours!O462)+Hypothesis!$C$498*(Employment!CC149-Employment!CC148)+0.00875472142857143) -> 0.008357802774 | Y111: 29.50339615 | Z111: =Y111/'United States'!AA109 -> 0.9258067602 | AA111: 0 | AC111: 2096 | AD111: 0.02283800994 | AE111: 4.568326748e+14 | AF111: 0 | AH111: 2096 | AI111: =IF(Hypothesis!$A$456=1,Hypothesis!$C$486+Hypothesis!$C$487*'Euro Area'!AI110+Hypothesis!$C$488*'Euro Area'!X111+Hypothesis!$C$489*'Euro Area'!X110+Hypothesis!$C$490*('Euro Area'!AJ110+Hypothesis!$C$491*LN('Euro Area'!Y110)),Hypothesis!$E$457) -> -0.006092455541 | AJ111: -0.6240575027 | AK111: 0
Q112: 2097 | R112: =(1/(1-Hypothesis!$C$483))*X112-(Hypothesis!$C$483/(1-Hypothesis!$C$483))*AI111+Employment!O423+Hours!O463 -> 0.01674493888 | S112: 6.249253813e+13 | T112: 0 | U112: =S112/Employment!DI110 -> 208970.3116 | W112: 2097 | X112: =IF(Hypothesis!$A$449=0,IF(W112<Hypothesis!$C$451,Hypothesis!$E$450,Hypothesis!$C$452*((LN(Hypothesis!$C$453*'United States'!AA109))-LN(Y111))),Hypothesis!$C$494*(LN('United States'!AA109)-LN('Euro Area'!Y111)-0.05*(Education!$N228-Education!$O228))+Hypothesis!$C$495*'Labor and Products Regulations'!$O113*(LN('United States'!AA109)-LN('Euro Area'!Y111)-0.05*(Education!$N228-Education!$O228))+Hypothesis!$C$496*(CUR!O124)+Hypothesis!$C$497*(Hours!O463)+Hypothesis!$C$498*(Employment!CC150-Employment!CC149)+0.00875472142857143) -> 0.008357470965 | Y112: 29.75100316 | Z112: =Y112/'United States'!AA110 -> 0.9258035113 | AA112: 0 | AC112: 2097 | AD112: 0.02283710128 | AE112: 4.673854476e+14 | AF112: 0 | AH112: 2097 | AI112: =IF(Hypothesis!$A$456=1,Hypothesis!$C$486+Hypothesis!$C$487*'Euro Area'!AI111+Hypothesis!$C$488*'Euro Area'!X112+Hypothesis!$C$489*'Euro Area'!X111+Hypothesis!$C$490*('Euro Area'!AJ111+Hypothesis!$C$491*LN('Euro Area'!Y111)),Hypothesis!$E$457) -> -0.006092162403 | AJ112: -0.6301496651 | AK112: 0
Q113: 2098 | R113: =(1/(1-Hypothesis!$C$483))*X113-(Hypothesis!$C$483/(1-Hypothesis!$C$483))*AI112+Employment!O424+Hours!O464 -> 0.01674439972 | S113: 6.354774794e+13 | T113: 0 | U113: =S113/Employment!DI111 -> 212330.3903 | W113: 2098 | X113: =IF(Hypothesis!$A$449=0,IF(W113<Hypothesis!$C$451,Hypothesis!$E$450,Hypothesis!$C$452*((LN(Hypothesis!$C$453*'United States'!AA110))-LN(Y112))),Hypothesis!$C$494*(LN('United States'!AA110)-LN('Euro Area'!Y112)-0.05*(Education!$N229-Education!$O229))+Hypothesis!$C$495*'Labor and Products Regulations'!$O114*(LN('United States'!AA110)-LN('Euro Area'!Y112)-0.05*(Education!$N229-Education!$O229))+Hypothesis!$C$496*(CUR!O125)+Hypothesis!$C$497*(Hours!O464)+Hypothesis!$C$498*(Employment!CC151-Employment!CC150)+0.00875472142857143) -> 0.008357181493 | Y113: 30.00067954 | Z113: =Y113/'United States'!AA111 -> 0.9257999945 | AA113: 0 | AC113: 2098 | AD113: 0.0228363016 | AE113: 4.781816056e+14 | AF113: 0 | AH113: 2098 | AI113: =IF(Hypothesis!$A$456=1,Hypothesis!$C$486+Hypothesis!$C$487*'Euro Area'!AI112+Hypothesis!$C$488*'Euro Area'!X113+Hypothesis!$C$489*'Euro Area'!X112+Hypothesis!$C$490*('Euro Area'!AJ112+Hypothesis!$C$491*LN('Euro Area'!Y112)),Hypothesis!$E$457) -> -0.006091901878 | AJ113: -0.6362415669 | AK113: 0
Q114: 2099 | R114: =(1/(1-Hypothesis!$C$483))*X114-(Hypothesis!$C$483/(1-Hypothesis!$C$483))*AI113+Employment!O425+Hours!O465 -> 0.01674392703 | S114: 6.462074482e+13 | T114: 0 | U114: =S114/Employment!DI112 -> 215742.8338 | W114: 2099 | X114: =IF(Hypothesis!$A$449=0,IF(W114<Hypothesis!$C$451,Hypothesis!$E$450,Hypothesis!$C$452*((LN(Hypothesis!$C$453*'United States'!AA111))-LN(Y113))),Hypothesis!$C$494*(LN('United States'!AA111)-LN('Euro Area'!Y113)-0.05*(Education!$N230-Education!$O230))+Hypothesis!$C$495*'Labor and Products Regulations'!$O115*(LN('United States'!AA111)-LN('Euro Area'!Y113)-0.05*(Education!$N230-Education!$O230))+Hypothesis!$C$496*(CUR!O126)+Hypothesis!$C$497*(Hours!O465)+Hypothesis!$C$498*(Employment!CC152-Employment!CC151)+0.00875472142857143) -> 0.008356928768 | Y114: 30.2524436 | Z114: =Y114/'United States'!AA112 -> 0.9257962438 | AA114: 0 | AC114: 2099 | AD114: 0.02283559756 | AE114: 4.892268002e+14 | AF114: 0 | AH114: 2099 | AI114: =IF(Hypothesis!$A$456=1,Hypothesis!$C$486+Hypothesis!$C$487*'Euro Area'!AI113+Hypothesis!$C$488*'Euro Area'!X114+Hypothesis!$C$489*'Euro Area'!X113+Hypothesis!$C$490*('Euro Area'!AJ113+Hypothesis!$C$491*LN('Euro Area'!Y113)),Hypothesis!$E$457) -> -0.006091670533 | AJ114: -0.6423332375 | AK114: 0
Q115: 2100 | R115: =(1/(1-Hypothesis!$C$483))*X115-(Hypothesis!$C$483/(1-Hypothesis!$C$483))*AI114+Employment!O426+Hours!O466 -> 0.01674351241 | S115: 6.571183189e+13 | T115: 0 | U115: =S115/Employment!DI113 -> 219208.4427 | W115: 2100 | X115: =IF(Hypothesis!$A$449=0,IF(W115<Hypothesis!$C$451,Hypothesis!$E$450,Hypothesis!$C$452*((LN(Hypothesis!$C$453*'United States'!AA112))-LN(Y114))),Hypothesis!$C$494*(LN('United States'!AA112)-LN('Euro Area'!Y114)-0.05*(Education!$N231-Education!$O231))+Hypothesis!$C$495*'Labor and Products Regulations'!$O116*(LN('United States'!AA112)-LN('Euro Area'!Y114)-0.05*(Education!$N231-Education!$O231))+Hypothesis!$C$496*(CUR!O127)+Hypothesis!$C$497*(Hours!O466)+Hypothesis!$C$498*(Employment!CC153-Employment!CC152)+0.00875472142857143) -> 0.008356707937 | Y115: 30.50631372 | Z115: =Y115/'United States'!AA113 -> 0.9257922886 | AA115: 0 | AC115: 2100 | AD115: 0.02283497799 | AE115: 5.005268101e+14 | AF115: 0 | AH115: 2100 | AI115: =IF(Hypothesis!$A$456=1,Hypothesis!$C$486+Hypothesis!$C$487*'Euro Area'!AI114+Hypothesis!$C$488*'Euro Area'!X115+Hypothesis!$C$489*'Euro Area'!X114+Hypothesis!$C$490*('Euro Area'!AJ114+Hypothesis!$C$491*LN('Euro Area'!Y114)),Hypothesis!$E$457) -> -0.00609146558 | AJ115: -0.6484247031 | AK115: 0

Sheet Australia
Q1: GDP | R1: growth rate | S1: level in $US 2010 ppp | T1: HP growth rate | U1: GDP per capita | W1: TFP | X1: growth rate | Y1: level in $US 2010 ppp | Z1: level with respect to US | AA1: HP growth rate | AC1: Capital | AD1: growth rate | AE1: level in $US 2010 ppp | AF1: HP growth rate | AH1: Relative Price | AI1: growth rate | AJ1: level in log | AK1: HP growth rate
Q3: 1990 | S3: 5.645914904e+11 | U3: =S3/Employment!CV3 -> 33084.5697 | W3: =W4-1 -> 1990 | Y3: 9.740853524 | AC3: =AC4-1 -> 1990 | AE3: 1.692309677e+12 | AH3: =AH4-1 -> 1990 | AI3: 0.03862803468 | AJ3: -0.01147280503
Q4: 1991 | R4: =LN(S4/S3) -> 0.003980824713 | S4: 5.668435096e+11 | T4: =IF(Hypothesis!A$500=0,0,hp(R4:R113,500)) -> 0 | U4: =S4/Employment!CV4 -> 32795.85221 | W4: 1991 | X4: =LN(Y4/Y3) -> 0.01079737825 | Y4: 9.846599064 | Z4: =Y4/'United States'!AA4 -> 1.036201762 | AA4: =IF(Hypothesis!A$500=0,0,hp(X4:X113,500)) -> 0 | AC4: 1991 | AD4: =LN(AE4/AE3) -> 0.02261171235 | AE4: 1.731011606e+12 | AF4: =IF(Hypothesis!A$500=0,0,hp(AD4:AD113,500)) -> 0 | AH4: 1991 | AI4: 0.02281026589 | AJ4: -0.03025057749 | AK4: =IF(Hypothesis!A$500=0,0,hp(AI4:AI113,500)) -> 0
Q5: 1992 | R5: =LN(S5/S4) -> 0.0397987734 | S5: 589858125000 | T5: 0 | U5: =S5/Employment!CV5 -> 33715.81166 | W5: 1992 | X5: =LN(Y5/Y4) -> 0.03606509229 | Y5: 10.20819894 | Z5: =Y5/'United States'!AA5 -> 1.048365128 | AA5: 0 | AC5: 1992 | AD5: =LN(AE5/AE4) -> 0.0244606656 | AE5: 1.773875404e+12 | AF5: 0 | AH5: 1992 | AI5: 0.004607017128 | AJ5: -0.0372646031 | AK5: 0
Q6: 1993 | R6: 0.03958562376 | S6: 6.136763462e+11 | T6: 0 | U6: =S6/Employment!CV6 -> 34735.74156 | W6: 1993 | X6: 0.01399742547 | Y6: 10.35209216 | Z6: =Y6/'United States'!AA6 -> 1.054532062 | AA6: 0 | AC6: 1993 | AD6: 0.02595501756 | AE6: 1.820519071e+12 | AF6: 0 | AH6: 1993 | AI6: 0.01072465365 | AJ6: -0.01653820873 | AK6: 0
Q7: 1994 | R7: 0.03805584169 | S7: 6.374803846e+11 | T7: 0 | U7: =S7/Employment!CV7 -> 35703.18592 | W7: 1994 | X7: 0.0003973062167 | Y7: 10.35620593 | Z7: =Y7/'United States'!AA7 -> 1.039283162 | AA7: 0 | AC7: 1994 | AD7: 0.0297869275 | AE7: 1.875562458e+12 | AF7: 0 | AH7: 1994 | AI7: 0.0166493998 | AJ7: -0.007321162863 | AK7: 0
Q8: 1995 | R8: 0.03873272668 | S8: 6.626561538e+11 | T8: 0 | U8: =S8/Employment!CV8 -> 36667.56053 | W8: 1995 | X8: 0.01143221134 | Y8: 10.47527961 | Z8: =Y8/'United States'!AA8 -> 1.043401705 | AA8: 0 | AC8: 1995 | AD8: 0.02888853052 | AE8: 1.930534915e+12 | AF8: 0 | AH8: 1995 | AI8: 0.02253117402 | AJ8: -0.01445459766 | AK8: 0
Q9: 1996 | R9: 0.03871321543 | S9: 6.888127404e+11 | T9: 0 | U9: =S9/Employment!CV9 -> 37617.42889 | W9: 1996 | X9: 0.03017841139 | Y9: 10.79622536 | Z9: =Y9/'United States'!AA9 -> 1.049806287 | AA9: 0 | AC9: 1996 | AD9: 0.02982919283 | AE9: 1.988988693e+12 | AF9: 0 | AH9: 1996 | AI9: 0.02223206302 | AJ9: -0.008989390217 | AK9: 0
Q10: 1997 | R10: 0.04342582746 | S10: 7.193839904e+11 | T10: 0 | U10: =S10/Employment!CV10 -> 38849.92117 | W10: 1997 | X10: 0.02561339874 | Y10: 11.07632523 | Z10: =Y10/'United States'!AA10 -> 1.059155713 | AA10: 0 | AC10: 1997 | AD10: 0.03344575601 | AE10: 2.05663689e+12 | AF10: 0 | AH10: 1997 | AI10: 0.01971775567 | AJ10: -0.001300148554 | AK10: 0
Q11: 1998 | R11: 0.04885786136 | S11: 7.554043269e+11 | T11: 0 | U11: =S11/Employment!CV11 -> 40372.20496 | W11: 1998 | X11: 0.03315312093 | Y11: 11.44969497 | Z11: =Y11/'United States'!AA11 -> 1.067738205 | AA11: 0 | AC11: 1998 | AD11: 0.03480350791 | AE11: 2.129475231e+12 | AF11: 0 | AH11: 1998 | AI11: -0.002456524201 | AJ11: 0.005310535092 | AK11: 0
Q12: 1999 | R12: 0.03795710881 | S12: 7.846284135e+11 | T12: 0 | U12: =S12/Employment!CV12 -> 41457.69912 | W12: 1999 | X12: 0.02828143978 | Y12: 11.77813126 | Z12: =Y12/'United States'!AA12 -> 1.070688322 | AA12: 0 | AC12: 1999 | AD12: 0.03634879084 | AE12: 2.20830305e+12 | AF12: 0 | AH12: 1999 | AI12: 0.01521536959 | AJ12: -0.004010458082 | AK12: 0
Q13: 2000 | R13: 0.01911015211 | S13: 7.997669712e+11 | T13: 0 | U13: =S13/Employment!CV13 -> 41756.74678 | W13: =W14-1 -> 2000 | X13: -0.0282127428 | Y13: 11.45048155 | Z13: =Y13/'United States'!AA13 -> 1.023567479 | AA13: 0 | AC13: 2000 | AD13: 0.02610169192 | AE13: 2.26670234e+12 | AF13: 0 | AH13: 2000 | AI13: 0.0411149946 | AJ13: 0.007626470867 | AK13: 0
Q14: 2001 | R14: 0.03784182364 | S14: 8.306115385e+11 | T14: 0 | U14: =S14/Employment!CV14 -> 42786.35649 | W14: 2001 | X14: 0.03692651032 | Y14: 11.88121162 | Z14: =Y14/'United States'!AA14 -> 1.054264716 | AA14: 0 | AC14: 2001 | AD14: 0.02965122456 | AE14: 2.334919199e+12 | AF14: 0 | AH14: 2001 | AI14: 0.03307607939 | AJ14: 0.01907572078 | AK14: 0
Q15: 2002 | R15: 0.03024687034 | S15: 856118750000 | T15: 0 | U15: =S15/Employment!CV15 -> 43565.28034 | W15: 2002 | X15: 0.00554190495 | Y15: 11.94723895 | Z15: =Y15/'United States'!AA15 -> 1.047686332 | AA15: 0 | AC15: 2002 | AD15: 0.03508895768 | AE15: 2.418303458e+12 | AF15: 0 | AH15: 2002 | AI15: 0.03267469066 | AJ15: 0.02964974848 | AK15: 0
Q16: 2003 | R16: 0.04065509594 | S16: 8.916415385e+11 | T16: 0 | U16: =S16/Employment!CV16 -> 44816.46705 | W16: =W17-1 -> 2003 | X16: 0.01851413283 | Y16: 12.17049201 | Z16: =Y16/'United States'!AA16 -> 1.049418302 | AA16: 0 | AC16: =AC17-1 -> 2003 | AD16: 0.03809298196 | AE16: 2.512200911e+12 | AF16: 0 | AH16: =AH17-1 -> 2003 | AI16: 0.02661032117 | AJ16: 0.02794608668 | AK16: 0
Q17: 2004 | R17: 0.0315631068 | S17: 9.202333654e+11 | T17: 0 | U17: =S17/Employment!CV17 -> 45720.42914 | W17: 2004 | X17: 0.002566146486 | Y17: 12.20176338 | Z17: =Y17/'United States'!AA17 -> 1.030601552 | AA17: 0 | AC17: 2004 | AD17: 0.04024852155 | AE17: 2.615375672e+12 | AF17: 0 | AH17: 2004 | AI17: 0.03834878463 | AJ17: 0.045300824 | AK17: 0
Q18: 2005 | R18: 0.02939253903 | S18: 9.476827885e+11 | T18: 0 | U18: =S18/Employment!CV18 -> 46466.88315 | W18: 2005 | X18: -0.001000041676 | Y18: 12.18956721 | Z18: =Y18/'United States'!AA18 -> 1.01576202 | AA18: 0 | AC18: 2005 | AD18: 0.04365792822 | AE18: 2.732086699e+12 | AF18: 0 | AH18: 2005 | AI18: 0.04253972454 | AJ18: 0.06573361401 | AK18: 0
Q19: 2006 | R19: 0.03688787511 | S19: 9.832935577e+11 | T19: 0 | U19: =S19/Employment!CV19 -> 47506.92378 | W19: 2006 | X19: 0.00765857466 | Y19: 12.28328032 | Z19: =Y19/'United States'!AA19 -> 1.0196606 | AA19: 0 | AC19: 2006 | AD19: 0.04408448611 | AE19: 2.855223609e+12 | AF19: 0 | AH19: 2006 | AI19: 0.05076039136 | AJ19: 0.07624289136 | AK19: 0
Q20: 2007 | R20: 0.03639658188 | S20: 1.019741346e+12 | T20: 0 | U20: =S20/Employment!CV20 -> 48961.0587 | W20: 2007 | X20: 0.00523575151 | Y20: 12.34776118 | Z20: =Y20/'United States'!AA20 -> 1.023057797 | AA20: 0 | AC20: 2007 | AD20: 0.04737663926 | AE20: 2.993750057e+12 | AF20: 0 | AH20: 2007 | AI20: 0.04033706041 | AJ20: 0.06344463746 | AK20: 0
Q21: 2008 | R21: 0.01803315439 | S21: 1.038297308e+12 | T21: 0 | U21: =S21/Employment!CV21 -> 48862.88932 | W21: 2008 | X21: -0.01085023425 | Y21: 12.21450929 | Z21: =Y21/'United States'!AA21 -> 1.017484944 | AA21: 0 | AC21: 2008 | AD21: 0.04578447883 | AE21: 3.13400356e+12 | AF21: 0 | AH21: 2008 | AI21: 0.06256143802 | AJ21: 0.04815090066 | AK21: 0
Q22: 2009 | R22: 0.01998094025 | S22: 1.059252115e+12 | T22: 0 | U22: =S22/Employment!CV22 -> 48832.13927 | W22: 2009 | X22: 0.01171938172 | Y22: 12.35849787 | Z22: =Y22/'United States'!AA22 -> 1.027652646 | AA22: 0 | AC22: 2009 | AD22: 0.04302171862 | AE22: 3.271776137e+12 | AF22: 0 | AH22: 2009 | AI22: 0.001405166851 | AJ22: 0.02102438803 | AK22: 0
Q23: 2010 | R23: 0.0235169317 | S23: 1.084457692e+12 | T23: 0 | U23: =S23/Employment!CV23 -> 49222.49446 | W23: 2010 | X23: -0.007160361796 | Y23: 12.27032261 | Z23: =Y23/'United States'!AA23 -> 0.9988314664 | AA23: 0 | AC23: 2010 | AD23: 0.04318214945 | AE23: 3.416153287e+12 | AF23: 0 | AH23: 2010 | AI23: 0.05530087803 | AJ23: 2.220446049e-16 | AK23: 0
Q24: 2011 | R24: 0.03568298916 | S24: 1.123853077e+12 | T24: 0 | U24: =S24/Employment!CV24 -> 50306.70857 | W24: 2011 | X24: 0.01101807736 | Y24: 12.40626551 | Z24: =Y24/'United States'!AA24 -> 1.004289871 | AA24: 0 | AC24: 2011 | AD24: 0.04848112975 | AE24: 3.585852628e+12 | AF24: 0 | AH24: 2011 | AI24: 0.04156869148 | AJ24: -0.004955958549 | AK24: 0
Q25: 2012 | R25: 0.02410691191 | S25: 1.151274904e+12 | T25: 0 | U25: =S25/Employment!CV25 -> 50653.90874 | W25: 2012 | X25: 0.009750725798 | Y25: 12.5278273 | Z25: =Y25/'United States'!AA25 -> 1.009344087 | AA25: 0 | AC25: 2012 | AD25: 0.0458132421 | AE25: 3.753953382e+12 | AF25: 0 | AH25: 2012 | AI25: -0.002624625916 | AJ25: -0.006227390801 | AK25: 0
Q26: 2013 | R26: 0.02469314426 | S26: 1.180057404e+12 | T26: 0 | U26: =S26/Employment!CV26 -> 51046.38943 | W26: 2013 | X26: 0.01256371614 | Y26: 12.68621626 | Z26: =Y26/'United States'!AA26 -> 1.015765651 | AA26: 0 | AC26: 2013 | AD26: 0.04013995241 | AE26: 3.90770198e+12 | AF26: 0 | AH26: 2013 | AI26: 0.01116500103 | AJ26: 0.005089874871 | AK26: 0
Q27: =Q26+1 -> 2014 | R27: 0.02232707331 | S27: 1.206700962e+12 | T27: 0 | U27: =S27/Employment!CV27 -> 51427.57155 | W27: =W26+1 -> 2014 | X27: -0.002413048738 | Y27: 12.65564071 | Z27: =Y27/'United States'!AA27 -> 1.005990561 | AA27: 0 | AC27: =AC26+1 -> 2014 | AD27: =R27- AI27 -> 0.01417004459 | AE27: 4.044031578e+12 | AF27: 0 | AH27: =AH26+1 -> 2014 | AI27: =IF(Hypothesis!$A$36=1,Hypothesis!$C$486+Hypothesis!$C$487*AI26+Hypothesis!$C$488*Australia!X27+Hypothesis!$C$489*Australia!X26+Hypothesis!$C$490*(Australia!AJ26+Hypothesis!$C$491*LN(Australia!Y26)),Hypothesis!$E$37) -> 0.008157028721 | AJ27: =AJ26+AI27 -> 0.01324690359 | AK27: 0
Q28: 2015 | R28: 0.02448500648 | S28: 1.236611731e+12 | T28: 0 | U28: =S28/Employment!CV28 -> 51999.61914 | W28: 2015 | X28: 0.002366336883 | Y28: 12.68562368 | Z28: =Y28/'United States'!AA28 -> 0.999392163 | AA28: 0 | AC28: 2015 | AD28: 0.02353365977 | AE28: =AE27*EXP(AD28) -> 4.140331137e+12 | AF28: 0 | AH28: 2015 | AI28: =IF(Hypothesis!$A$36=1,Hypothesis!$C$486+Hypothesis!$C$487*AI27+Hypothesis!$C$488*Australia!X28+Hypothesis!$C$489*Australia!X27+Hypothesis!$C$490*(Australia!AJ27+Hypothesis!$C$491*LN(Australia!Y27)),Hypothesis!$E$37) -> 0.000951346704 | AJ28: =AJ27+AI28 -> 0.0141982503 | AK28: 0
Q29: 2016 | R29: =(1/(1-Hypothesis!$C$483))*X29-(Hypothesis!$C$483/(1-Hypothesis!$C$483))*AI28+LN(Employment!B128/Employment!B127)+LN(Hours!B148/Hours!B147) -> -0.01486766166 | S29: =S28*(1+R29) -> 1.218226206e+12 | T29: 0 | U29: =S29/Employment!CV29 -> 50343.32703 | W29: 2016 | X29: =IF(Hypothesis!$A$29=0,IF(W29<Hypothesis!$C$31,Hypothesis!$E$30,Hypothesis!$C$32*((LN(Hypothesis!$C$33*'United States'!AA28))-LN(Y28))),Hypothesis!$C$494*(LN('United States'!$AA28)-LN(Australia!$Y28)-0.05*(Education!$N147-Education!$B147))+Hypothesis!$C$495*'Labor and Products Regulations'!$B32*(LN('United States'!$AA28)-LN(Australia!Y28)-0.05*(Education!$N147-Education!$B147))+Hypothesis!$C$496*(CUR!B43)+Hypothesis!$C$497*(Hours!B382)+Hypothesis!$C$498*(Employment!BP69-Employment!BP68)+0.00386805) -> 0.003248822002 | Y29: =Y28*EXP(X29) -> 12.72690403 | Z29: =Y29/'United States'!AA29 -> 0.9903685287 | AA29: 0 | AC29: 2016 | AD29: -0.01126343296 | AE29: 4.093958443e+12 | AF29: 0 | AH29: 2016 | AI29: =IF(Hypothesis!$A$36=1,Hypothesis!$C$486+Hypothesis!$C$487*AI28+Hypothesis!$C$488*Australia!X29+Hypothesis!$C$489*Australia!X28+Hypothesis!$C$490*(Australia!AJ28+Hypothesis!$C$491*LN(Australia!Y28)),Hypothesis!$E$37) -> -0.003604228695 | AJ29: 0.0105940216 | AK29: 0
Q30: 2017 | R30: =(1/(1-Hypothesis!$C$483))*X30-(Hypothesis!$C$483/(1-Hypothesis!$C$483))*AI29+LN(Employment!B129/Employment!B128)+LN(Hours!B149/Hours!B148) -> 0.01374453153 | S30: 1.234970154e+12 | T30: 0 | U30: =S30/Employment!CV30 -> 50168.27829 | W30: 2017 | X30: =IF(Hypothesis!$A$29=0,IF(W30<Hypothesis!$C$31,Hypothesis!$E$30,Hypothesis!$C$32*((LN(Hypothesis!$C$33*'United States'!AA29))-LN(Y29))),Hypothesis!$C$494*(LN('United States'!$AA29)-LN(Australia!$Y29)-0.05*(Education!$N148-Education!$B148))+Hypothesis!$C$495*'Labor and Products Regulations'!$B33*(LN('United States'!$AA29)-LN(Australia!Y29)-0.05*(Education!$N148-Education!$B148))+Hypothesis!$C$496*(CUR!B44)+Hypothesis!$C$497*(Hours!B383)+Hypothesis!$C$498*(Employment!BP70-Employment!BP69)+0.00386805) -> 0.003694890337 | Y30: 12.77401553 | Z30: =Y30/'United States'!AA30 -> 0.9802918066 | AA30: 0 | AC30: 2017 | AD30: 0.0203229356 | AE30: 4.178010901e+12 | AF30: 0 | AH30: 2017 | AI30: =IF(Hypothesis!$A$36=1,Hypothesis!$C$486+Hypothesis!$C$487*AI29+Hypothesis!$C$488*Australia!X30+Hypothesis!$C$489*Australia!X29+Hypothesis!$C$490*(Australia!AJ29+Hypothesis!$C$491*LN(Australia!Y29)),Hypothesis!$E$37) -> -0.006578404062 | AJ30: 0.004015617538 | AK30: 0
Q31: 2018 | R31: =(1/(1-Hypothesis!$C$483))*X31-(Hypothesis!$C$483/(1-Hypothesis!$C$483))*AI30+LN(Employment!B130/Employment!B129)+LN(Hours!B150/Hours!B149) -> 0.01559298658 | S31: 1.254227028e+12 | T31: 0 | U31: =S31/Employment!CV31 -> 50105.41942 | W31: 2018 | X31: =IF(Hypothesis!$A$29=0,IF(W31<Hypothesis!$C$31,Hypothesis!$E$30,Hypothesis!$C$32*((LN(Hypothesis!$C$33*'United States'!AA30))-LN(Y30))),Hypothesis!$C$494*(LN('United States'!$AA30)-LN(Australia!$Y30)-0.05*(Education!$N149-Education!$B149))+Hypothesis!$C$495*'Labor and Products Regulations'!$B34*(LN('United States'!$AA30)-LN(Australia!Y30)-0.05*(Education!$N149-Education!$B149))+Hypothesis!$C$496*(CUR!B45)+Hypothesis!$C$497*(Hours!B384)+Hypothesis!$C$498*(Employment!BP71-Employment!BP70)+0.00386805) -> 0.004272065957 | Y31: 12.8287037 | Z31: =Y31/'United States'!AA31 -> 0.9689908344 | AA31: 0 | AC31: 2018 | AD31: 0.02387775461 | AE31: 4.278972997e+12 | AF31: 0 | AH31: 2018 | AI31: =IF(Hypothesis!$A$36=1,Hypothesis!$C$486+Hypothesis!$C$487*AI30+Hypothesis!$C$488*Australia!X31+Hypothesis!$C$489*Australia!X30+Hypothesis!$C$490*(Australia!AJ30+Hypothesis!$C$491*LN(Australia!Y30)),Hypothesis!$E$37) -> -0.008284768026 | AJ31: -0.004269150488 | AK31: 0
Q32: 2019 | R32: =(1/(1-Hypothesis!$C$483))*X32-(Hypothesis!$C$483/(1-Hypothesis!$C$483))*AI31+LN(Employment!B131/Employment!B130)+LN(Hours!B151/Hours!B150) -> 0.01697200767 | S32: 1.275513778e+12 | T32: 0 | U32: =S32/Employment!CV32 -> 50120.46785 | W32: 2019 | X32: =IF(Hypothesis!$A$29=0,IF(W32<Hypothesis!$C$31,Hypothesis!$E$30,Hypothesis!$C$32*((LN(Hypothesis!$C$33*'United States'!AA31))-LN(Y31))),Hypothesis!$C$494*(LN('United States'!$AA31)-LN(Australia!$Y31)-0.05*(Education!$N150-Education!$B150))+Hypothesis!$C$495*'Labor and Products Regulations'!$B35*(LN('United States'!$AA31)-LN(Australia!Y31)-0.05*(Education!$N150-Education!$B150))+Hypothesis!$C$496*(CUR!B46)+Hypothesis!$C$497*(Hours!B385)+Hypothesis!$C$498*(Employment!BP72-Employment!BP71)+0.00386805) -> 0.005002204428 | Y32: 12.89303627 | Z32: =Y32/'United States'!AA32 -> 0.9563857465 | AA32: 0 | AC32: 2019 | AD32: 0.02595145069 | AE32: 4.391471996e+12 | AF32: 0 | AH32: 2019 | AI32: =IF(Hypothesis!$A$36=1,Hypothesis!$C$486+Hypothesis!$C$487*AI31+Hypothesis!$C$488*Australia!X32+Hypothesis!$C$489*Australia!X31+Hypothesis!$C$490*(Australia!AJ31+Hypothesis!$C$491*LN(Australia!Y31)),Hypothesis!$E$37) -> -0.008979443029 | AJ32: -0.01324859352 | AK32: 0
Q33: 2020 | R33: =(1/(1-Hypothesis!$C$483))*X33-(Hypothesis!$C$483/(1-Hypothesis!$C$483))*AI32+LN(Employment!B132/Employment!B131)+LN(Hours!B152/Hours!B151) -> 0.02233925252 | S33: 1.304007803e+12 | T33: 0 | U33: =S33/Employment!CV33 -> 50415.60415 | W33: 2020 | X33: =IF(Hypothesis!$A$29=0,IF(W33<Hypothesis!$C$31,Hypothesis!$E$30,Hypothesis!$C$32*((LN(Hypothesis!$C$33*'United States'!AA32))-LN(Y32))),Hypothesis!$C$494*(LN('United States'!$AA32)-LN(Australia!$Y32)-0.05*(Education!$N151-Education!$B151))+Hypothesis!$C$495*'Labor and Products Regulations'!$B36*(LN('United States'!$AA32)-LN(Australia!Y32)-0.05*(Education!$N151-Education!$B151))+Hypothesis!$C$496*(CUR!B47)+Hypothesis!$C$497*(Hours!B386)+Hypothesis!$C$498*(Employment!BP73-Employment!BP72)+0.00386805) -> 0.004365398944 | Y33: 12.94944254 | Z33: =Y33/'United States'!AA33 -> 0.9410865743 | AA33: 0 | AC33: 2020 | AD33: 0.03089271817 | AE33: 4.529253772e+12 | AF33: 0 | AH33: 2020 | AI33: =IF(Hypothesis!$A$36=1,Hypothesis!$C$486+Hypothesis!$C$487*AI32+Hypothesis!$C$488*Australia!X33+Hypothesis!$C$489*Australia!X32+Hypothesis!$C$490*(Australia!AJ32+Hypothesis!$C$491*LN(Australia!Y32)),Hypothesis!$E$37) -> -0.008553465656 | AJ33: -0.02180205917 | AK33: 0
Q34: 2021 | R34: =(1/(1-Hypothesis!$C$483))*X34-(Hypothesis!$C$483/(1-Hypothesis!$C$483))*AI33+LN(Employment!B133/Employment!B132)+LN(Hours!B153/Hours!B152) -> 0.01966262393 | S34: 1.329648018e+12 | T34: 0 | U34: =S34/Employment!CV34 -> 50606.19473 | W34: 2021 | X34: =IF(Hypothesis!$A$29=0,IF(W34<Hypothesis!$C$31,Hypothesis!$E$30,Hypothesis!$C$32*((LN(Hypothesis!$C$33*'United States'!AA33))-LN(Y33))),Hypothesis!$C$494*(LN('United States'!$AA33)-LN(Australia!$Y33)-0.05*(Education!$N152-Education!$B152))+Hypothesis!$C$495*'Labor and Products Regulations'!$B37*(LN('United States'!$AA33)-LN(Australia!Y33)-0.05*(Education!$N152-Education!$B152))+Hypothesis!$C$496*(CUR!B48)+Hypothesis!$C$497*(Hours!B387)+Hypothesis!$C$498*(Employment!BP74-Employment!BP73)+0.00386805) -> 0.003077603047 | Y34: 12.98935717 | Z34: =Y34/'United States'!AA34 -> 0.9226304544 | AA34: 0 | AC34: 2021 | AD34: 0.02711596772 | AE34: 4.653749149e+12 | AF34: 0 | AH34: 2021 | AI34: =IF(Hypothesis!$A$36=1,Hypothesis!$C$486+Hypothesis!$C$487*AI33+Hypothesis!$C$488*Australia!X34+Hypothesis!$C$489*Australia!X33+Hypothesis!$C$490*(Australia!AJ33+Hypothesis!$C$491*LN(Australia!Y33)),Hypothesis!$E$37) -> -0.007453343789 | AJ34: -0.02925540296 | AK34: 0
Q35: 2022 | R35: =(1/(1-Hypothesis!$C$483))*X35-(Hypothesis!$C$483/(1-Hypothesis!$C$483))*AI34+LN(Employment!B134/Employment!B133)+LN(Hours!B154/Hours!B153) -> 0.02040490172 | S35: 1.356779355e+12 | T35: 0 | U35: =S35/Employment!CV35 -> 50837.35824 | W35: 2022 | X35: =IF(Hypothesis!$A$29=0,IF(W35<Hypothesis!$C$31,Hypothesis!$E$30,Hypothesis!$C$32*((LN(Hypothesis!$C$33*'United States'!AA34))-LN(Y34))),Hypothesis!$C$494*(LN('United States'!$AA34)-LN(Australia!$Y34)-0.05*(Education!$N153-Education!$B153))+Hypothesis!$C$495*'Labor and Products Regulations'!$B38*(LN('United States'!$AA34)-LN(Australia!Y34)-0.05*(Education!$N153-Education!$B153))+Hypothesis!$C$496*(CUR!B49)+Hypothesis!$C$497*(Hours!B388)+Hypothesis!$C$498*(Employment!BP75-Employment!BP74)+0.00386805) -> 0.004261442935 | Y35: 13.04482869 | Z35: =Y35/'United States'!AA35 -> 0.9036334825 | AA35: 0 | AC35: 2022 | AD35: 0.02710314274 | AE35: 4.7816052e+12 | AF35: 0 | AH35: 2022 | AI35: =IF(Hypothesis!$A$36=1,Hypothesis!$C$486+Hypothesis!$C$487*AI34+Hypothesis!$C$488*Australia!X35+Hypothesis!$C$489*Australia!X34+Hypothesis!$C$490*(Australia!AJ34+Hypothesis!$C$491*LN(Australia!Y34)),Hypothesis!$E$37) -> -0.006698241018 | AJ35: -0.03595364398 | AK35: 0
Q36: 2023 | R36: =(1/(1-Hypothesis!$C$483))*X36-(Hypothesis!$C$483/(1-Hypothesis!$C$483))*AI35+LN(Employment!B135/Employment!B134)+LN(Hours!B155/Hours!B154) -> 0.0227321811 | S36: 1.387621909e+12 | T36: 0 | U36: =S36/Employment!CV36 -> 51211.52523 | W36: 2023 | X36: =IF(Hypothesis!$A$29=0,IF(W36<Hypothesis!$C$31,Hypothesis!$E$30,Hypothesis!$C$32*((LN(Hypothesis!$C$33*'United States'!AA35))-LN(Y35))),Hypothesis!$C$494*(LN('United States'!$AA35)-LN(Australia!$Y35)-0.05*(Education!$N154-Education!$B154))+Hypothesis!$C$495*'Labor and Products Regulations'!$B39*(LN('United States'!$AA35)-LN(Australia!Y35)-0.05*(Education!$N154-Education!$B154))+Hypothesis!$C$496*(CUR!B50)+Hypothesis!$C$497*(Hours!B389)+Hypothesis!$C$498*(Employment!BP76-Employment!BP75)+0.00386805) -> 0.006261780577 | Y36: 13.12676882 | Z36: =Y36/'United States'!AA36 -> 0.8852431136 | AA36: 0 | AC36: 2023 | AD36: 0.02879656763 | AE36: 4.921300741e+12 | AF36: 0 | AH36: 2023 | AI36: =IF(Hypothesis!$A$36=1,Hypothesis!$C$486+Hypothesis!$C$487*AI35+Hypothesis!$C$488*Australia!X36+Hypothesis!$C$489*Australia!X35+Hypothesis!$C$490*(Australia!AJ35+Hypothesis!$C$491*LN(Australia!Y35)),Hypothesis!$E$37) -> -0.006064386524 | AJ36: -0.0420180305 | AK36: 0
Q37: 2024 | R37: =(1/(1-Hypothesis!$C$483))*X37-(Hypothesis!$C$483/(1-Hypothesis!$C$483))*AI36+LN(Employment!B136/Employment!B135)+LN(Hours!B156/Hours!B155) -> 0.02580742172 | S37: 1.423432853e+12 | T37: 0 | U37: =S37/Employment!CV37 -> 51749.6519 | W37: 2024 | X37: =IF(Hypothesis!$A$29=0,IF(W37<Hypothesis!$C$31,Hypothesis!$E$30,Hypothesis!$C$32*((LN(Hypothesis!$C$33*'United States'!AA36))-LN(Y36))),Hypothesis!$C$494*(LN('United States'!$AA36)-LN(Australia!$Y36)-0.05*(Education!$N155-Education!$B155))+Hypothesis!$C$495*'Labor and Products Regulations'!$B40*(LN('United States'!$AA36)-LN(Australia!Y36)-0.05*(Education!$N155-Education!$B155))+Hypothesis!$C$496*(CUR!B51)+Hypothesis!$C$497*(Hours!B390)+Hypothesis!$C$498*(Employment!BP77-Employment!BP76)+0.00386805) -> 0.008514449626 | Y37: 13.2390132 | Z37: =Y37/'United States'!AA37 -> 0.868191062 | AA37: 0 | AC37: 2024 | AD37: 0.0314499494 | AE37: 5.078534944e+12 | AF37: 0 | AH37: 2024 | AI37: =IF(Hypothesis!$A$36=1,Hypothesis!$C$486+Hypothesis!$C$487*AI36+Hypothesis!$C$488*Australia!X37+Hypothesis!$C$489*Australia!X36+Hypothesis!$C$490*(Australia!AJ36+Hypothesis!$C$491*LN(Australia!Y36)),Hypothesis!$E$37) -> -0.00564252768 | AJ37: -0.04766055818 | AK37: 0
Q38: 2025 | R38: =(1/(1-Hypothesis!$C$483))*X38-(Hypothesis!$C$483/(1-Hypothesis!$C$483))*AI37+LN(Employment!B137/Employment!B136)+LN(Hours!B157/Hours!B156) -> 0.02911261004 | S38: 1.464872698e+12 | T38: 0 | U38: =S38/Employment!CV38 -> 52484.80211 | W38: 2025 | X38: =IF(Hypothesis!$A$29=0,IF(W38<Hypothesis!$C$31,Hypothesis!$E$30,Hypothesis!$C$32*((LN(Hypothesis!$C$33*'United States'!AA37))-LN(Y37))),Hypothesis!$C$494*(LN('United States'!$AA37)-LN(Australia!$Y37)-0.05*(Education!$N156-Education!$B156))+Hypothesis!$C$495*'Labor and Products Regulations'!$B41*(LN('United States'!$AA37)-LN(Australia!Y37)-0.05*(Education!$N156-Education!$B156))+Hypothesis!$C$496*(CUR!B52)+Hypothesis!$C$497*(Hours!B391)+Hypothesis!$C$498*(Employment!BP78-Employment!BP77)+0.00386805) -> 0.0107594777 | Y38: 13.38222714 | Z38: =Y38/'United States'!AA38 -> 0.8530432977 | AA38: 0 | AC38: 2025 | AD38: 0.0346536315 | AE38: 5.257609494e+12 | AF38: 0 | AH38: 2025 | AI38: =IF(Hypothesis!$A$36=1,Hypothesis!$C$486+Hypothesis!$C$487*AI37+Hypothesis!$C$488*Australia!X38+Hypothesis!$C$489*Australia!X37+Hypothesis!$C$490*(Australia!AJ37+Hypothesis!$C$491*LN(Australia!Y37)),Hypothesis!$E$37) -> -0.005541021458 | AJ38: -0.05320157964 | AK38: 0
Q39: 2026 | R39: =(1/(1-Hypothesis!$C$483))*X39-(Hypothesis!$C$483/(1-Hypothesis!$C$483))*AI38+LN(Employment!B138/Employment!B137)+LN(Hours!B158/Hours!B157) -> 0.03187747902 | S39: 1.511569147e+12 | T39: 0 | U39: =S39/Employment!CV39 -> 53382.73559 | W39: 2026 | X39: =IF(Hypothesis!$A$29=0,IF(W39<Hypothesis!$C$31,Hypothesis!$E$30,Hypothesis!$C$32*((LN(Hypothesis!$C$33*'United States'!AA38))-LN(Y38))),Hypothesis!$C$494*(LN('United States'!$AA38)-LN(Australia!$Y38)-0.05*(Education!$N157-Education!$B157))+Hypothesis!$C$495*'Labor and Products Regulations'!$B42*(LN('United States'!$AA38)-LN(Australia!Y38)-0.05*(Education!$N157-Education!$B157))+Hypothesis!$C$496*(CUR!B53)+Hypothesis!$C$497*(Hours!B392)+Hypothesis!$C$498*(Employment!BP79-Employment!BP78)+0.00386805) -> 0.01284380604 | Y39: 13.5552144 | Z39: =Y39/'United States'!AA39 -> 0.8402413382 | AA39: 0 | AC39: 2026 | AD39: 0.03769028613 | AE39: 5.459552031e+12 | AF39: 0 | AH39: 2026 | AI39: =IF(Hypothesis!$A$36=1,Hypothesis!$C$486+Hypothesis!$C$487*AI38+Hypothesis!$C$488*Australia!X39+Hypothesis!$C$489*Australia!X38+Hypothesis!$C$490*(Australia!AJ38+Hypothesis!$C$491*LN(Australia!Y38)),Hypothesis!$E$37) -> -0.005812807111 | AJ39: -0.05901438675 | AK39: 0
Q40: 2027 | R40: =(1/(1-Hypothesis!$C$483))*X40-(Hypothesis!$C$483/(1-Hypothesis!$C$483))*AI39+LN(Employment!B139/Employment!B138)+LN(Hours!B159/Hours!B158) -> 0.03494192306 | S40: 1.56438628e+12 | T40: 0 | U40: =S40/Employment!CV40 -> 54474.0885 | W40: 2027 | X40: =IF(Hypothesis!$A$29=0,IF(W40<Hypothesis!$C$31,Hypothesis!$E$30,Hypothesis!$C$32*((LN(Hypothesis!$C$33*'United States'!AA39))-LN(Y39))),Hypothesis!$C$494*(LN('United States'!$AA39)-LN(Australia!$Y39)-0.05*(Education!$N158-Education!$B158))+Hypothesis!$C$495*'Labor and Products Regulations'!$B43*(LN('United States'!$AA39)-LN(Australia!Y39)-0.05*(Education!$N158-Education!$B158))+Hypothesis!$C$496*(CUR!B54)+Hypothesis!$C$497*(Hours!B393)+Hypothesis!$C$498*(Employment!BP80-Employment!BP79)+0.00386805) -> 0.01466152747 | Y40: 13.75541861 | Z40: =Y40/'United States'!AA40 -> 0.8300843966 | AA40: 0 | AC40: 2027 | AD40: 0.04138630368 | AE40: 5.690243516e+12 | AF40: 0 | AH40: 2027 | AI40: =IF(Hypothesis!$A$36=1,Hypothesis!$C$486+Hypothesis!$C$487*AI39+Hypothesis!$C$488*Australia!X40+Hypothesis!$C$489*Australia!X39+Hypothesis!$C$490*(Australia!AJ39+Hypothesis!$C$491*LN(Australia!Y39)),Hypothesis!$E$37) -> -0.006444380623 | AJ40: -0.06545876738 | AK40: 0
Q41: 2028 | R41: =(1/(1-Hypothesis!$C$483))*X41-(Hypothesis!$C$483/(1-Hypothesis!$C$483))*AI40+LN(Employment!B140/Employment!B139)+LN(Hours!B160/Hours!B159) -> 0.03748586393 | S41: 1.623028651e+12 | T41: 0 | U41: =S41/Employment!CV41 -> 55742.93374 | W41: 2028 | X41: =IF(Hypothesis!$A$29=0,IF(W41<Hypothesis!$C$31,Hypothesis!$E$30,Hypothesis!$C$32*((LN(Hypothesis!$C$33*'United States'!AA40))-LN(Y40))),Hypothesis!$C$494*(LN('United States'!$AA40)-LN(Australia!$Y40)-0.05*(Education!$N159-Education!$B159))+Hypothesis!$C$495*'Labor and Products Regulations'!$B44*(LN('United States'!$AA40)-LN(Australia!Y40)-0.05*(Education!$N159-Education!$B159))+Hypothesis!$C$496*(CUR!B55)+Hypothesis!$C$497*(Hours!B394)+Hypothesis!$C$498*(Employment!BP81-Employment!BP80)+0.00386805) -> 0.01613822505 | Y41: 13.97920758 | Z41: =Y41/'United States'!AA41 -> 0.8227062565 | AA41: 0 | AC41: 2028 | AD41: 0.04485336042 | AE41: 5.95128049e+12 | AF41: 0 | AH41: 2028 | AI41: =IF(Hypothesis!$A$36=1,Hypothesis!$C$486+Hypothesis!$C$487*AI40+Hypothesis!$C$488*Australia!X41+Hypothesis!$C$489*Australia!X40+Hypothesis!$C$490*(Australia!AJ40+Hypothesis!$C$491*LN(Australia!Y40)),Hypothesis!$E$37) -> -0.00736749649 | AJ41: -0.07282626387 | AK41: 0
B42: period | E42: 2000-2010 | F42: 2010-2020 | G42: 2020-2030 | H42: 2030-2040 | I42: 2040-2050 | J42: 2050-2060 | K42: 2060-2070 | L42: 2070-2080 | M42: 2080-2090 | N42: 2090-2100 | Q42: 2029 | R42: =(1/(1-Hypothesis!$C$483))*X42-(Hypothesis!$C$483/(1-Hypothesis!$C$483))*AI41+LN(Employment!B141/Employment!B140)+LN(Hours!B161/Hours!B160) -> 0.03933744686 | S42: 1.686874454e+12 | T42: 0 | U42: =S42/Employment!CV42 -> 57157.67826 | W42: 2029 | X42: =IF(Hypothesis!$A$29=0,IF(W42<Hypothesis!$C$31,Hypothesis!$E$30,Hypothesis!$C$32*((LN(Hypothesis!$C$33*'United States'!AA41))-LN(Y41))),Hypothesis!$C$494*(LN('United States'!$AA41)-LN(Australia!$Y41)-0.05*(Education!$N160-Education!$B160))+Hypothesis!$C$495*'Labor and Products Regulations'!$B45*(LN('United States'!$AA41)-LN(Australia!Y41)-0.05*(Education!$N160-Education!$B160))+Hypothesis!$C$496*(CUR!B56)+Hypothesis!$C$497*(Hours!B395)+Hypothesis!$C$498*(Employment!BP82-Employment!BP81)+0.00386805) -> 0.01722959624 | Y42: 14.22215057 | Z42: =Y42/'United States'!AA42 -> 0.8180675023 | AA42: 0 | AC42: 2029 | AD42: 0.04781622831 | AE42: 6.242761504e+12 | AF42: 0 | AH42: 2029 | AI42: =IF(Hypothesis!$A$36=1,Hypothesis!$C$486+Hypothesis!$C$487*AI41+Hypothesis!$C$488*Australia!X42+Hypothesis!$C$489*Australia!X41+Hypothesis!$C$490*(Australia!AJ41+Hypothesis!$C$491*LN(Australia!Y41)),Hypothesis!$E$37) -> -0.008478781445 | AJ42: -0.08130504531 | AK42: 0
B43: average GDP potential growth rate | E43: =AVERAGE($R14:$R23) -> 0.03045149191 | F43: =AVERAGE($R24:$R33) -> 0.01850762418 | G43: =AVERAGE($R34:$R43) -> 0.03019216628 | H43: =AVERAGE($R44:$R53) -> 0.03968858881 | I43: =AVERAGE($R54:$R63) -> 0.02904251973 | J43: =AVERAGE($R64:$R73) -> 0.0241667722 | K43: =AVERAGE($R74:$R83) -> 0.02323402153 | L43: =AVERAGE($R84:$R93) -> 0.0228959742 | M43: =AVERAGE($R94:$R103) -> 0.02276062404 | N43: =AVERAGE($R104:$R113) -> 0.02272602276 | Q43: 2030 | R43: =(1/(1-Hypothesis!$C$483))*X43-(Hypothesis!$C$483/(1-Hypothesis!$C$483))*AI42+LN(Employment!B142/Employment!B141)+LN(Hours!B162/Hours!B161) -> 0.04055921145 | S43: 1.755292752e+12 | T43: 0 | U43: =S43/Employment!CV43 -> 58691.70683 | W43: 2030 | X43: =IF(Hypothesis!$A$29=0,IF(W43<Hypothesis!$C$31,Hypothesis!$E$30,Hypothesis!$C$32*((LN(Hypothesis!$C$33*'United States'!AA42))-LN(Y42))),Hypothesis!$C$494*(LN('United States'!$AA42)-LN(Australia!$Y42)-0.05*(Education!$N161-Education!$B161))+Hypothesis!$C$495*'Labor and Products Regulations'!$B46*(LN('United States'!$AA42)-LN(Australia!Y42)-0.05*(Education!$N161-Education!$B161))+Hypothesis!$C$496*(CUR!B57)+Hypothesis!$C$497*(Hours!B396)+Hypothesis!$C$498*(Employment!BP83-Employment!BP82)+0.00386805) -> 0.0179222923 | Y43: 14.47934196 | Z43: =Y43/'United States'!AA43 -> 0.8159683384 | AA43: 0 | AC43: 2030 | AD43: 0.05021941458 | AE43: 6.56427487e+12 | AF43: 0 | AH43: 2030 | AI43: =IF(Hypothesis!$A$36=1,Hypothesis!$C$486+Hypothesis!$C$487*AI42+Hypothesis!$C$488*Australia!X43+Hypothesis!$C$489*Australia!X42+Hypothesis!$C$490*(Australia!AJ42+Hypothesis!$C$491*LN(Australia!Y42)),Hypothesis!$E$37) -> -0.009660203133 | AJ43: -0.09096524845 | AK43: 0
B44: average TFP potential growth rate contribution | E44: =AVERAGE($X14:$X23) -> 0.006915176476 | F44: =AVERAGE($X24:$X33) -> 0.005386918911 | G44: =AVERAGE($X34:$X43) -> 0.0111670201 | H44: =AVERAGE($X44:$X53) -> 0.01675103177 | I44: =AVERAGE($X54:$X63) -> 0.01120454478 | J44: =AVERAGE($X64:$X73) -> 0.009144327081 | K44: =AVERAGE($X74:$X83) -> 0.008644341082 | L44: =AVERAGE($X84:$X93) -> 0.00845346651 | M44: =AVERAGE($X94:$X103) -> 0.008381695329 | N44: =AVERAGE($X104:$X113) -> 0.008363150549 | Q44: 2031 | R44: =(1/(1-Hypothesis!$C$483))*X44-(Hypothesis!$C$483/(1-Hypothesis!$C$483))*AI43+LN(Employment!B143/Employment!B142)+LN(Hours!B163/Hours!B162) -> 0.0413196739 | S44: 1.827820876e+12 | T44: 0 | U44: =S44/Employment!CV44 -> 60327.37159 | W44: 2031 | X44: =IF(Hypothesis!$A$29=0,IF(W44<Hypothesis!$C$31,Hypothesis!$E$30,Hypothesis!$C$32*((LN(Hypothesis!$C$33*'United States'!AA43))-LN(Y43))),Hypothesis!$C$494*(LN('United States'!$AA43)-LN(Australia!$Y43)-0.05*(Education!$N162-Education!$B162))+Hypothesis!$C$495*'Labor and Products Regulations'!$B47*(LN('United States'!$AA43)-LN(Australia!Y43)-0.05*(Education!$N162-Education!$B162))+Hypothesis!$C$496*(CUR!B58)+Hypothesis!$C$497*(Hours!B397)+Hypothesis!$C$498*(Employment!BP84-Employment!BP83)+0.00386805) -> 0.01824336183 | Y44: 14.74591806 | Z44: =Y44/'United States'!AA44 -> 0.8160885692 | AA44: 0 | AC44: 2031 | AD44: 0.05211946106 | AE44: 6.915473996e+12 | AF44: 0 | AH44: 2031 | AI44: =IF(Hypothesis!$A$36=1,Hypothesis!$C$486+Hypothesis!$C$487*AI43+Hypothesis!$C$488*Australia!X44+Hypothesis!$C$489*Australia!X43+Hypothesis!$C$490*(Australia!AJ43+Hypothesis!$C$491*LN(Australia!Y43)),Hypothesis!$E$37) -> -0.01079978716 | AJ44: -0.1017650356 | AK44: 0
B45: average Capital potential growth rate contribution | E45: =0.3*AVERAGE($AD13:$AD22) -> 0.01179325886 | F45: =0.3*AVERAGE($AD23:$AD32) -> 0.00822626658 | G45: =0.3*AVERAGE($AD33:$AD42) -> 0.01055274467 | H45: =0.3*AVERAGE($AD43:$AD52) -> 0.01584319854 | I45: =0.3*AVERAGE($AD53:$AD62) -> 0.01178792837 | J45: =0.3*AVERAGE($AD63:$AD72) -> 0.009395303985 | K45: =0.3*AVERAGE($AD73:$AD82) -> 0.008864370332 | L45: =0.3*AVERAGE($AD83:$AD92) -> 0.008733835277 | M45: =0.3*AVERAGE($AD93:$AD102) -> 0.008665341363 | N45: =0.3*AVERAGE($AD103:$AD112) -> 0.008647669428 | Q45: 2032 | R45: =(1/(1-Hypothesis!$C$483))*X45-(Hypothesis!$C$483/(1-Hypothesis!$C$483))*AI44+LN(Employment!B144/Employment!B143)+LN(Hours!B164/Hours!B163) -> 0.0425839781 | S45: 1.90565676e+12 | T45: 0 | U45: =S45/Employment!CV45 -> 62102.30804 | W45: 2032 | X45: =IF(Hypothesis!$A$29=0,IF(W45<Hypothesis!$C$31,Hypothesis!$E$30,Hypothesis!$C$32*((LN(Hypothesis!$C$33*'United States'!AA44))-LN(Y44))),Hypothesis!$C$494*(LN('United States'!$AA44)-LN(Australia!$Y44)-0.05*(Education!$N163-Education!$B163))+Hypothesis!$C$495*'Labor and Products Regulations'!$B48*(LN('United States'!$AA44)-LN(Australia!Y44)-0.05*(Education!$N163-Education!$B163))+Hypothesis!$C$496*(CUR!B59)+Hypothesis!$C$497*(Hours!B398)+Hypothesis!$C$498*(Employment!BP85-Employment!BP84)+0.00386805) -> 0.01890074516 | Y45: 15.02727748 | Z45: =Y45/'United States'!AA45 -> 0.8185679678 | AA45: 0 | AC45: 2032 | AD45: 0.05456199081 | AE45: 7.303279542e+12 | AF45: 0 | AH45: 2032 | AI45: =IF(Hypothesis!$A$36=1,Hypothesis!$C$486+Hypothesis!$C$487*AI44+Hypothesis!$C$488*Australia!X45+Hypothesis!$C$489*Australia!X44+Hypothesis!$C$490*(Australia!AJ44+Hypothesis!$C$491*LN(Australia!Y44)),Hypothesis!$E$37) -> -0.01197801271 | AJ45: -0.1137430483 | AK45: 0
B46: average Employment potential growth rate contribution | E46: =0.7*AVERAGE(Employment!$B327:$B336) -> 0.01526175015 | F46: =0.7*AVERAGE(Employment!$B337:$B346) -> 0.007024725641 | G46: =0.7*AVERAGE(Employment!$B347:$B356) -> 0.007434264579 | H46: =0.7*AVERAGE(Employment!$B357:$B366) -> 0.006776230369 | I46: =0.7*AVERAGE(Employment!$B367:$B376) -> 0.00583164939 | J46: =0.7*AVERAGE(Employment!$B377:$B386) -> 0.005224168052 | K46: =0.7*AVERAGE(Employment!$B387:$B396) -> 0.005224168052 | L46: =0.7*AVERAGE(Employment!$B397:$B406) -> 0.005224168052 | M46: =0.7*AVERAGE(Employment!$B407:$B416) -> 0.005224168052 | N46: =0.7*AVERAGE(Employment!$B417:$B426) -> 0.005224168052 | Q46: 2033 | R46: =(1/(1-Hypothesis!$C$483))*X46-(Hypothesis!$C$483/(1-Hypothesis!$C$483))*AI45+LN(Employment!B145/Employment!B144)+LN(Hours!B165/Hours!B164) -> 0.04271209614 | S46: 1.987051355e+12 | T46: 0 | U46: =S46/Employment!CV46 -> 63955.69218 | W46: 2033 | X46: =IF(Hypothesis!$A$29=0,IF(W46<Hypothesis!$C$31,Hypothesis!$E$30,Hypothesis!$C$32*((LN(Hypothesis!$C$33*'United States'!AA45))-LN(Y45))),Hypothesis!$C$494*(LN('United States'!$AA45)-LN(Australia!$Y45)-0.05*(Education!$N164-Education!$B164))+Hypothesis!$C$495*'Labor and Products Regulations'!$B49*(LN('United States'!$AA45)-LN(Australia!Y45)-0.05*(Education!$N164-Education!$B164))+Hypothesis!$C$496*(CUR!B60)+Hypothesis!$C$497*(Hours!B399)+Hypothesis!$C$498*(Employment!BP86-Employment!BP85)+0.00386805) -> 0.01874990258 | Y46: 15.31169554 | Z46: =Y46/'United States'!AA46 -> 0.8225297147 | AA46: 0 | AC46: 2033 | AD46: 0.05553185637 | AE46: 7.720316464e+12 | AF46: 0 | AH46: 2033 | AI46: =IF(Hypothesis!$A$36=1,Hypothesis!$C$486+Hypothesis!$C$487*AI45+Hypothesis!$C$488*Australia!X46+Hypothesis!$C$489*Australia!X45+Hypothesis!$C$490*(Australia!AJ45+Hypothesis!$C$491*LN(Australia!Y45)),Hypothesis!$E$37) -> -0.01281976023 | AJ46: -0.1265628085 | AK46: 0
B47: average Hours potential growth rate contribution | E47: =0.7*AVERAGE(Hours!$B367:$B376) -> -0.003518693581 | F47: =0.7*AVERAGE(Hours!$B377:$B386) -> -0.002669592123 | G47: =0.7*AVERAGE(Hours!$B387:$B396) -> 0.0004915381665 | H47: =0.7*AVERAGE(Hours!$B397:$B406) -> 0.0004915381665 | I47: =0.7*AVERAGE(Hours!$B407:$B416) -> 0.0004915381665 | J47: =0.7*AVERAGE(Hours!$B417:$B426) -> 0.0004915381665 | K47: =0.7*AVERAGE(Hours!$B427:$B436) -> 0.0004915381665 | L47: =0.7*AVERAGE(Hours!$B437:$B446) -> 0.0004915381665 | M47: =0.7*AVERAGE(Hours!$B447:$B456) -> 0.0004915381665 | N47: =0.7*AVERAGE(Hours!$B457:$B466) -> 0.0004915381665 | Q47: 2034 | R47: =(1/(1-Hypothesis!$C$483))*X47-(Hypothesis!$C$483/(1-Hypothesis!$C$483))*AI46+LN(Employment!B146/Employment!B145)+LN(Hours!B166/Hours!B165) -> 0.04217620952 | S47: 2.070857649e+12 | T47: 0 | U47: =S47/Employment!CV47 -> 65844.72518 | W47: 2034 | X47: =IF(Hypothesis!$A$29=0,IF(W47<Hypothesis!$C$31,Hypothesis!$E$30,Hypothesis!$C$32*((LN(Hypothesis!$C$33*'United States'!AA46))-LN(Y46))),Hypothesis!$C$494*(LN('United States'!$AA46)-LN(Australia!$Y46)-0.05*(Education!$N165-Education!$B165))+Hypothesis!$C$495*'Labor and Products Regulations'!$B50*(LN('United States'!$AA46)-LN(Australia!Y46)-0.05*(Education!$N165-Education!$B165))+Hypothesis!$C$496*(CUR!B61)+Hypothesis!$C$497*(Hours!B400)+Hypothesis!$C$498*(Employment!BP87-Employment!BP86)+0.00386805) -> 0.01822455278 | Y47: 15.59330263 | Z47: =Y47/'United States'!AA47 -> 0.8274016166 | AA47: 0 | AC47: 2034 | AD47: 0.05556687551 | AE47: 8.16145312e+12 | AF47: 0 | AH47: 2034 | AI47: =IF(Hypothesis!$A$36=1,Hypothesis!$C$486+Hypothesis!$C$487*AI46+Hypothesis!$C$488*Australia!X47+Hypothesis!$C$489*Australia!X46+Hypothesis!$C$490*(Australia!AJ46+Hypothesis!$C$491*LN(Australia!Y46)),Hypothesis!$E$37) -> -0.013390666 | AJ47: -0.1399534745 | AK47: 0
B48: average Relative Price potential growth rate | E48: =AVERAGE($AI14:$AI23) -> 0.0383614535 | F48: =AVERAGE($AI24:$AI33) -> 0.002321713255 | G48: =AVERAGE($AI34:$AI43) -> -0.006916318927 | H48: =AVERAGE($AI44:$AI53) -> -0.01277661959 | I48: =AVERAGE($AI54:$AI63) -> -0.008868174935 | J48: =AVERAGE($AI64:$AI73) -> -0.006776710877 | K48: =AVERAGE($AI74:$AI83) -> -0.006322575612 | L48: =AVERAGE($AI84:$AI93) -> -0.006182797721 | M48: =AVERAGE($AI94:$AI103) -> -0.006113190262 | N48: =AVERAGE($AI104:$AI113) -> -0.00609707239 | Q48: 2035 | R48: =(1/(1-Hypothesis!$C$483))*X48-(Hypothesis!$C$483/(1-Hypothesis!$C$483))*AI47+LN(Employment!B147/Employment!B146)+LN(Hours!B167/Hours!B166) -> 0.04123765229 | S48: 2.156254957e+12 | T48: 0 | U48: =S48/Employment!CV48 -> 67732.12717 | W48: 2035 | X48: =IF(Hypothesis!$A$29=0,IF(W48<Hypothesis!$C$31,Hypothesis!$E$30,Hypothesis!$C$32*((LN(Hypothesis!$C$33*'United States'!AA47))-LN(Y47))),Hypothesis!$C$494*(LN('United States'!$AA47)-LN(Australia!$Y47)-0.05*(Education!$N166-Education!$B166))+Hypothesis!$C$495*'Labor and Products Regulations'!$B51*(LN('United States'!$AA47)-LN(Australia!Y47)-0.05*(Education!$N166-Education!$B166))+Hypothesis!$C$496*(CUR!B62)+Hypothesis!$C$497*(Hours!B401)+Hypothesis!$C$498*(Employment!BP88-Employment!BP87)+0.00386805) -> 0.01751711529 | Y48: 15.86885874 | Z48: =Y48/'United States'!AA48 -> 0.83275513 | AA48: 0 | AC48: 2035 | AD48: 0.05493484954 | AE48: 8.622344928e+12 | AF48: 0 | AH48: 2035 | AI48: =IF(Hypothesis!$A$36=1,Hypothesis!$C$486+Hypothesis!$C$487*AI47+Hypothesis!$C$488*Australia!X48+Hypothesis!$C$489*Australia!X47+Hypothesis!$C$490*(Australia!AJ47+Hypothesis!$C$491*LN(Australia!Y47)),Hypothesis!$E$37) -> -0.01369719725 | AJ48: -0.1536506718 | AK48: 0
Q49: 2036 | R49: =(1/(1-Hypothesis!$C$483))*X49-(Hypothesis!$C$483/(1-Hypothesis!$C$483))*AI48+LN(Employment!B148/Employment!B147)+LN(Hours!B168/Hours!B167) -> 0.04003456251 | S49: 2.242579681e+12 | T49: 0 | U49: =S49/Employment!CV49 -> 69629.03552 | W49: 2036 | X49: =IF(Hypothesis!$A$29=0,IF(W49<Hypothesis!$C$31,Hypothesis!$E$30,Hypothesis!$C$32*((LN(Hypothesis!$C$33*'United States'!AA48))-LN(Y48))),Hypothesis!$C$494*(LN('United States'!$AA48)-LN(Australia!$Y48)-0.05*(Education!$N167-Education!$B167))+Hypothesis!$C$495*'Labor and Products Regulations'!$B52*(LN('United States'!$AA48)-LN(Australia!Y48)-0.05*(Education!$N167-Education!$B167))+Hypothesis!$C$496*(CUR!B63)+Hypothesis!$C$497*(Hours!B402)+Hypothesis!$C$498*(Employment!BP89-Employment!BP88)+0.00386805) -> 0.01672844821 | Y49: 16.13655293 | Z49: =Y49/'United States'!AA49 -> 0.8382603002 | AA49: 0 | AC49: 2036 | AD49: 0.05377974574 | AE49: 9.098748047e+12 | AF49: 0 | AH49: 2036 | AI49: =IF(Hypothesis!$A$36=1,Hypothesis!$C$486+Hypothesis!$C$487*AI48+Hypothesis!$C$488*Australia!X49+Hypothesis!$C$489*Australia!X48+Hypothesis!$C$490*(Australia!AJ48+Hypothesis!$C$491*LN(Australia!Y48)),Hypothesis!$E$37) -> -0.01374518322 | AJ49: -0.167395855 | AK49: 0
Q50: 2037 | R50: =(1/(1-Hypothesis!$C$483))*X50-(Hypothesis!$C$483/(1-Hypothesis!$C$483))*AI49+LN(Employment!B149/Employment!B148)+LN(Hours!B169/Hours!B168) -> 0.03872453179 | S50: 2.329422529e+12 | T50: 0 | U50: =S50/Employment!CV50 -> 71487.57342 | W50: 2037 | X50: =IF(Hypothesis!$A$29=0,IF(W50<Hypothesis!$C$31,Hypothesis!$E$30,Hypothesis!$C$32*((LN(Hypothesis!$C$33*'United States'!AA49))-LN(Y49))),Hypothesis!$C$494*(LN('United States'!$AA49)-LN(Australia!$Y49)-0.05*(Education!$N168-Education!$B168))+Hypothesis!$C$495*'Labor and Products Regulations'!$B53*(LN('United States'!$AA49)-LN(Australia!Y49)-0.05*(Education!$N168-Education!$B168))+Hypothesis!$C$496*(CUR!B64)+Hypothesis!$C$497*(Hours!B403)+Hypothesis!$C$498*(Employment!BP90-Employment!BP89)+0.00386805) -> 0.01592017075 | Y50: 16.39550542 | Z50: =Y50/'United States'!AA50 -> 0.84367316 | AA50: 0 | AC50: 2037 | AD50: 0.05228060756 | AE50: 9.587090312e+12 | AF50: 0 | AH50: 2037 | AI50: =IF(Hypothesis!$A$36=1,Hypothesis!$C$486+Hypothesis!$C$487*AI49+Hypothesis!$C$488*Australia!X50+Hypothesis!$C$489*Australia!X49+Hypothesis!$C$490*(Australia!AJ49+Hypothesis!$C$491*LN(Australia!Y49)),Hypothesis!$E$37) -> -0.01355607577 | AJ50: -0.1809519308 | AK50: 0
Q51: 2038 | R51: =(1/(1-Hypothesis!$C$483))*X51-(Hypothesis!$C$483/(1-Hypothesis!$C$483))*AI50+LN(Employment!B150/Employment!B149)+LN(Hours!B170/Hours!B169) -> 0.03732365448 | S51: 2.41636509e+12 | T51: 0 | U51: =S51/Employment!CV51 -> 73317.61816 | W51: 2038 | X51: =IF(Hypothesis!$A$29=0,IF(W51<Hypothesis!$C$31,Hypothesis!$E$30,Hypothesis!$C$32*((LN(Hypothesis!$C$33*'United States'!AA50))-LN(Y50))),Hypothesis!$C$494*(LN('United States'!$AA50)-LN(Australia!$Y50)-0.05*(Education!$N169-Education!$B169))+Hypothesis!$C$495*'Labor and Products Regulations'!$B54*(LN('United States'!$AA50)-LN(Australia!Y50)-0.05*(Education!$N169-Education!$B169))+Hypothesis!$C$496*(CUR!B65)+Hypothesis!$C$497*(Hours!B404)+Hypothesis!$C$498*(Employment!BP91-Employment!BP90)+0.00386805) -> 0.01513210884 | Y51: 16.64549063 | Z51: =Y51/'United States'!AA51 -> 0.8488269589 | AA51: 0 | AC51: 2038 | AD51: 0.05049081341 | AE51: 1.008357889e+13 | AF51: 0 | AH51: 2038 | AI51: =IF(Hypothesis!$A$36=1,Hypothesis!$C$486+Hypothesis!$C$487*AI50+Hypothesis!$C$488*Australia!X51+Hypothesis!$C$489*Australia!X50+Hypothesis!$C$490*(Australia!AJ50+Hypothesis!$C$491*LN(Australia!Y50)),Hypothesis!$E$37) -> -0.01316715894 | AJ51: -0.1941190897 | AK51: 0
Q52: 2039 | R52: =(1/(1-Hypothesis!$C$483))*X52-(Hypothesis!$C$483/(1-Hypothesis!$C$483))*AI51+LN(Employment!B151/Employment!B150)+LN(Hours!B171/Hours!B170) -> 0.03599465225 | S52: 2.503341312e+12 | T52: 0 | U52: =S52/Employment!CV52 -> 75116.7223 | W52: 2039 | X52: =IF(Hypothesis!$A$29=0,IF(W52<Hypothesis!$C$31,Hypothesis!$E$30,Hypothesis!$C$32*((LN(Hypothesis!$C$33*'United States'!AA51))-LN(Y51))),Hypothesis!$C$494*(LN('United States'!$AA51)-LN(Australia!$Y51)-0.05*(Education!$N170-Education!$B170))+Hypothesis!$C$495*'Labor and Products Regulations'!$B55*(LN('United States'!$AA51)-LN(Australia!Y51)-0.05*(Education!$N170-Education!$B170))+Hypothesis!$C$496*(CUR!B66)+Hypothesis!$C$497*(Hours!B405)+Hypothesis!$C$498*(Employment!BP92-Employment!BP91)+0.00386805) -> 0.01438898806 | Y52: 16.88673385 | Z52: =Y52/'United States'!AA52 -> 0.8536203449 | AA52: 0 | AC52: 2039 | AD52: 0.04862100342 | AE52: 1.058596695e+13 | AF52: 0 | AH52: 2039 | AI52: =IF(Hypothesis!$A$36=1,Hypothesis!$C$486+Hypothesis!$C$487*AI51+Hypothesis!$C$488*Australia!X52+Hypothesis!$C$489*Australia!X51+Hypothesis!$C$490*(Australia!AJ51+Hypothesis!$C$491*LN(Australia!Y51)),Hypothesis!$E$37) -> -0.01262635116 | AJ52: -0.2067454409 | AK52: 0
Q53: 2040 | R53: =(1/(1-Hypothesis!$C$483))*X53-(Hypothesis!$C$483/(1-Hypothesis!$C$483))*AI52+LN(Employment!B152/Employment!B151)+LN(Hours!B172/Hours!B171) -> 0.03477887714 | S53: 2.590404711e+12 | T53: 0 | U53: =S53/Employment!CV53 -> 76869.99493 | W53: 2040 | X53: =IF(Hypothesis!$A$29=0,IF(W53<Hypothesis!$C$31,Hypothesis!$E$30,Hypothesis!$C$32*((LN(Hypothesis!$C$33*'United States'!AA52))-LN(Y52))),Hypothesis!$C$494*(LN('United States'!$AA52)-LN(Australia!$Y52)-0.05*(Education!$N171-Education!$B171))+Hypothesis!$C$495*'Labor and Products Regulations'!$B56*(LN('United States'!$AA52)-LN(Australia!Y52)-0.05*(Education!$N171-Education!$B171))+Hypothesis!$C$496*(CUR!B67)+Hypothesis!$C$497*(Hours!B406)+Hypothesis!$C$498*(Employment!BP93-Employment!BP92)+0.00386805) -> 0.01370492414 | Y53: 17.11975841 | Z53: =Y53/'United States'!AA53 -> 0.8580036024 | AA53: 0 | AC53: 2040 | AD53: 0.0467648806 | AE53: 1.109277651e+13 | AF53: 0 | AH53: 2040 | AI53: =IF(Hypothesis!$A$36=1,Hypothesis!$C$486+Hypothesis!$C$487*AI52+Hypothesis!$C$488*Australia!X53+Hypothesis!$C$489*Australia!X52+Hypothesis!$C$490*(Australia!AJ52+Hypothesis!$C$491*LN(Australia!Y52)),Hypothesis!$E$37) -> -0.01198600346 | AJ53: -0.2187314443 | AK53: 0
Q54: 2041 | R54: =(1/(1-Hypothesis!$C$483))*X54-(Hypothesis!$C$483/(1-Hypothesis!$C$483))*AI53+LN(Employment!B153/Employment!B152)+LN(Hours!B173/Hours!B172) -> 0.03368791154 | S54: 2.677670036e+12 | T54: 0 | U54: =S54/Employment!CV54 -> 78602.31534 | W54: 2041 | X54: =IF(Hypothesis!$A$29=0,IF(W54<Hypothesis!$C$31,Hypothesis!$E$30,Hypothesis!$C$32*((LN(Hypothesis!$C$33*'United States'!AA53))-LN(Y53))),Hypothesis!$C$494*(LN('United States'!$AA53)-LN(Australia!$Y53)-0.05*(Education!$N172-Education!$B172))+Hypothesis!$C$495*'Labor and Products Regulations'!$B57*(LN('United States'!$AA53)-LN(Australia!Y53)-0.05*(Education!$N172-Education!$B172))+Hypothesis!$C$496*(CUR!B68)+Hypothesis!$C$497*(Hours!B407)+Hypothesis!$C$498*(Employment!BP94-Employment!BP93)+0.00386805) -> 0.01308615599 | Y54: 17.34526251 | Z54: =Y54/'United States'!AA54 -> 0.8620674138 | AA54: 0 | AC54: 2041 | AD54: 0.04498494232 | AE54: 1.160317856e+13 | AF54: 0 | AH54: 2041 | AI54: =IF(Hypothesis!$A$36=1,Hypothesis!$C$486+Hypothesis!$C$487*AI53+Hypothesis!$C$488*Australia!X54+Hypothesis!$C$489*Australia!X53+Hypothesis!$C$490*(Australia!AJ53+Hypothesis!$C$491*LN(Australia!Y53)),Hypothesis!$E$37) -> -0.01129703078 | AJ54: -0.2300284751 | AK54: 0
Q55: 2042 | R55: =(1/(1-Hypothesis!$C$483))*X55-(Hypothesis!$C$483/(1-Hypothesis!$C$483))*AI54+LN(Employment!B154/Employment!B153)+LN(Hours!B174/Hours!B173) -> 0.03251277652 | S55: 2.764728524e+12 | T55: 0 | U55: =S55/Employment!CV55 -> 80291.64875 | W55: 2042 | X55: =IF(Hypothesis!$A$29=0,IF(W55<Hypothesis!$C$31,Hypothesis!$E$30,Hypothesis!$C$32*((LN(Hypothesis!$C$33*'United States'!AA54))-LN(Y54))),Hypothesis!$C$494*(LN('United States'!$AA54)-LN(Australia!$Y54)-0.05*(Education!$N173-Education!$B173))+Hypothesis!$C$495*'Labor and Products Regulations'!$B58*(LN('United States'!$AA54)-LN(Australia!Y54)-0.05*(Education!$N173-Education!$B173))+Hypothesis!$C$496*(CUR!B69)+Hypothesis!$C$497*(Hours!B408)+Hypothesis!$C$498*(Employment!BP95-Employment!BP94)+0.00386805) -> 0.01251238925 | Y55: 17.56365665 | Z55: =Y55/'United States'!AA55 -> 0.8656536471 | AA55: 0 | AC55: 2042 | AD55: 0.0431115625 | AE55: 1.211434923e+13 | AF55: 0 | AH55: 2042 | AI55: =IF(Hypothesis!$A$36=1,Hypothesis!$C$486+Hypothesis!$C$487*AI54+Hypothesis!$C$488*Australia!X55+Hypothesis!$C$489*Australia!X54+Hypothesis!$C$490*(Australia!AJ54+Hypothesis!$C$491*LN(Australia!Y54)),Hypothesis!$E$37) -> -0.01059878598 | AJ55: -0.2406272611 | AK55: 0
Q56: 2043 | R56: =(1/(1-Hypothesis!$C$483))*X56-(Hypothesis!$C$483/(1-Hypothesis!$C$483))*AI55+LN(Employment!B155/Employment!B154)+LN(Hours!B175/Hours!B174) -> 0.03137109168 | S56: 2.851461076e+12 | T56: 0 | U56: =S56/Employment!CV56 -> 81942.95151 | W56: 2043 | X56: =IF(Hypothesis!$A$29=0,IF(W56<Hypothesis!$C$31,Hypothesis!$E$30,Hypothesis!$C$32*((LN(Hypothesis!$C$33*'United States'!AA55))-LN(Y55))),Hypothesis!$C$494*(LN('United States'!$AA55)-LN(Australia!$Y55)-0.05*(Education!$N174-Education!$B174))+Hypothesis!$C$495*'Labor and Products Regulations'!$B59*(LN('United States'!$AA55)-LN(Australia!Y55)-0.05*(Education!$N174-Education!$B174))+Hypothesis!$C$496*(CUR!B70)+Hypothesis!$C$497*(Hours!B409)+Hypothesis!$C$498*(Employment!BP96-Employment!BP95)+0.00386805) -> 0.01201204457 | Y56: 17.77590429 | Z56: =Y56/'United States'!AA56 -> 0.8688199811 | AA56: 0 | AC56: 2043 | AD56: 0.04130626209 | AE56: 1.262522629e+13 | AF56: 0 | AH56: 2043 | AI56: =IF(Hypothesis!$A$36=1,Hypothesis!$C$486+Hypothesis!$C$487*AI55+Hypothesis!$C$488*Australia!X56+Hypothesis!$C$489*Australia!X55+Hypothesis!$C$490*(Australia!AJ55+Hypothesis!$C$491*LN(Australia!Y55)),Hypothesis!$E$37) -> -0.009935170416 | AJ56: -0.2505624315 | AK56: 0
Q57: 2044 | R57: =(1/(1-Hypothesis!$C$483))*X57-(Hypothesis!$C$483/(1-Hypothesis!$C$483))*AI56+LN(Employment!B156/Employment!B155)+LN(Hours!B176/Hours!B175) -> 0.03022898431 | S57: 2.937657848e+12 | T57: 0 | U57: =S57/Employment!CV57 -> 83537.69758 | W57: 2044 | X57: =IF(Hypothesis!$A$29=0,IF(W57<Hypothesis!$C$31,Hypothesis!$E$30,Hypothesis!$C$32*((LN(Hypothesis!$C$33*'United States'!AA56))-LN(Y56))),Hypothesis!$C$494*(LN('United States'!$AA56)-LN(Australia!$Y56)-0.05*(Education!$N175-Education!$B175))+Hypothesis!$C$495*'Labor and Products Regulations'!$B60*(LN('United States'!$AA56)-LN(Australia!Y56)-0.05*(Education!$N175-Education!$B175))+Hypothesis!$C$496*(CUR!B71)+Hypothesis!$C$497*(Hours!B410)+Hypothesis!$C$498*(Employment!BP97-Employment!BP96)+0.00386805) -> 0.01157489661 | Y57: 17.98285394 | Z57: =Y57/'United States'!AA57 -> 0.8716167878 | AA57: 0 | AC57: 2044 | AD57: 0.03955917993 | AE57: 1.313468024e+13 | AF57: 0 | AH57: 2044 | AI57: =IF(Hypothesis!$A$36=1,Hypothesis!$C$486+Hypothesis!$C$487*AI56+Hypothesis!$C$488*Australia!X57+Hypothesis!$C$489*Australia!X56+Hypothesis!$C$490*(Australia!AJ56+Hypothesis!$C$491*LN(Australia!Y56)),Hypothesis!$E$37) -> -0.00933019562 | AJ57: -0.2598926271 | AK57: 0
Q58: 2045 | R58: =(1/(1-Hypothesis!$C$483))*X58-(Hypothesis!$C$483/(1-Hypothesis!$C$483))*AI57+LN(Employment!B157/Employment!B156)+LN(Hours!B177/Hours!B176) -> 0.02908828698 | S58: 3.023109282e+12 | T58: 0 | U58: =S58/Employment!CV58 -> 85090.37144 | W58: 2045 | X58: =IF(Hypothesis!$A$29=0,IF(W58<Hypothesis!$C$31,Hypothesis!$E$30,Hypothesis!$C$32*((LN(Hypothesis!$C$33*'United States'!AA57))-LN(Y57))),Hypothesis!$C$494*(LN('United States'!$AA57)-LN(Australia!$Y57)-0.05*(Education!$N176-Education!$B176))+Hypothesis!$C$495*'Labor and Products Regulations'!$B61*(LN('United States'!$AA57)-LN(Australia!Y57)-0.05*(Education!$N176-Education!$B176))+Hypothesis!$C$496*(CUR!B72)+Hypothesis!$C$497*(Hours!B411)+Hypothesis!$C$498*(Employment!BP98-Employment!BP97)+0.00386805) -> 0.01119242862 | Y58: 18.18525633 | Z58: =Y58/'United States'!AA58 -> 0.8740882231 | AA58: 0 | AC58: 2045 | AD58: 0.03788735479 | AE58: 1.364186582e+13 | AF58: 0 | AH58: 2045 | AI58: =IF(Hypothesis!$A$36=1,Hypothesis!$C$486+Hypothesis!$C$487*AI57+Hypothesis!$C$488*Australia!X58+Hypothesis!$C$489*Australia!X57+Hypothesis!$C$490*(Australia!AJ57+Hypothesis!$C$491*LN(Australia!Y57)),Hypothesis!$E$37) -> -0.008799067812 | AJ58: -0.268691695 | AK58: 0
Q59: 2046 | R59: =(1/(1-Hypothesis!$C$483))*X59-(Hypothesis!$C$483/(1-Hypothesis!$C$483))*AI58+LN(Employment!B158/Employment!B157)+LN(Hours!B178/Hours!B177) -> 0.02815911355 | S59: 3.10823736e+12 | T59: 0 | U59: =S59/Employment!CV59 -> 86597.87266 | W59: 2046 | X59: =IF(Hypothesis!$A$29=0,IF(W59<Hypothesis!$C$31,Hypothesis!$E$30,Hypothesis!$C$32*((LN(Hypothesis!$C$33*'United States'!AA58))-LN(Y58))),Hypothesis!$C$494*(LN('United States'!$AA58)-LN(Australia!$Y58)-0.05*(Education!$N177-Education!$B177))+Hypothesis!$C$495*'Labor and Products Regulations'!$B62*(LN('United States'!$AA58)-LN(Australia!Y58)-0.05*(Education!$N177-Education!$B177))+Hypothesis!$C$496*(CUR!B73)+Hypothesis!$C$497*(Hours!B412)+Hypothesis!$C$498*(Employment!BP99-Employment!BP98)+0.00386805) -> 0.01085735519 | Y59: 18.38377586 | Z59: =Y59/'United States'!AA59 -> 0.876273001 | AA59: 0 | AC59: 2046 | AD59: =R59- AI59 -> 0.0365075839 | AE59: =AE58*EXP(AD59) -> 1.414909999e+13 | AF59: 0 | AH59: 2046 | AI59: =IF(Hypothesis!$A$36=1,Hypothesis!$C$486+Hypothesis!$C$487*AI58+Hypothesis!$C$488*Australia!X59+Hypothesis!$C$489*Australia!X58+Hypothesis!$C$490*(Australia!AJ58+Hypothesis!$C$491*LN(Australia!Y58)),Hypothesis!$E$37) -> -0.008348470345 | AJ59: -0.2770401653 | AK59: 0
Q60: 2047 | R60: =(1/(1-Hypothesis!$C$483))*X60-(Hypothesis!$C$483/(1-Hypothesis!$C$483))*AI59+LN(Employment!B159/Employment!B158)+LN(Hours!B179/Hours!B178) -> 0.02724394597 | S60: 3.192918011e+12 | T60: 0 | U60: =S60/Employment!CV60 -> 88062.71916 | W60: 2047 | X60: =IF(Hypothesis!$A$29=0,IF(W60<Hypothesis!$C$31,Hypothesis!$E$30,Hypothesis!$C$32*((LN(Hypothesis!$C$33*'United States'!AA59))-LN(Y59))),Hypothesis!$C$494*(LN('United States'!$AA59)-LN(Australia!$Y59)-0.05*(Education!$N178-Education!$B178))+Hypothesis!$C$495*'Labor and Products Regulations'!$B63*(LN('United States'!$AA59)-LN(Australia!Y59)-0.05*(Education!$N178-Education!$B178))+Hypothesis!$C$496*(CUR!B74)+Hypothesis!$C$497*(Hours!B413)+Hypothesis!$C$498*(Employment!BP100-Employment!BP99)+0.00386805) -> 0.01056322671 | Y60: 18.57899712 | Z60: =Y60/'United States'!AA60 -> 0.8782048966 | AA60: 0 | AC60: 2047 | AD60: 0.03522173787 | AE60: 1.465633632e+13 | AF60: 0 | AH60: 2047 | AI60: =IF(Hypothesis!$A$36=1,Hypothesis!$C$486+Hypothesis!$C$487*AI59+Hypothesis!$C$488*Australia!X60+Hypothesis!$C$489*Australia!X59+Hypothesis!$C$490*(Australia!AJ59+Hypothesis!$C$491*LN(Australia!Y59)),Hypothesis!$E$37) -> -0.007977791902 | AJ60: -0.2850179572 | AK60: 0
Q61: 2048 | R61: =(1/(1-Hypothesis!$C$483))*X61-(Hypothesis!$C$483/(1-Hypothesis!$C$483))*AI60+LN(Employment!B160/Employment!B159)+LN(Hours!B180/Hours!B179) -> 0.02648142299 | S61: 3.277471023e+12 | T61: 0 | U61: =S61/Employment!CV61 -> 89499.77208 | W61: 2048 | X61: =IF(Hypothesis!$A$29=0,IF(W61<Hypothesis!$C$31,Hypothesis!$E$30,Hypothesis!$C$32*((LN(Hypothesis!$C$33*'United States'!AA60))-LN(Y60))),Hypothesis!$C$494*(LN('United States'!$AA60)-LN(Australia!$Y60)-0.05*(Education!$N179-Education!$B179))+Hypothesis!$C$495*'Labor and Products Regulations'!$B64*(LN('United States'!$AA60)-LN(Australia!Y60)-0.05*(Education!$N179-Education!$B179))+Hypothesis!$C$496*(CUR!B75)+Hypothesis!$C$497*(Hours!B414)+Hypothesis!$C$498*(Employment!BP101-Employment!BP100)+0.00386805) -> 0.01030407748 | Y61: 18.77142625 | Z61: =Y61/'United States'!AA61 -> 0.8799129932 | AA61: 0 | AC61: 2048 | AD61: 0.03416226445 | AE61: 1.51656806e+13 | AF61: 0 | AH61: 2048 | AI61: =IF(Hypothesis!$A$36=1,Hypothesis!$C$486+Hypothesis!$C$487*AI60+Hypothesis!$C$488*Australia!X61+Hypothesis!$C$489*Australia!X60+Hypothesis!$C$490*(Australia!AJ60+Hypothesis!$C$491*LN(Australia!Y60)),Hypothesis!$E$37) -> -0.00768084146 | AJ61: -0.2926987987 | AK61: 0
Q62: 2049 | R62: =(1/(1-Hypothesis!$C$483))*X62-(Hypothesis!$C$483/(1-Hypothesis!$C$483))*AI61+LN(Employment!B161/Employment!B160)+LN(Hours!B181/Hours!B180) -> 0.02597748572 | S62: 3.36261148e+12 | T62: 0 | U62: =S62/Employment!CV62 -> 90924.53265 | W62: 2049 | X62: =IF(Hypothesis!$A$29=0,IF(W62<Hypothesis!$C$31,Hypothesis!$E$30,Hypothesis!$C$32*((LN(Hypothesis!$C$33*'United States'!AA61))-LN(Y61))),Hypothesis!$C$494*(LN('United States'!$AA61)-LN(Australia!$Y61)-0.05*(Education!$N180-Education!$B180))+Hypothesis!$C$495*'Labor and Products Regulations'!$B65*(LN('United States'!$AA61)-LN(Australia!Y61)-0.05*(Education!$N180-Education!$B180))+Hypothesis!$C$496*(CUR!B76)+Hypothesis!$C$497*(Hours!B415)+Hypothesis!$C$498*(Employment!BP102-Employment!BP101)+0.00386805) -> 0.01007413044 | Y62: 18.96148779 | Z62: =Y62/'United States'!AA62 -> 0.8814217083 | AA62: 0 | AC62: 2049 | AD62: 0.03342517715 | AE62: 1.568116321e+13 | AF62: 0 | AH62: 2049 | AI62: =IF(Hypothesis!$A$36=1,Hypothesis!$C$486+Hypothesis!$C$487*AI61+Hypothesis!$C$488*Australia!X62+Hypothesis!$C$489*Australia!X61+Hypothesis!$C$490*(Australia!AJ61+Hypothesis!$C$491*LN(Australia!Y61)),Hypothesis!$E$37) -> -0.00744769143 | AJ62: -0.3001464901 | AK62: 0
Q63: 2050 | R63: =(1/(1-Hypothesis!$C$483))*X63-(Hypothesis!$C$483/(1-Hypothesis!$C$483))*AI62+LN(Employment!B162/Employment!B161)+LN(Hours!B182/Hours!B181) -> 0.02567417799 | S63: 3.448943765e+12 | T63: 0 | U63: =S63/Employment!CV63 -> 92084.24311 | W63: 2050 | X63: =IF(Hypothesis!$A$29=0,IF(W63<Hypothesis!$C$31,Hypothesis!$E$30,Hypothesis!$C$32*((LN(Hypothesis!$C$33*'United States'!AA62))-LN(Y62))),Hypothesis!$C$494*(LN('United States'!$AA62)-LN(Australia!$Y62)-0.05*(Education!$N181-Education!$B181))+Hypothesis!$C$495*'Labor and Products Regulations'!$B66*(LN('United States'!$AA62)-LN(Australia!Y62)-0.05*(Education!$N181-Education!$B181))+Hypothesis!$C$496*(CUR!B77)+Hypothesis!$C$497*(Hours!B416)+Hypothesis!$C$498*(Employment!BP103-Employment!BP102)+0.00386805) -> 0.009868742895 | Y63: 19.14954023 | Z63: =Y63/'United States'!AA63 -> 0.8827516855 | AA63: 0 | AC63: 2050 | AD63: 0.0329408816 | AE63: 1.620631658e+13 | AF63: 0 | AH63: 2050 | AI63: =IF(Hypothesis!$A$36=1,Hypothesis!$C$486+Hypothesis!$C$487*AI62+Hypothesis!$C$488*Australia!X63+Hypothesis!$C$489*Australia!X62+Hypothesis!$C$490*(Australia!AJ62+Hypothesis!$C$491*LN(Australia!Y62)),Hypothesis!$E$37) -> -0.007266703604 | AJ63: -0.3074131937 | AK63: 0
Q64: 2051 | R64: =(1/(1-Hypothesis!$C$483))*X64-(Hypothesis!$C$483/(1-Hypothesis!$C$483))*AI63+LN(Employment!B163/Employment!B162)+LN(Hours!B183/Hours!B182) -> 0.02576791511 | S64: 3.537815856e+12 | T64: 0 | U64: =S64/Employment!CV64 -> 93317.86632 | W64: 2051 | X64: =IF(Hypothesis!$A$29=0,IF(W64<Hypothesis!$C$31,Hypothesis!$E$30,Hypothesis!$C$32*((LN(Hypothesis!$C$33*'United States'!AA63))-LN(Y63))),Hypothesis!$C$494*(LN('United States'!$AA63)-LN(Australia!$Y63)-0.05*(Education!$N182-Education!$B182))+Hypothesis!$C$495*'Labor and Products Regulations'!$B67*(LN('United States'!$AA63)-LN(Australia!Y63)-0.05*(Education!$N182-Education!$B182))+Hypothesis!$C$496*(CUR!B78)+Hypothesis!$C$497*(Hours!B417)+Hypothesis!$C$498*(Employment!BP104-Employment!BP103)+0.00386805) -> 0.00970488529 | Y64: 19.33628905 | Z64: =Y64/'United States'!AA64 -> 0.8839388175 | AA64: 0 | AC64: 2051 | AD64: 0.03289941712 | AE64: 1.674836255e+13 | AF64: 0 | AH64: 2051 | AI64: =IF(Hypothesis!$A$36=1,Hypothesis!$C$486+Hypothesis!$C$487*AI63+Hypothesis!$C$488*Australia!X64+Hypothesis!$C$489*Australia!X63+Hypothesis!$C$490*(Australia!AJ63+Hypothesis!$C$491*LN(Australia!Y63)),Hypothesis!$E$37) -> -0.007131502005 | AJ64: -0.3145446957 | AK64: 0
Q65: 2052 | R65: =(1/(1-Hypothesis!$C$483))*X65-(Hypothesis!$C$483/(1-Hypothesis!$C$483))*AI64+LN(Employment!B164/Employment!B163)+LN(Hours!B184/Hours!B183) -> 0.02555466502 | S65: 3.628223555e+12 | T65: 0 | U65: =S65/Employment!CV65 -> 94369.18296 | W65: 2052 | X65: =IF(Hypothesis!$A$29=0,IF(W65<Hypothesis!$C$31,Hypothesis!$E$30,Hypothesis!$C$32*((LN(Hypothesis!$C$33*'United States'!AA64))-LN(Y64))),Hypothesis!$C$494*(LN('United States'!$AA64)-LN(Australia!$Y64)-0.05*(Education!$N183-Education!$B183))+Hypothesis!$C$495*'Labor and Products Regulations'!$B68*(LN('United States'!$AA64)-LN(Australia!Y64)-0.05*(Education!$N183-Education!$B183))+Hypothesis!$C$496*(CUR!B79)+Hypothesis!$C$497*(Hours!B418)+Hypothesis!$C$498*(Employment!BP105-Employment!BP104)+0.00386805) -> 0.009554196116 | Y65: 19.52191709 | Z65: =Y65/'United States'!AA65 -> 0.884994177 | AA65: 0 | AC65: 2052 | AD65: 0.03257946935 | AE65: 1.730300118e+13 | AF65: 0 | AH65: 2052 | AI65: =IF(Hypothesis!$A$36=1,Hypothesis!$C$486+Hypothesis!$C$487*AI64+Hypothesis!$C$488*Australia!X65+Hypothesis!$C$489*Australia!X64+Hypothesis!$C$490*(Australia!AJ64+Hypothesis!$C$491*LN(Australia!Y64)),Hypothesis!$E$37) -> -0.007024804334 | AJ65: -0.3215695 | AK65: 0
Q66: 2053 | R66: =(1/(1-Hypothesis!$C$483))*X66-(Hypothesis!$C$483/(1-Hypothesis!$C$483))*AI65+LN(Employment!B165/Employment!B164)+LN(Hours!B185/Hours!B184) -> 0.02521960244 | S66: 3.71972591e+12 | T66: 0 | U66: =S66/Employment!CV66 -> 95940.37331 | W66: 2053 | X66: =IF(Hypothesis!$A$29=0,IF(W66<Hypothesis!$C$31,Hypothesis!$E$30,Hypothesis!$C$32*((LN(Hypothesis!$C$33*'United States'!AA65))-LN(Y65))),Hypothesis!$C$494*(LN('United States'!$AA65)-LN(Australia!$Y65)-0.05*(Education!$N184-Education!$B184))+Hypothesis!$C$495*'Labor and Products Regulations'!$B69*(LN('United States'!$AA65)-LN(Australia!Y65)-0.05*(Education!$N184-Education!$B184))+Hypothesis!$C$496*(CUR!B80)+Hypothesis!$C$497*(Hours!B419)+Hypothesis!$C$498*(Employment!BP106-Employment!BP105)+0.00386805) -> 0.009414768219 | Y66: 19.70657933 | Z66: =Y66/'United States'!AA66 -> 0.8859272648 | AA66: 0 | AC66: 2053 | AD66: 0.03215749452 | AE66: 1.786846557e+13 | AF66: 0 | AH66: 2053 | AI66: =IF(Hypothesis!$A$36=1,Hypothesis!$C$486+Hypothesis!$C$487*AI65+Hypothesis!$C$488*Australia!X66+Hypothesis!$C$489*Australia!X65+Hypothesis!$C$490*(Australia!AJ65+Hypothesis!$C$491*LN(Australia!Y65)),Hypothesis!$E$37) -> -0.006937892083 | AJ66: -0.3285073921 | AK66: 0
Q67: 2054 | R67: =(1/(1-Hypothesis!$C$483))*X67-(Hypothesis!$C$483/(1-Hypothesis!$C$483))*AI66+LN(Employment!B166/Employment!B165)+LN(Hours!B186/Hours!B185) -> 0.02471665475 | S67: 3.811665091e+12 | T67: 0 | U67: =S67/Employment!CV67 -> 96870.82961 | W67: 2054 | X67: =IF(Hypothesis!$A$29=0,IF(W67<Hypothesis!$C$31,Hypothesis!$E$30,Hypothesis!$C$32*((LN(Hypothesis!$C$33*'United States'!AA66))-LN(Y66))),Hypothesis!$C$494*(LN('United States'!$AA66)-LN(Australia!$Y66)-0.05*(Education!$N185-Education!$B185))+Hypothesis!$C$495*'Labor and Products Regulations'!$B70*(LN('United States'!$AA66)-LN(Australia!Y66)-0.05*(Education!$N185-Education!$B185))+Hypothesis!$C$496*(CUR!B81)+Hypothesis!$C$497*(Hours!B420)+Hypothesis!$C$498*(Employment!BP107-Employment!BP106)+0.00386805) -> 0.009284996377 | Y67: 19.89040695 | Z67: =Y67/'United States'!AA67 -> 0.8867462543 | AA67: 0 | AC67: 2054 | AD67: 0.03158003684 | AE67: 1.844175701e+13 | AF67: 0 | AH67: 2054 | AI67: =IF(Hypothesis!$A$36=1,Hypothesis!$C$486+Hypothesis!$C$487*AI66+Hypothesis!$C$488*Australia!X67+Hypothesis!$C$489*Australia!X66+Hypothesis!$C$490*(Australia!AJ66+Hypothesis!$C$491*LN(Australia!Y66)),Hypothesis!$E$37) -> -0.006863382099 | AJ67: -0.3353707742 | AK67: 0
Q68: 2055 | R68: =(1/(1-Hypothesis!$C$483))*X68-(Hypothesis!$C$483/(1-Hypothesis!$C$483))*AI67+LN(Employment!B167/Employment!B166)+LN(Hours!B187/Hours!B186) -> 0.0241461855 | S68: 3.903702264e+12 | T68: 0 | U68: =S68/Employment!CV68 -> 97902.84774 | W68: 2055 | X68: =IF(Hypothesis!$A$29=0,IF(W68<Hypothesis!$C$31,Hypothesis!$E$30,Hypothesis!$C$32*((LN(Hypothesis!$C$33*'United States'!AA67))-LN(Y67))),Hypothesis!$C$494*(LN('United States'!$AA67)-LN(Australia!$Y67)-0.05*(Education!$N186-Education!$B186))+Hypothesis!$C$495*'Labor and Products Regulations'!$B71*(LN('United States'!$AA67)-LN(Australia!Y67)-0.05*(Education!$N186-Education!$B186))+Hypothesis!$C$496*(CUR!B82)+Hypothesis!$C$497*(Hours!B421)+Hypothesis!$C$498*(Employment!BP108-Employment!BP107)+0.00386805) -> 0.009163801052 | Y68: 20.07351639 | Z68: =Y68/'United States'!AA68 -> 0.8874584385 | AA68: 0 | AC68: 2055 | AD68: 0.03094176937 | AE68: 1.902129737e+13 | AF68: 0 | AH68: 2055 | AI68: =IF(Hypothesis!$A$36=1,Hypothesis!$C$486+Hypothesis!$C$487*AI67+Hypothesis!$C$488*Australia!X68+Hypothesis!$C$489*Australia!X67+Hypothesis!$C$490*(Australia!AJ67+Hypothesis!$C$491*LN(Australia!Y67)),Hypothesis!$E$37) -> -0.006795583868 | AJ68: -0.3421663581 | AK68: 0
Q69: 2056 | R69: =(1/(1-Hypothesis!$C$483))*X69-(Hypothesis!$C$483/(1-Hypothesis!$C$483))*AI68+LN(Employment!B168/Employment!B167)+LN(Hours!B188/Hours!B187) -> 0.02403944405 | S69: 3.997545096e+12 | T69: 0 | U69: =S69/Employment!CV69 -> 101879.8152 | W69: 2056 | X69: =IF(Hypothesis!$A$29=0,IF(W69<Hypothesis!$C$31,Hypothesis!$E$30,Hypothesis!$C$32*((LN(Hypothesis!$C$33*'United States'!AA68))-LN(Y68))),Hypothesis!$C$494*(LN('United States'!$AA68)-LN(Australia!$Y68)-0.05*(Education!$N187-Education!$B187))+Hypothesis!$C$495*'Labor and Products Regulations'!$B72*(LN('United States'!$AA68)-LN(Australia!Y68)-0.05*(Education!$N187-Education!$B187))+Hypothesis!$C$496*(CUR!B83)+Hypothesis!$C$497*(Hours!B422)+Hypothesis!$C$498*(Employment!BP109-Employment!BP108)+0.00386805) -> 0.009050747074 | Y69: 20.25602136 | Z69: =Y69/'United States'!AA69 -> 0.8880707892 | AA69: 0 | AC69: 2056 | AD69: 0.03077003342 | AE69: 1.961568103e+13 | AF69: 0 | AH69: 2056 | AI69: =IF(Hypothesis!$A$36=1,Hypothesis!$C$486+Hypothesis!$C$487*AI68+Hypothesis!$C$488*Australia!X69+Hypothesis!$C$489*Australia!X68+Hypothesis!$C$490*(Australia!AJ68+Hypothesis!$C$491*LN(Australia!Y68)),Hypothesis!$E$37) -> -0.006730589371 | AJ69: -0.3488969475 | AK69: 0
Q70: 2057 | R70: =(1/(1-Hypothesis!$C$483))*X70-(Hypothesis!$C$483/(1-Hypothesis!$C$483))*AI69+LN(Employment!B169/Employment!B168)+LN(Hours!B189/Hours!B188) -> 0.02349263725 | S70: 4.091457973e+12 | T70: 0 | U70: =S70/Employment!CV70 -> 103228.7304 | W70: 2057 | X70: =IF(Hypothesis!$A$29=0,IF(W70<Hypothesis!$C$31,Hypothesis!$E$30,Hypothesis!$C$32*((LN(Hypothesis!$C$33*'United States'!AA69))-LN(Y69))),Hypothesis!$C$494*(LN('United States'!$AA69)-LN(Australia!$Y69)-0.05*(Education!$N188-Education!$B188))+Hypothesis!$C$495*'Labor and Products Regulations'!$B73*(LN('United States'!$AA69)-LN(Australia!Y69)-0.05*(Education!$N188-Education!$B188))+Hypothesis!$C$496*(CUR!B84)+Hypothesis!$C$497*(Hours!B423)+Hypothesis!$C$498*(Employment!BP110-Employment!BP109)+0.00386805) -> 0.008946229544 | Y70: 20.4380494 | Z70: =Y70/'United States'!AA70 -> 0.8885906842 | AA70: 0 | AC70: 2057 | AD70: 0.03015885333 | AE70: 2.021627862e+13 | AF70: 0 | AH70: 2057 | AI70: =IF(Hypothesis!$A$36=1,Hypothesis!$C$486+Hypothesis!$C$487*AI69+Hypothesis!$C$488*Australia!X70+Hypothesis!$C$489*Australia!X69+Hypothesis!$C$490*(Australia!AJ69+Hypothesis!$C$491*LN(Australia!Y69)),Hypothesis!$E$37) -> -0.006666216078 | AJ70: -0.3555631635 | AK70: 0
Q71: 2058 | R71: =(1/(1-Hypothesis!$C$483))*X71-(Hypothesis!$C$483/(1-Hypothesis!$C$483))*AI70+LN(Employment!B170/Employment!B169)+LN(Hours!B190/Hours!B189) -> 0.02311302714 | S71: 4.186023952e+12 | T71: 0 | U71: =S71/Employment!CV71 -> 104570.0954 | W71: 2058 | X71: =IF(Hypothesis!$A$29=0,IF(W71<Hypothesis!$C$31,Hypothesis!$E$30,Hypothesis!$C$32*((LN(Hypothesis!$C$33*'United States'!AA70))-LN(Y70))),Hypothesis!$C$494*(LN('United States'!$AA70)-LN(Australia!$Y70)-0.05*(Education!$N189-Education!$B189))+Hypothesis!$C$495*'Labor and Products Regulations'!$B74*(LN('United States'!$AA70)-LN(Australia!Y70)-0.05*(Education!$N189-Education!$B189))+Hypothesis!$C$496*(CUR!B85)+Hypothesis!$C$497*(Hours!B424)+Hypothesis!$C$498*(Employment!BP111-Employment!BP110)+0.00386805) -> 0.008851704393 | Y71: 20.61976403 | Z71: =Y71/'United States'!AA71 -> 0.8890268442 | AA71: 0 | AC71: 2058 | AD71: 0.02971489385 | AE71: 2.08260175e+13 | AF71: 0 | AH71: 2058 | AI71: =IF(Hypothesis!$A$36=1,Hypothesis!$C$486+Hypothesis!$C$487*AI70+Hypothesis!$C$488*Australia!X71+Hypothesis!$C$489*Australia!X70+Hypothesis!$C$490*(Australia!AJ70+Hypothesis!$C$491*LN(Australia!Y70)),Hypothesis!$E$37) -> -0.006601866712 | AJ71: -0.3621650302 | AK71: 0
Q72: 2059 | R72: =(1/(1-Hypothesis!$C$483))*X72-(Hypothesis!$C$483/(1-Hypothesis!$C$483))*AI71+LN(Employment!B171/Employment!B170)+LN(Hours!B191/Hours!B190) -> 0.02289558222 | S72: 4.281865407e+12 | T72: 0 | U72: =S72/Employment!CV72 -> 105935.0375 | W72: 2059 | X72: =IF(Hypothesis!$A$29=0,IF(W72<Hypothesis!$C$31,Hypothesis!$E$30,Hypothesis!$C$32*((LN(Hypothesis!$C$33*'United States'!AA71))-LN(Y71))),Hypothesis!$C$494*(LN('United States'!$AA71)-LN(Australia!$Y71)-0.05*(Education!$N190-Education!$B190))+Hypothesis!$C$495*'Labor and Products Regulations'!$B75*(LN('United States'!$AA71)-LN(Australia!Y71)-0.05*(Education!$N190-Education!$B190))+Hypothesis!$C$496*(CUR!B86)+Hypothesis!$C$497*(Hours!B425)+Hypothesis!$C$498*(Employment!BP112-Employment!BP111)+0.00386805) -> 0.008769964765 | Y72: 20.80139391 | Z72: =Y72/'United States'!AA72 -> 0.8893905168 | AA72: 0 | AC72: 2059 | AD72: 0.02943395012 | AE72: 2.144812001e+13 | AF72: 0 | AH72: 2059 | AI72: =IF(Hypothesis!$A$36=1,Hypothesis!$C$486+Hypothesis!$C$487*AI71+Hypothesis!$C$488*Australia!X72+Hypothesis!$C$489*Australia!X71+Hypothesis!$C$490*(Australia!AJ71+Hypothesis!$C$491*LN(Australia!Y71)),Hypothesis!$E$37) -> -0.006538367897 | AJ72: -0.3687033981 | AK72: 0
Q73: 2060 | R73: =(1/(1-Hypothesis!$C$483))*X73-(Hypothesis!$C$483/(1-Hypothesis!$C$483))*AI72+LN(Employment!B172/Employment!B171)+LN(Hours!B192/Hours!B191) -> 0.02272200855 | S73: 4.37915799e+12 | T73: 0 | U73: =S73/Employment!CV73 -> 107338.8792 | W73: 2060 | X73: =IF(Hypothesis!$A$29=0,IF(W73<Hypothesis!$C$31,Hypothesis!$E$30,Hypothesis!$C$32*((LN(Hypothesis!$C$33*'United States'!AA72))-LN(Y72))),Hypothesis!$C$494*(LN('United States'!$AA72)-LN(Australia!$Y72)-0.05*(Education!$N191-Education!$B191))+Hypothesis!$C$495*'Labor and Products Regulations'!$B76*(LN('United States'!$AA72)-LN(Australia!Y72)-0.05*(Education!$N191-Education!$B191))+Hypothesis!$C$496*(CUR!B87)+Hypothesis!$C$497*(Hours!B426)+Hypothesis!$C$498*(Employment!BP113-Employment!BP112)+0.00386805) -> 0.008701977982 | Y73: 20.98319706 | Z73: =Y73/'United States'!AA73 -> 0.8896938488 | AA73: 0 | AC73: 2060 | AD73: 0.02919891288 | AE73: 2.208361452e+13 | AF73: 0 | AH73: 2060 | AI73: =IF(Hypothesis!$A$36=1,Hypothesis!$C$486+Hypothesis!$C$487*AI72+Hypothesis!$C$488*Australia!X73+Hypothesis!$C$489*Australia!X72+Hypothesis!$C$490*(Australia!AJ72+Hypothesis!$C$491*LN(Australia!Y72)),Hypothesis!$E$37) -> -0.006476904325 | AJ73: -0.3751803025 | AK73: 0
Q74: 2061 | R74: =(1/(1-Hypothesis!$C$483))*X74-(Hypothesis!$C$483/(1-Hypothesis!$C$483))*AI73+LN(Employment!B173/Employment!B172)+LN(Hours!B193/Hours!B192) -> 0.02349917656 | S74: 4.482064597e+12 | T74: 0 | U74: =S74/Employment!CV74 -> 108885.0807 | W74: 2061 | X74: =IF(Hypothesis!$A$29=0,IF(W74<Hypothesis!$C$31,Hypothesis!$E$30,Hypothesis!$C$32*((LN(Hypothesis!$C$33*'United States'!AA73))-LN(Y73))),Hypothesis!$C$494*(LN('United States'!$AA73)-LN(Australia!$Y73)-0.05*(Education!$N192-Education!$B192))+Hypothesis!$C$495*'Labor and Products Regulations'!$B77*(LN('United States'!$AA73)-LN(Australia!Y73)-0.05*(Education!$N192-Education!$B192))+Hypothesis!$C$496*(CUR!B88)+Hypothesis!$C$497*(Hours!B427)+Hypothesis!$C$498*(Employment!BP114-Employment!BP113)+0.00386805) -> 0.008790646076 | Y74: 21.16846604 | Z74: =Y74/'United States'!AA74 -> 0.890076202 | AA74: 0 | AC74: 2061 | AD74: 0.02995638682 | AE74: 2.275516826e+13 | AF74: 0 | AH74: 2061 | AI74: =IF(Hypothesis!$A$36=1,Hypothesis!$C$486+Hypothesis!$C$487*AI73+Hypothesis!$C$488*Australia!X74+Hypothesis!$C$489*Australia!X73+Hypothesis!$C$490*(Australia!AJ73+Hypothesis!$C$491*LN(Australia!Y73)),Hypothesis!$E$37) -> -0.006457210259 | AJ74: -0.3816375127 | AK74: 0
Q75: 2062 | R75: =(1/(1-Hypothesis!$C$483))*X75-(Hypothesis!$C$483/(1-Hypothesis!$C$483))*AI74+LN(Employment!B174/Employment!B173)+LN(Hours!B194/Hours!B193) -> 0.02342887934 | S75: 4.587074347e+12 | T75: 0 | U75: =S75/Employment!CV75 -> 110445.9686 | W75: 2062 | X75: =IF(Hypothesis!$A$29=0,IF(W75<Hypothesis!$C$31,Hypothesis!$E$30,Hypothesis!$C$32*((LN(Hypothesis!$C$33*'United States'!AA74))-LN(Y74))),Hypothesis!$C$494*(LN('United States'!$AA74)-LN(Australia!$Y74)-0.05*(Education!$N193-Education!$B193))+Hypothesis!$C$495*'Labor and Products Regulations'!$B78*(LN('United States'!$AA74)-LN(Australia!Y74)-0.05*(Education!$N193-Education!$B193))+Hypothesis!$C$496*(CUR!B89)+Hypothesis!$C$497*(Hours!B428)+Hypothesis!$C$498*(Employment!BP115-Employment!BP114)+0.00386805) -> 0.008747346239 | Y75: 21.35444617 | Z75: =Y75/'United States'!AA75 -> 0.8904201637 | AA75: 0 | AC75: 2062 | AD75: 0.02983679412 | AE75: 2.344433974e+13 | AF75: 0 | AH75: 2062 | AI75: =IF(Hypothesis!$A$36=1,Hypothesis!$C$486+Hypothesis!$C$487*AI74+Hypothesis!$C$488*Australia!X75+Hypothesis!$C$489*Australia!X74+Hypothesis!$C$490*(Australia!AJ74+Hypothesis!$C$491*LN(Australia!Y74)),Hypothesis!$E$37) -> -0.006407914783 | AJ75: -0.3880454275 | AK75: 0
Q76: 2063 | R76: =(1/(1-Hypothesis!$C$483))*X76-(Hypothesis!$C$483/(1-Hypothesis!$C$483))*AI75+LN(Employment!B175/Employment!B174)+LN(Hours!B195/Hours!B194) -> 0.02335293276 | S76: 4.694195986e+12 | T76: 0 | U76: =S76/Employment!CV76 -> 112020.9187 | W76: 2063 | X76: =IF(Hypothesis!$A$29=0,IF(W76<Hypothesis!$C$31,Hypothesis!$E$30,Hypothesis!$C$32*((LN(Hypothesis!$C$33*'United States'!AA75))-LN(Y75))),Hypothesis!$C$494*(LN('United States'!$AA75)-LN(Australia!$Y75)-0.05*(Education!$N194-Education!$B194))+Hypothesis!$C$495*'Labor and Products Regulations'!$B79*(LN('United States'!$AA75)-LN(Australia!Y75)-0.05*(Education!$N194-Education!$B194))+Hypothesis!$C$496*(CUR!B90)+Hypothesis!$C$497*(Hours!B429)+Hypothesis!$C$498*(Employment!BP116-Employment!BP115)+0.00386805) -> 0.008708972282 | Y76: 21.54123364 | Z76: =Y76/'United States'!AA76 -> 0.8907300768 | AA76: 0 | AC76: 2063 | AD76: 0.02972173488 | AE76: 2.41516047e+13 | AF76: 0 | AH76: 2063 | AI76: =IF(Hypothesis!$A$36=1,Hypothesis!$C$486+Hypothesis!$C$487*AI75+Hypothesis!$C$488*Australia!X76+Hypothesis!$C$489*Australia!X75+Hypothesis!$C$490*(Australia!AJ75+Hypothesis!$C$491*LN(Australia!Y75)),Hypothesis!$E$37) -> -0.006368802117 | AJ76: -0.3944142296 | AK76: 0
